Workbook

Sheet Welcome
B2: Welcome to the Calculation Tool for Determining the Optimal Fuel and Retrofit Strategy in the Baltic ECA Zone
H5: Select the Maritime Segment Below by Clicking on one the Images
C8: Container ship | L8: Bulk Carrier | U8: Tanker

Sheet Results
B2: Determination of the Optimal Fuel and Retrofit Strategy in the Baltic ECA Zone
B3: Step 1: Type your input in the yellow cells of the input section (Cells C11 through C29)
B4: Step 2: Read the optimal and second best fuel strategies along with retrofit payback times in the results section
B5: Step 3: Read the accumulated costs as a function of remaining service time in the graph to the right
B7: Input | F7: Results | I7: Illustration
B9: Primary Variables | C9: Value | F9: Optimal Strategy | G9: Second Best Strategy
E10: Remaining Service Years
B11: =IF('Primary Calculations'!A1=1,"Vessel Container Capacity (TEU)",IF('Primary Calculations'!A1=2,"Bulk Carrier maximum Deadweight (DWT)",IF('Primary Calculations'!A1=3,"Tanker Vessel maximum Deadweight (DWT)",ERROR))) -> Vessel Container Capacity (TEU) | C11: 1600 | E11: 1 | F11: =INDEX('Primary Calculations'!$C$20:$C$24,MATCH(MIN('Primary Calculations'!D20:D24),'Primary Calculations'!D20:D24,0))&": Estimated costs = "&ROUND(MIN('Primary Calculations'!D20:D24)/10^6,2)&" Mill. USD." -> MGO (Low): Estimated costs = 3,66 Mill. USD. | G11: =INDEX('Primary Calculations'!$C$20:$C$24,MATCH(SMALL('Primary Calculations'!D20:D24,2),'Primary Calculations'!D20:D24,0))&": Estimated costs = "&ROUND(SMALL('Primary Calculations'!D20:D24,2)/10^6,2)&" Mill. USD." -> Non-Compliance: Estimated costs = 4,09 Mill. USD.
B12: Average Speed in ECA zone (knots) | C12: 15 | E12: 2 | F12: =INDEX('Primary Calculations'!$C$20:$C$24,MATCH(MIN('Primary Calculations'!E20:E24),'Primary Calculations'!E20:E24,0))&": Estimated costs = "&ROUND(MIN('Primary Calculations'!E20:E24)/10^6,2)&" Mill. USD." -> MGO (Low): Estimated costs = 7,66 Mill. USD. | G12: =INDEX('Primary Calculations'!$C$20:$C$24,MATCH(SMALL('Primary Calculations'!E20:E24,2),'Primary Calculations'!E20:E24,0))&": Estimated costs = "&ROUND(SMALL('Primary Calculations'!E20:E24,2)/10^6,2)&" Mill. USD." -> MGO (High): Estimated costs = 8,5 Mill. USD.
B13: Average Speed Outside ECA Zone | C13: 15 | E13: 3 | F13: =INDEX('Primary Calculations'!$C$20:$C$24,MATCH(MIN('Primary Calculations'!F20:F24),'Primary Calculations'!F20:F24,0))&": Estimated costs = "&ROUND(MIN('Primary Calculations'!F20:F24)/10^6,2)&" Mill. USD." -> MGO (Low): Estimated costs = 11,18 Mill. USD. | G13: =INDEX('Primary Calculations'!$C$20:$C$24,MATCH(SMALL('Primary Calculations'!F20:F24,2),'Primary Calculations'!F20:F24,0))&": Estimated costs = "&ROUND(SMALL('Primary Calculations'!F20:F24,2)/10^6,2)&" Mill. USD." -> MGO (High): Estimated costs = 12,39 Mill. USD.
B14: Annual Distance sailed (nautical miles) | C14: 102000 | E14: 4 | F14: =INDEX('Primary Calculations'!$C$20:$C$24,MATCH(MIN('Primary Calculations'!G20:G24),'Primary Calculations'!G20:G24,0))&": Estimated costs = "&ROUND(MIN('Primary Calculations'!G20:G24)/10^6,2)&" Mill. USD." -> MGO (Low): Estimated costs = 14,47 Mill. USD. | G14: =INDEX('Primary Calculations'!$C$20:$C$24,MATCH(SMALL('Primary Calculations'!G20:G24,2),'Primary Calculations'!G20:G24,0))&": Estimated costs = "&ROUND(SMALL('Primary Calculations'!G20:G24,2)/10^6,2)&" Mill. USD." -> MGO (High): Estimated costs = 16,03 Mill. USD.
B15: Percentage of annual distance in ECA Zone (%) | C15: 65 | E15: 5 | F15: =INDEX('Primary Calculations'!$C$20:$C$24,MATCH(MIN('Primary Calculations'!H20:H24),'Primary Calculations'!H20:H24,0))&": Estimated costs = "&ROUND(MIN('Primary Calculations'!H20:H24)/10^6,2)&" Mill. USD." -> MGO (Low): Estimated costs = 17,59 Mill. USD. | G15: =INDEX('Primary Calculations'!$C$20:$C$24,MATCH(SMALL('Primary Calculations'!H20:H24,2),'Primary Calculations'!H20:H24,0))&": Estimated costs = "&ROUND(SMALL('Primary Calculations'!H20:H24,2)/10^6,2)&" Mill. USD." -> MGO (High): Estimated costs = 19,49 Mill. USD.
B16: Discount Factor (%) | C16: 7 | E16: 10 | F16: =INDEX('Primary Calculations'!$C$20:$C$24,MATCH(MIN('Primary Calculations'!M20:M24),'Primary Calculations'!M20:M24,0))&": Estimated costs = "&ROUND(MIN('Primary Calculations'!M20:M24)/10^6,2)&" Mill. USD." -> MGO (Low): Estimated costs = 31,95 Mill. USD. | G16: =INDEX('Primary Calculations'!$C$20:$C$24,MATCH(SMALL('Primary Calculations'!M20:M24,2),'Primary Calculations'!M20:M24,0))&": Estimated costs = "&ROUND(SMALL('Primary Calculations'!M20:M24,2)/10^6,2)&" Mill. USD." -> LNG: Estimated costs = 32,2 Mill. USD.
B17: Oil price scenario (1 = normal growth; 2 = high growth; 3 = low growth) | C17: 1 | E17: 15 | F17: =INDEX('Primary Calculations'!$C$20:$C$24,MATCH(MIN('Primary Calculations'!R20:R24),'Primary Calculations'!R20:R24,0))&": Estimated costs = "&ROUND(MIN('Primary Calculations'!R20:R24)/10^6,2)&" Mill. USD." -> LNG: Estimated costs = 41,04 Mill. USD. | G17: =INDEX('Primary Calculations'!$C$20:$C$24,MATCH(SMALL('Primary Calculations'!R20:R24,2),'Primary Calculations'!R20:R24,0))&": Estimated costs = "&ROUND(SMALL('Primary Calculations'!R20:R24,2)/10^6,2)&" Mill. USD." -> Scrubber: Estimated costs = 43,09 Mill. USD.
B19: Secondary Variables | C19: Value | E19: Investment Payback Period
G20: Approximate payback time (years)
B21: Enforcement | E21: Scrubber compared to MGO (low) | G21: =INDEX('Primary Calculations'!D63:W63,MATCH(MIN('Primary Calculations'!D64:W64),'Primary Calculations'!D64:W64,0))&" years" -> 14 years
B22: Enforcement Ratio per port visit (%) | C22: 10 | E22: Scrubber compared to MGO (high) | G22: =INDEX('Primary Calculations'!D63:W63,MATCH(MIN('Primary Calculations'!D65:W65),'Primary Calculations'!D65:W65,0))&" years." -> 8 years.
B23: Fine Size ($USD) | C23: 100000 | E23: LNG compared to MGO (low) | G23: =INDEX('Primary Calculations'!D63:W63,MATCH(MIN('Primary Calculations'!D66:W66),'Primary Calculations'!D66:W66,0))&" years." -> 10 years.
B24: Annual Port visits in ECA zone | C24: 120 | E24: LNG compared to MGO (high) | G24: =INDEX('Primary Calculations'!D63:W63,MATCH(MIN('Primary Calculations'!D67:W67),'Primary Calculations'!D67:W67,0))&" years." -> 7 years.
B26: Fuel Price Speads
B27: MGO (low) - HFO ($USD/t) | C27: 200
B28: MGO (high) - HFO ($USD/t) | C28: 300
B29: HFO 3,5 - HFO 0,5 ($USD/t) | C29: 100

Sheet Advanced Settings
B2: Advanced Settings
B3: Step 1: Change input of the variables below
B4: Step 2: Insert retrofit cost value (either cost per engine size or absolute values) | F4: tjeck om 2 stoke lng bliver beregnet ordentligt
B5: Step 3: After entering the advanced settings click on the button "Return to Results".
B7: Scrubber and LNG price functions | F7: Fuel Specifications
B9: Existing Vessel or New-Build (Existing Vessel = 0, New-build = 1) | C9: 0 | F9: Introduction of Global 0.5 % Sulphur Cap (Year 2020 = 0, Year 2025 = 1) | G9: 0
C11: Retrofit | D11: New-Build | F11: Specify start value of fuel price projections
B12: Scrubber Modification: | F12: Cost of a ton of HFO in 2014 (USD) | G12: 730.36
B13: Scrubber Investment Costs (USD/ main engine kW) | C13: 180 | D13: 180 | F13: Cost of a ton of LNG in 2014 (USD) | G13: 496.32
B14: Scrubber Installation Costs (USD/ main engine kW) | C14: 270 | D14: 216
B15: LNG Modifications (2-Stroke Engine):
B16: LNG 2-Stroke Investment Costs (USD/ main engine kW) | C16: 342 | D16: 294 | F16: Vessel Specifications
B17: LNG 2-Stroke Installation Costs (USD/ total engine kW) | C17: 180 | D17: 120
B18: LNG Modifications (4-Stroke Engine): | G18: Value
B19: LNG 4-Stroke Investment Costs (USD/ main engine kW) | C19: 504 | D19: 294 | F19: Capacity
B20: LNG 4-Stroke Installation Costs (USD/ total engine kW) | C20: 180 | D20: 120 | F20: Average Capacity Utilization (%) | G20: 100
B22: Predetermined Scrubber and LNG costs | F22: Engine Specifications
F23: Main engine type (2-stroke = 1, 4-stroke = 2) | G23: 1
C24: Retrofit | D24: New-Build | F24: TIER 1, 2 or 3 engine (If individual NOx reduction technology is selected then press 0) | G24: 3
B25: Scrubber Modification: | F25: NOx reduction technology: EGR = 1, SCR = 2 or other technology = 3 | G25: 2
B26: Scrubber Investment Costs | C26: 0 | D26: 0 | F26: Fuel optimised main engine? (NO = 0, YES = 1) | G26: 1
B27: Scrubber Installaton Costs | C27: 0 | D27: 0 | F27: Main engine service rating (for non derated engine only) (%) | G27: 90
F28: If normal tuning press 1 - if low load tuning press 2 | G28: 1
B29: LNG Modifications:
B30: LNG Investment Costs | C30: 0 | D30: 0 | F30: Manually Specify Fuel consumption (g/kW/hour)
B31: LNG Installation Costs | C31: 0 | D31: 0 | F31: HFO (no scrubber) specific fuel oil consumption at 75 % MCR (default = 1) | G31: 1
F32: HFO (scrubber) specific fuel oil consumption at 75 % MCR (default = 1) | G32: 1
F33: MGO specific fuel oil consumption at 75 % MCR (default = 1) | G33: 1
F34: LNG specific fuel oil consumption at 75 % MCR (default = 1) | G34: 1
F36: Default Specific Fuel consumption at current settings (g/kW/hour)
F37: HFO (no scrubber) specific fuel oil consumption | G37: ='Emission factors'!H15 -> 0.1792345679
F38: HFO (scrubber) specific fuel oil consumption | G38: ='Emission factors'!B15 -> 0.1846116049
F39: MGO specific fuel oil consumption | G39: ='Emission factors'!D15 -> 0.17
F40: LNG specific fuel pil consumption | G40: ='Emission factors'!F15 -> 0.155

Sheet Primary Calculations (hidden)
A1: 1
D2: Inside ECA Zone | E2: Outside ECA Zone | F2: Inside ECA Zone | K2: Crime and Punishment | O2: Engine Rating in Actual Condition | P2: Outside ECA Zone SFOC at SCR
C3: Vessel Characteristics | D3: Mt/nm | E3: MT/nm | F3: Mt/hour | H3: Engine Characteristics | K3: ECA zone port visits per year | L3: =Results!C24 -> 120 | N3: Outside ECA zone Fuel consumption
C4: Vessel Average HFO Fuel Consumption (Mt/nm) | D4: =('Emission factors'!H51+'Emission factors'!I51)/Results!C12 -> 0.06807679685 | E4: =('Emission factors'!H56+'Emission factors'!I56)/Results!C13 -> 0.06807679685 | F4: =D4*Results!$C$12 -> 1.021151953 | H4: Vessel Main Engine Yield | I4: =IF(A1=1,liner!C47,IF(A1=2,Bulk!C43,IF(A1=3,Tanker!C43,ERROR))) -> 16498.26474 | K4: Change of getting caught | L4: =Results!C22/100 -> 0.1 | N4: Vessel Average HFO Fuel Consumption (Mt/nm) | O4: =CPAS1!M36/liner!C47*100 -> 28.6861887 | P4: ='Emission factors'!B15*IF(liner!C59=1,100+0.0028*O4^2-0.41*O4+15,100+0.0000000020194*O4^6-0.0000007555*O4^5+0.00011181*O4^4-0.00832*O44^3+0.33*O4^2-6.851*O4+62.9)*10 -> 194.8442116 | Q4: 0 | R4: Years untill Scrubber is installed
C5: Vessel Average MGO Fuel Consumption (Mt/nm) | D5: =('Emission factors'!D51+'Emission factors'!E51)/Results!C12 -> 0.06500165644 | E5: =('Emission factors'!F56+'Emission factors'!G56)/Results!C13 -> 0.05846087675 | F5: =D5*Results!$C$12 -> 0.9750248466 | H5: Vessel Auxiliary Engine Yield | I5: =IF(A1=1,liner!C48,IF(A1=2,Bulk!C44,IF(A1=3,Tanker!C44,ERROR))) -> 662.4566186 | K5: Fine Size (USD) | L5: =Results!C23 -> 100000 | N5: Vessel Average MGO Fuel Consumption (Mt/nm) | O5: =BPAS1!L36/Bulk!C43*100 -> 107.0424989 | P5: ='Emission factors'!B15*IF(Bulk!C59=1,100+0.0028*O5^2-0.41*O5+15,100+0.0000000020194*O5^6-0.0000007555*O5^5+0.00011181*O5^4-0.00832*O5^3+0.33*O5^2-6.851*O5+62.9)*10 -> 190.5103996 | Q5: 0 | R5: Years untill LNG engine is installed
C6: Vessel Average LNG Fuel Consumption (Mt/nm) | D6: =('Emission factors'!F51+'Emission factors'!G51)/Results!C12 -> 0.05846087675 | E6: =('Emission factors'!D56+'Emission factors'!E56)/Results!C13 -> 0.06500165644 | F6: =D6*Results!$C$12 -> 0.8769131512 | K6: Engine modification Costs | N6: Vessel Average LNG Fuel Consumption (Mt/nm) | O6: =TPAS1!L36/Tanker!C43*100 -> 90 | P6: ='Emission factors'!B15*IF(Tanker!C59=1,100+0.0028*O6^2-0.41*O6+15,100+0.0000000020194*O6^6-0.0000007555*O6^5+0.00011181*O6^4-0.00832*O6^3+0.33*O6^2-6.851*O6+62.9)*10 -> 186.0515755
C7: Vessel Average HFO + scrubber consumption | D7: =('Emission factors'!B51+'Emission factors'!C51)/Results!C12 -> 0.07011910075 | E7: =('Emission factors'!B56+'Emission factors'!C56)/Results!C13 -> 0.07011910075 | F7: =D7*Results!$C$12 -> 1.051786511 | K7: Scrubber cost | L7: =IF('Advanced Settings'!C9=0,IF('Advanced Settings'!C26>0,'Advanced Settings'!C26,'Advanced Settings'!C13*'Primary Calculations'!I4),IF('Advanced Settings'!D26>0,'Advanced Settings'!D26,'Advanced Settings'!D13*'Primary Calculations'!I4)) -> 2969687.654 | N7: Vessel Average HFO + scrubber consumption | Q7: her skal ændres en if sådan at der skelnes mellem fuel typer
K8: Scrubber retrofit cost | L8: =IF('Advanced Settings'!C9=0,IF('Advanced Settings'!C27>0,'Advanced Settings'!C27,'Advanced Settings'!C14*'Primary Calculations'!I4),IF('Advanced Settings'!D27>0,'Advanced Settings'!D27,'Advanced Settings'!D14*'Primary Calculations'!I4)) -> 4454531.48 | Q8: tror også det skal ændres for inde i ECA zone
K9: LNG engine cost | L9: =IF('Advanced Settings'!C9=0,IF('Advanced Settings'!C30>0,'Advanced Settings'!C30,IF('Advanced Settings'!G23=2,'Advanced Settings'!C19*'Primary Calculations'!I4,'Advanced Settings'!C16*'Primary Calculations'!I4)),IF('Advanced Settings'!D30>0,'Advanced Settings'!D30,IF('Advanced Settings'!G23=2,'Advanced Settings'!D19*'Primary Calculations'!I4,'Advanced Settings'!D16*'Primary Calculations'!I4))) -> 5642406.542
C10: Route Characteristics | K10: LNG retrofit cost | L10: =IF('Advanced Settings'!C9=0,IF('Advanced Settings'!C31>0,'Advanced Settings'!C31,IF('Advanced Settings'!G23=2,'Advanced Settings'!C20*('Primary Calculations'!I4++'Primary Calculations'!I5),'Advanced Settings'!C17*('Primary Calculations'!I4++'Primary Calculations'!I5))),IF('Advanced Settings'!D31>0,'Advanced Settings'!D31,IF('Advanced Settings'!G23=2,'Advanced Settings'!D20*('Primary Calculations'!I4++'Primary Calculations'!I5),'Advanced Settings'!D17*('Primary Calculations'!I4++'Primary Calculations'!I5)))) -> 3088929.845
C11: Percentage of time spent in ECA zone | D11: =Results!C15/100 -> 0.65 | O11: Remaining vessel service years | P11: 10
C12: Total nautical miles per year | D12: =Results!C14 -> 102000 | L12: =SUM(L7:L8) -> 7424219.134
L13: =SUM(L9:L10) -> 8731336.387
C14: Discount Factor | D14: =Results!C16/100 -> 0.07
C16: Primo | D16: 2016 | E16: 2017 | F16: 2018 | G16: 2019 | H16: 2020 | I16: 2021 | J16: 2022 | K16: 2023 | L16: 2024 | M16: 2025 | N16: 2026 | O16: 2027 | P16: 2028 | Q16: 2029 | R16: 2030 | S16: 2031 | T16: 2032 | U16: 2033 | V16: 2034 | W16: 2035 | X16: 2036 | Y16: 2037 | Z16: 2038 | AA16: 2039 | AB16: 2040 | AC16: 2041 | AD16: 2042 | AE16: 2043 | AF16: 2044 | AG16: 2045 | AH16: 2046 | AI16: 2047 | AJ16: 2048 | AK16: 2049 | AL16: 2050
C17: Remaining years of service | D17: 1 | E17: 2 | F17: 3 | G17: 4 | H17: 5 | I17: 6 | J17: 7 | K17: 8 | L17: 9 | M17: 10 | N17: 11 | O17: 12 | P17: 13 | Q17: 14 | R17: 15 | S17: 16 | T17: 17 | U17: 18 | V17: 19 | W17: 20 | X17: 21 | Y17: 22 | Z17: 23 | AA17: 24 | AB17: 25 | AC17: 26 | AD17: 27 | AE17: 28 | AF17: 29 | AG17: 30 | AH17: 31 | AI17: 32 | AJ17: 33 | AK17: 34 | AL17: 35
C18: Discounted lifetime costs
C19: Scrubber | D19: =SUMIFS(Fuel!$C$29:$AV$29,Fuel!$C$3:$AV$3,"<"&$Q$4,Fuel!$C$3:$AV$3,"<"&D17)+SUMIFS(Fuel!$C$10:$AV$10,Fuel!$C$3:$AV$3,">="&$Q$4,Fuel!$C$3:$AV$3,"<"&D17)+IF(D17>$Q$4,($L$7+$L$8)/((1+$D$14)^($Q$4)),0) -> 10396009.27 | E19: =SUMIFS(Fuel!$C$29:$AV$29,Fuel!$C$3:$AV$3,"<"&$Q$4,Fuel!$C$3:$AV$3,"<"&E17)+SUMIFS(Fuel!$C$10:$AV$10,Fuel!$C$3:$AV$3,">="&$Q$4,Fuel!$C$3:$AV$3,"<"&E17)+IF(E17>$Q$4,($L$7+$L$8)/((1+$D$14)^($Q$4)),0) -> 13788531.69 | F19: =SUMIFS(Fuel!$C$29:$AV$29,Fuel!$C$3:$AV$3,"<"&$Q$4,Fuel!$C$3:$AV$3,"<"&F17)+SUMIFS(Fuel!$C$10:$AV$10,Fuel!$C$3:$AV$3,">="&$Q$4,Fuel!$C$3:$AV$3,"<"&F17)+IF(F17>$Q$4,($L$7+$L$8)/((1+$D$14)^($Q$4)),0) -> 16715173.59 | G19: =SUMIFS(Fuel!$C$29:$AV$29,Fuel!$C$3:$AV$3,"<"&$Q$4,Fuel!$C$3:$AV$3,"<"&G17)+SUMIFS(Fuel!$C$10:$AV$10,Fuel!$C$3:$AV$3,">="&$Q$4,Fuel!$C$3:$AV$3,"<"&G17)+IF(G17>$Q$4,($L$7+$L$8)/((1+$D$14)^($Q$4)),0) -> 19464861.76 | H19: =SUMIFS(Fuel!$C$29:$AV$29,Fuel!$C$3:$AV$3,"<"&$Q$4,Fuel!$C$3:$AV$3,"<"&H17)+SUMIFS(Fuel!$C$10:$AV$10,Fuel!$C$3:$AV$3,">="&$Q$4,Fuel!$C$3:$AV$3,"<"&H17)+IF(H17>$Q$4,($L$7+$L$8)/((1+$D$14)^($Q$4)),0) -> 22082044.53 | I19: =SUMIFS(Fuel!$C$29:$AV$29,Fuel!$C$3:$AV$3,"<"&$Q$4,Fuel!$C$3:$AV$3,"<"&I17)+SUMIFS(Fuel!$C$10:$AV$10,Fuel!$C$3:$AV$3,">="&$Q$4,Fuel!$C$3:$AV$3,"<"&I17)+IF(I17>$Q$4,($L$7+$L$8)/((1+$D$14)^($Q$4)),0) -> 24585305.76 | J19: =SUMIFS(Fuel!$C$29:$AV$29,Fuel!$C$3:$AV$3,"<"&$Q$4,Fuel!$C$3:$AV$3,"<"&J17)+SUMIFS(Fuel!$C$10:$AV$10,Fuel!$C$3:$AV$3,">="&$Q$4,Fuel!$C$3:$AV$3,"<"&J17)+IF(J17>$Q$4,($L$7+$L$8)/((1+$D$14)^($Q$4)),0) -> 26995415.71 | K19: =SUMIFS(Fuel!$C$29:$AV$29,Fuel!$C$3:$AV$3,"<"&$Q$4,Fuel!$C$3:$AV$3,"<"&K17)+SUMIFS(Fuel!$C$10:$AV$10,Fuel!$C$3:$AV$3,">="&$Q$4,Fuel!$C$3:$AV$3,"<"&K17)+IF(K17>$Q$4,($L$7+$L$8)/((1+$D$14)^($Q$4)),0) -> 29306966.16 | L19: =SUMIFS(Fuel!$C$29:$AV$29,Fuel!$C$3:$AV$3,"<"&$Q$4,Fuel!$C$3:$AV$3,"<"&L17)+SUMIFS(Fuel!$C$10:$AV$10,Fuel!$C$3:$AV$3,">="&$Q$4,Fuel!$C$3:$AV$3,"<"&L17)+IF(L17>$Q$4,($L$7+$L$8)/((1+$D$14)^($Q$4)),0) -> 31516102.82 | M19: =SUMIFS(Fuel!$C$29:$AV$29,Fuel!$C$3:$AV$3,"<"&$Q$4,Fuel!$C$3:$AV$3,"<"&M17)+SUMIFS(Fuel!$C$10:$AV$10,Fuel!$C$3:$AV$3,">="&$Q$4,Fuel!$C$3:$AV$3,"<"&M17)+IF(M17>$Q$4,($L$7+$L$8)/((1+$D$14)^($Q$4)),0) -> 33643572.49 | N19: =SUMIFS(Fuel!$C$29:$AV$29,Fuel!$C$3:$AV$3,"<"&$Q$4,Fuel!$C$3:$AV$3,"<"&N17)+SUMIFS(Fuel!$C$10:$AV$10,Fuel!$C$3:$AV$3,">="&$Q$4,Fuel!$C$3:$AV$3,"<"&N17)+IF(N17>$Q$4,($L$7+$L$8)/((1+$D$14)^($Q$4)),0) -> 35686920.09 | O19: =SUMIFS(Fuel!$C$29:$AV$29,Fuel!$C$3:$AV$3,"<"&$Q$4,Fuel!$C$3:$AV$3,"<"&O17)+SUMIFS(Fuel!$C$10:$AV$10,Fuel!$C$3:$AV$3,">="&$Q$4,Fuel!$C$3:$AV$3,"<"&O17)+IF(O17>$Q$4,($L$7+$L$8)/((1+$D$14)^($Q$4)),0) -> 37642121.84 | P19: =SUMIFS(Fuel!$C$29:$AV$29,Fuel!$C$3:$AV$3,"<"&$Q$4,Fuel!$C$3:$AV$3,"<"&P17)+SUMIFS(Fuel!$C$10:$AV$10,Fuel!$C$3:$AV$3,">="&$Q$4,Fuel!$C$3:$AV$3,"<"&P17)+IF(P17>$Q$4,($L$7+$L$8)/((1+$D$14)^($Q$4)),0) -> 39526266.36 | Q19: =SUMIFS(Fuel!$C$29:$AV$29,Fuel!$C$3:$AV$3,"<"&$Q$4,Fuel!$C$3:$AV$3,"<"&Q17)+SUMIFS(Fuel!$C$10:$AV$10,Fuel!$C$3:$AV$3,">="&$Q$4,Fuel!$C$3:$AV$3,"<"&Q17)+IF(Q17>$Q$4,($L$7+$L$8)/((1+$D$14)^($Q$4)),0) -> 41348041.35 | R19: =SUMIFS(Fuel!$C$29:$AV$29,Fuel!$C$3:$AV$3,"<"&$Q$4,Fuel!$C$3:$AV$3,"<"&R17)+SUMIFS(Fuel!$C$10:$AV$10,Fuel!$C$3:$AV$3,">="&$Q$4,Fuel!$C$3:$AV$3,"<"&R17)+IF(R17>$Q$4,($L$7+$L$8)/((1+$D$14)^($Q$4)),0) -> 43094094.57 | S19: =SUMIFS(Fuel!$C$29:$AV$29,Fuel!$C$3:$AV$3,"<"&$Q$4,Fuel!$C$3:$AV$3,"<"&S17)+SUMIFS(Fuel!$C$10:$AV$10,Fuel!$C$3:$AV$3,">="&$Q$4,Fuel!$C$3:$AV$3,"<"&S17)+IF(S17>$Q$4,($L$7+$L$8)/((1+$D$14)^($Q$4)),0) -> 44771518.47 | T19: =SUMIFS(Fuel!$C$29:$AV$29,Fuel!$C$3:$AV$3,"<"&$Q$4,Fuel!$C$3:$AV$3,"<"&T17)+SUMIFS(Fuel!$C$10:$AV$10,Fuel!$C$3:$AV$3,">="&$Q$4,Fuel!$C$3:$AV$3,"<"&T17)+IF(T17>$Q$4,($L$7+$L$8)/((1+$D$14)^($Q$4)),0) -> 46388471.47 | U19: =SUMIFS(Fuel!$C$29:$AV$29,Fuel!$C$3:$AV$3,"<"&$Q$4,Fuel!$C$3:$AV$3,"<"&U17)+SUMIFS(Fuel!$C$10:$AV$10,Fuel!$C$3:$AV$3,">="&$Q$4,Fuel!$C$3:$AV$3,"<"&U17)+IF(U17>$Q$4,($L$7+$L$8)/((1+$D$14)^($Q$4)),0) -> 47949016.88 | V19: =SUMIFS(Fuel!$C$29:$AV$29,Fuel!$C$3:$AV$3,"<"&$Q$4,Fuel!$C$3:$AV$3,"<"&V17)+SUMIFS(Fuel!$C$10:$AV$10,Fuel!$C$3:$AV$3,">="&$Q$4,Fuel!$C$3:$AV$3,"<"&V17)+IF(V17>$Q$4,($L$7+$L$8)/((1+$D$14)^($Q$4)),0) -> 49444014.95 | W19: =SUMIFS(Fuel!$C$29:$AV$29,Fuel!$C$3:$AV$3,"<"&$Q$4,Fuel!$C$3:$AV$3,"<"&W17)+SUMIFS(Fuel!$C$10:$AV$10,Fuel!$C$3:$AV$3,">="&$Q$4,Fuel!$C$3:$AV$3,"<"&W17)+IF(W17>$Q$4,($L$7+$L$8)/((1+$D$14)^($Q$4)),0) -> 50879498.98 | X19: =SUMIFS(Fuel!$C$29:$AV$29,Fuel!$C$3:$AV$3,"<"&$Q$4,Fuel!$C$3:$AV$3,"<"&X17)+SUMIFS(Fuel!$C$10:$AV$10,Fuel!$C$3:$AV$3,">="&$Q$4,Fuel!$C$3:$AV$3,"<"&X17)+IF(X17>$Q$4,($L$7+$L$8)/((1+$D$14)^($Q$4)),0) -> 52252820.34 | Y19: =SUMIFS(Fuel!$C$29:$AV$29,Fuel!$C$3:$AV$3,"<"&$Q$4,Fuel!$C$3:$AV$3,"<"&Y17)+SUMIFS(Fuel!$C$10:$AV$10,Fuel!$C$3:$AV$3,">="&$Q$4,Fuel!$C$3:$AV$3,"<"&Y17)+IF(Y17>$Q$4,($L$7+$L$8)/((1+$D$14)^($Q$4)),0) -> 53570742.44 | Z19: =SUMIFS(Fuel!$C$29:$AV$29,Fuel!$C$3:$AV$3,"<"&$Q$4,Fuel!$C$3:$AV$3,"<"&Z17)+SUMIFS(Fuel!$C$10:$AV$10,Fuel!$C$3:$AV$3,">="&$Q$4,Fuel!$C$3:$AV$3,"<"&Z17)+IF(Z17>$Q$4,($L$7+$L$8)/((1+$D$14)^($Q$4)),0) -> 54836080.3 | AA19: =SUMIFS(Fuel!$C$29:$AV$29,Fuel!$C$3:$AV$3,"<"&$Q$4,Fuel!$C$3:$AV$3,"<"&AA17)+SUMIFS(Fuel!$C$10:$AV$10,Fuel!$C$3:$AV$3,">="&$Q$4,Fuel!$C$3:$AV$3,"<"&AA17)+IF(AA17>$Q$4,($L$7+$L$8)/((1+$D$14)^($Q$4)),0) -> 56052601.99 | AB19: =SUMIFS(Fuel!$C$29:$AV$29,Fuel!$C$3:$AV$3,"<"&$Q$4,Fuel!$C$3:$AV$3,"<"&AB17)+SUMIFS(Fuel!$C$10:$AV$10,Fuel!$C$3:$AV$3,">="&$Q$4,Fuel!$C$3:$AV$3,"<"&AB17)+IF(AB17>$Q$4,($L$7+$L$8)/((1+$D$14)^($Q$4)),0) -> 57215446.91 | AC19: =SUMIFS(Fuel!$C$29:$AV$29,Fuel!$C$3:$AV$3,"<"&$Q$4,Fuel!$C$3:$AV$3,"<"&AC17)+SUMIFS(Fuel!$C$10:$AV$10,Fuel!$C$3:$AV$3,">="&$Q$4,Fuel!$C$3:$AV$3,"<"&AC17)+IF(AC17>$Q$4,($L$7+$L$8)/((1+$D$14)^($Q$4)),0) -> 58340390.09 | AD19: =SUMIFS(Fuel!$C$29:$AV$29,Fuel!$C$3:$AV$3,"<"&$Q$4,Fuel!$C$3:$AV$3,"<"&AD17)+SUMIFS(Fuel!$C$10:$AV$10,Fuel!$C$3:$AV$3,">="&$Q$4,Fuel!$C$3:$AV$3,"<"&AD17)+IF(AD17>$Q$4,($L$7+$L$8)/((1+$D$14)^($Q$4)),0) -> 58340390.09 | AE19: =SUMIFS(Fuel!$C$29:$AV$29,Fuel!$C$3:$AV$3,"<"&$Q$4,Fuel!$C$3:$AV$3,"<"&AE17)+SUMIFS(Fuel!$C$10:$AV$10,Fuel!$C$3:$AV$3,">="&$Q$4,Fuel!$C$3:$AV$3,"<"&AE17)+IF(AE17>$Q$4,($L$7+$L$8)/((1+$D$14)^($Q$4)),0) -> 58340390.09 | AF19: =SUMIFS(Fuel!$C$29:$AV$29,Fuel!$C$3:$AV$3,"<"&$Q$4,Fuel!$C$3:$AV$3,"<"&AF17)+SUMIFS(Fuel!$C$10:$AV$10,Fuel!$C$3:$AV$3,">="&$Q$4,Fuel!$C$3:$AV$3,"<"&AF17)+IF(AF17>$Q$4,($L$7+$L$8)/((1+$D$14)^($Q$4)),0) -> 58340390.09 | AG19: =SUMIFS(Fuel!$C$29:$AV$29,Fuel!$C$3:$AV$3,"<"&$Q$4,Fuel!$C$3:$AV$3,"<"&AG17)+SUMIFS(Fuel!$C$10:$AV$10,Fuel!$C$3:$AV$3,">="&$Q$4,Fuel!$C$3:$AV$3,"<"&AG17)+IF(AG17>$Q$4,($L$7+$L$8)/((1+$D$14)^($Q$4)),0) -> 58340390.09 | AH19: =SUMIFS(Fuel!$C$29:$AV$29,Fuel!$C$3:$AV$3,"<"&$Q$4,Fuel!$C$3:$AV$3,"<"&AH17)+SUMIFS(Fuel!$C$10:$AV$10,Fuel!$C$3:$AV$3,">="&$Q$4,Fuel!$C$3:$AV$3,"<"&AH17)+IF(AH17>$Q$4,($L$7+$L$8)/((1+$D$14)^($Q$4)),0) -> 58340390.09 | AI19: =SUMIFS(Fuel!$C$29:$AV$29,Fuel!$C$3:$AV$3,"<"&$Q$4,Fuel!$C$3:$AV$3,"<"&AI17)+SUMIFS(Fuel!$C$10:$AV$10,Fuel!$C$3:$AV$3,">="&$Q$4,Fuel!$C$3:$AV$3,"<"&AI17)+IF(AI17>$Q$4,($L$7+$L$8)/((1+$D$14)^($Q$4)),0) -> 58340390.09 | AJ19: =SUMIFS(Fuel!$C$29:$AV$29,Fuel!$C$3:$AV$3,"<"&$Q$4,Fuel!$C$3:$AV$3,"<"&AJ17)+SUMIFS(Fuel!$C$10:$AV$10,Fuel!$C$3:$AV$3,">="&$Q$4,Fuel!$C$3:$AV$3,"<"&AJ17)+IF(AJ17>$Q$4,($L$7+$L$8)/((1+$D$14)^($Q$4)),0) -> 58340390.09 | AK19: =SUMIFS(Fuel!$C$29:$AV$29,Fuel!$C$3:$AV$3,"<"&$Q$4,Fuel!$C$3:$AV$3,"<"&AK17)+SUMIFS(Fuel!$C$10:$AV$10,Fuel!$C$3:$AV$3,">="&$Q$4,Fuel!$C$3:$AV$3,"<"&AK17)+IF(AK17>$Q$4,($L$7+$L$8)/((1+$D$14)^($Q$4)),0) -> 58340390.09 | AL19: =SUMIFS(Fuel!$C$29:$AV$29,Fuel!$C$3:$AV$3,"<"&$Q$4,Fuel!$C$3:$AV$3,"<"&AL17)+SUMIFS(Fuel!$C$10:$AV$10,Fuel!$C$3:$AV$3,">="&$Q$4,Fuel!$C$3:$AV$3,"<"&AL17)+IF(AL17>$Q$4,($L$7+$L$8)/((1+$D$14)^($Q$4)),0) -> 58340390.09
C20: MGO (Low) | D20: =Fuel!C14 -> 3662440.146 | E20: =SUM(Fuel!$C$14:'Fuel'!D14) -> 7664977.271 | F20: =SUM(Fuel!$C$14:'Fuel'!E14) -> 11175785.25 | G20: =SUM(Fuel!$C$14:'Fuel'!F14) -> 14470586.85 | H20: =SUM(Fuel!$C$14:'Fuel'!G14) -> 17594490.75 | I20: =SUM(Fuel!$C$14:'Fuel'!H14) -> 20741301.01 | J20: =SUM(Fuel!$C$14:'Fuel'!I14) -> 23748789.01 | K20: =SUM(Fuel!$C$14:'Fuel'!J14) -> 26615229.96 | L20: =SUM(Fuel!$C$14:'Fuel'!K14) -> 29340142.89 | M20: =SUM(Fuel!$C$14:'Fuel'!L14) -> 31946023.9 | N20: =SUM(Fuel!$C$14:'Fuel'!M14) -> 34433311.77 | O20: =SUM(Fuel!$C$14:'Fuel'!N14) -> 36800786.88 | P20: =SUM(Fuel!$C$14:'Fuel'!O14) -> 39066957.01 | Q20: =SUM(Fuel!$C$14:'Fuel'!P14) -> 41242255.9 | R20: =SUM(Fuel!$C$14:'Fuel'!Q14) -> 43316200.6 | S20: =SUM(Fuel!$C$14:'Fuel'!R14) -> 45297437.17 | T20: =SUM(Fuel!$C$14:'Fuel'!S14) -> 47195487.86 | U20: =SUM(Fuel!$C$14:'Fuel'!T14) -> 49015895.81 | V20: =SUM(Fuel!$C$14:'Fuel'!U14) -> 50751649.92 | W20: =SUM(Fuel!$C$14:'Fuel'!V14) -> 52409932.88 | X20: =SUM(Fuel!$C$14:'Fuel'!W14) -> 53989647.83 | Y20: =SUM(Fuel!$C$14:'Fuel'!X14) -> 55498476.03 | Z20: =SUM(Fuel!$C$14:'Fuel'!Y14) -> 56940292.34 | AA20: =SUM(Fuel!$C$14:'Fuel'!Z14) -> 58319789.8 | AB20: =SUM(Fuel!$C$14:'Fuel'!AA14) -> 59633455.33 | AC20: =SUM(Fuel!$C$14:'Fuel'!AB14) -> 60897152.38 | AD20: =SUM(Fuel!$C$14:'Fuel'!AC14) -> 61087420.84 | AE20: =SUM(Fuel!$C$14:'Fuel'!AD14) -> 61265241.84 | AF20: =SUM(Fuel!$C$14:'Fuel'!AE14) -> 61431429.68 | AG20: =SUM(Fuel!$C$14:'Fuel'!AF14) -> 61586745.43 | AH20: =SUM(Fuel!$C$14:'Fuel'!AG14) -> 61731900.33 | AI20: =SUM(Fuel!$C$14:'Fuel'!AH14) -> 61867559.12 | AJ20: =SUM(Fuel!$C$14:'Fuel'!AI14) -> 61994343.03 | AK20: =SUM(Fuel!$C$14:'Fuel'!AJ14) -> 62112832.67 | AL20: =SUM(Fuel!$C$14:'Fuel'!AK14) -> 62223570.64
C21: MGO (High) | D21: =Fuel!C18 -> 4093401.128 | E21: =SUM(Fuel!$C$18:'Fuel'!D18) -> 8498705.527 | F21: =SUM(Fuel!$C$18:'Fuel'!E18) -> 12385931.52 | G21: =SUM(Fuel!$C$18:'Fuel'!F18) -> 16032525.65 | H21: =SUM(Fuel!$C$18:'Fuel'!G18) -> 19485207.62 | I21: =SUM(Fuel!$C$18:'Fuel'!H18) -> 22939287.1 | J21: =SUM(Fuel!$C$18:'Fuel'!I18) -> 26233942.6 | K21: =SUM(Fuel!$C$18:'Fuel'!J18) -> 29368764.4 | L21: =SUM(Fuel!$C$18:'Fuel'!K18) -> 32344500.54 | M21: =SUM(Fuel!$C$18:'Fuel'!L18) -> 35184795.77 | N21: =SUM(Fuel!$C$18:'Fuel'!M18) -> 37891162.35 | O21: =SUM(Fuel!$C$18:'Fuel'!N18) -> 40463383.92 | P21: =SUM(Fuel!$C$18:'Fuel'!O18) -> 42920905.88 | Q21: =SUM(Fuel!$C$18:'Fuel'!P18) -> 45275038.26 | R21: =SUM(Fuel!$C$18:'Fuel'!Q18) -> 47516117.05 | S21: =SUM(Fuel!$C$18:'Fuel'!R18) -> 49653553.72 | T21: =SUM(Fuel!$C$18:'Fuel'!S18) -> 51697585.8 | U21: =SUM(Fuel!$C$18:'Fuel'!T18) -> 53654424.96 | V21: =SUM(Fuel!$C$18:'Fuel'!U18) -> 55517684.88 | W21: =SUM(Fuel!$C$18:'Fuel'!V18) -> 57295132.14 | X21: =SUM(Fuel!$C$18:'Fuel'!W18) -> 58986215.59 | Y21: =SUM(Fuel!$C$18:'Fuel'!X18) -> 60599126.52 | Z21: =SUM(Fuel!$C$18:'Fuel'!Y18) -> 62138216.39 | AA21: =SUM(Fuel!$C$18:'Fuel'!Z18) -> 63608623.73 | AB21: =SUM(Fuel!$C$18:'Fuel'!AA18) -> 65007251.75 | AC21: =SUM(Fuel!$C$18:'Fuel'!AB18) -> 66350353.01 | AD21: =SUM(Fuel!$C$18:'Fuel'!AC18) -> 66614831.02 | AE21: =SUM(Fuel!$C$18:'Fuel'!AD18) -> 66862006.72 | AF21: =SUM(Fuel!$C$18:'Fuel'!AE18) -> 67093012.05 | AG21: =SUM(Fuel!$C$18:'Fuel'!AF18) -> 67308904.89 | AH21: =SUM(Fuel!$C$18:'Fuel'!AG18) -> 67510673.89 | AI21: =SUM(Fuel!$C$18:'Fuel'!AH18) -> 67699243.05 | AJ21: =SUM(Fuel!$C$18:'Fuel'!AI18) -> 67875475.91 | AK21: =SUM(Fuel!$C$18:'Fuel'!AJ18) -> 68040179.52 | AL21: =SUM(Fuel!$C$18:'Fuel'!AK18) -> 68194108.13
C22: Non-Compliance | D22: =Fuel!C29 -> 4085233.14 | E22: =SUM(Fuel!$C$29:'Fuel'!D29) -> 8500439.558 | F22: =SUM(Fuel!$C$29:'Fuel'!E29) -> 12389965.93 | G22: =SUM(Fuel!$C$29:'Fuel'!F29) -> 16039123.55 | H22: =SUM(Fuel!$C$29:'Fuel'!G29) -> 19495551.95 | I22: =SUM(Fuel!$C$29:'Fuel'!H29) -> 22781486.08 | J22: =SUM(Fuel!$C$29:'Fuel'!I29) -> 25921009.32 | K22: =SUM(Fuel!$C$29:'Fuel'!J29) -> 28912532.74 | L22: =SUM(Fuel!$C$29:'Fuel'!K29) -> 31755736.54 | M22: =SUM(Fuel!$C$29:'Fuel'!L29) -> 34473961.56 | N22: =SUM(Fuel!$C$29:'Fuel'!M29) -> 37067813.34 | O22: =SUM(Fuel!$C$29:'Fuel'!N29) -> 39536178.83 | P22: =SUM(Fuel!$C$29:'Fuel'!O29) -> 41898259.69 | Q22: =SUM(Fuel!$C$29:'Fuel'!P29) -> 44164930.61 | R22: =SUM(Fuel!$C$29:'Fuel'!Q29) -> 46325508.61 | S22: =SUM(Fuel!$C$29:'Fuel'!R29) -> 48389010.73 | T22: =SUM(Fuel!$C$29:'Fuel'!S29) -> 50365349.52 | U22: =SUM(Fuel!$C$29:'Fuel'!T29) -> 52260331.42 | V22: =SUM(Fuel!$C$29:'Fuel'!U29) -> 54066822.56 | W22: =SUM(Fuel!$C$29:'Fuel'!V29) -> 55792306.38 | X22: =SUM(Fuel!$C$29:'Fuel'!W29) -> 57435730.88 | Y22: =SUM(Fuel!$C$29:'Fuel'!X29) -> 59005082.61 | Z22: =SUM(Fuel!$C$29:'Fuel'!Y29) -> 60504421.76 | AA22: =SUM(Fuel!$C$29:'Fuel'!Z29) -> 61938647.05 | AB22: =SUM(Fuel!$C$29:'Fuel'!AA29) -> 63304198.65 | AC22: =SUM(Fuel!$C$29:'Fuel'!AB29) -> 64617475.5 | AD22: =SUM(Fuel!$C$29:'Fuel'!AC29) -> 64824110.09 | AE22: =SUM(Fuel!$C$29:'Fuel'!AD29) -> 65017226.53 | AF22: =SUM(Fuel!$C$29:'Fuel'!AE29) -> 65197709.19 | AG22: =SUM(Fuel!$C$29:'Fuel'!AF29) -> 65366384.57 | AH22: =SUM(Fuel!$C$29:'Fuel'!AG29) -> 65524025.11 | AI22: =SUM(Fuel!$C$29:'Fuel'!AH29) -> 65671352.72 | AJ22: =SUM(Fuel!$C$29:'Fuel'!AI29) -> 65809042.07 | AK22: =SUM(Fuel!$C$29:'Fuel'!AJ29) -> 65937723.71 | AL22: =SUM(Fuel!$C$29:'Fuel'!AK29) -> 66057986.92
C23: Scrubber | D23: =SUMIFS(Fuel!$C$14:$AV$14,Fuel!$C$3:$AV$3,"<"&$Q$4,Fuel!$C$3:$AV$3,"<"&D17)+SUMIFS(Fuel!$C$10:$AV$10,Fuel!$C$3:$AV$3,">="&$Q$4,Fuel!$C$3:$AV$3,"<"&D17)+IF(D17>$Q$4,($L$7+$L$8)/((1+$D$14)^($Q$4)),0) -> 10396009.27 | E23: =SUMIFS(Fuel!$C$14:$AV$14,Fuel!$C$3:$AV$3,"<"&$Q$4,Fuel!$C$3:$AV$3,"<"&E17)+SUMIFS(Fuel!$C$10:$AV$10,Fuel!$C$3:$AV$3,">="&$Q$4,Fuel!$C$3:$AV$3,"<"&E17)+IF(E17>$Q$4,($L$7+$L$8)/((1+$D$14)^($Q$4)),0) -> 13788531.69 | F23: =SUMIFS(Fuel!$C$14:$AV$14,Fuel!$C$3:$AV$3,"<"&$Q$4,Fuel!$C$3:$AV$3,"<"&F17)+SUMIFS(Fuel!$C$10:$AV$10,Fuel!$C$3:$AV$3,">="&$Q$4,Fuel!$C$3:$AV$3,"<"&F17)+IF(F17>$Q$4,($L$7+$L$8)/((1+$D$14)^($Q$4)),0) -> 16715173.59 | G23: =SUMIFS(Fuel!$C$14:$AV$14,Fuel!$C$3:$AV$3,"<"&$Q$4,Fuel!$C$3:$AV$3,"<"&G17)+SUMIFS(Fuel!$C$10:$AV$10,Fuel!$C$3:$AV$3,">="&$Q$4,Fuel!$C$3:$AV$3,"<"&G17)+IF(G17>$Q$4,($L$7+$L$8)/((1+$D$14)^($Q$4)),0) -> 19464861.76 | H23: =SUMIFS(Fuel!$C$14:$AV$14,Fuel!$C$3:$AV$3,"<"&$Q$4,Fuel!$C$3:$AV$3,"<"&H17)+SUMIFS(Fuel!$C$10:$AV$10,Fuel!$C$3:$AV$3,">="&$Q$4,Fuel!$C$3:$AV$3,"<"&H17)+IF(H17>$Q$4,($L$7+$L$8)/((1+$D$14)^($Q$4)),0) -> 22082044.53 | I23: =SUMIFS(Fuel!$C$14:$AV$14,Fuel!$C$3:$AV$3,"<"&$Q$4,Fuel!$C$3:$AV$3,"<"&I17)+SUMIFS(Fuel!$C$10:$AV$10,Fuel!$C$3:$AV$3,">="&$Q$4,Fuel!$C$3:$AV$3,"<"&I17)+IF(I17>$Q$4,($L$7+$L$8)/((1+$D$14)^($Q$4)),0) -> 24585305.76 | J23: =SUMIFS(Fuel!$C$14:$AV$14,Fuel!$C$3:$AV$3,"<"&$Q$4,Fuel!$C$3:$AV$3,"<"&J17)+SUMIFS(Fuel!$C$10:$AV$10,Fuel!$C$3:$AV$3,">="&$Q$4,Fuel!$C$3:$AV$3,"<"&J17)+IF(J17>$Q$4,($L$7+$L$8)/((1+$D$14)^($Q$4)),0) -> 26995415.71 | K23: =SUMIFS(Fuel!$C$14:$AV$14,Fuel!$C$3:$AV$3,"<"&$Q$4,Fuel!$C$3:$AV$3,"<"&K17)+SUMIFS(Fuel!$C$10:$AV$10,Fuel!$C$3:$AV$3,">="&$Q$4,Fuel!$C$3:$AV$3,"<"&K17)+IF(K17>$Q$4,($L$7+$L$8)/((1+$D$14)^($Q$4)),0) -> 29306966.16 | L23: =SUMIFS(Fuel!$C$14:$AV$14,Fuel!$C$3:$AV$3,"<"&$Q$4,Fuel!$C$3:$AV$3,"<"&L17)+SUMIFS(Fuel!$C$10:$AV$10,Fuel!$C$3:$AV$3,">="&$Q$4,Fuel!$C$3:$AV$3,"<"&L17)+IF(L17>$Q$4,($L$7+$L$8)/((1+$D$14)^($Q$4)),0) -> 31516102.82 | M23: =SUMIFS(Fuel!$C$14:$AV$14,Fuel!$C$3:$AV$3,"<"&$Q$4,Fuel!$C$3:$AV$3,"<"&M17)+SUMIFS(Fuel!$C$10:$AV$10,Fuel!$C$3:$AV$3,">="&$Q$4,Fuel!$C$3:$AV$3,"<"&M17)+IF(M17>$Q$4,($L$7+$L$8)/((1+$D$14)^($Q$4)),0) -> 33643572.49 | N23: =SUMIFS(Fuel!$C$14:$AV$14,Fuel!$C$3:$AV$3,"<"&$Q$4,Fuel!$C$3:$AV$3,"<"&N17)+SUMIFS(Fuel!$C$10:$AV$10,Fuel!$C$3:$AV$3,">="&$Q$4,Fuel!$C$3:$AV$3,"<"&N17)+IF(N17>$Q$4,($L$7+$L$8)/((1+$D$14)^($Q$4)),0) -> 35686920.09 | O23: =SUMIFS(Fuel!$C$14:$AV$14,Fuel!$C$3:$AV$3,"<"&$Q$4,Fuel!$C$3:$AV$3,"<"&O17)+SUMIFS(Fuel!$C$10:$AV$10,Fuel!$C$3:$AV$3,">="&$Q$4,Fuel!$C$3:$AV$3,"<"&O17)+IF(O17>$Q$4,($L$7+$L$8)/((1+$D$14)^($Q$4)),0) -> 37642121.84 | P23: =SUMIFS(Fuel!$C$14:$AV$14,Fuel!$C$3:$AV$3,"<"&$Q$4,Fuel!$C$3:$AV$3,"<"&P17)+SUMIFS(Fuel!$C$10:$AV$10,Fuel!$C$3:$AV$3,">="&$Q$4,Fuel!$C$3:$AV$3,"<"&P17)+IF(P17>$Q$4,($L$7+$L$8)/((1+$D$14)^($Q$4)),0) -> 39526266.36 | Q23: =SUMIFS(Fuel!$C$14:$AV$14,Fuel!$C$3:$AV$3,"<"&$Q$4,Fuel!$C$3:$AV$3,"<"&Q17)+SUMIFS(Fuel!$C$10:$AV$10,Fuel!$C$3:$AV$3,">="&$Q$4,Fuel!$C$3:$AV$3,"<"&Q17)+IF(Q17>$Q$4,($L$7+$L$8)/((1+$D$14)^($Q$4)),0) -> 41348041.35 | R23: =SUMIFS(Fuel!$C$14:$AV$14,Fuel!$C$3:$AV$3,"<"&$Q$4,Fuel!$C$3:$AV$3,"<"&R17)+SUMIFS(Fuel!$C$10:$AV$10,Fuel!$C$3:$AV$3,">="&$Q$4,Fuel!$C$3:$AV$3,"<"&R17)+IF(R17>$Q$4,($L$7+$L$8)/((1+$D$14)^($Q$4)),0) -> 43094094.57 | S23: =SUMIFS(Fuel!$C$14:$AV$14,Fuel!$C$3:$AV$3,"<"&$Q$4,Fuel!$C$3:$AV$3,"<"&S17)+SUMIFS(Fuel!$C$10:$AV$10,Fuel!$C$3:$AV$3,">="&$Q$4,Fuel!$C$3:$AV$3,"<"&S17)+IF(S17>$Q$4,($L$7+$L$8)/((1+$D$14)^($Q$4)),0) -> 44771518.47 | T23: =SUMIFS(Fuel!$C$14:$AV$14,Fuel!$C$3:$AV$3,"<"&$Q$4,Fuel!$C$3:$AV$3,"<"&T17)+SUMIFS(Fuel!$C$10:$AV$10,Fuel!$C$3:$AV$3,">="&$Q$4,Fuel!$C$3:$AV$3,"<"&T17)+IF(T17>$Q$4,($L$7+$L$8)/((1+$D$14)^($Q$4)),0) -> 46388471.47 | U23: =SUMIFS(Fuel!$C$14:$AV$14,Fuel!$C$3:$AV$3,"<"&$Q$4,Fuel!$C$3:$AV$3,"<"&U17)+SUMIFS(Fuel!$C$10:$AV$10,Fuel!$C$3:$AV$3,">="&$Q$4,Fuel!$C$3:$AV$3,"<"&U17)+IF(U17>$Q$4,($L$7+$L$8)/((1+$D$14)^($Q$4)),0) -> 47949016.88 | V23: =SUMIFS(Fuel!$C$14:$AV$14,Fuel!$C$3:$AV$3,"<"&$Q$4,Fuel!$C$3:$AV$3,"<"&V17)+SUMIFS(Fuel!$C$10:$AV$10,Fuel!$C$3:$AV$3,">="&$Q$4,Fuel!$C$3:$AV$3,"<"&V17)+IF(V17>$Q$4,($L$7+$L$8)/((1+$D$14)^($Q$4)),0) -> 49444014.95 | W23: =SUMIFS(Fuel!$C$14:$AV$14,Fuel!$C$3:$AV$3,"<"&$Q$4,Fuel!$C$3:$AV$3,"<"&W17)+SUMIFS(Fuel!$C$10:$AV$10,Fuel!$C$3:$AV$3,">="&$Q$4,Fuel!$C$3:$AV$3,"<"&W17)+IF(W17>$Q$4,($L$7+$L$8)/((1+$D$14)^($Q$4)),0) -> 50879498.98 | X23: =SUMIFS(Fuel!$C$14:$AV$14,Fuel!$C$3:$AV$3,"<"&$Q$4,Fuel!$C$3:$AV$3,"<"&X17)+SUMIFS(Fuel!$C$10:$AV$10,Fuel!$C$3:$AV$3,">="&$Q$4,Fuel!$C$3:$AV$3,"<"&X17)+IF(X17>$Q$4,($L$7+$L$8)/((1+$D$14)^($Q$4)),0) -> 52252820.34 | Y23: =SUMIFS(Fuel!$C$14:$AV$14,Fuel!$C$3:$AV$3,"<"&$Q$4,Fuel!$C$3:$AV$3,"<"&Y17)+SUMIFS(Fuel!$C$10:$AV$10,Fuel!$C$3:$AV$3,">="&$Q$4,Fuel!$C$3:$AV$3,"<"&Y17)+IF(Y17>$Q$4,($L$7+$L$8)/((1+$D$14)^($Q$4)),0) -> 53570742.44 | Z23: =SUMIFS(Fuel!$C$14:$AV$14,Fuel!$C$3:$AV$3,"<"&$Q$4,Fuel!$C$3:$AV$3,"<"&Z17)+SUMIFS(Fuel!$C$10:$AV$10,Fuel!$C$3:$AV$3,">="&$Q$4,Fuel!$C$3:$AV$3,"<"&Z17)+IF(Z17>$Q$4,($L$7+$L$8)/((1+$D$14)^($Q$4)),0) -> 54836080.3 | AA23: =SUMIFS(Fuel!$C$14:$AV$14,Fuel!$C$3:$AV$3,"<"&$Q$4,Fuel!$C$3:$AV$3,"<"&AA17)+SUMIFS(Fuel!$C$10:$AV$10,Fuel!$C$3:$AV$3,">="&$Q$4,Fuel!$C$3:$AV$3,"<"&AA17)+IF(AA17>$Q$4,($L$7+$L$8)/((1+$D$14)^($Q$4)),0) -> 56052601.99 | AB23: =SUMIFS(Fuel!$C$14:$AV$14,Fuel!$C$3:$AV$3,"<"&$Q$4,Fuel!$C$3:$AV$3,"<"&AB17)+SUMIFS(Fuel!$C$10:$AV$10,Fuel!$C$3:$AV$3,">="&$Q$4,Fuel!$C$3:$AV$3,"<"&AB17)+IF(AB17>$Q$4,($L$7+$L$8)/((1+$D$14)^($Q$4)),0) -> 57215446.91 | AC23: =SUMIFS(Fuel!$C$14:$AV$14,Fuel!$C$3:$AV$3,"<"&$Q$4,Fuel!$C$3:$AV$3,"<"&AC17)+SUMIFS(Fuel!$C$10:$AV$10,Fuel!$C$3:$AV$3,">="&$Q$4,Fuel!$C$3:$AV$3,"<"&AC17)+IF(AC17>$Q$4,($L$7+$L$8)/((1+$D$14)^($Q$4)),0) -> 58340390.09 | AD23: =SUMIFS(Fuel!$C$14:$AV$14,Fuel!$C$3:$AV$3,"<"&$Q$4,Fuel!$C$3:$AV$3,"<"&AD17)+SUMIFS(Fuel!$C$10:$AV$10,Fuel!$C$3:$AV$3,">="&$Q$4,Fuel!$C$3:$AV$3,"<"&AD17)+IF(AD17>$Q$4,($L$7+$L$8)/((1+$D$14)^($Q$4)),0) -> 58340390.09 | AE23: =SUMIFS(Fuel!$C$14:$AV$14,Fuel!$C$3:$AV$3,"<"&$Q$4,Fuel!$C$3:$AV$3,"<"&AE17)+SUMIFS(Fuel!$C$10:$AV$10,Fuel!$C$3:$AV$3,">="&$Q$4,Fuel!$C$3:$AV$3,"<"&AE17)+IF(AE17>$Q$4,($L$7+$L$8)/((1+$D$14)^($Q$4)),0) -> 58340390.09 | AF23: =SUMIFS(Fuel!$C$14:$AV$14,Fuel!$C$3:$AV$3,"<"&$Q$4,Fuel!$C$3:$AV$3,"<"&AF17)+SUMIFS(Fuel!$C$10:$AV$10,Fuel!$C$3:$AV$3,">="&$Q$4,Fuel!$C$3:$AV$3,"<"&AF17)+IF(AF17>$Q$4,($L$7+$L$8)/((1+$D$14)^($Q$4)),0) -> 58340390.09 | AG23: =SUMIFS(Fuel!$C$14:$AV$14,Fuel!$C$3:$AV$3,"<"&$Q$4,Fuel!$C$3:$AV$3,"<"&AG17)+SUMIFS(Fuel!$C$10:$AV$10,Fuel!$C$3:$AV$3,">="&$Q$4,Fuel!$C$3:$AV$3,"<"&AG17)+IF(AG17>$Q$4,($L$7+$L$8)/((1+$D$14)^($Q$4)),0) -> 58340390.09 | AH23: =SUMIFS(Fuel!$C$14:$AV$14,Fuel!$C$3:$AV$3,"<"&$Q$4,Fuel!$C$3:$AV$3,"<"&AH17)+SUMIFS(Fuel!$C$10:$AV$10,Fuel!$C$3:$AV$3,">="&$Q$4,Fuel!$C$3:$AV$3,"<"&AH17)+IF(AH17>$Q$4,($L$7+$L$8)/((1+$D$14)^($Q$4)),0) -> 58340390.09 | AI23: =SUMIFS(Fuel!$C$14:$AV$14,Fuel!$C$3:$AV$3,"<"&$Q$4,Fuel!$C$3:$AV$3,"<"&AI17)+SUMIFS(Fuel!$C$10:$AV$10,Fuel!$C$3:$AV$3,">="&$Q$4,Fuel!$C$3:$AV$3,"<"&AI17)+IF(AI17>$Q$4,($L$7+$L$8)/((1+$D$14)^($Q$4)),0) -> 58340390.09 | AJ23: =SUMIFS(Fuel!$C$14:$AV$14,Fuel!$C$3:$AV$3,"<"&$Q$4,Fuel!$C$3:$AV$3,"<"&AJ17)+SUMIFS(Fuel!$C$10:$AV$10,Fuel!$C$3:$AV$3,">="&$Q$4,Fuel!$C$3:$AV$3,"<"&AJ17)+IF(AJ17>$Q$4,($L$7+$L$8)/((1+$D$14)^($Q$4)),0) -> 58340390.09 | AK23: =SUMIFS(Fuel!$C$14:$AV$14,Fuel!$C$3:$AV$3,"<"&$Q$4,Fuel!$C$3:$AV$3,"<"&AK17)+SUMIFS(Fuel!$C$10:$AV$10,Fuel!$C$3:$AV$3,">="&$Q$4,Fuel!$C$3:$AV$3,"<"&AK17)+IF(AK17>$Q$4,($L$7+$L$8)/((1+$D$14)^($Q$4)),0) -> 58340390.09 | AL23: =SUMIFS(Fuel!$C$14:$AV$14,Fuel!$C$3:$AV$3,"<"&$Q$4,Fuel!$C$3:$AV$3,"<"&AL17)+SUMIFS(Fuel!$C$10:$AV$10,Fuel!$C$3:$AV$3,">="&$Q$4,Fuel!$C$3:$AV$3,"<"&AL17)+IF(AL17>$Q$4,($L$7+$L$8)/((1+$D$14)^($Q$4)),0) -> 58340390.09
C24: LNG | D24: =SUMIFS(Fuel!$C$29:$AV$29,Fuel!$C$3:$AV$3,"<"&$Q$5,Fuel!$C$3:$AV$3,"<"&D17)+SUMIFS(Fuel!$C$20:$AV$20,Fuel!$C$3:$AV$3,">="&$Q$5,Fuel!$C$3:$AV$3,"<"&D17)+IF(D17>$Q$5,($L$9+$L$10)/((1+'Primary Calculations'!$D$14)^($Q$5)),0) -> 11331329.46 | E24: =SUMIFS(Fuel!$C$29:$AV$29,Fuel!$C$3:$AV$3,"<"&$Q$5,Fuel!$C$3:$AV$3,"<"&E17)+SUMIFS(Fuel!$C$20:$AV$20,Fuel!$C$3:$AV$3,">="&$Q$5,Fuel!$C$3:$AV$3,"<"&E17)+IF(E17>$Q$5,($L$9+$L$10)/((1+'Primary Calculations'!$D$14)^($Q$5)),0) -> 13764568.68 | F24: =SUMIFS(Fuel!$C$29:$AV$29,Fuel!$C$3:$AV$3,"<"&$Q$5,Fuel!$C$3:$AV$3,"<"&F17)+SUMIFS(Fuel!$C$20:$AV$20,Fuel!$C$3:$AV$3,">="&$Q$5,Fuel!$C$3:$AV$3,"<"&F17)+IF(F17>$Q$5,($L$9+$L$10)/((1+'Primary Calculations'!$D$14)^($Q$5)),0) -> 16103933.81 | G24: =SUMIFS(Fuel!$C$29:$AV$29,Fuel!$C$3:$AV$3,"<"&$Q$5,Fuel!$C$3:$AV$3,"<"&G17)+SUMIFS(Fuel!$C$20:$AV$20,Fuel!$C$3:$AV$3,">="&$Q$5,Fuel!$C$3:$AV$3,"<"&G17)+IF(G17>$Q$5,($L$9+$L$10)/((1+'Primary Calculations'!$D$14)^($Q$5)),0) -> 18524091.66 | H24: =SUMIFS(Fuel!$C$29:$AV$29,Fuel!$C$3:$AV$3,"<"&$Q$5,Fuel!$C$3:$AV$3,"<"&H17)+SUMIFS(Fuel!$C$20:$AV$20,Fuel!$C$3:$AV$3,">="&$Q$5,Fuel!$C$3:$AV$3,"<"&H17)+IF(H17>$Q$5,($L$9+$L$10)/((1+'Primary Calculations'!$D$14)^($Q$5)),0) -> 20968745.13 | I24: =SUMIFS(Fuel!$C$29:$AV$29,Fuel!$C$3:$AV$3,"<"&$Q$5,Fuel!$C$3:$AV$3,"<"&I17)+SUMIFS(Fuel!$C$20:$AV$20,Fuel!$C$3:$AV$3,">="&$Q$5,Fuel!$C$3:$AV$3,"<"&I17)+IF(I17>$Q$5,($L$9+$L$10)/((1+'Primary Calculations'!$D$14)^($Q$5)),0) -> 23418628.54 | J24: =SUMIFS(Fuel!$C$29:$AV$29,Fuel!$C$3:$AV$3,"<"&$Q$5,Fuel!$C$3:$AV$3,"<"&J17)+SUMIFS(Fuel!$C$20:$AV$20,Fuel!$C$3:$AV$3,">="&$Q$5,Fuel!$C$3:$AV$3,"<"&J17)+IF(J17>$Q$5,($L$9+$L$10)/((1+'Primary Calculations'!$D$14)^($Q$5)),0) -> 25772872.83 | K24: =SUMIFS(Fuel!$C$29:$AV$29,Fuel!$C$3:$AV$3,"<"&$Q$5,Fuel!$C$3:$AV$3,"<"&K17)+SUMIFS(Fuel!$C$20:$AV$20,Fuel!$C$3:$AV$3,">="&$Q$5,Fuel!$C$3:$AV$3,"<"&K17)+IF(K17>$Q$5,($L$9+$L$10)/((1+'Primary Calculations'!$D$14)^($Q$5)),0) -> 28004297.89 | L24: =SUMIFS(Fuel!$C$29:$AV$29,Fuel!$C$3:$AV$3,"<"&$Q$5,Fuel!$C$3:$AV$3,"<"&L17)+SUMIFS(Fuel!$C$20:$AV$20,Fuel!$C$3:$AV$3,">="&$Q$5,Fuel!$C$3:$AV$3,"<"&L17)+IF(L17>$Q$5,($L$9+$L$10)/((1+'Primary Calculations'!$D$14)^($Q$5)),0) -> 30154311.62 | M24: =SUMIFS(Fuel!$C$29:$AV$29,Fuel!$C$3:$AV$3,"<"&$Q$5,Fuel!$C$3:$AV$3,"<"&M17)+SUMIFS(Fuel!$C$20:$AV$20,Fuel!$C$3:$AV$3,">="&$Q$5,Fuel!$C$3:$AV$3,"<"&M17)+IF(M17>$Q$5,($L$9+$L$10)/((1+'Primary Calculations'!$D$14)^($Q$5)),0) -> 32202494.2 | N24: =SUMIFS(Fuel!$C$29:$AV$29,Fuel!$C$3:$AV$3,"<"&$Q$5,Fuel!$C$3:$AV$3,"<"&N17)+SUMIFS(Fuel!$C$20:$AV$20,Fuel!$C$3:$AV$3,">="&$Q$5,Fuel!$C$3:$AV$3,"<"&N17)+IF(N17>$Q$5,($L$9+$L$10)/((1+'Primary Calculations'!$D$14)^($Q$5)),0) -> 34155489.29 | O24: =SUMIFS(Fuel!$C$29:$AV$29,Fuel!$C$3:$AV$3,"<"&$Q$5,Fuel!$C$3:$AV$3,"<"&O17)+SUMIFS(Fuel!$C$20:$AV$20,Fuel!$C$3:$AV$3,">="&$Q$5,Fuel!$C$3:$AV$3,"<"&O17)+IF(O17>$Q$5,($L$9+$L$10)/((1+'Primary Calculations'!$D$14)^($Q$5)),0) -> 36050724.83 | P24: =SUMIFS(Fuel!$C$29:$AV$29,Fuel!$C$3:$AV$3,"<"&$Q$5,Fuel!$C$3:$AV$3,"<"&P17)+SUMIFS(Fuel!$C$20:$AV$20,Fuel!$C$3:$AV$3,">="&$Q$5,Fuel!$C$3:$AV$3,"<"&P17)+IF(P17>$Q$5,($L$9+$L$10)/((1+'Primary Calculations'!$D$14)^($Q$5)),0) -> 37821578.82 | Q24: =SUMIFS(Fuel!$C$29:$AV$29,Fuel!$C$3:$AV$3,"<"&$Q$5,Fuel!$C$3:$AV$3,"<"&Q17)+SUMIFS(Fuel!$C$20:$AV$20,Fuel!$C$3:$AV$3,">="&$Q$5,Fuel!$C$3:$AV$3,"<"&Q17)+IF(Q17>$Q$5,($L$9+$L$10)/((1+'Primary Calculations'!$D$14)^($Q$5)),0) -> 39477362.28 | R24: =SUMIFS(Fuel!$C$29:$AV$29,Fuel!$C$3:$AV$3,"<"&$Q$5,Fuel!$C$3:$AV$3,"<"&R17)+SUMIFS(Fuel!$C$20:$AV$20,Fuel!$C$3:$AV$3,">="&$Q$5,Fuel!$C$3:$AV$3,"<"&R17)+IF(R17>$Q$5,($L$9+$L$10)/((1+'Primary Calculations'!$D$14)^($Q$5)),0) -> 41036514.09 | S24: =SUMIFS(Fuel!$C$29:$AV$29,Fuel!$C$3:$AV$3,"<"&$Q$5,Fuel!$C$3:$AV$3,"<"&S17)+SUMIFS(Fuel!$C$20:$AV$20,Fuel!$C$3:$AV$3,">="&$Q$5,Fuel!$C$3:$AV$3,"<"&S17)+IF(S17>$Q$5,($L$9+$L$10)/((1+'Primary Calculations'!$D$14)^($Q$5)),0) -> 42488394.54 | T24: =SUMIFS(Fuel!$C$29:$AV$29,Fuel!$C$3:$AV$3,"<"&$Q$5,Fuel!$C$3:$AV$3,"<"&T17)+SUMIFS(Fuel!$C$20:$AV$20,Fuel!$C$3:$AV$3,">="&$Q$5,Fuel!$C$3:$AV$3,"<"&T17)+IF(T17>$Q$5,($L$9+$L$10)/((1+'Primary Calculations'!$D$14)^($Q$5)),0) -> 43898388.75 | U24: =SUMIFS(Fuel!$C$29:$AV$29,Fuel!$C$3:$AV$3,"<"&$Q$5,Fuel!$C$3:$AV$3,"<"&U17)+SUMIFS(Fuel!$C$20:$AV$20,Fuel!$C$3:$AV$3,">="&$Q$5,Fuel!$C$3:$AV$3,"<"&U17)+IF(U17>$Q$5,($L$9+$L$10)/((1+'Primary Calculations'!$D$14)^($Q$5)),0) -> 45256482.63 | V24: =SUMIFS(Fuel!$C$29:$AV$29,Fuel!$C$3:$AV$3,"<"&$Q$5,Fuel!$C$3:$AV$3,"<"&V17)+SUMIFS(Fuel!$C$20:$AV$20,Fuel!$C$3:$AV$3,">="&$Q$5,Fuel!$C$3:$AV$3,"<"&V17)+IF(V17>$Q$5,($L$9+$L$10)/((1+'Primary Calculations'!$D$14)^($Q$5)),0) -> 46562881.36 | W24: =SUMIFS(Fuel!$C$29:$AV$29,Fuel!$C$3:$AV$3,"<"&$Q$5,Fuel!$C$3:$AV$3,"<"&W17)+SUMIFS(Fuel!$C$20:$AV$20,Fuel!$C$3:$AV$3,">="&$Q$5,Fuel!$C$3:$AV$3,"<"&W17)+IF(W17>$Q$5,($L$9+$L$10)/((1+'Primary Calculations'!$D$14)^($Q$5)),0) -> 47818850.17 | X24: =SUMIFS(Fuel!$C$29:$AV$29,Fuel!$C$3:$AV$3,"<"&$Q$5,Fuel!$C$3:$AV$3,"<"&X17)+SUMIFS(Fuel!$C$20:$AV$20,Fuel!$C$3:$AV$3,">="&$Q$5,Fuel!$C$3:$AV$3,"<"&X17)+IF(X17>$Q$5,($L$9+$L$10)/((1+'Primary Calculations'!$D$14)^($Q$5)),0) -> 49019564.53 | Y24: =SUMIFS(Fuel!$C$29:$AV$29,Fuel!$C$3:$AV$3,"<"&$Q$5,Fuel!$C$3:$AV$3,"<"&Y17)+SUMIFS(Fuel!$C$20:$AV$20,Fuel!$C$3:$AV$3,">="&$Q$5,Fuel!$C$3:$AV$3,"<"&Y17)+IF(Y17>$Q$5,($L$9+$L$10)/((1+'Primary Calculations'!$D$14)^($Q$5)),0) -> 50168355.16 | Z24: =SUMIFS(Fuel!$C$29:$AV$29,Fuel!$C$3:$AV$3,"<"&$Q$5,Fuel!$C$3:$AV$3,"<"&Z17)+SUMIFS(Fuel!$C$20:$AV$20,Fuel!$C$3:$AV$3,">="&$Q$5,Fuel!$C$3:$AV$3,"<"&Z17)+IF(Z17>$Q$5,($L$9+$L$10)/((1+'Primary Calculations'!$D$14)^($Q$5)),0) -> 51255456.21 | AA24: =SUMIFS(Fuel!$C$29:$AV$29,Fuel!$C$3:$AV$3,"<"&$Q$5,Fuel!$C$3:$AV$3,"<"&AA17)+SUMIFS(Fuel!$C$20:$AV$20,Fuel!$C$3:$AV$3,">="&$Q$5,Fuel!$C$3:$AV$3,"<"&AA17)+IF(AA17>$Q$5,($L$9+$L$10)/((1+'Primary Calculations'!$D$14)^($Q$5)),0) -> 52297866.4 | AB24: =SUMIFS(Fuel!$C$29:$AV$29,Fuel!$C$3:$AV$3,"<"&$Q$5,Fuel!$C$3:$AV$3,"<"&AB17)+SUMIFS(Fuel!$C$20:$AV$20,Fuel!$C$3:$AV$3,">="&$Q$5,Fuel!$C$3:$AV$3,"<"&AB17)+IF(AB17>$Q$5,($L$9+$L$10)/((1+'Primary Calculations'!$D$14)^($Q$5)),0) -> 53321779.99 | AC24: =SUMIFS(Fuel!$C$29:$AV$29,Fuel!$C$3:$AV$3,"<"&$Q$5,Fuel!$C$3:$AV$3,"<"&AC17)+SUMIFS(Fuel!$C$20:$AV$20,Fuel!$C$3:$AV$3,">="&$Q$5,Fuel!$C$3:$AV$3,"<"&AC17)+IF(AC17>$Q$5,($L$9+$L$10)/((1+'Primary Calculations'!$D$14)^($Q$5)),0) -> 54340156.36 | AD24: =SUMIFS(Fuel!$C$29:$AV$29,Fuel!$C$3:$AV$3,"<"&$Q$5,Fuel!$C$3:$AV$3,"<"&AD17)+SUMIFS(Fuel!$C$20:$AV$20,Fuel!$C$3:$AV$3,">="&$Q$5,Fuel!$C$3:$AV$3,"<"&AD17)+IF(AD17>$Q$5,($L$9+$L$10)/((1+'Primary Calculations'!$D$14)^($Q$5)),0) -> 54340156.36 | AE24: =SUMIFS(Fuel!$C$29:$AV$29,Fuel!$C$3:$AV$3,"<"&$Q$5,Fuel!$C$3:$AV$3,"<"&AE17)+SUMIFS(Fuel!$C$20:$AV$20,Fuel!$C$3:$AV$3,">="&$Q$5,Fuel!$C$3:$AV$3,"<"&AE17)+IF(AE17>$Q$5,($L$9+$L$10)/((1+'Primary Calculations'!$D$14)^($Q$5)),0) -> 54340156.36 | AF24: =SUMIFS(Fuel!$C$29:$AV$29,Fuel!$C$3:$AV$3,"<"&$Q$5,Fuel!$C$3:$AV$3,"<"&AF17)+SUMIFS(Fuel!$C$20:$AV$20,Fuel!$C$3:$AV$3,">="&$Q$5,Fuel!$C$3:$AV$3,"<"&AF17)+IF(AF17>$Q$5,($L$9+$L$10)/((1+'Primary Calculations'!$D$14)^($Q$5)),0) -> 54340156.36 | AG24: =SUMIFS(Fuel!$C$29:$AV$29,Fuel!$C$3:$AV$3,"<"&$Q$5,Fuel!$C$3:$AV$3,"<"&AG17)+SUMIFS(Fuel!$C$20:$AV$20,Fuel!$C$3:$AV$3,">="&$Q$5,Fuel!$C$3:$AV$3,"<"&AG17)+IF(AG17>$Q$5,($L$9+$L$10)/((1+'Primary Calculations'!$D$14)^($Q$5)),0) -> 54340156.36 | AH24: =SUMIFS(Fuel!$C$29:$AV$29,Fuel!$C$3:$AV$3,"<"&$Q$5,Fuel!$C$3:$AV$3,"<"&AH17)+SUMIFS(Fuel!$C$20:$AV$20,Fuel!$C$3:$AV$3,">="&$Q$5,Fuel!$C$3:$AV$3,"<"&AH17)+IF(AH17>$Q$5,($L$9+$L$10)/((1+'Primary Calculations'!$D$14)^($Q$5)),0) -> 54340156.36 | AI24: =SUMIFS(Fuel!$C$29:$AV$29,Fuel!$C$3:$AV$3,"<"&$Q$5,Fuel!$C$3:$AV$3,"<"&AI17)+SUMIFS(Fuel!$C$20:$AV$20,Fuel!$C$3:$AV$3,">="&$Q$5,Fuel!$C$3:$AV$3,"<"&AI17)+IF(AI17>$Q$5,($L$9+$L$10)/((1+'Primary Calculations'!$D$14)^($Q$5)),0) -> 54340156.36 | AJ24: =SUMIFS(Fuel!$C$29:$AV$29,Fuel!$C$3:$AV$3,"<"&$Q$5,Fuel!$C$3:$AV$3,"<"&AJ17)+SUMIFS(Fuel!$C$20:$AV$20,Fuel!$C$3:$AV$3,">="&$Q$5,Fuel!$C$3:$AV$3,"<"&AJ17)+IF(AJ17>$Q$5,($L$9+$L$10)/((1+'Primary Calculations'!$D$14)^($Q$5)),0) -> 54340156.36 | AK24: =SUMIFS(Fuel!$C$29:$AV$29,Fuel!$C$3:$AV$3,"<"&$Q$5,Fuel!$C$3:$AV$3,"<"&AK17)+SUMIFS(Fuel!$C$20:$AV$20,Fuel!$C$3:$AV$3,">="&$Q$5,Fuel!$C$3:$AV$3,"<"&AK17)+IF(AK17>$Q$5,($L$9+$L$10)/((1+'Primary Calculations'!$D$14)^($Q$5)),0) -> 54340156.36 | AL24: =SUMIFS(Fuel!$C$29:$AV$29,Fuel!$C$3:$AV$3,"<"&$Q$5,Fuel!$C$3:$AV$3,"<"&AL17)+SUMIFS(Fuel!$C$20:$AV$20,Fuel!$C$3:$AV$3,">="&$Q$5,Fuel!$C$3:$AV$3,"<"&AL17)+IF(AL17>$Q$5,($L$9+$L$10)/((1+'Primary Calculations'!$D$14)^($Q$5)),0) -> 54340156.36
D53: 0 | E53: 0.05 | F53: 0.1 | G53: 0.15 | H53: 0.2 | I53: 0.25 | J53: 0.3 | K53: 0.35 | L53: 0.4 | M53: 0.45 | N53: 0.5 | O53: 0.55 | P53: 0.6 | Q53: 0.65 | R53: 0.7 | S53: 0.75 | T53: 0.8 | U53: 0.85 | V53: 0.9 | W53: 0.95 | X53: 1
C54: Percentage of time spent in ECA Zone | D54: 0 | E54: 0.05 | F54: 0.1 | G54: 0.15 | H54: 0.2 | I54: 0.25 | J54: 0.3 | K54: 0.35 | L54: 0.4 | M54: 0.45 | N54: 0.5 | O54: 0.55 | P54: 0.6 | Q54: 0.65 | R54: 0.7 | S54: 0.75 | T54: 0.8 | U54: 0.85 | V54: 0.9 | W54: 0.95 | X54: 1
C55: Discounted lifetime costs
C56: Scrubber | D56: =D54*SUMIFS(Fuel!$C$12:$AV$12,Fuel!$C$3:$AV$3,"<"&$Q$4,Fuel!$C$3:$AV$3,"<"&$P$11)+(1-D54)*SUMIFS(Fuel!$C$10:$AV$10,Fuel!$C$3:$AV$3,"<"&$Q$4,Fuel!$C$3:$AV$3,"<"&$P$11)+SUMIFS(Fuel!$C$10:$AV$10,Fuel!$C$3:$AV$3,">="&$Q$4,Fuel!$C$3:$AV$3,"<"&$P$11)+IF($P$11>$Q$4,($L$7+$L$8)/((1+$D$14)^($Q$4)),0) -> 33643572.49 | E56: =E54*SUMIFS(Fuel!$C$12:$AV$12,Fuel!$C$3:$AV$3,"<"&$Q$4,Fuel!$C$3:$AV$3,"<"&$P$11)+(1-E54)*SUMIFS(Fuel!$C$10:$AV$10,Fuel!$C$3:$AV$3,"<"&$Q$4,Fuel!$C$3:$AV$3,"<"&$P$11)+SUMIFS(Fuel!$C$10:$AV$10,Fuel!$C$3:$AV$3,">="&$Q$4,Fuel!$C$3:$AV$3,"<"&$P$11)+IF($P$11>$Q$4,($L$7+$L$8)/((1+$D$14)^($Q$4)),0) -> 33643572.49 | F56: =F54*SUMIFS(Fuel!$C$12:$AV$12,Fuel!$C$3:$AV$3,"<"&$Q$4,Fuel!$C$3:$AV$3,"<"&$P$11)+(1-F54)*SUMIFS(Fuel!$C$10:$AV$10,Fuel!$C$3:$AV$3,"<"&$Q$4,Fuel!$C$3:$AV$3,"<"&$P$11)+SUMIFS(Fuel!$C$10:$AV$10,Fuel!$C$3:$AV$3,">="&$Q$4,Fuel!$C$3:$AV$3,"<"&$P$11)+IF($P$11>$Q$4,($L$7+$L$8)/((1+$D$14)^($Q$4)),0) -> 33643572.49 | G56: =G54*SUMIFS(Fuel!$C$12:$AV$12,Fuel!$C$3:$AV$3,"<"&$Q$4,Fuel!$C$3:$AV$3,"<"&$P$11)+(1-G54)*SUMIFS(Fuel!$C$10:$AV$10,Fuel!$C$3:$AV$3,"<"&$Q$4,Fuel!$C$3:$AV$3,"<"&$P$11)+SUMIFS(Fuel!$C$10:$AV$10,Fuel!$C$3:$AV$3,">="&$Q$4,Fuel!$C$3:$AV$3,"<"&$P$11)+IF($P$11>$Q$4,($L$7+$L$8)/((1+$D$14)^($Q$4)),0) -> 33643572.49 | H56: =H54*SUMIFS(Fuel!$C$12:$AV$12,Fuel!$C$3:$AV$3,"<"&$Q$4,Fuel!$C$3:$AV$3,"<"&$P$11)+(1-H54)*SUMIFS(Fuel!$C$10:$AV$10,Fuel!$C$3:$AV$3,"<"&$Q$4,Fuel!$C$3:$AV$3,"<"&$P$11)+SUMIFS(Fuel!$C$10:$AV$10,Fuel!$C$3:$AV$3,">="&$Q$4,Fuel!$C$3:$AV$3,"<"&$P$11)+IF($P$11>$Q$4,($L$7+$L$8)/((1+$D$14)^($Q$4)),0) -> 33643572.49 | I56: =I54*SUMIFS(Fuel!$C$12:$AV$12,Fuel!$C$3:$AV$3,"<"&$Q$4,Fuel!$C$3:$AV$3,"<"&$P$11)+(1-I54)*SUMIFS(Fuel!$C$10:$AV$10,Fuel!$C$3:$AV$3,"<"&$Q$4,Fuel!$C$3:$AV$3,"<"&$P$11)+SUMIFS(Fuel!$C$10:$AV$10,Fuel!$C$3:$AV$3,">="&$Q$4,Fuel!$C$3:$AV$3,"<"&$P$11)+IF($P$11>$Q$4,($L$7+$L$8)/((1+$D$14)^($Q$4)),0) -> 33643572.49 | J56: =J54*SUMIFS(Fuel!$C$12:$AV$12,Fuel!$C$3:$AV$3,"<"&$Q$4,Fuel!$C$3:$AV$3,"<"&$P$11)+(1-J54)*SUMIFS(Fuel!$C$10:$AV$10,Fuel!$C$3:$AV$3,"<"&$Q$4,Fuel!$C$3:$AV$3,"<"&$P$11)+SUMIFS(Fuel!$C$10:$AV$10,Fuel!$C$3:$AV$3,">="&$Q$4,Fuel!$C$3:$AV$3,"<"&$P$11)+IF($P$11>$Q$4,($L$7+$L$8)/((1+$D$14)^($Q$4)),0) -> 33643572.49 | K56: =K54*SUMIFS(Fuel!$C$12:$AV$12,Fuel!$C$3:$AV$3,"<"&$Q$4,Fuel!$C$3:$AV$3,"<"&$P$11)+(1-K54)*SUMIFS(Fuel!$C$10:$AV$10,Fuel!$C$3:$AV$3,"<"&$Q$4,Fuel!$C$3:$AV$3,"<"&$P$11)+SUMIFS(Fuel!$C$10:$AV$10,Fuel!$C$3:$AV$3,">="&$Q$4,Fuel!$C$3:$AV$3,"<"&$P$11)+IF($P$11>$Q$4,($L$7+$L$8)/((1+$D$14)^($Q$4)),0) -> 33643572.49 | L56: =L54*SUMIFS(Fuel!$C$12:$AV$12,Fuel!$C$3:$AV$3,"<"&$Q$4,Fuel!$C$3:$AV$3,"<"&$P$11)+(1-L54)*SUMIFS(Fuel!$C$10:$AV$10,Fuel!$C$3:$AV$3,"<"&$Q$4,Fuel!$C$3:$AV$3,"<"&$P$11)+SUMIFS(Fuel!$C$10:$AV$10,Fuel!$C$3:$AV$3,">="&$Q$4,Fuel!$C$3:$AV$3,"<"&$P$11)+IF($P$11>$Q$4,($L$7+$L$8)/((1+$D$14)^($Q$4)),0) -> 33643572.49 | M56: =M54*SUMIFS(Fuel!$C$12:$AV$12,Fuel!$C$3:$AV$3,"<"&$Q$4,Fuel!$C$3:$AV$3,"<"&$P$11)+(1-M54)*SUMIFS(Fuel!$C$10:$AV$10,Fuel!$C$3:$AV$3,"<"&$Q$4,Fuel!$C$3:$AV$3,"<"&$P$11)+SUMIFS(Fuel!$C$10:$AV$10,Fuel!$C$3:$AV$3,">="&$Q$4,Fuel!$C$3:$AV$3,"<"&$P$11)+IF($P$11>$Q$4,($L$7+$L$8)/((1+$D$14)^($Q$4)),0) -> 33643572.49 | N56: =N54*SUMIFS(Fuel!$C$12:$AV$12,Fuel!$C$3:$AV$3,"<"&$Q$4,Fuel!$C$3:$AV$3,"<"&$P$11)+(1-N54)*SUMIFS(Fuel!$C$10:$AV$10,Fuel!$C$3:$AV$3,"<"&$Q$4,Fuel!$C$3:$AV$3,"<"&$P$11)+SUMIFS(Fuel!$C$10:$AV$10,Fuel!$C$3:$AV$3,">="&$Q$4,Fuel!$C$3:$AV$3,"<"&$P$11)+IF($P$11>$Q$4,($L$7+$L$8)/((1+$D$14)^($Q$4)),0) -> 33643572.49 | O56: =O54*SUMIFS(Fuel!$C$12:$AV$12,Fuel!$C$3:$AV$3,"<"&$Q$4,Fuel!$C$3:$AV$3,"<"&$P$11)+(1-O54)*SUMIFS(Fuel!$C$10:$AV$10,Fuel!$C$3:$AV$3,"<"&$Q$4,Fuel!$C$3:$AV$3,"<"&$P$11)+SUMIFS(Fuel!$C$10:$AV$10,Fuel!$C$3:$AV$3,">="&$Q$4,Fuel!$C$3:$AV$3,"<"&$P$11)+IF($P$11>$Q$4,($L$7+$L$8)/((1+$D$14)^($Q$4)),0) -> 33643572.49 | P56: =P54*SUMIFS(Fuel!$C$12:$AV$12,Fuel!$C$3:$AV$3,"<"&$Q$4,Fuel!$C$3:$AV$3,"<"&$P$11)+(1-P54)*SUMIFS(Fuel!$C$10:$AV$10,Fuel!$C$3:$AV$3,"<"&$Q$4,Fuel!$C$3:$AV$3,"<"&$P$11)+SUMIFS(Fuel!$C$10:$AV$10,Fuel!$C$3:$AV$3,">="&$Q$4,Fuel!$C$3:$AV$3,"<"&$P$11)+IF($P$11>$Q$4,($L$7+$L$8)/((1+$D$14)^($Q$4)),0) -> 33643572.49 | Q56: =Q54*SUMIFS(Fuel!$C$12:$AV$12,Fuel!$C$3:$AV$3,"<"&$Q$4,Fuel!$C$3:$AV$3,"<"&$P$11)+(1-Q54)*SUMIFS(Fuel!$C$10:$AV$10,Fuel!$C$3:$AV$3,"<"&$Q$4,Fuel!$C$3:$AV$3,"<"&$P$11)+SUMIFS(Fuel!$C$10:$AV$10,Fuel!$C$3:$AV$3,">="&$Q$4,Fuel!$C$3:$AV$3,"<"&$P$11)+IF($P$11>$Q$4,($L$7+$L$8)/((1+$D$14)^($Q$4)),0) -> 33643572.49 | R56: =R54*SUMIFS(Fuel!$C$12:$AV$12,Fuel!$C$3:$AV$3,"<"&$Q$4,Fuel!$C$3:$AV$3,"<"&$P$11)+(1-R54)*SUMIFS(Fuel!$C$10:$AV$10,Fuel!$C$3:$AV$3,"<"&$Q$4,Fuel!$C$3:$AV$3,"<"&$P$11)+SUMIFS(Fuel!$C$10:$AV$10,Fuel!$C$3:$AV$3,">="&$Q$4,Fuel!$C$3:$AV$3,"<"&$P$11)+IF($P$11>$Q$4,($L$7+$L$8)/((1+$D$14)^($Q$4)),0) -> 33643572.49 | S56: =S54*SUMIFS(Fuel!$C$12:$AV$12,Fuel!$C$3:$AV$3,"<"&$Q$4,Fuel!$C$3:$AV$3,"<"&$P$11)+(1-S54)*SUMIFS(Fuel!$C$10:$AV$10,Fuel!$C$3:$AV$3,"<"&$Q$4,Fuel!$C$3:$AV$3,"<"&$P$11)+SUMIFS(Fuel!$C$10:$AV$10,Fuel!$C$3:$AV$3,">="&$Q$4,Fuel!$C$3:$AV$3,"<"&$P$11)+IF($P$11>$Q$4,($L$7+$L$8)/((1+$D$14)^($Q$4)),0) -> 33643572.49 | T56: =T54*SUMIFS(Fuel!$C$12:$AV$12,Fuel!$C$3:$AV$3,"<"&$Q$4,Fuel!$C$3:$AV$3,"<"&$P$11)+(1-T54)*SUMIFS(Fuel!$C$10:$AV$10,Fuel!$C$3:$AV$3,"<"&$Q$4,Fuel!$C$3:$AV$3,"<"&$P$11)+SUMIFS(Fuel!$C$10:$AV$10,Fuel!$C$3:$AV$3,">="&$Q$4,Fuel!$C$3:$AV$3,"<"&$P$11)+IF($P$11>$Q$4,($L$7+$L$8)/((1+$D$14)^($Q$4)),0) -> 33643572.49 | U56: =U54*SUMIFS(Fuel!$C$12:$AV$12,Fuel!$C$3:$AV$3,"<"&$Q$4,Fuel!$C$3:$AV$3,"<"&$P$11)+(1-U54)*SUMIFS(Fuel!$C$10:$AV$10,Fuel!$C$3:$AV$3,"<"&$Q$4,Fuel!$C$3:$AV$3,"<"&$P$11)+SUMIFS(Fuel!$C$10:$AV$10,Fuel!$C$3:$AV$3,">="&$Q$4,Fuel!$C$3:$AV$3,"<"&$P$11)+IF($P$11>$Q$4,($L$7+$L$8)/((1+$D$14)^($Q$4)),0) -> 33643572.49 | V56: =V54*SUMIFS(Fuel!$C$12:$AV$12,Fuel!$C$3:$AV$3,"<"&$Q$4,Fuel!$C$3:$AV$3,"<"&$P$11)+(1-V54)*SUMIFS(Fuel!$C$10:$AV$10,Fuel!$C$3:$AV$3,"<"&$Q$4,Fuel!$C$3:$AV$3,"<"&$P$11)+SUMIFS(Fuel!$C$10:$AV$10,Fuel!$C$3:$AV$3,">="&$Q$4,Fuel!$C$3:$AV$3,"<"&$P$11)+IF($P$11>$Q$4,($L$7+$L$8)/((1+$D$14)^($Q$4)),0) -> 33643572.49 | W56: =W54*SUMIFS(Fuel!$C$12:$AV$12,Fuel!$C$3:$AV$3,"<"&$Q$4,Fuel!$C$3:$AV$3,"<"&$P$11)+(1-W54)*SUMIFS(Fuel!$C$10:$AV$10,Fuel!$C$3:$AV$3,"<"&$Q$4,Fuel!$C$3:$AV$3,"<"&$P$11)+SUMIFS(Fuel!$C$10:$AV$10,Fuel!$C$3:$AV$3,">="&$Q$4,Fuel!$C$3:$AV$3,"<"&$P$11)+IF($P$11>$Q$4,($L$7+$L$8)/((1+$D$14)^($Q$4)),0) -> 33643572.49 | X56: =X54*SUMIFS(Fuel!$C$12:$AV$12,Fuel!$C$3:$AV$3,"<"&$Q$4,Fuel!$C$3:$AV$3,"<"&$P$11)+(1-X54)*SUMIFS(Fuel!$C$10:$AV$10,Fuel!$C$3:$AV$3,"<"&$Q$4,Fuel!$C$3:$AV$3,"<"&$P$11)+SUMIFS(Fuel!$C$10:$AV$10,Fuel!$C$3:$AV$3,">="&$Q$4,Fuel!$C$3:$AV$3,"<"&$P$11)+IF($P$11>$Q$4,($L$7+$L$8)/((1+$D$14)^($Q$4)),0) -> 33643572.49
C57: MGO (Low) | D57: =D54*SUMIF(Fuel!3:3,"<"&'Primary Calculations'!$P$11,Fuel!12:12)+(1-D54)*SUMIF(Fuel!3:3,"<"&'Primary Calculations'!$P$11,Fuel!6:6) -> 25455682.87 | E57: =E54*SUMIF(Fuel!3:3,"<"&'Primary Calculations'!$P$11,Fuel!12:12)+(1-E54)*SUMIF(Fuel!3:3,"<"&'Primary Calculations'!$P$11,Fuel!6:6) -> 25896461.72 | F57: =F54*SUMIF(Fuel!3:3,"<"&'Primary Calculations'!$P$11,Fuel!12:12)+(1-F54)*SUMIF(Fuel!3:3,"<"&'Primary Calculations'!$P$11,Fuel!6:6) -> 26337240.57 | G57: =G54*SUMIF(Fuel!3:3,"<"&'Primary Calculations'!$P$11,Fuel!12:12)+(1-G54)*SUMIF(Fuel!3:3,"<"&'Primary Calculations'!$P$11,Fuel!6:6) -> 26778019.42 | H57: =H54*SUMIF(Fuel!3:3,"<"&'Primary Calculations'!$P$11,Fuel!12:12)+(1-H54)*SUMIF(Fuel!3:3,"<"&'Primary Calculations'!$P$11,Fuel!6:6) -> 27218798.27 | I57: =I54*SUMIF(Fuel!3:3,"<"&'Primary Calculations'!$P$11,Fuel!12:12)+(1-I54)*SUMIF(Fuel!3:3,"<"&'Primary Calculations'!$P$11,Fuel!6:6) -> 27659577.12 | J57: =J54*SUMIF(Fuel!3:3,"<"&'Primary Calculations'!$P$11,Fuel!12:12)+(1-J54)*SUMIF(Fuel!3:3,"<"&'Primary Calculations'!$P$11,Fuel!6:6) -> 28100355.97 | K57: =K54*SUMIF(Fuel!3:3,"<"&'Primary Calculations'!$P$11,Fuel!12:12)+(1-K54)*SUMIF(Fuel!3:3,"<"&'Primary Calculations'!$P$11,Fuel!6:6) -> 28541134.83 | L57: =L54*SUMIF(Fuel!3:3,"<"&'Primary Calculations'!$P$11,Fuel!12:12)+(1-L54)*SUMIF(Fuel!3:3,"<"&'Primary Calculations'!$P$11,Fuel!6:6) -> 28981913.68 | M57: =M54*SUMIF(Fuel!3:3,"<"&'Primary Calculations'!$P$11,Fuel!12:12)+(1-M54)*SUMIF(Fuel!3:3,"<"&'Primary Calculations'!$P$11,Fuel!6:6) -> 29422692.53 | N57: =N54*SUMIF(Fuel!3:3,"<"&'Primary Calculations'!$P$11,Fuel!12:12)+(1-N54)*SUMIF(Fuel!3:3,"<"&'Primary Calculations'!$P$11,Fuel!6:6) -> 29863471.38 | O57: =O54*SUMIF(Fuel!3:3,"<"&'Primary Calculations'!$P$11,Fuel!12:12)+(1-O54)*SUMIF(Fuel!3:3,"<"&'Primary Calculations'!$P$11,Fuel!6:6) -> 30304250.23 | P57: =P54*SUMIF(Fuel!3:3,"<"&'Primary Calculations'!$P$11,Fuel!12:12)+(1-P54)*SUMIF(Fuel!3:3,"<"&'Primary Calculations'!$P$11,Fuel!6:6) -> 30745029.08 | Q57: =Q54*SUMIF(Fuel!3:3,"<"&'Primary Calculations'!$P$11,Fuel!12:12)+(1-Q54)*SUMIF(Fuel!3:3,"<"&'Primary Calculations'!$P$11,Fuel!6:6) -> 31185807.93 | R57: =R54*SUMIF(Fuel!3:3,"<"&'Primary Calculations'!$P$11,Fuel!12:12)+(1-R54)*SUMIF(Fuel!3:3,"<"&'Primary Calculations'!$P$11,Fuel!6:6) -> 31626586.78 | S57: =S54*SUMIF(Fuel!3:3,"<"&'Primary Calculations'!$P$11,Fuel!12:12)+(1-S54)*SUMIF(Fuel!3:3,"<"&'Primary Calculations'!$P$11,Fuel!6:6) -> 32067365.64 | T57: =T54*SUMIF(Fuel!3:3,"<"&'Primary Calculations'!$P$11,Fuel!12:12)+(1-T54)*SUMIF(Fuel!3:3,"<"&'Primary Calculations'!$P$11,Fuel!6:6) -> 32508144.49 | U57: =U54*SUMIF(Fuel!3:3,"<"&'Primary Calculations'!$P$11,Fuel!12:12)+(1-U54)*SUMIF(Fuel!3:3,"<"&'Primary Calculations'!$P$11,Fuel!6:6) -> 32948923.34 | V57: =V54*SUMIF(Fuel!3:3,"<"&'Primary Calculations'!$P$11,Fuel!12:12)+(1-V54)*SUMIF(Fuel!3:3,"<"&'Primary Calculations'!$P$11,Fuel!6:6) -> 33389702.19 | W57: =W54*SUMIF(Fuel!3:3,"<"&'Primary Calculations'!$P$11,Fuel!12:12)+(1-W54)*SUMIF(Fuel!3:3,"<"&'Primary Calculations'!$P$11,Fuel!6:6) -> 33830481.04 | X57: =X54*SUMIF(Fuel!3:3,"<"&'Primary Calculations'!$P$11,Fuel!12:12)+(1-X54)*SUMIF(Fuel!3:3,"<"&'Primary Calculations'!$P$11,Fuel!6:6) -> 34271259.89
C58: MGO (high) | D58: =D54*SUMIF(Fuel!3:3,"<"&'Primary Calculations'!$P$11,Fuel!16:16)+(1-D54)*SUMIF(Fuel!3:3,"<"&'Primary Calculations'!$P$11,Fuel!6:6) -> 25455682.87 | E58: =E54*SUMIF(Fuel!3:3,"<"&'Primary Calculations'!$P$11,Fuel!16:16)+(1-E54)*SUMIF(Fuel!3:3,"<"&'Primary Calculations'!$P$11,Fuel!6:6) -> 26145598.01 | F58: =F54*SUMIF(Fuel!3:3,"<"&'Primary Calculations'!$P$11,Fuel!16:16)+(1-F54)*SUMIF(Fuel!3:3,"<"&'Primary Calculations'!$P$11,Fuel!6:6) -> 26835513.16 | G58: =G54*SUMIF(Fuel!3:3,"<"&'Primary Calculations'!$P$11,Fuel!16:16)+(1-G54)*SUMIF(Fuel!3:3,"<"&'Primary Calculations'!$P$11,Fuel!6:6) -> 27525428.31 | H58: =H54*SUMIF(Fuel!3:3,"<"&'Primary Calculations'!$P$11,Fuel!16:16)+(1-H54)*SUMIF(Fuel!3:3,"<"&'Primary Calculations'!$P$11,Fuel!6:6) -> 28215343.46 | I58: =I54*SUMIF(Fuel!3:3,"<"&'Primary Calculations'!$P$11,Fuel!16:16)+(1-I54)*SUMIF(Fuel!3:3,"<"&'Primary Calculations'!$P$11,Fuel!6:6) -> 28905258.61 | J58: =J54*SUMIF(Fuel!3:3,"<"&'Primary Calculations'!$P$11,Fuel!16:16)+(1-J54)*SUMIF(Fuel!3:3,"<"&'Primary Calculations'!$P$11,Fuel!6:6) -> 29595173.76 | K58: =K54*SUMIF(Fuel!3:3,"<"&'Primary Calculations'!$P$11,Fuel!16:16)+(1-K54)*SUMIF(Fuel!3:3,"<"&'Primary Calculations'!$P$11,Fuel!6:6) -> 30285088.91 | L58: =L54*SUMIF(Fuel!3:3,"<"&'Primary Calculations'!$P$11,Fuel!16:16)+(1-L54)*SUMIF(Fuel!3:3,"<"&'Primary Calculations'!$P$11,Fuel!6:6) -> 30975004.06 | M58: =M54*SUMIF(Fuel!3:3,"<"&'Primary Calculations'!$P$11,Fuel!16:16)+(1-M54)*SUMIF(Fuel!3:3,"<"&'Primary Calculations'!$P$11,Fuel!6:6) -> 31664919.21 | N58: =N54*SUMIF(Fuel!3:3,"<"&'Primary Calculations'!$P$11,Fuel!16:16)+(1-N54)*SUMIF(Fuel!3:3,"<"&'Primary Calculations'!$P$11,Fuel!6:6) -> 32354834.36 | O58: =O54*SUMIF(Fuel!3:3,"<"&'Primary Calculations'!$P$11,Fuel!16:16)+(1-O54)*SUMIF(Fuel!3:3,"<"&'Primary Calculations'!$P$11,Fuel!6:6) -> 33044749.51 | P58: =P54*SUMIF(Fuel!3:3,"<"&'Primary Calculations'!$P$11,Fuel!16:16)+(1-P54)*SUMIF(Fuel!3:3,"<"&'Primary Calculations'!$P$11,Fuel!6:6) -> 33734664.66 | Q58: =Q54*SUMIF(Fuel!3:3,"<"&'Primary Calculations'!$P$11,Fuel!16:16)+(1-Q54)*SUMIF(Fuel!3:3,"<"&'Primary Calculations'!$P$11,Fuel!6:6) -> 34424579.8 | R58: =R54*SUMIF(Fuel!3:3,"<"&'Primary Calculations'!$P$11,Fuel!16:16)+(1-R54)*SUMIF(Fuel!3:3,"<"&'Primary Calculations'!$P$11,Fuel!6:6) -> 35114494.95 | S58: =S54*SUMIF(Fuel!3:3,"<"&'Primary Calculations'!$P$11,Fuel!16:16)+(1-S54)*SUMIF(Fuel!3:3,"<"&'Primary Calculations'!$P$11,Fuel!6:6) -> 35804410.1 | T58: =T54*SUMIF(Fuel!3:3,"<"&'Primary Calculations'!$P$11,Fuel!16:16)+(1-T54)*SUMIF(Fuel!3:3,"<"&'Primary Calculations'!$P$11,Fuel!6:6) -> 36494325.25 | U58: =U54*SUMIF(Fuel!3:3,"<"&'Primary Calculations'!$P$11,Fuel!16:16)+(1-U54)*SUMIF(Fuel!3:3,"<"&'Primary Calculations'!$P$11,Fuel!6:6) -> 37184240.4 | V58: =V54*SUMIF(Fuel!3:3,"<"&'Primary Calculations'!$P$11,Fuel!16:16)+(1-V54)*SUMIF(Fuel!3:3,"<"&'Primary Calculations'!$P$11,Fuel!6:6) -> 37874155.55 | W58: =W54*SUMIF(Fuel!3:3,"<"&'Primary Calculations'!$P$11,Fuel!16:16)+(1-W54)*SUMIF(Fuel!3:3,"<"&'Primary Calculations'!$P$11,Fuel!6:6) -> 38564070.7 | X58: =X54*SUMIF(Fuel!3:3,"<"&'Primary Calculations'!$P$11,Fuel!16:16)+(1-X54)*SUMIF(Fuel!3:3,"<"&'Primary Calculations'!$P$11,Fuel!6:6) -> 39253985.85
C59: LNG | D59: =D54*SUMIFS(Fuel!$C$12:$AV$12,Fuel!$C$3:$AV$3,"<"&$Q$5,Fuel!$C$3:$AV$3,"<"&$P$11)+(1-D54)*SUMIFS(Fuel!$C$6:$AV$6,Fuel!$C$3:$AV$3,"<"&$Q$5,Fuel!$C$3:$AV$3,"<"&$P$11)+SUMIFS(Fuel!$C$20:$AV$20,Fuel!$C$3:$AV$3,">="&$Q$5,Fuel!$C$3:$AV$3,"<"&$P$11)+IF($P$11>$Q$5,($L$9+$L$10)/((1+$D$14)^($Q$5)),0) -> 32202494.2 | E59: =E54*SUMIFS(Fuel!$C$12:$AV$12,Fuel!$C$3:$AV$3,"<"&$Q$5,Fuel!$C$3:$AV$3,"<"&$P$11)+(1-E54)*SUMIFS(Fuel!$C$6:$AV$6,Fuel!$C$3:$AV$3,"<"&$Q$5,Fuel!$C$3:$AV$3,"<"&$P$11)+SUMIFS(Fuel!$C$20:$AV$20,Fuel!$C$3:$AV$3,">="&$Q$5,Fuel!$C$3:$AV$3,"<"&$P$11)+IF($P$11>$Q$5,($L$9+$L$10)/((1+$D$14)^($Q$5)),0) -> 32202494.2 | F59: =F54*SUMIFS(Fuel!$C$12:$AV$12,Fuel!$C$3:$AV$3,"<"&$Q$5,Fuel!$C$3:$AV$3,"<"&$P$11)+(1-F54)*SUMIFS(Fuel!$C$6:$AV$6,Fuel!$C$3:$AV$3,"<"&$Q$5,Fuel!$C$3:$AV$3,"<"&$P$11)+SUMIFS(Fuel!$C$20:$AV$20,Fuel!$C$3:$AV$3,">="&$Q$5,Fuel!$C$3:$AV$3,"<"&$P$11)+IF($P$11>$Q$5,($L$9+$L$10)/((1+$D$14)^($Q$5)),0) -> 32202494.2 | G59: =G54*SUMIFS(Fuel!$C$12:$AV$12,Fuel!$C$3:$AV$3,"<"&$Q$5,Fuel!$C$3:$AV$3,"<"&$P$11)+(1-G54)*SUMIFS(Fuel!$C$6:$AV$6,Fuel!$C$3:$AV$3,"<"&$Q$5,Fuel!$C$3:$AV$3,"<"&$P$11)+SUMIFS(Fuel!$C$20:$AV$20,Fuel!$C$3:$AV$3,">="&$Q$5,Fuel!$C$3:$AV$3,"<"&$P$11)+IF($P$11>$Q$5,($L$9+$L$10)/((1+$D$14)^($Q$5)),0) -> 32202494.2 | H59: =H54*SUMIFS(Fuel!$C$12:$AV$12,Fuel!$C$3:$AV$3,"<"&$Q$5,Fuel!$C$3:$AV$3,"<"&$P$11)+(1-H54)*SUMIFS(Fuel!$C$6:$AV$6,Fuel!$C$3:$AV$3,"<"&$Q$5,Fuel!$C$3:$AV$3,"<"&$P$11)+SUMIFS(Fuel!$C$20:$AV$20,Fuel!$C$3:$AV$3,">="&$Q$5,Fuel!$C$3:$AV$3,"<"&$P$11)+IF($P$11>$Q$5,($L$9+$L$10)/((1+$D$14)^($Q$5)),0) -> 32202494.2 | I59: =I54*SUMIFS(Fuel!$C$12:$AV$12,Fuel!$C$3:$AV$3,"<"&$Q$5,Fuel!$C$3:$AV$3,"<"&$P$11)+(1-I54)*SUMIFS(Fuel!$C$6:$AV$6,Fuel!$C$3:$AV$3,"<"&$Q$5,Fuel!$C$3:$AV$3,"<"&$P$11)+SUMIFS(Fuel!$C$20:$AV$20,Fuel!$C$3:$AV$3,">="&$Q$5,Fuel!$C$3:$AV$3,"<"&$P$11)+IF($P$11>$Q$5,($L$9+$L$10)/((1+$D$14)^($Q$5)),0) -> 32202494.2 | J59: =J54*SUMIFS(Fuel!$C$12:$AV$12,Fuel!$C$3:$AV$3,"<"&$Q$5,Fuel!$C$3:$AV$3,"<"&$P$11)+(1-J54)*SUMIFS(Fuel!$C$6:$AV$6,Fuel!$C$3:$AV$3,"<"&$Q$5,Fuel!$C$3:$AV$3,"<"&$P$11)+SUMIFS(Fuel!$C$20:$AV$20,Fuel!$C$3:$AV$3,">="&$Q$5,Fuel!$C$3:$AV$3,"<"&$P$11)+IF($P$11>$Q$5,($L$9+$L$10)/((1+$D$14)^($Q$5)),0) -> 32202494.2 | K59: =K54*SUMIFS(Fuel!$C$12:$AV$12,Fuel!$C$3:$AV$3,"<"&$Q$5,Fuel!$C$3:$AV$3,"<"&$P$11)+(1-K54)*SUMIFS(Fuel!$C$6:$AV$6,Fuel!$C$3:$AV$3,"<"&$Q$5,Fuel!$C$3:$AV$3,"<"&$P$11)+SUMIFS(Fuel!$C$20:$AV$20,Fuel!$C$3:$AV$3,">="&$Q$5,Fuel!$C$3:$AV$3,"<"&$P$11)+IF($P$11>$Q$5,($L$9+$L$10)/((1+$D$14)^($Q$5)),0) -> 32202494.2 | L59: =L54*SUMIFS(Fuel!$C$12:$AV$12,Fuel!$C$3:$AV$3,"<"&$Q$5,Fuel!$C$3:$AV$3,"<"&$P$11)+(1-L54)*SUMIFS(Fuel!$C$6:$AV$6,Fuel!$C$3:$AV$3,"<"&$Q$5,Fuel!$C$3:$AV$3,"<"&$P$11)+SUMIFS(Fuel!$C$20:$AV$20,Fuel!$C$3:$AV$3,">="&$Q$5,Fuel!$C$3:$AV$3,"<"&$P$11)+IF($P$11>$Q$5,($L$9+$L$10)/((1+$D$14)^($Q$5)),0) -> 32202494.2 | M59: =M54*SUMIFS(Fuel!$C$12:$AV$12,Fuel!$C$3:$AV$3,"<"&$Q$5,Fuel!$C$3:$AV$3,"<"&$P$11)+(1-M54)*SUMIFS(Fuel!$C$6:$AV$6,Fuel!$C$3:$AV$3,"<"&$Q$5,Fuel!$C$3:$AV$3,"<"&$P$11)+SUMIFS(Fuel!$C$20:$AV$20,Fuel!$C$3:$AV$3,">="&$Q$5,Fuel!$C$3:$AV$3,"<"&$P$11)+IF($P$11>$Q$5,($L$9+$L$10)/((1+$D$14)^($Q$5)),0) -> 32202494.2 | N59: =N54*SUMIFS(Fuel!$C$12:$AV$12,Fuel!$C$3:$AV$3,"<"&$Q$5,Fuel!$C$3:$AV$3,"<"&$P$11)+(1-N54)*SUMIFS(Fuel!$C$6:$AV$6,Fuel!$C$3:$AV$3,"<"&$Q$5,Fuel!$C$3:$AV$3,"<"&$P$11)+SUMIFS(Fuel!$C$20:$AV$20,Fuel!$C$3:$AV$3,">="&$Q$5,Fuel!$C$3:$AV$3,"<"&$P$11)+IF($P$11>$Q$5,($L$9+$L$10)/((1+$D$14)^($Q$5)),0) -> 32202494.2 | O59: =O54*SUMIFS(Fuel!$C$12:$AV$12,Fuel!$C$3:$AV$3,"<"&$Q$5,Fuel!$C$3:$AV$3,"<"&$P$11)+(1-O54)*SUMIFS(Fuel!$C$6:$AV$6,Fuel!$C$3:$AV$3,"<"&$Q$5,Fuel!$C$3:$AV$3,"<"&$P$11)+SUMIFS(Fuel!$C$20:$AV$20,Fuel!$C$3:$AV$3,">="&$Q$5,Fuel!$C$3:$AV$3,"<"&$P$11)+IF($P$11>$Q$5,($L$9+$L$10)/((1+$D$14)^($Q$5)),0) -> 32202494.2 | P59: =P54*SUMIFS(Fuel!$C$12:$AV$12,Fuel!$C$3:$AV$3,"<"&$Q$5,Fuel!$C$3:$AV$3,"<"&$P$11)+(1-P54)*SUMIFS(Fuel!$C$6:$AV$6,Fuel!$C$3:$AV$3,"<"&$Q$5,Fuel!$C$3:$AV$3,"<"&$P$11)+SUMIFS(Fuel!$C$20:$AV$20,Fuel!$C$3:$AV$3,">="&$Q$5,Fuel!$C$3:$AV$3,"<"&$P$11)+IF($P$11>$Q$5,($L$9+$L$10)/((1+$D$14)^($Q$5)),0) -> 32202494.2 | Q59: =Q54*SUMIFS(Fuel!$C$12:$AV$12,Fuel!$C$3:$AV$3,"<"&$Q$5,Fuel!$C$3:$AV$3,"<"&$P$11)+(1-Q54)*SUMIFS(Fuel!$C$6:$AV$6,Fuel!$C$3:$AV$3,"<"&$Q$5,Fuel!$C$3:$AV$3,"<"&$P$11)+SUMIFS(Fuel!$C$20:$AV$20,Fuel!$C$3:$AV$3,">="&$Q$5,Fuel!$C$3:$AV$3,"<"&$P$11)+IF($P$11>$Q$5,($L$9+$L$10)/((1+$D$14)^($Q$5)),0) -> 32202494.2 | R59: =R54*SUMIFS(Fuel!$C$12:$AV$12,Fuel!$C$3:$AV$3,"<"&$Q$5,Fuel!$C$3:$AV$3,"<"&$P$11)+(1-R54)*SUMIFS(Fuel!$C$6:$AV$6,Fuel!$C$3:$AV$3,"<"&$Q$5,Fuel!$C$3:$AV$3,"<"&$P$11)+SUMIFS(Fuel!$C$20:$AV$20,Fuel!$C$3:$AV$3,">="&$Q$5,Fuel!$C$3:$AV$3,"<"&$P$11)+IF($P$11>$Q$5,($L$9+$L$10)/((1+$D$14)^($Q$5)),0) -> 32202494.2 | S59: =S54*SUMIFS(Fuel!$C$12:$AV$12,Fuel!$C$3:$AV$3,"<"&$Q$5,Fuel!$C$3:$AV$3,"<"&$P$11)+(1-S54)*SUMIFS(Fuel!$C$6:$AV$6,Fuel!$C$3:$AV$3,"<"&$Q$5,Fuel!$C$3:$AV$3,"<"&$P$11)+SUMIFS(Fuel!$C$20:$AV$20,Fuel!$C$3:$AV$3,">="&$Q$5,Fuel!$C$3:$AV$3,"<"&$P$11)+IF($P$11>$Q$5,($L$9+$L$10)/((1+$D$14)^($Q$5)),0) -> 32202494.2 | T59: =T54*SUMIFS(Fuel!$C$12:$AV$12,Fuel!$C$3:$AV$3,"<"&$Q$5,Fuel!$C$3:$AV$3,"<"&$P$11)+(1-T54)*SUMIFS(Fuel!$C$6:$AV$6,Fuel!$C$3:$AV$3,"<"&$Q$5,Fuel!$C$3:$AV$3,"<"&$P$11)+SUMIFS(Fuel!$C$20:$AV$20,Fuel!$C$3:$AV$3,">="&$Q$5,Fuel!$C$3:$AV$3,"<"&$P$11)+IF($P$11>$Q$5,($L$9+$L$10)/((1+$D$14)^($Q$5)),0) -> 32202494.2 | U59: =U54*SUMIFS(Fuel!$C$12:$AV$12,Fuel!$C$3:$AV$3,"<"&$Q$5,Fuel!$C$3:$AV$3,"<"&$P$11)+(1-U54)*SUMIFS(Fuel!$C$6:$AV$6,Fuel!$C$3:$AV$3,"<"&$Q$5,Fuel!$C$3:$AV$3,"<"&$P$11)+SUMIFS(Fuel!$C$20:$AV$20,Fuel!$C$3:$AV$3,">="&$Q$5,Fuel!$C$3:$AV$3,"<"&$P$11)+IF($P$11>$Q$5,($L$9+$L$10)/((1+$D$14)^($Q$5)),0) -> 32202494.2 | V59: =V54*SUMIFS(Fuel!$C$12:$AV$12,Fuel!$C$3:$AV$3,"<"&$Q$5,Fuel!$C$3:$AV$3,"<"&$P$11)+(1-V54)*SUMIFS(Fuel!$C$6:$AV$6,Fuel!$C$3:$AV$3,"<"&$Q$5,Fuel!$C$3:$AV$3,"<"&$P$11)+SUMIFS(Fuel!$C$20:$AV$20,Fuel!$C$3:$AV$3,">="&$Q$5,Fuel!$C$3:$AV$3,"<"&$P$11)+IF($P$11>$Q$5,($L$9+$L$10)/((1+$D$14)^($Q$5)),0) -> 32202494.2 | W59: =W54*SUMIFS(Fuel!$C$12:$AV$12,Fuel!$C$3:$AV$3,"<"&$Q$5,Fuel!$C$3:$AV$3,"<"&$P$11)+(1-W54)*SUMIFS(Fuel!$C$6:$AV$6,Fuel!$C$3:$AV$3,"<"&$Q$5,Fuel!$C$3:$AV$3,"<"&$P$11)+SUMIFS(Fuel!$C$20:$AV$20,Fuel!$C$3:$AV$3,">="&$Q$5,Fuel!$C$3:$AV$3,"<"&$P$11)+IF($P$11>$Q$5,($L$9+$L$10)/((1+$D$14)^($Q$5)),0) -> 32202494.2 | X59: =X54*SUMIFS(Fuel!$C$12:$AV$12,Fuel!$C$3:$AV$3,"<"&$Q$5,Fuel!$C$3:$AV$3,"<"&$P$11)+(1-X54)*SUMIFS(Fuel!$C$6:$AV$6,Fuel!$C$3:$AV$3,"<"&$Q$5,Fuel!$C$3:$AV$3,"<"&$P$11)+SUMIFS(Fuel!$C$20:$AV$20,Fuel!$C$3:$AV$3,">="&$Q$5,Fuel!$C$3:$AV$3,"<"&$P$11)+IF($P$11>$Q$5,($L$9+$L$10)/((1+$D$14)^($Q$5)),0) -> 32202494.2
C61: Payback time
C62: Primo | D62: 2016 | E62: 2017 | F62: 2018 | G62: 2019 | H62: 2020 | I62: 2021 | J62: 2022 | K62: 2023 | L62: 2024 | M62: 2025 | N62: 2026 | O62: 2027 | P62: 2028 | Q62: 2029 | R62: 2030 | S62: 2031 | T62: 2032 | U62: 2033 | V62: 2034 | W62: 2035 | X62: 2036 | Y62: 2037 | Z62: 2038 | AA62: 2039 | AB62: 2040 | AC62: 2041 | AD62: 2042 | AE62: 2043 | AF62: 2044 | AG62: 2045 | AH62: 2046 | AI62: 2047 | AJ62: 2048 | AK62: 2049 | AL62: 2050
C63: Remaining years of service | D63: 1 | E63: 2 | F63: 3 | G63: 4 | H63: 5 | I63: 6 | J63: 7 | K63: 8 | L63: 9 | M63: 10 | N63: 11 | O63: 12 | P63: 13 | Q63: 14 | R63: 15 | S63: 16 | T63: 17 | U63: 18 | V63: 19 | W63: 20 | X63: 21 | Y63: 22 | Z63: 23 | AA63: 24 | AB63: 25 | AC63: 26 | AD63: 27 | AE63: 28 | AF63: 29 | AG63: 30 | AH63: 31 | AI63: 32 | AJ63: 33 | AK63: 34 | AL63: 35
C64: Scrubber compared to MGO (low) | D64: =ABS(D19-D20) -> 6733569.123 | E64: =ABS(E19-E20) -> 6123554.42 | F64: 5539388.339 | G64: 4994274.912 | H64: 4487553.786 | I64: 3844004.757 | J64: 3246626.704 | K64: 2691736.192 | L64: 2175959.925 | M64: 1697548.583 | N64: 1253608.325 | O64: 841334.9629 | P64: 459309.3495 | Q64: 105785.4449 | R64: 222106.0284 | S64: 525918.7005 | T64: 807016.3863 | U64: 1066878.93 | V64: 1307634.972 | W64: 1530433.891 | X64: 1736827.49 | Y64: 1927733.595 | Z64: 2104212.046 | AA64: 2267187.806 | AB64: 2418008.411 | AC64: 2556762.283 | AD64: 2747030.749 | AE64: 2924851.744 | AF64: 3091039.591 | AG64: 3246355.335 | AH64: 3391510.236 | AI64: 3527169.023 | AJ64: 3653952.935 | AK64: 3772442.573 | AL64: 3883180.552
C65: Scrubber compared to MGO (low) | D65: =ABS(D19-D21) -> 6302608.141 | E65: =ABS(E19-E21) -> 5289826.165 | F65: 4329242.072 | G65: 3432336.11 | H65: 2596836.914 | I65: 1646018.661 | J65: 761473.1082 | K65: 61798.24444 | L65: 828397.7266 | M65: 1541223.289 | N65: 2204242.256 | O65: 2821262.077 | P65: 3394639.52 | Q65: 3926996.911 | R65: 4422022.484 | S65: 4882035.248 | T65: 5309114.329 | U65: 5705408.083 | V65: 6073669.929 | W65: 6415633.151 | X65: 6733395.257 | Y65: 7028384.079 | Z65: 7302136.098 | AA65: 7556021.733 | AB65: 7791804.839 | AC65: 8009962.918 | AD65: 8274440.922 | AE65: 8521616.627 | AF65: 8752621.959 | AG65: 8968514.792 | AH65: 9170283.795 | AI65: 9358852.957 | AJ65: 9535085.819 | AK65: 9699789.427 | AL65: 9853718.034
C66: LNG compared to MGO (low) | D66: =ABS(D24-D20) -> 7668889.314 | E66: =ABS(E24-E20) -> 6099591.411 | F66: 4928148.554 | G66: 4053504.815 | H66: 3374254.387 | I66: 2677327.537 | J66: 2024083.821 | K66: 1389067.925 | L66: 814168.7278 | M66: 256470.3023 | N66: 277822.4794 | O66: 750062.0496 | P66: 1245378.186 | Q66: 1764893.62 | R66: 2279686.511 | S66: 2809042.633 | T66: 3297099.102 | U66: 3759413.181 | V66: 4188768.557 | W66: 4591082.705 | X66: 4970083.299 | Y66: 5330120.866 | Z66: 5684836.137 | AA66: 6021923.399 | AB66: 6311675.334 | AC66: 6556996.015 | AD66: 6747264.481 | AE66: 6925085.476 | AF66: 7091273.323 | AG66: 7246589.067 | AH66: 7391743.968 | AI66: 7527402.755 | AJ66: 7654186.667 | AK66: 7772676.305 | AL66: 7883414.284
C67: LNG compared to MGO (high) | D67: =ABS(D24-D21) -> 7237928.331 | E67: =ABS(E24-E21) -> 5265863.156 | F67: 3718002.286 | G67: 2491566.013 | H67: 1483537.515 | I67: 479341.4403 | J67: 461069.775 | K67: 1364466.511 | L67: 2190188.924 | M67: 2982301.569 | N67: 3735673.061 | O67: 4412659.089 | P67: 5099327.055 | Q67: 5797675.976 | R67: 6479602.966 | S67: 7165159.181 | T67: 7799197.045 | U67: 8397942.334 | V67: 8954803.514 | W67: 9476281.965 | X67: 9966651.066 | Y67: 10430771.35 | Z67: 10882760.19 | AA67: 11310757.33 | AB67: 11685471.76 | AC67: 12010196.65 | AD67: 12274674.65 | AE67: 12521850.36 | AF67: 12752855.69 | AG67: 12968748.52 | AH67: 13170517.53 | AI67: 13359086.69 | AJ67: 13535319.55 | AK67: 13700023.16 | AL67: 13853951.77

Sheet Emission factors (hidden)
B2: Scrubber | D2: MGO | F2: LNG | H2: HFO non-compliance
A3: Engine and emission reduction technologies | B3: Main engine | C3: Auxiliary engines | D3: Main engine | E3: Auxiliary engines | F3: Main engine | G3: Auxiliary engines | H3: Main engine | I3: Auxiliary engines
A4: Main engine type (2-stroke = 1, 4-stroke = 2) | B4: ='Advanced Settings'!G23 -> 1 | C4: 2 | D4: ='Advanced Settings'!G23 -> 1 | E4: 2 | F4: ='Advanced Settings'!G23 -> 1 | G4: 2 | H4: ='Advanced Settings'!G23 -> 1 | I4: 2
A5: Derated main engine - only for 2 stroke engines (NO = 0, YES = 1) | B5: 0 | C5: - | D5: 0 | E5: - | F5: 0 | G5: - | H5: 0 | I5: -
A6: Fuel for main engine (HFO = 1, MDO/GO = 2, LNG = 3 (only for 4 stroke), Dual fuel = 4) | B6: 1 | C6: =IF(B6=1,2,B6) -> 2 | D6: 2 | E6: =IF(D6=1,2,D6) -> 2 | F6: 3 | G6: =IF(F6=1,2,F6) -> 3 | H6: 1 | I6: =IF(H6=1,2,H6) -> 2
A7: Specific Fuel Oil Consumption (SFOC) at 75 % MCR for main engine in g/kW/hour. If not specified (1) a default value will be used | B7: ='Advanced Settings'!G32 -> 1 | C7: - | D7: ='Advanced Settings'!G33 -> 1 | E7: - | F7: ='Advanced Settings'!G34 -> 1 | G7: - | H7: ='Advanced Settings'!G31 -> 1 | I7: -
A8: Fuel optimised main engine? (0 = NO, 1 = YES) | B8: ='Advanced Settings'!G26 -> 1 | C8: - | D8: ='Advanced Settings'!G26 -> 1 | E8: - | F8: ='Advanced Settings'!G26 -> 1 | G8: - | H8: ='Advanced Settings'!G26 -> 1 | I8: -
A9: TIER 1, 2 or 3 engine (If individual NOx reduction technology is selected then press 0) | B9: ='Advanced Settings'!$G$24 -> 3 | C9: ='Advanced Settings'!$G$24 -> 3 | D9: ='Advanced Settings'!$G$24 -> 3 | E9: ='Advanced Settings'!$G$24 -> 3 | F9: ='Advanced Settings'!$G$24 -> 3 | G9: ='Advanced Settings'!$G$24 -> 3 | H9: ='Advanced Settings'!$G$24 -> 3 | I9: ='Advanced Settings'!$G$24 -> 3
A10: Specify NOx reduction technology: EGR (Exhaust Gas Recirculation) =1, SCR (Selective Catalyic Reduction) = 2 or other technology = 3 | B10: ='Advanced Settings'!$G$25 -> 2 | C10: ='Advanced Settings'!G25 -> 2 | D10: ='Advanced Settings'!G25 -> 2 | E10: ='Advanced Settings'!G25 -> 2 | F10: ='Advanced Settings'!G25 -> 2 | G10: ='Advanced Settings'!G25 -> 2 | H10: ='Advanced Settings'!G25 -> 2 | I10: =H10 -> 2
A11: Sulphur content in % in heavy fuel oil (HFO) | B11: 3.5 | C11: - | D11: 3.5 | E11: - | F11: 3.5 | G11: - | H11: 3.5 | I11: -
A12: Sulphur content in % in diesel/gas oil (DO/GO) | B12: 0.1 | C12: 0.1 | D12: 0.1 | E12: =D12 -> 0.1 | F12: 0.1 | G12: =F12 -> 0.1 | H12: 0.1 | I12: =H12 -> 0.1
A13: Use of scrubbers (NO = 0, YES=1) | B13: 1 | C13: 1 | D13: 0 | E13: =D13 -> 0 | F13: 0 | G13: =F13 -> 0 | H13: 0 | I13: =H13 -> 0
A14: Emission factors
A15: Fuel consumption (kg/kW/hour) | B15: =IF(B7>1,B7/1000,IF(B6=4,IF(B4=1,0.15,0.16),IF(B6=3,0.155,IF(B4=1,0.17,0.19)*(1+B41/100)*42.7/B35))) -> 0.1846116049 | C15: =IF(C6=3,0.155,IF(C6=4,0.16,0.19*42.7/C35*(1+C41/100))) -> 0.1957 | D15: =IF(D7>1,D7/1000,IF(D6=4,IF(D4=1,0.15,0.16),IF(D6=3,0.155,IF(D4=1,0.17,0.19)*(1+D41/100)*42.7/D35))) -> 0.17 | E15: =IF(E6=3,0.155,IF(E6=4,0.16,0.19*42.7/E35*(1+E41/100))) -> 0.19 | F15: =IF(F7>1,F7/1000,IF(F6=4,IF(F4=1,0.15,0.16),IF(F6=3,0.155,IF(F4=1,0.17,0.19)*(1+F41/100)*42.7/F35))) -> 0.155 | G15: =IF(G6=3,0.155,IF(G6=4,0.16,0.19*42.7/G35*(1+G41/100))) -> 0.155 | H15: =IF(H7>1,H7/1000,IF(H6=4,IF(H4=1,0.15,0.16),IF(H6=3,0.155,IF(H4=1,0.17,0.19)*(1+H41/100)*42.7/H35))) -> 0.1792345679 | I15: =IF(I6=3,0.155,IF(I6=4,0.16,0.19*42.7/I35*(1+I41/100))) -> 0.19
A16: CO2 emission (g/kW/hour) | B16: =B15*B23 -> 574.8805378 | C16: =C23*C15 -> 627.4142 | D16: =D15*D23 -> 545.02 | E16: =E23*E15 -> 609.14 | F16: =F15*F23 -> 0 | G16: =G23*G15 -> 426.25 | H16: =H15*H23 -> 558.1364444 | I16: =I23*I15 -> 609.14
A17: NOx emission (g/kW/hour) | B17: =IF(AND(B4=1,B6=4),IF(B9<3,12,3.4),IF(AND(B4=2,B6=4),IF(B9<3,9.6,2.4),IF(AND(B4=2,B6=3),1.3,IF(OR(B6=1,B6=2),IF(B4=1,17,12)*(1-B42/100))))) -> 3.4 | C17: 2.4 | D17: 3.4 | E17: 2.4 | F17: FALSE | G17: 1.3 | H17: =IF(AND(H4=1,H6=4),IF(H9<3,12,3.4),IF(AND(H4=2,H6=4),IF(H9<3,9.6,2.4),IF(AND(H4=2,H6=3),1.3,IF(OR(H6=1,H6=2),IF(H4=1,17,12)*(1-H42/100))))) -> 3.4 | I17: =IF(AND(I4=1,I6=4),IF(I9<3,12,3.4),IF(AND(I4=2,I6=4),IF(I9<3,9.6,2.4),IF(AND(I4=2,I6=3),1.3,IF(OR(I6=1,I6=2),IF(I4=1,17,12)*(1-I42/100))))) -> 2.4
A18: CO emission (g/kW(hour) | B18: =IF(B6<3,IF(B4=1,0.35,0.5),IF(B4=1,0.3,1.3)) -> 0.35 | C18: 0.5 | D18: 0.35 | E18: 0.5 | F18: 0.3 | G18: 1.3 | H18: =IF(H6<3,IF(H4=1,0.35,0.5),IF(H4=1,0.3,1.3)) -> 0.35 | I18: =IF(I6<3,IF(I4=1,0.35,0.5),IF(I4=1,0.3,1.3)) -> 0.5
A19: HC emission (g/kW/hour) | B19: 0.5 | C19: 0.5 | D19: 0.5 | E19: 0.5 | F19: 0.5 | G19: 0.5 | H19: 0.5 | I19: 2.5
A20: Particulates (g/kW/hour) | B20: =IF(B6>2,IF(B6=3,0.03,0.1),(0.26+0.081*B21+0.103*B21^2)*(1-B43/100)) -> 0.8123625 | C20: 0.1211085 | D20: 0.26913 | E20: 0.26913 | F20: 0.03 | G20: 0.03 | H20: =IF(H6>2,IF(H6=3,0.03,0.1),(0.26+0.081*H21+0.103*H21^2)*(1-H43/100)) -> 1.80525 | I20: =IF(I6>2,IF(I6=3,0.03,0.1),(0.26+0.081*I21+0.103*I21^2)*(1-I43/100)) -> 0.26913
A21: S content in oil (pct.) | B21: =IF(B6=1,B11,B12) -> 3.5 | C21: =B12 -> 0.1 | D21: =IF(D6=1,D11,D12) -> 0.1 | E21: =D12 -> 0.1 | F21: =IF(F6=1,F11,F12) -> 0.1 | G21: =F12 -> 0.1 | H21: =IF(H6=1,H11,H12) -> 3.5 | I21: =H12 -> 0.1
A22: SO2 emission (g/kW/hour) | B22: =IF(B6<3,B15*21*B21*(1-B44/100),(IF(B6=3,0,0.19*21*B21*$B58/100))) -> 0.2713790593 | C22: 0.0082194 | D22: 0.357 | E22: 0.399 | F22: 0 | G22: 0 | H22: =IF(H6<3,H15*21*H21*(1-H44/100),(IF(H6=3,0,0.19*21*H21*$B58/100))) -> 13.17374074 | I22: =IF(I6<3,I15*21*I21*(1-I44/100),(IF(I6=3,0,0.19*21*I21*$B58/100))) -> 0.399
A23: CO2 emission (g/kg fuel) | B23: =IF(B6=4,2780,(IF(AND(B6=3,B4=2),2750,IF(B6<3,IF(B6=1,3114,3206))))) -> 3114 | C23: =IF(C6=3,2750,IF(C6=4,2780,IF(C6=1,3114,3206))) -> 3206 | D23: =IF(D6=4,2780,(IF(AND(D6=3,D4=2),2750,IF(D6<3,IF(D6=1,3114,3206))))) -> 3206 | E23: =IF(E6=3,2750,IF(E6=4,2780,IF(E6=1,3114,3206))) -> 3206 | F23: =IF(F6=4,2780,(IF(AND(F6=3,F4=2),2750,IF(F6<3,IF(F6=1,3114,3206))))) -> FALSE | G23: =IF(G6=3,2750,IF(G6=4,2780,IF(G6=1,3114,3206))) -> 2750 | H23: =IF(H6=4,2780,(IF(AND(H6=3,H4=2),2750,IF(H6<3,IF(H6=1,3114,3206))))) -> 3114 | I23: =IF(I6=3,2750,IF(I6=4,2780,IF(I6=1,3114,3206))) -> 3206
A24: NOx emission (g/kg fuel) | B24: =B17/B$15 -> 18.41704372 | C24: 12.26366888 | D24: 20 | E24: 12.63157895 | F24: 0 | G24: 8.387096774 | H24: =H17/H$15 -> 18.96955504 | I24: 12.63157895
A25: CO emission (g/kg fuel) | B25: 1.895872148 | C25: 2.554931017 | D25: 2.058823529 | E25: 2.631578947 | F25: 1.935483871 | G25: 8.387096774 | H25: 1.952748312 | I25: 2.631578947
A26: HC emission (g/kg fuel) | B26: 2.708388783 | C26: 2.554931017 | D26: 2.941176471 | E26: 2.631578947 | F26: 3.225806452 | G26: 3.225806452 | H26: 2.789640446 | I26: 13.15789474
A27: Particulates (g/kg fuel) | B27: =B20/B15 -> 4.400386965 | C27: 0.6188477261 | D27: 1.583117647 | E27: 1.416473684 | F27: 0.1935483871 | G27: 0.1935483871 | H27: =H20/H15 -> 10.07199683 | I27: =I20/I15 -> 1.416473684
A28: SO2 emission (g/kg fuel) | B28: =B22/B$15 -> 1.47 | C28: 0.042 | D28: 2.1 | E28: 2.1 | F28: 0 | G28: 0 | H28: =H22/H$15 -> 73.5 | I28: =I22/I$15 -> 2.1
A29: CO2 emission (g/MJ) | B29: =B23/B35 -> 76.88888889 | C29: 75.08196721 | D29: 75.08196721 | E29: 75.08196721 | F29: 0 | G29: 55 | H29: =H23/H35 -> 76.88888889 | I29: =I23/I35 -> 75.08196721
A30: NOx emission (g/MJ) | B30: =B24/B35 -> 0.4547418203 | C30: 0.2872053602 | D30: 0.4683840749 | E30: 0.295821521 | F30: 0 | G30: 0.1677419355 | H30: =H24/H35 -> 0.4683840749 | I30: =I24/I35 -> 0.295821521
A31: CO emission (g/MJ) | B31: =B25/B35 -> 0.04681165798 | C31: 0.05983445004 | D31: 0.04821600771 | E31: 0.06162948354 | F31: 0.03870967742 | G31: 0.1677419355 | H31: =H25/H35 -> 0.04821600771 | I31: =I25/I35 -> 0.06162948354
A32: HC emission (g/MJ) | B32: =B26/B35 -> 0.06687379711 | C32: 0.05983445004 | D32: 0.06888001102 | E32: 0.06162948354 | F32: 0.06451612903 | G32: 0.06451612903 | H32: =H26/H35 -> 0.06888001102 | I32: =I26/I35 -> 0.3081474177
A33: Particulates (g/MJ) | B33: =B27/B35 -> 0.10865153 | C33: 0.01449292099 | D33: 0.03707535473 | E33: 0.03317268581 | F33: 0.003870967742 | G33: 0.003870967742 | H33: =H27/H35 -> 0.2486912798 | I33: =I27/I35 -> 0.03317268581
A34: SO2 emission (g/MJ) | B34: =B28/B35 -> 0.0362962963 | C34: 0.0009836065574 | D34: 0.04918032787 | E34: 0.04918032787 | F34: 0 | G34: 0 | H34: =H28/H35 -> 1.814814815 | I34: =I28/I35 -> 0.04918032787
A35: Calorific value (MJ/kg fuel) | B35: =IF(B6=4,B37*B59/100+B36*B58/100,IF(B6=3,B37,B36)) -> 40.5 | C35: =IF(C6=4,C37*B59/100+B58/100*C36,IF(C6=3,C37,C36)) -> 42.7 | D35: =IF(D6=4,D37*B59/100+D36*B58/100,IF(D6=3,D37,D36)) -> 42.7 | E35: =IF(E6=4,E37*B59/100+B58/100*E36,IF(E6=3,E37,E36)) -> 42.7 | F35: =IF(F6=4,F37*B59/100+F36*B58/100,IF(F6=3,F37,F36)) -> 50 | G35: =IF(G6=4,G37*B59/100+B58/100*G36,IF(G6=3,G37,G36)) -> 50 | H35: =IF(H6=4,H37*D59/100+H36*D58/100,IF(H6=3,H37,H36)) -> 40.5 | I35: =IF(I6=4,I37*D59/100+D58/100*I36,IF(I6=3,I37,I36)) -> 42.7
A36: Calorific value (MJ/kg oil) | B36: =IF(B6=1,40.5,42.7) -> 40.5 | C36: 42.7 | D36: 42.7 | E36: 42.7 | F36: 42.7 | G36: 42.7 | H36: =IF(H6=1,40.5,42.7) -> 40.5 | I36: =IF(I6=1,40.5,42.7) -> 42.7
A37: Calorific value (MJ/kg LNG) | B37: 50 | C37: 50 | D37: 50 | E37: 50 | F37: 50 | G37: 50 | H37: 50 | I37: 50
A38: SFOC change due to engine type (pct.) derated versus normal engine | B38: =IF(B4=1,-B5*4,0) -> 0 | C38: 0 | D38: =IF(D4=1,-D5*4,0) -> 0 | E38: 0 | F38: =IF(F4=1,-F5*4,0) -> 0 | G38: 0 | H38: =IF(H4=1,-H5*4,0) -> 0 | I38: 0
A39: Extra energy demand due to scrubber (pct.) | B39: =IF(B13=1,3,0) -> 3 | C39: =B39 -> 3 | D39: =IF(D13=1,3,0) -> 0 | E39: =D39 -> 0 | F39: =IF(F13=1,3,0) -> 0 | G39: =F39 -> 0 | H39: =IF(H13=1,3,0) -> 0 | I39: =H39 -> 0
A40: Extra energy demand due to NOx reducing EGR technology (pct.) | B40: =IF(OR(B9=1,B10=2,B10=3),0,IF(B10=1,(IF(B9=2,IF(B8=0,2,0.5),IF(B9=3,IF(B8=0,3,1.3)))))) -> 0 | C40: =B40 -> 0 | D40: =IF(OR(D9=1,D10=2,D10=3),0,IF(D10=1,(IF(D9=2,IF(D8=0,2,0.5),IF(D9=3,IF(D8=0,3,1.3)))))) -> 0 | E40: =D40 -> 0 | F40: =IF(OR(F9=1,F10=2,F10=3),0,IF(F10=1,(IF(F9=2,IF(F8=0,2,0.5),IF(F9=3,IF(F8=0,3,1.3)))))) -> 0 | G40: =F40 -> 0 | H40: =IF(OR(H9=1,H10=2,H10=3),0,IF(H10=1,(IF(H9=2,IF(H8=0,2,0.5),IF(H9=3,IF(H8=0,3,1.3)))))) -> 0 | I40: =H40 -> 0
A41: Total change of SFOC (pct.) | B41: =SUM(B38:B40) -> 3 | C41: 3 | D41: 0 | E41: 0 | F41: 0 | G41: 0 | H41: =SUM(H38:H40) -> 0 | I41: =SUM(I38:I40) -> 0
A42: NOx reduction compared to Tier 1 (pct.) | B42: =IF(B9=1,0,IF(B9=2,20,IF(B9=3,80))) -> 80 | C42: 80 | D42: 80 | E42: 80 | F42: 80 | G42: 80 | H42: =IF(H9=1,0,IF(H9=2,20,IF(H9=3,80))) -> 80 | I42: =IF(I9=1,0,IF(I9=2,20,IF(I9=3,80))) -> 80
A43: Particulate reduction (pct.) | B43: =IF(AND(B6<3,B13=1),55,0) -> 55 | C43: =IF(AND(B6<3,C13=1),55,0) -> 55 | D43: =IF(AND(D6<3,D13=1),55,0) -> 0 | E43: =IF(AND(D6<3,E13=1),55,0) -> 0 | F43: =IF(AND(F6<3,F13=1),55,0) -> 0 | G43: =IF(AND(F6<3,G13=1),55,0) -> 0 | H43: =IF(AND(H6<3,H13=1),55,0) -> 0 | I43: =IF(AND(H6<3,I13=1),55,0) -> 0
A44: SO2 reduction (pct.) | B44: =IF(AND(B6<3,B13=1),98,IF(AND(B6=3,B4=1),92,IF(AND(B6=3,B4=2),100,0))) -> 98 | C44: 98 | D44: 0 | E44: 0 | F44: 92 | G44: 100 | H44: =IF(AND(H6<3,H13=1),98,IF(AND(H6=3,H4=1),92,IF(AND(H6=3,H4=2),100,0))) -> 0 | I44: =IF(AND(I6<3,I13=1),98,IF(AND(I6=3,I4=1),92,IF(AND(I6=3,I4=2),100,0))) -> 0
A45: Engine Efficiency | B45: =1/B15/B35*3.6 -> 0.4814913392 | C45: 0.4308080403 | D45: 0.4959360793 | E45: 0.4437322815 | F45: 0.464516129 | G45: 0.464516129 | H45: =1/H15/H35*3.6 -> 0.4959360793 | I45: 0.4437322815
A47: Inside ECA zone
A48: Necessary main engine power at actual deadweight | B48: =IF('Primary Calculations'!A1=1,CPAS1!K36,IF('Primary Calculations'!A1=2,BPAS1!K36,IF('Primary Calculations'!A1=3,TPAS1!K36,ERROR))) -> 4732.723356 | C48: =IF('Primary Calculations'!A1=1,liner!C48,IF('Primary Calculations'!A1=2,Bulk!C44,IF('Primary Calculations'!A1=3,Tanker!C44,ERROR))) -> 662.4566186 | D48: =IF('Primary Calculations'!A1=1,CPAS1!K36,IF('Primary Calculations'!A1=2,BPAS1!K36,IF('Primary Calculations'!A1=3,TPAS1!K36,ERROR))) -> 4732.723356 | E48: =IF('Primary Calculations'!A1=1,liner!C48,IF('Primary Calculations'!A1=2,Bulk!C44,IF('Primary Calculations'!A1=3,Tanker!C44,ERROR))) -> 662.4566186 | F48: =IF('Primary Calculations'!A1=1,CPAS1!K36,IF('Primary Calculations'!A1=2,BPAS1!K36,IF('Primary Calculations'!A1=3,TPAS1!K36,ERROR))) -> 4732.723356 | G48: =IF('Primary Calculations'!A1=1,liner!C48,IF('Primary Calculations'!A1=2,Bulk!C44,IF('Primary Calculations'!A1=3,Tanker!C44,ERROR))) -> 662.4566186 | H48: =IF('Primary Calculations'!A1=1,CPAS1!K36,IF('Primary Calculations'!A1=2,BPAS1!K36,IF('Primary Calculations'!A1=3,TPAS1!K36,ERROR))) -> 4732.723356 | I48: =IF('Primary Calculations'!A1=1,liner!C48,IF('Primary Calculations'!A1=2,Bulk!C44,IF('Primary Calculations'!A1=3,Tanker!C44,ERROR))) -> 662.4566186
A49: Engine Rating in Actual Condition | B49: =IF('Primary Calculations'!A1=1,CPAS1!K36/liner!C47*100,IF('Primary Calculations'!A1=2,BPAS1!K36/Bulk!C43*100,IF('Primary Calculations'!A1=3,TPAS1!K36/Tanker!C43*100,ERROR))) -> 28.6861887 | C49: - | D49: =IF('Primary Calculations'!A1=1,CPAS1!K36/liner!C47*100,IF('Primary Calculations'!A1=2,BPAS1!K36/Bulk!C43*100,IF('Primary Calculations'!A1=3,TPAS1!K36/Tanker!C43*100,ERROR))) -> 28.6861887 | E49: - | F49: =IF('Primary Calculations'!A1=1,CPAS1!K36/liner!C47*100,IF('Primary Calculations'!A1=2,BPAS1!K36/Bulk!C43*100,IF('Primary Calculations'!A1=3,TPAS1!K36/Tanker!C43*100,ERROR))) -> 28.6861887 | G49: - | H49: =IF('Primary Calculations'!A1=1,CPAS1!K36/liner!C47*100,IF('Primary Calculations'!A1=2,BPAS1!K36/Bulk!C43*100,IF('Primary Calculations'!A1=3,TPAS1!K36/Tanker!C43*100,ERROR))) -> 28.6861887 | I49: -
A50: SFOC at CSR | B50: =B15*10*IF('Primary Calculations'!$A$1=1,IF(liner!$C$59=1,100+0.0028*B49^2-0.41*B49+15,100+0.0000000020194*B49^6-0.0000007555*B49^5+0.00011181*B49^4-0.00832*B49^3+0.33*B49^2-6.851*B49+62.9),IF('Primary Calculations'!$A$1=2,IF(Bulk!$C$59=1,100+0.0028*B49^2-0.41*B49+15,100+0.0000000020194*B49^6-0.0000007555*B49^5+0.00011181*B49^4-0.00832*B49^3+0.33*B49^2-6.851*B49+62.9),IF('Primary Calculations'!$A$1=3,IF(Tanker!$C$59=1,100+0.0028*B49^2-0.41*B49+15,100+0.0000000020194*B49^6-0.0000007555*B49^5+0.00011181*B49^4-0.00832*B49^3+0.33*B49^2-6.851*B49+62.9),ERROR))) -> 194.8442116 | C50: - | D50: =D15*10*IF('Primary Calculations'!$A$1=1,IF(liner!$C$59=1,100+0.0028*D49^2-0.41*D49+15,100+0.0000000020194*D49^6-0.0000007555*D49^5+0.00011181*D49^4-0.00832*D49^3+0.33*D49^2-6.851*D49+62.9),IF('Primary Calculations'!$A$1=2,IF(Bulk!$C$59=1,100+0.0028*D49^2-0.41*D49+15,100+0.0000000020194*D49^6-0.0000007555*D49^5+0.00011181*D49^4-0.00832*D49^3+0.33*D49^2-6.851*D49+62.9),IF('Primary Calculations'!$A$1=3,IF(Tanker!$C$59=1,100+0.0028*D49^2-0.41*D49+15,100+0.0000000020194*D49^6-0.0000007555*D49^5+0.00011181*D49^4-0.00832*D49^3+0.33*D49^2-6.851*D49+62.9),ERROR))) -> 179.4227182 | E50: - | F50: =F15*10*IF('Primary Calculations'!$A$1=1,IF(liner!$C$59=1,100+0.0028*F49^2-0.41*F49+15,100+0.0000000020194*F49^6-0.0000007555*F49^5+0.00011181*F49^4-0.00832*F49^3+0.33*F49^2-6.851*F49+62.9),IF('Primary Calculations'!$A$1=2,IF(Bulk!$C$59=1,100+0.0028*F49^2-0.41*F49+15,100+0.0000000020194*F49^6-0.0000007555*F49^5+0.00011181*F49^4-0.00832*F49^3+0.33*F49^2-6.851*F49+62.9),IF('Primary Calculations'!$A$1=3,IF(Tanker!$C$59=1,100+0.0028*F49^2-0.41*F49+15,100+0.0000000020194*F49^6-0.0000007555*F49^5+0.00011181*F49^4-0.00832*F49^3+0.33*F49^2-6.851*F49+62.9),ERROR))) -> 163.5913019 | G50: - | H50: =H15*10*IF('Primary Calculations'!$A$1=1,IF(liner!$C$59=1,100+0.0028*H49^2-0.41*H49+15,100+0.0000000020194*H49^6-0.0000007555*H49^5+0.00011181*H49^4-0.00832*H49^3+0.33*H49^2-6.851*H49+62.9),IF('Primary Calculations'!$A$1=2,IF(Bulk!$C$59=1,100+0.0028*H49^2-0.41*H49+15,100+0.0000000020194*H49^6-0.0000007555*H49^5+0.00011181*H49^4-0.00832*H49^3+0.33*H49^2-6.851*H49+62.9),IF('Primary Calculations'!$A$1=3,IF(Tanker!$C$59=1,100+0.0028*H49^2-0.41*H49+15,100+0.0000000020194*H49^6-0.0000007555*H49^5+0.00011181*H49^4-0.00832*H49^3+0.33*H49^2-6.851*H49+62.9),ERROR))) -> 189.1691375 | I50: -
A51: Fuel consumption | B51: =B48*B50/1000000 -> 0.922143751 | C51: =C15*C48/1000 -> 0.1296427603 | D51: =D48*D50/1000000 -> 0.8491580891 | E51: =E15*E48/1000 -> 0.1258667575 | F51: =F48*F50/1000000 -> 0.7742323754 | G51: =G15*G48/1000 -> 0.1026807759 | H51: =H48*H50/1000000 -> 0.8952851952 | I51: =I15*I48/1000 -> 0.1258667575
A52: Outside ECA Zone
A53: Necessary main engine power at actual deadweight | B53: =IF('Primary Calculations'!A1=1,CPAS1!M36,IF('Primary Calculations'!A1=2,BPAS1!L36,IF('Primary Calculations'!A1=3,TPAS1!L36,ERROR))) -> 4732.723356 | C53: =IF('Primary Calculations'!A1=1,liner!C48,IF('Primary Calculations'!A1=2,Bulk!C44,IF('Primary Calculations'!A1=3,Tanker!C44,ERROR))) -> 662.4566186 | D53: =IF('Primary Calculations'!A1=1,CPAS1!M36,IF('Primary Calculations'!A1=2,BPAS1!L36,IF('Primary Calculations'!A1=3,TPAS1!L36,ERROR))) -> 4732.723356 | E53: =IF('Primary Calculations'!A1=1,liner!C48,IF('Primary Calculations'!A1=2,Bulk!C44,IF('Primary Calculations'!A1=3,Tanker!C44,ERROR))) -> 662.4566186 | F53: =IF('Primary Calculations'!A1=1,CPAS1!M36,IF('Primary Calculations'!A1=2,BPAS1!L36,IF('Primary Calculations'!A1=3,TPAS1!L36,ERROR))) -> 4732.723356 | G53: =IF('Primary Calculations'!A1=1,liner!C48,IF('Primary Calculations'!A1=2,Bulk!C44,IF('Primary Calculations'!A1=3,Tanker!C44,ERROR))) -> 662.4566186 | H53: =IF('Primary Calculations'!A1=1,CPAS1!M36,IF('Primary Calculations'!A1=2,BPAS1!L36,IF('Primary Calculations'!A1=3,TPAS1!L36,ERROR))) -> 4732.723356 | I53: =IF('Primary Calculations'!A1=1,liner!C48,IF('Primary Calculations'!A1=2,Bulk!C44,IF('Primary Calculations'!A1=3,Tanker!C44,ERROR))) -> 662.4566186
A54: Engine Rating in Actual Condition | B54: =IF('Primary Calculations'!A1=1,CPAS1!M36/liner!C47*100,IF('Primary Calculations'!A1=2,BPAS1!L36/Bulk!C43*100,IF('Primary Calculations'!A1=3,TPAS1!L36/Tanker!C43*100,ERROR))) -> 28.6861887 | C54: - | D54: =IF('Primary Calculations'!A1=1,CPAS1!M36/liner!C47*100,IF('Primary Calculations'!A1=2,BPAS1!L36/Bulk!C43*100,IF('Primary Calculations'!A1=3,TPAS1!L36/Tanker!C43*100,ERROR))) -> 28.6861887 | E54: - | F54: =IF('Primary Calculations'!A1=1,CPAS1!M36/liner!C47*100,IF('Primary Calculations'!A1=2,BPAS1!L36/Bulk!C43*100,IF('Primary Calculations'!A1=3,TPAS1!L36/Tanker!C43*100,ERROR))) -> 28.6861887 | G54: - | H54: =IF('Primary Calculations'!A1=1,CPAS1!M36/liner!C47*100,IF('Primary Calculations'!A1=2,BPAS1!L36/Bulk!C43*100,IF('Primary Calculations'!A1=3,TPAS1!L36/Tanker!C43*100,ERROR))) -> 28.6861887 | I54: -
A55: SFOC at CSR | B55: =B15*10*IF('Primary Calculations'!$A$1=1,IF(liner!$C$59=1,100+0.0028*B54^2-0.41*B54+15,100+0.0000000020194*B54^6-0.0000007555*B54^5+0.00011181*B54^4-0.00832*B54^3+0.33*B54^2-6.851*B54+62.9),IF('Primary Calculations'!$A$1=2,IF(Bulk!$C$59=1,100+0.0028*B54^2-0.41*B54+15,100+0.0000000020194*B54^6-0.0000007555*B54^5+0.00011181*B54^4-0.00832*B54^3+0.33*B54^2-6.851*B54+62.9),IF('Primary Calculations'!$A$1=3,IF(Tanker!$C$59=1,100+0.0028*B54^2-0.41*B54+15,100+0.0000000020194*B54^6-0.0000007555*B54^5+0.00011181*B54^4-0.00832*B54^3+0.33*B54^2-6.851*B54+62.9),ERROR))) -> 194.8442116 | C55: - | D55: =D15*10*IF('Primary Calculations'!$A$1=1,IF(liner!$C$59=1,100+0.0028*D54^2-0.41*D54+15,100+0.0000000020194*D54^6-0.0000007555*D54^5+0.00011181*D54^4-0.00832*D54^3+0.33*D54^2-6.851*D54+62.9),IF('Primary Calculations'!$A$1=2,IF(Bulk!$C$59=1,100+0.0028*D54^2-0.41*D54+15,100+0.0000000020194*D54^6-0.0000007555*D54^5+0.00011181*D54^4-0.00832*D54^3+0.33*D54^2-6.851*D54+62.9),IF('Primary Calculations'!$A$1=3,IF(Tanker!$C$59=1,100+0.0028*D54^2-0.41*D54+15,100+0.0000000020194*D54^6-0.0000007555*D54^5+0.00011181*D54^4-0.00832*D54^3+0.33*D54^2-6.851*D54+62.9),ERROR))) -> 179.4227182 | E55: - | F55: =F15*10*IF('Primary Calculations'!$A$1=1,IF(liner!$C$59=1,100+0.0028*F54^2-0.41*F54+15,100+0.0000000020194*F54^6-0.0000007555*F54^5+0.00011181*F54^4-0.00832*F54^3+0.33*F54^2-6.851*F54+62.9),IF('Primary Calculations'!$A$1=2,IF(Bulk!$C$59=1,100+0.0028*F54^2-0.41*F54+15,100+0.0000000020194*F54^6-0.0000007555*F54^5+0.00011181*F54^4-0.00832*F54^3+0.33*F54^2-6.851*F54+62.9),IF('Primary Calculations'!$A$1=3,IF(Tanker!$C$59=1,100+0.0028*F54^2-0.41*F54+15,100+0.0000000020194*F54^6-0.0000007555*F54^5+0.00011181*F54^4-0.00832*F54^3+0.33*F54^2-6.851*F54+62.9),ERROR))) -> 163.5913019 | G55: - | H55: =H15*10*IF('Primary Calculations'!$A$1=1,IF(liner!$C$59=1,100+0.0028*H54^2-0.41*H54+15,100+0.0000000020194*H54^6-0.0000007555*H54^5+0.00011181*H54^4-0.00832*H54^3+0.33*H54^2-6.851*H54+62.9),IF('Primary Calculations'!$A$1=2,IF(Bulk!$C$59=1,100+0.0028*H54^2-0.41*H54+15,100+0.0000000020194*H54^6-0.0000007555*H54^5+0.00011181*H54^4-0.00832*H54^3+0.33*H54^2-6.851*H54+62.9),IF('Primary Calculations'!$A$1=3,IF(Tanker!$C$59=1,100+0.0028*H54^2-0.41*H54+15,100+0.0000000020194*H54^6-0.0000007555*H54^5+0.00011181*H54^4-0.00832*H54^3+0.33*H54^2-6.851*H54+62.9),ERROR))) -> 189.1691375 | I55: -
A56: Fuel consumption | B56: =B53*B55/1000000 -> 0.922143751 | C56: =C15*C53/1000 -> 0.1296427603 | D56: =D53*D55/1000000 -> 0.8491580891 | E56: =E15*E53/1000 -> 0.1258667575 | F56: =F53*F55/1000000 -> 0.7742323754 | G56: =G15*G53/1000 -> 0.1026807759 | H56: =H53*H55/1000000 -> 0.8952851952 | I56: =I15*I53/1000 -> 0.1258667575
A58: Dual fuel
A59: Diesel oil (pilot fuel) in pct. | B59: 6
A60: Gas in pct. | B60: 94

Sheet Fuel (hidden)
A1: =Results!C17 -> 1
B2: Year | C2: 2015 | D2: 2016 | E2: 2017 | F2: 2018 | G2: 2019 | H2: 2020 | I2: 2021 | J2: 2022 | K2: 2023 | L2: 2024 | M2: 2025 | N2: 2026 | O2: 2027 | P2: 2028 | Q2: 2029 | R2: 2030 | S2: 2031 | T2: 2032 | U2: 2033 | V2: 2034 | W2: 2035 | X2: 2036 | Y2: 2037 | Z2: 2038 | AA2: 2039 | AB2: 2040 | AC2: 2041 | AD2: 2042 | AE2: 2043 | AF2: 2044 | AG2: 2045 | AH2: 2046 | AI2: 2047 | AJ2: 2048 | AK2: 2049 | AL2: 2050 | AM2: 2051 | AN2: 2052 | AO2: 2053 | AP2: 2054 | AQ2: 2055 | AR2: 2056 | AS2: 2057 | AT2: 2058 | AU2: 2059 | AV2: 2060
B3: Period | C3: 0 | D3: 1 | E3: 2 | F3: 3 | G3: 4 | H3: 5 | I3: 6 | J3: 7 | K3: 8 | L3: 9 | M3: 10 | N3: 11 | O3: 12 | P3: 13 | Q3: 14 | R3: 15 | S3: 16 | T3: 17 | U3: 18 | V3: 19 | W3: 20 | X3: 21 | Y3: 22 | Z3: 23 | AA3: 24 | AB3: 25 | AC3: 26 | AD3: 27 | AE3: 28 | AF3: 29 | AG3: 30 | AH3: 31 | AI3: 32 | AJ3: 33 | AK3: 34 | AL3: 35 | AM3: 36 | AN3: 37 | AO3: 38 | AP3: 39 | AQ3: 40 | AR3: 41 | AS3: 42 | AT3: 43 | AU3: 44 | AV3: 45
B4: Annual fuel related costs
B5: HFO | C5: ='Primary Calculations'!$D$12*'Primary Calculations'!$D$4*Fuel!C38 -> 2885233.14 | D5: ='Primary Calculations'!$D$12*'Primary Calculations'!$D$4*Fuel!D38 -> 3524270.867 | E5: ='Primary Calculations'!$D$12*'Primary Calculations'!$D$4*Fuel!E38 -> 3253118.749 | F5: ='Primary Calculations'!$D$12*'Primary Calculations'!$D$4*Fuel!F38 -> 3270374.995 | G5: ='Primary Calculations'!$D$12*'Primary Calculations'!$D$4*Fuel!G38 -> 3330672.555 | H5: ='Primary Calculations'!$D$12*'Primary Calculations'!$D$4*Fuel!H38 -> 3408692.597 | I5: ='Primary Calculations'!$D$12*'Primary Calculations'!$D$4*Fuel!I38 -> 3511577.813 | J5: ='Primary Calculations'!$D$12*'Primary Calculations'!$D$4*Fuel!J38 -> 3603732.901 | K5: ='Primary Calculations'!$D$12*'Primary Calculations'!$D$4*Fuel!K38 -> 3685153.474 | L5: ='Primary Calculations'!$D$12*'Primary Calculations'!$D$4*Fuel!L38 -> 3797345.837 | M5: ='Primary Calculations'!$D$12*'Primary Calculations'!$D$4*Fuel!M38 -> 3902499.05 | N5: ='Primary Calculations'!$D$12*'Primary Calculations'!$D$4*Fuel!N38 -> 3995543.903 | O5: ='Primary Calculations'!$D$12*'Primary Calculations'!$D$4*Fuel!O38 -> 4119858.665 | P5: ='Primary Calculations'!$D$12*'Primary Calculations'!$D$4*Fuel!P38 -> 4262325.581 | Q5: ='Primary Calculations'!$D$12*'Primary Calculations'!$D$4*Fuel!Q38 -> 4371124.142 | R5: ='Primary Calculations'!$D$12*'Primary Calculations'!$D$4*Fuel!R38 -> 4493267.431 | S5: ='Primary Calculations'!$D$12*'Primary Calculations'!$D$4*Fuel!S38 -> 4634475.747 | T5: ='Primary Calculations'!$D$12*'Primary Calculations'!$D$4*Fuel!T38 -> 4785897.648 | U5: ='Primary Calculations'!$D$12*'Primary Calculations'!$D$4*Fuel!U38 -> 4905817.693 | V5: ='Primary Calculations'!$D$12*'Primary Calculations'!$D$4*Fuel!V38 -> 5040259.754 | W5: ='Primary Calculations'!$D$12*'Primary Calculations'!$D$4*Fuel!W38 -> 5159534.266 | X5: ='Primary Calculations'!$D$12*'Primary Calculations'!$D$4*Fuel!X38 -> 5297998.7 | Y5: ='Primary Calculations'!$D$12*'Primary Calculations'!$D$4*Fuel!Y38 -> 5442674.82 | Z5: ='Primary Calculations'!$D$12*'Primary Calculations'!$D$4*Fuel!Z38 -> 5598987.799 | AA5: ='Primary Calculations'!$D$12*'Primary Calculations'!$D$4*Fuel!AA38 -> 5726578.782 | AB5: ='Primary Calculations'!$D$12*'Primary Calculations'!$D$4*Fuel!AB38 -> 5927721.674 | AC5: ='Primary Calculations'!$D$12*'Primary Calculations'!$D$4*Fuel!AC38 -> 0 | AD5: ='Primary Calculations'!$D$12*'Primary Calculations'!$D$4*Fuel!AD38 -> 0 | AE5: ='Primary Calculations'!$D$12*'Primary Calculations'!$D$4*Fuel!AE38 -> 0 | AF5: ='Primary Calculations'!$D$12*'Primary Calculations'!$D$4*Fuel!AF38 -> 0 | AG5: ='Primary Calculations'!$D$12*'Primary Calculations'!$D$4*Fuel!AG38 -> 0 | AH5: ='Primary Calculations'!$D$12*'Primary Calculations'!$D$4*Fuel!AH38 -> 0 | AI5: ='Primary Calculations'!$D$12*'Primary Calculations'!$D$4*Fuel!AI38 -> 0 | AJ5: ='Primary Calculations'!$D$12*'Primary Calculations'!$D$4*Fuel!AJ38 -> 0 | AK5: ='Primary Calculations'!$D$12*'Primary Calculations'!$D$4*Fuel!AK38 -> 0 | AL5: ='Primary Calculations'!$D$12*'Primary Calculations'!$D$4*Fuel!AL38 -> 0 | AM5: ='Primary Calculations'!$D$12*'Primary Calculations'!$D$4*Fuel!AM38 -> 0 | AN5: ='Primary Calculations'!$D$12*'Primary Calculations'!$D$4*Fuel!AN38 -> 0 | AO5: ='Primary Calculations'!$D$12*'Primary Calculations'!$D$4*Fuel!AO38 -> 0 | AP5: ='Primary Calculations'!$D$12*'Primary Calculations'!$D$4*Fuel!AP38 -> 0 | AQ5: ='Primary Calculations'!$D$12*'Primary Calculations'!$D$4*Fuel!AQ38 -> 0 | AR5: ='Primary Calculations'!$D$12*'Primary Calculations'!$D$4*Fuel!AR38 -> 0 | AS5: ='Primary Calculations'!$D$12*'Primary Calculations'!$D$4*Fuel!AS38 -> 0 | AT5: ='Primary Calculations'!$D$12*'Primary Calculations'!$D$4*Fuel!AT38 -> 0 | AU5: ='Primary Calculations'!$D$12*'Primary Calculations'!$D$4*Fuel!AU38 -> 0 | AV5: ='Primary Calculations'!$D$12*'Primary Calculations'!$D$4*Fuel!AV38 -> 0
B6: HFO discounted cost | C6: =C5/(1+'Primary Calculations'!$D$14)^C3 -> 2885233.14 | D6: =D5/(1+'Primary Calculations'!$D$14)^D3 -> 3293711.09 | E6: =E5/(1+'Primary Calculations'!$D$14)^E3 -> 2841399.903 | F6: =F5/(1+'Primary Calculations'!$D$14)^F3 -> 2669600.165 | G6: =G5/(1+'Primary Calculations'!$D$14)^G3 -> 2540954.145 | H6: =H5/(1+'Primary Calculations'!$D$14)^H3 -> 2430350.712 | I6: =I5/(1+'Primary Calculations'!$D$14)^I3 -> 2339912.569 | J6: =J5/(1+'Primary Calculations'!$D$14)^J3 -> 2244223.734 | K6: =K5/(1+'Primary Calculations'!$D$14)^K3 -> 2144792.873 | L6: =L5/(1+'Primary Calculations'!$D$14)^L3 -> 2065504.533 | M6: =M5/(1+'Primary Calculations'!$D$14)^M3 -> 1983832.629 | N6: =N5/(1+'Primary Calculations'!$D$14)^N3 -> 1898254.126 | O6: =O5/(1+'Primary Calculations'!$D$14)^O3 -> 1829266.518 | P6: =P5/(1+'Primary Calculations'!$D$14)^P3 -> 1768713.582 | Q6: =Q5/(1+'Primary Calculations'!$D$14)^Q3 -> 1695197.305 | R6: =R5/(1+'Primary Calculations'!$D$14)^R3 -> 1628566.896 | S6: =S5/(1+'Primary Calculations'!$D$14)^S3 -> 1569857.278 | T6: =T5/(1+'Primary Calculations'!$D$14)^T3 -> 1515092.631 | U6: =U5/(1+'Primary Calculations'!$D$14)^U3 -> 1451454.435 | V6: =V5/(1+'Primary Calculations'!$D$14)^V3 -> 1393673.823 | W6: =W5/(1+'Primary Calculations'!$D$14)^W3 -> 1333321.7 | X6: =X5/(1+'Primary Calculations'!$D$14)^X3 -> 1279536.019 | Y6: =Y5/(1+'Primary Calculations'!$D$14)^Y3 -> 1228483.361 | Z6: =Z5/(1+'Primary Calculations'!$D$14)^Z3 -> 1181089.026 | AA6: =AA5/(1+'Primary Calculations'!$D$14)^AA3 -> 1128975.651 | AB6: =AB5/(1+'Primary Calculations'!$D$14)^AB3 -> 1092177.843 | AC6: =AC5/(1+'Primary Calculations'!$D$14)^AC3 -> 0 | AD6: =AD5/(1+'Primary Calculations'!$D$14)^AD3 -> 0 | AE6: =AE5/(1+'Primary Calculations'!$D$14)^AE3 -> 0 | AF6: =AF5/(1+'Primary Calculations'!$D$14)^AF3 -> 0 | AG6: =AG5/(1+'Primary Calculations'!$D$14)^AG3 -> 0 | AH6: =AH5/(1+'Primary Calculations'!$D$14)^AH3 -> 0 | AI6: =AI5/(1+'Primary Calculations'!$D$14)^AI3 -> 0 | AJ6: =AJ5/(1+'Primary Calculations'!$D$14)^AJ3 -> 0 | AK6: =AK5/(1+'Primary Calculations'!$D$14)^AK3 -> 0 | AL6: =AL5/(1+'Primary Calculations'!$D$14)^AL3 -> 0 | AM6: =AM5/(1+'Primary Calculations'!$D$14)^AM3 -> 0 | AN6: =AN5/(1+'Primary Calculations'!$D$14)^AN3 -> 0 | AO6: =AO5/(1+'Primary Calculations'!$D$14)^AO3 -> 0 | AP6: =AP5/(1+'Primary Calculations'!$D$14)^AP3 -> 0 | AQ6: =AQ5/(1+'Primary Calculations'!$D$14)^AQ3 -> 0 | AR6: =AR5/(1+'Primary Calculations'!$D$14)^AR3 -> 0 | AS6: =AS5/(1+'Primary Calculations'!$D$14)^AS3 -> 0 | AT6: =AT5/(1+'Primary Calculations'!$D$14)^AT3 -> 0 | AU6: =AU5/(1+'Primary Calculations'!$D$14)^AU3 -> 0 | AV6: =AV5/(1+'Primary Calculations'!$D$14)^AV3 -> 0
B7: HFO (1 % 2020) | C7: ='Primary Calculations'!$D$12*'Primary Calculations'!$D$4*Fuel!C40 -> 2885233.14 | D7: ='Primary Calculations'!$D$12*'Primary Calculations'!$D$4*Fuel!D40 -> 3524270.867 | E7: ='Primary Calculations'!$D$12*'Primary Calculations'!$D$4*Fuel!E40 -> 3253118.749 | F7: ='Primary Calculations'!$D$12*'Primary Calculations'!$D$4*Fuel!F40 -> 3270374.995 | G7: ='Primary Calculations'!$D$12*'Primary Calculations'!$D$4*Fuel!G40 -> 3330672.555 | H7: ='Primary Calculations'!$D$12*'Primary Calculations'!$D$4*Fuel!H40 -> 4103075.924 | I7: ='Primary Calculations'!$D$12*'Primary Calculations'!$D$4*Fuel!I40 -> 4205961.141 | J7: ='Primary Calculations'!$D$12*'Primary Calculations'!$D$4*Fuel!J40 -> 4298116.229 | K7: ='Primary Calculations'!$D$12*'Primary Calculations'!$D$4*Fuel!K40 -> 4379536.802 | L7: ='Primary Calculations'!$D$12*'Primary Calculations'!$D$4*Fuel!L40 -> 4491729.165 | M7: ='Primary Calculations'!$D$12*'Primary Calculations'!$D$4*Fuel!M40 -> 4596882.378 | N7: ='Primary Calculations'!$D$12*'Primary Calculations'!$D$4*Fuel!N40 -> 4689927.231 | O7: ='Primary Calculations'!$D$12*'Primary Calculations'!$D$4*Fuel!O40 -> 4814241.993 | P7: ='Primary Calculations'!$D$12*'Primary Calculations'!$D$4*Fuel!P40 -> 4956708.909 | Q7: ='Primary Calculations'!$D$12*'Primary Calculations'!$D$4*Fuel!Q40 -> 5065507.47 | R7: ='Primary Calculations'!$D$12*'Primary Calculations'!$D$4*Fuel!R40 -> 5187650.759 | S7: ='Primary Calculations'!$D$12*'Primary Calculations'!$D$4*Fuel!S40 -> 5328859.075 | T7: ='Primary Calculations'!$D$12*'Primary Calculations'!$D$4*Fuel!T40 -> 5480280.976 | U7: ='Primary Calculations'!$D$12*'Primary Calculations'!$D$4*Fuel!U40 -> 5600201.021 | V7: ='Primary Calculations'!$D$12*'Primary Calculations'!$D$4*Fuel!V40 -> 5734643.082 | W7: ='Primary Calculations'!$D$12*'Primary Calculations'!$D$4*Fuel!W40 -> 5853917.594 | X7: ='Primary Calculations'!$D$12*'Primary Calculations'!$D$4*Fuel!X40 -> 5992382.027 | Y7: ='Primary Calculations'!$D$12*'Primary Calculations'!$D$4*Fuel!Y40 -> 6137058.148 | Z7: ='Primary Calculations'!$D$12*'Primary Calculations'!$D$4*Fuel!Z40 -> 6293371.127 | AA7: ='Primary Calculations'!$D$12*'Primary Calculations'!$D$4*Fuel!AA40 -> 6420962.11 | AB7: ='Primary Calculations'!$D$12*'Primary Calculations'!$D$4*Fuel!AB40 -> 6622105.002 | AC7: ='Primary Calculations'!$D$12*'Primary Calculations'!$D$4*Fuel!AC40 -> 694383.3278 | AD7: ='Primary Calculations'!$D$12*'Primary Calculations'!$D$4*Fuel!AD40 -> 694383.3278 | AE7: ='Primary Calculations'!$D$12*'Primary Calculations'!$D$4*Fuel!AE40 -> 694383.3278 | AF7: ='Primary Calculations'!$D$12*'Primary Calculations'!$D$4*Fuel!AF40 -> 694383.3278 | AG7: ='Primary Calculations'!$D$12*'Primary Calculations'!$D$4*Fuel!AG40 -> 694383.3278 | AH7: ='Primary Calculations'!$D$12*'Primary Calculations'!$D$4*Fuel!AH40 -> 694383.3278 | AI7: ='Primary Calculations'!$D$12*'Primary Calculations'!$D$4*Fuel!AI40 -> 694383.3278 | AJ7: ='Primary Calculations'!$D$12*'Primary Calculations'!$D$4*Fuel!AJ40 -> 694383.3278 | AK7: ='Primary Calculations'!$D$12*'Primary Calculations'!$D$4*Fuel!AK40 -> 694383.3278 | AL7: ='Primary Calculations'!$D$12*'Primary Calculations'!$D$4*Fuel!AL40 -> 694383.3278 | AM7: ='Primary Calculations'!$D$12*'Primary Calculations'!$D$4*Fuel!AM40 -> 694383.3278 | AN7: ='Primary Calculations'!$D$12*'Primary Calculations'!$D$4*Fuel!AN40 -> 694383.3278 | AO7: ='Primary Calculations'!$D$12*'Primary Calculations'!$D$4*Fuel!AO40 -> 694383.3278 | AP7: ='Primary Calculations'!$D$12*'Primary Calculations'!$D$4*Fuel!AP40 -> 694383.3278 | AQ7: ='Primary Calculations'!$D$12*'Primary Calculations'!$D$4*Fuel!AQ40 -> 694383.3278 | AR7: ='Primary Calculations'!$D$12*'Primary Calculations'!$D$4*Fuel!AR40 -> 694383.3278 | AS7: ='Primary Calculations'!$D$12*'Primary Calculations'!$D$4*Fuel!AS40 -> 694383.3278 | AT7: ='Primary Calculations'!$D$12*'Primary Calculations'!$D$4*Fuel!AT40 -> 694383.3278 | AU7: ='Primary Calculations'!$D$12*'Primary Calculations'!$D$4*Fuel!AU40 -> 694383.3278 | AV7: ='Primary Calculations'!$D$12*'Primary Calculations'!$D$4*Fuel!AV40 -> 694383.3278
B8: HFO (1 % 2020) discounted costs | C8: =C7/(1+'Primary Calculations'!$D$14)^C3 -> 2885233.14 | D8: =D7/(1+'Primary Calculations'!$D$14)^D3 -> 3293711.09 | E8: =E7/(1+'Primary Calculations'!$D$14)^E3 -> 2841399.903 | F8: =F7/(1+'Primary Calculations'!$D$14)^F3 -> 2669600.165 | G8: =G7/(1+'Primary Calculations'!$D$14)^G3 -> 2540954.145 | H8: =H7/(1+'Primary Calculations'!$D$14)^H3 -> 2925436.428 | I8: =I7/(1+'Primary Calculations'!$D$14)^I3 -> 2802609.5 | J8: =J7/(1+'Primary Calculations'!$D$14)^J3 -> 2676650.772 | K8: =K7/(1+'Primary Calculations'!$D$14)^K3 -> 2548930.292 | L8: =L7/(1+'Primary Calculations'!$D$14)^L3 -> 2443203.056 | M8: =M7/(1+'Primary Calculations'!$D$14)^M3 -> 2336821.903 | N8: =N7/(1+'Primary Calculations'!$D$14)^N3 -> 2228150.643 | O8: =O7/(1+'Primary Calculations'!$D$14)^O3 -> 2137581.02 | P8: =P7/(1+'Primary Calculations'!$D$14)^P3 -> 2056857.976 | Q8: =Q7/(1+'Primary Calculations'!$D$14)^Q3 -> 1964491.131 | R8: =R7/(1+'Primary Calculations'!$D$14)^R3 -> 1880243.369 | S8: =S7/(1+'Primary Calculations'!$D$14)^S3 -> 1805068.935 | T8: =T7/(1+'Primary Calculations'!$D$14)^T3 -> 1734916.609 | U8: =U7/(1+'Primary Calculations'!$D$14)^U3 -> 1656897.406 | V8: =V7/(1+'Primary Calculations'!$D$14)^V3 -> 1585676.599 | W8: =W7/(1+'Primary Calculations'!$D$14)^W3 -> 1512763.547 | X8: =X7/(1+'Primary Calculations'!$D$14)^X3 -> 1447238.68 | Y8: =Y7/(1+'Primary Calculations'!$D$14)^Y3 -> 1385214.819 | Z8: =Z7/(1+'Primary Calculations'!$D$14)^Z3 -> 1327567.025 | AA8: =AA7/(1+'Primary Calculations'!$D$14)^AA3 -> 1265870.977 | AB8: =AB7/(1+'Primary Calculations'!$D$14)^AB3 -> 1220117.4 | AC8: =AC7/(1+'Primary Calculations'!$D$14)^AC3 -> 119569.6795 | AD8: =AD7/(1+'Primary Calculations'!$D$14)^AD3 -> 111747.364 | AE8: =AE7/(1+'Primary Calculations'!$D$14)^AE3 -> 104436.7888 | AF8: =AF7/(1+'Primary Calculations'!$D$14)^AF3 -> 97604.4755 | AG8: =AG7/(1+'Primary Calculations'!$D$14)^AG3 -> 91219.13598 | AH8: =AH7/(1+'Primary Calculations'!$D$14)^AH3 -> 85251.52895 | AI8: =AI7/(1+'Primary Calculations'!$D$14)^AI3 -> 79674.32612 | AJ8: =AJ7/(1+'Primary Calculations'!$D$14)^AJ3 -> 74461.98703 | AK8: =AK7/(1+'Primary Calculations'!$D$14)^AK3 -> 69590.64209 | AL8: =AL7/(1+'Primary Calculations'!$D$14)^AL3 -> 65037.98326 | AM8: =AM7/(1+'Primary Calculations'!$D$14)^AM3 -> 60783.16192 | AN8: =AN7/(1+'Primary Calculations'!$D$14)^AN3 -> 56806.69339 | AO8: =AO7/(1+'Primary Calculations'!$D$14)^AO3 -> 53090.36765 | AP8: =AP7/(1+'Primary Calculations'!$D$14)^AP3 -> 49617.16603 | AQ8: =AQ7/(1+'Primary Calculations'!$D$14)^AQ3 -> 46371.1832 | AR8: =AR7/(1+'Primary Calculations'!$D$14)^AR3 -> 43337.5544 | AS8: =AS7/(1+'Primary Calculations'!$D$14)^AS3 -> 40502.38729 | AT8: =AT7/(1+'Primary Calculations'!$D$14)^AT3 -> 37852.6984 | AU8: =AU7/(1+'Primary Calculations'!$D$14)^AU3 -> 35376.35364 | AV8: =AV7/(1+'Primary Calculations'!$D$14)^AV3 -> 33062.01275
B9: HFO + Scrubber | C9: ='Primary Calculations'!$D$11*'Primary Calculations'!$D$12*'Primary Calculations'!$D$7*Fuel!C38+(1-'Primary Calculations'!$D$11)*'Primary Calculations'!$D$12*'Primary Calculations'!$E$7*Fuel!C38 -> 2971790.134 | D9: ='Primary Calculations'!$D$11*'Primary Calculations'!$D$12*'Primary Calculations'!$D$7*Fuel!D38+(1-'Primary Calculations'!$D$11)*'Primary Calculations'!$D$12*'Primary Calculations'!$E$7*Fuel!D38 -> 3629998.993 | E9: ='Primary Calculations'!$D$11*'Primary Calculations'!$D$12*'Primary Calculations'!$D$7*Fuel!E38+(1-'Primary Calculations'!$D$11)*'Primary Calculations'!$D$12*'Primary Calculations'!$E$7*Fuel!E38 -> 3350712.311 | F9: ='Primary Calculations'!$D$11*'Primary Calculations'!$D$12*'Primary Calculations'!$D$7*Fuel!F38+(1-'Primary Calculations'!$D$11)*'Primary Calculations'!$D$12*'Primary Calculations'!$E$7*Fuel!F38 -> 3368486.245 | G9: ='Primary Calculations'!$D$11*'Primary Calculations'!$D$12*'Primary Calculations'!$D$7*Fuel!G38+(1-'Primary Calculations'!$D$11)*'Primary Calculations'!$D$12*'Primary Calculations'!$E$7*Fuel!G38 -> 3430592.732 | H9: ='Primary Calculations'!$D$11*'Primary Calculations'!$D$12*'Primary Calculations'!$D$7*Fuel!H38+(1-'Primary Calculations'!$D$11)*'Primary Calculations'!$D$12*'Primary Calculations'!$E$7*Fuel!H38 -> 3510953.375 | I9: ='Primary Calculations'!$D$11*'Primary Calculations'!$D$12*'Primary Calculations'!$D$7*Fuel!I38+(1-'Primary Calculations'!$D$11)*'Primary Calculations'!$D$12*'Primary Calculations'!$E$7*Fuel!I38 -> 3616925.148 | J9: ='Primary Calculations'!$D$11*'Primary Calculations'!$D$12*'Primary Calculations'!$D$7*Fuel!J38+(1-'Primary Calculations'!$D$11)*'Primary Calculations'!$D$12*'Primary Calculations'!$E$7*Fuel!J38 -> 3711844.889 | K9: ='Primary Calculations'!$D$11*'Primary Calculations'!$D$12*'Primary Calculations'!$D$7*Fuel!K38+(1-'Primary Calculations'!$D$11)*'Primary Calculations'!$D$12*'Primary Calculations'!$E$7*Fuel!K38 -> 3795708.078 | L9: ='Primary Calculations'!$D$11*'Primary Calculations'!$D$12*'Primary Calculations'!$D$7*Fuel!L38+(1-'Primary Calculations'!$D$11)*'Primary Calculations'!$D$12*'Primary Calculations'!$E$7*Fuel!L38 -> 3911266.213 | M9: ='Primary Calculations'!$D$11*'Primary Calculations'!$D$12*'Primary Calculations'!$D$7*Fuel!M38+(1-'Primary Calculations'!$D$11)*'Primary Calculations'!$D$12*'Primary Calculations'!$E$7*Fuel!M38 -> 4019574.021 | N9: ='Primary Calculations'!$D$11*'Primary Calculations'!$D$12*'Primary Calculations'!$D$7*Fuel!N38+(1-'Primary Calculations'!$D$11)*'Primary Calculations'!$D$12*'Primary Calculations'!$E$7*Fuel!N38 -> 4115410.221 | O9: ='Primary Calculations'!$D$11*'Primary Calculations'!$D$12*'Primary Calculations'!$D$7*Fuel!O38+(1-'Primary Calculations'!$D$11)*'Primary Calculations'!$D$12*'Primary Calculations'!$E$7*Fuel!O38 -> 4243454.425 | P9: ='Primary Calculations'!$D$11*'Primary Calculations'!$D$12*'Primary Calculations'!$D$7*Fuel!P38+(1-'Primary Calculations'!$D$11)*'Primary Calculations'!$D$12*'Primary Calculations'!$E$7*Fuel!P38 -> 4390195.349 | Q9: ='Primary Calculations'!$D$11*'Primary Calculations'!$D$12*'Primary Calculations'!$D$7*Fuel!Q38+(1-'Primary Calculations'!$D$11)*'Primary Calculations'!$D$12*'Primary Calculations'!$E$7*Fuel!Q38 -> 4502257.866 | R9: ='Primary Calculations'!$D$11*'Primary Calculations'!$D$12*'Primary Calculations'!$D$7*Fuel!R38+(1-'Primary Calculations'!$D$11)*'Primary Calculations'!$D$12*'Primary Calculations'!$E$7*Fuel!R38 -> 4628065.454 | S9: ='Primary Calculations'!$D$11*'Primary Calculations'!$D$12*'Primary Calculations'!$D$7*Fuel!S38+(1-'Primary Calculations'!$D$11)*'Primary Calculations'!$D$12*'Primary Calculations'!$E$7*Fuel!S38 -> 4773510.02 | T9: ='Primary Calculations'!$D$11*'Primary Calculations'!$D$12*'Primary Calculations'!$D$7*Fuel!T38+(1-'Primary Calculations'!$D$11)*'Primary Calculations'!$D$12*'Primary Calculations'!$E$7*Fuel!T38 -> 4929474.577 | U9: ='Primary Calculations'!$D$11*'Primary Calculations'!$D$12*'Primary Calculations'!$D$7*Fuel!U38+(1-'Primary Calculations'!$D$11)*'Primary Calculations'!$D$12*'Primary Calculations'!$E$7*Fuel!U38 -> 5052992.224 | V9: ='Primary Calculations'!$D$11*'Primary Calculations'!$D$12*'Primary Calculations'!$D$7*Fuel!V38+(1-'Primary Calculations'!$D$11)*'Primary Calculations'!$D$12*'Primary Calculations'!$E$7*Fuel!V38 -> 5191467.547 | W9: ='Primary Calculations'!$D$11*'Primary Calculations'!$D$12*'Primary Calculations'!$D$7*Fuel!W38+(1-'Primary Calculations'!$D$11)*'Primary Calculations'!$D$12*'Primary Calculations'!$E$7*Fuel!W38 -> 5314320.294 | X9: ='Primary Calculations'!$D$11*'Primary Calculations'!$D$12*'Primary Calculations'!$D$7*Fuel!X38+(1-'Primary Calculations'!$D$11)*'Primary Calculations'!$D$12*'Primary Calculations'!$E$7*Fuel!X38 -> 5456938.661 | Y9: ='Primary Calculations'!$D$11*'Primary Calculations'!$D$12*'Primary Calculations'!$D$7*Fuel!Y38+(1-'Primary Calculations'!$D$11)*'Primary Calculations'!$D$12*'Primary Calculations'!$E$7*Fuel!Y38 -> 5605955.065 | Z9: ='Primary Calculations'!$D$11*'Primary Calculations'!$D$12*'Primary Calculations'!$D$7*Fuel!Z38+(1-'Primary Calculations'!$D$11)*'Primary Calculations'!$D$12*'Primary Calculations'!$E$7*Fuel!Z38 -> 5766957.433 | AA9: ='Primary Calculations'!$D$11*'Primary Calculations'!$D$12*'Primary Calculations'!$D$7*Fuel!AA38+(1-'Primary Calculations'!$D$11)*'Primary Calculations'!$D$12*'Primary Calculations'!$E$7*Fuel!AA38 -> 5898376.146 | AB9: ='Primary Calculations'!$D$11*'Primary Calculations'!$D$12*'Primary Calculations'!$D$7*Fuel!AB38+(1-'Primary Calculations'!$D$11)*'Primary Calculations'!$D$12*'Primary Calculations'!$E$7*Fuel!AB38 -> 6105553.324 | AC9: ='Primary Calculations'!$D$11*'Primary Calculations'!$D$12*'Primary Calculations'!$D$7*Fuel!AC38+(1-'Primary Calculations'!$D$11)*'Primary Calculations'!$D$12*'Primary Calculations'!$E$7*Fuel!AC38 -> 0 | AD9: ='Primary Calculations'!$D$11*'Primary Calculations'!$D$12*'Primary Calculations'!$D$7*Fuel!AD38+(1-'Primary Calculations'!$D$11)*'Primary Calculations'!$D$12*'Primary Calculations'!$E$7*Fuel!AD38 -> 0 | AE9: ='Primary Calculations'!$D$11*'Primary Calculations'!$D$12*'Primary Calculations'!$D$7*Fuel!AE38+(1-'Primary Calculations'!$D$11)*'Primary Calculations'!$D$12*'Primary Calculations'!$E$7*Fuel!AE38 -> 0 | AF9: ='Primary Calculations'!$D$11*'Primary Calculations'!$D$12*'Primary Calculations'!$D$7*Fuel!AF38+(1-'Primary Calculations'!$D$11)*'Primary Calculations'!$D$12*'Primary Calculations'!$E$7*Fuel!AF38 -> 0 | AG9: ='Primary Calculations'!$D$11*'Primary Calculations'!$D$12*'Primary Calculations'!$D$7*Fuel!AG38+(1-'Primary Calculations'!$D$11)*'Primary Calculations'!$D$12*'Primary Calculations'!$E$7*Fuel!AG38 -> 0 | AH9: ='Primary Calculations'!$D$11*'Primary Calculations'!$D$12*'Primary Calculations'!$D$7*Fuel!AH38+(1-'Primary Calculations'!$D$11)*'Primary Calculations'!$D$12*'Primary Calculations'!$E$7*Fuel!AH38 -> 0 | AI9: ='Primary Calculations'!$D$11*'Primary Calculations'!$D$12*'Primary Calculations'!$D$7*Fuel!AI38+(1-'Primary Calculations'!$D$11)*'Primary Calculations'!$D$12*'Primary Calculations'!$E$7*Fuel!AI38 -> 0 | AJ9: ='Primary Calculations'!$D$11*'Primary Calculations'!$D$12*'Primary Calculations'!$D$7*Fuel!AJ38+(1-'Primary Calculations'!$D$11)*'Primary Calculations'!$D$12*'Primary Calculations'!$E$7*Fuel!AJ38 -> 0 | AK9: ='Primary Calculations'!$D$11*'Primary Calculations'!$D$12*'Primary Calculations'!$D$7*Fuel!AK38+(1-'Primary Calculations'!$D$11)*'Primary Calculations'!$D$12*'Primary Calculations'!$E$7*Fuel!AK38 -> 0 | AL9: ='Primary Calculations'!$D$11*'Primary Calculations'!$D$12*'Primary Calculations'!$D$7*Fuel!AL38+(1-'Primary Calculations'!$D$11)*'Primary Calculations'!$D$12*'Primary Calculations'!$E$7*Fuel!AL38 -> 0 | AM9: ='Primary Calculations'!$D$11*'Primary Calculations'!$D$12*'Primary Calculations'!$D$7*Fuel!AM38+(1-'Primary Calculations'!$D$11)*'Primary Calculations'!$D$12*'Primary Calculations'!$E$7*Fuel!AM38 -> 0 | AN9: ='Primary Calculations'!$D$11*'Primary Calculations'!$D$12*'Primary Calculations'!$D$7*Fuel!AN38+(1-'Primary Calculations'!$D$11)*'Primary Calculations'!$D$12*'Primary Calculations'!$E$7*Fuel!AN38 -> 0 | AO9: ='Primary Calculations'!$D$11*'Primary Calculations'!$D$12*'Primary Calculations'!$D$7*Fuel!AO38+(1-'Primary Calculations'!$D$11)*'Primary Calculations'!$D$12*'Primary Calculations'!$E$7*Fuel!AO38 -> 0 | AP9: ='Primary Calculations'!$D$11*'Primary Calculations'!$D$12*'Primary Calculations'!$D$7*Fuel!AP38+(1-'Primary Calculations'!$D$11)*'Primary Calculations'!$D$12*'Primary Calculations'!$E$7*Fuel!AP38 -> 0 | AQ9: ='Primary Calculations'!$D$11*'Primary Calculations'!$D$12*'Primary Calculations'!$D$7*Fuel!AQ38+(1-'Primary Calculations'!$D$11)*'Primary Calculations'!$D$12*'Primary Calculations'!$E$7*Fuel!AQ38 -> 0 | AR9: ='Primary Calculations'!$D$11*'Primary Calculations'!$D$12*'Primary Calculations'!$D$7*Fuel!AR38+(1-'Primary Calculations'!$D$11)*'Primary Calculations'!$D$12*'Primary Calculations'!$E$7*Fuel!AR38 -> 0 | AS9: ='Primary Calculations'!$D$11*'Primary Calculations'!$D$12*'Primary Calculations'!$D$7*Fuel!AS38+(1-'Primary Calculations'!$D$11)*'Primary Calculations'!$D$12*'Primary Calculations'!$E$7*Fuel!AS38 -> 0 | AT9: ='Primary Calculations'!$D$11*'Primary Calculations'!$D$12*'Primary Calculations'!$D$7*Fuel!AT38+(1-'Primary Calculations'!$D$11)*'Primary Calculations'!$D$12*'Primary Calculations'!$E$7*Fuel!AT38 -> 0 | AU9: ='Primary Calculations'!$D$11*'Primary Calculations'!$D$12*'Primary Calculations'!$D$7*Fuel!AU38+(1-'Primary Calculations'!$D$11)*'Primary Calculations'!$D$12*'Primary Calculations'!$E$7*Fuel!AU38 -> 0 | AV9: ='Primary Calculations'!$D$11*'Primary Calculations'!$D$12*'Primary Calculations'!$D$7*Fuel!AV38+(1-'Primary Calculations'!$D$11)*'Primary Calculations'!$D$12*'Primary Calculations'!$E$7*Fuel!AV38 -> 0
B10: HFO + Scrubber discounted cost | C10: =C9/(1+'Primary Calculations'!$D$14)^C3 -> 2971790.134 | D10: =D9/(1+'Primary Calculations'!$D$14)^D3 -> 3392522.423 | E10: =E9/(1+'Primary Calculations'!$D$14)^E3 -> 2926641.9 | F10: =F9/(1+'Primary Calculations'!$D$14)^F3 -> 2749688.17 | G10: =G9/(1+'Primary Calculations'!$D$14)^G3 -> 2617182.77 | H10: =H9/(1+'Primary Calculations'!$D$14)^H3 -> 2503261.233 | I10: =I9/(1+'Primary Calculations'!$D$14)^I3 -> 2410109.946 | J10: =J9/(1+'Primary Calculations'!$D$14)^J3 -> 2311550.446 | K10: =K9/(1+'Primary Calculations'!$D$14)^K3 -> 2209136.66 | L10: =L9/(1+'Primary Calculations'!$D$14)^L3 -> 2127469.669 | M10: =M9/(1+'Primary Calculations'!$D$14)^M3 -> 2043347.608 | N10: =N9/(1+'Primary Calculations'!$D$14)^N3 -> 1955201.75 | O10: =O9/(1+'Primary Calculations'!$D$14)^O3 -> 1884144.513 | P10: =P9/(1+'Primary Calculations'!$D$14)^P3 -> 1821774.989 | Q10: =Q9/(1+'Primary Calculations'!$D$14)^Q3 -> 1746053.224 | R10: =R9/(1+'Primary Calculations'!$D$14)^R3 -> 1677423.902 | S10: =S9/(1+'Primary Calculations'!$D$14)^S3 -> 1616952.997 | T10: =T9/(1+'Primary Calculations'!$D$14)^T3 -> 1560545.41 | U10: =U9/(1+'Primary Calculations'!$D$14)^U3 -> 1494998.069 | V10: =V9/(1+'Primary Calculations'!$D$14)^V3 -> 1435484.037 | W10: =W9/(1+'Primary Calculations'!$D$14)^W3 -> 1373321.351 | X10: =X9/(1+'Primary Calculations'!$D$14)^X3 -> 1317922.1 | Y10: =Y9/(1+'Primary Calculations'!$D$14)^Y3 -> 1265337.862 | Z10: =Z9/(1+'Primary Calculations'!$D$14)^Z3 -> 1216521.697 | AA10: =AA9/(1+'Primary Calculations'!$D$14)^AA3 -> 1162844.92 | AB10: =AB9/(1+'Primary Calculations'!$D$14)^AB3 -> 1124943.178 | AC10: =AC9/(1+'Primary Calculations'!$D$14)^AC3 -> 0 | AD10: =AD9/(1+'Primary Calculations'!$D$14)^AD3 -> 0 | AE10: =AE9/(1+'Primary Calculations'!$D$14)^AE3 -> 0 | AF10: =AF9/(1+'Primary Calculations'!$D$14)^AF3 -> 0 | AG10: =AG9/(1+'Primary Calculations'!$D$14)^AG3 -> 0 | AH10: =AH9/(1+'Primary Calculations'!$D$14)^AH3 -> 0 | AI10: =AI9/(1+'Primary Calculations'!$D$14)^AI3 -> 0 | AJ10: =AJ9/(1+'Primary Calculations'!$D$14)^AJ3 -> 0 | AK10: =AK9/(1+'Primary Calculations'!$D$14)^AK3 -> 0 | AL10: =AL9/(1+'Primary Calculations'!$D$14)^AL3 -> 0 | AM10: =AM9/(1+'Primary Calculations'!$D$14)^AM3 -> 0 | AN10: =AN9/(1+'Primary Calculations'!$D$14)^AN3 -> 0 | AO10: =AO9/(1+'Primary Calculations'!$D$14)^AO3 -> 0 | AP10: =AP9/(1+'Primary Calculations'!$D$14)^AP3 -> 0 | AQ10: =AQ9/(1+'Primary Calculations'!$D$14)^AQ3 -> 0 | AR10: =AR9/(1+'Primary Calculations'!$D$14)^AR3 -> 0 | AS10: =AS9/(1+'Primary Calculations'!$D$14)^AS3 -> 0 | AT10: =AT9/(1+'Primary Calculations'!$D$14)^AT3 -> 0 | AU10: =AU9/(1+'Primary Calculations'!$D$14)^AU3 -> 0 | AV10: =AV9/(1+'Primary Calculations'!$D$14)^AV3 -> 0
B11: MGO (low) | C11: ='Primary Calculations'!$D$12*'Primary Calculations'!$D$5*Fuel!C34 -> 4080936.225 | D11: ='Primary Calculations'!$D$12*'Primary Calculations'!$D$5*Fuel!D34 -> 4691107.571 | E11: ='Primary Calculations'!$D$12*'Primary Calculations'!$D$5*Fuel!E34 -> 4432203.839 | F11: ='Primary Calculations'!$D$12*'Primary Calculations'!$D$5*Fuel!F34 -> 4448680.592 | G11: ='Primary Calculations'!$D$12*'Primary Calculations'!$D$5*Fuel!G34 -> 4506254.413 | H11: ='Primary Calculations'!$D$12*'Primary Calculations'!$D$5*Fuel!H34 -> 4580750.161 | I11: ='Primary Calculations'!$D$12*'Primary Calculations'!$D$5*Fuel!I34 -> 4678987.884 | J11: ='Primary Calculations'!$D$12*'Primary Calculations'!$D$5*Fuel!J34 -> 4766980.176 | K11: ='Primary Calculations'!$D$12*'Primary Calculations'!$D$5*Fuel!K34 -> 4844722.847 | L11: ='Primary Calculations'!$D$12*'Primary Calculations'!$D$5*Fuel!L34 -> 4951847.298 | M11: ='Primary Calculations'!$D$12*'Primary Calculations'!$D$5*Fuel!M34 -> 5052250.568 | N11: ='Primary Calculations'!$D$12*'Primary Calculations'!$D$5*Fuel!N34 -> 5141092.433 | O11: ='Primary Calculations'!$D$12*'Primary Calculations'!$D$5*Fuel!O34 -> 5259791.694 | P11: ='Primary Calculations'!$D$12*'Primary Calculations'!$D$5*Fuel!P34 -> 5395823.146 | Q11: ='Primary Calculations'!$D$12*'Primary Calculations'!$D$5*Fuel!Q34 -> 5499707.097 | R11: ='Primary Calculations'!$D$12*'Primary Calculations'!$D$5*Fuel!R34 -> 5616332.974 | S11: ='Primary Calculations'!$D$12*'Primary Calculations'!$D$5*Fuel!S34 -> 5751162.679 | T11: ='Primary Calculations'!$D$12*'Primary Calculations'!$D$5*Fuel!T34 -> 5895744.605 | U11: ='Primary Calculations'!$D$12*'Primary Calculations'!$D$5*Fuel!U34 -> 6010247.665 | V11: ='Primary Calculations'!$D$12*'Primary Calculations'!$D$5*Fuel!V34 -> 6138616.758 | W11: ='Primary Calculations'!$D$12*'Primary Calculations'!$D$5*Fuel!W34 -> 6252503.445 | X11: ='Primary Calculations'!$D$12*'Primary Calculations'!$D$5*Fuel!X34 -> 6384713.213 | Y11: ='Primary Calculations'!$D$12*'Primary Calculations'!$D$5*Fuel!Y34 -> 6522854.076 | Z11: ='Primary Calculations'!$D$12*'Primary Calculations'!$D$5*Fuel!Z34 -> 6672106.142 | AA11: ='Primary Calculations'!$D$12*'Primary Calculations'!$D$5*Fuel!AA34 -> 6793933.632 | AB11: ='Primary Calculations'!$D$12*'Primary Calculations'!$D$5*Fuel!AB34 -> 6985990.569 | AC11: ='Primary Calculations'!$D$12*'Primary Calculations'!$D$5*Fuel!AC34 -> 1326033.791 | AD11: ='Primary Calculations'!$D$12*'Primary Calculations'!$D$5*Fuel!AD34 -> 1326033.791 | AE11: ='Primary Calculations'!$D$12*'Primary Calculations'!$D$5*Fuel!AE34 -> 1326033.791 | AF11: ='Primary Calculations'!$D$12*'Primary Calculations'!$D$5*Fuel!AF34 -> 1326033.791 | AG11: ='Primary Calculations'!$D$12*'Primary Calculations'!$D$5*Fuel!AG34 -> 1326033.791 | AH11: ='Primary Calculations'!$D$12*'Primary Calculations'!$D$5*Fuel!AH34 -> 1326033.791 | AI11: ='Primary Calculations'!$D$12*'Primary Calculations'!$D$5*Fuel!AI34 -> 1326033.791 | AJ11: ='Primary Calculations'!$D$12*'Primary Calculations'!$D$5*Fuel!AJ34 -> 1326033.791 | AK11: ='Primary Calculations'!$D$12*'Primary Calculations'!$D$5*Fuel!AK34 -> 1326033.791 | AL11: ='Primary Calculations'!$D$12*'Primary Calculations'!$D$5*Fuel!AL34 -> 1326033.791 | AM11: ='Primary Calculations'!$D$12*'Primary Calculations'!$D$5*Fuel!AM34 -> 1326033.791 | AN11: ='Primary Calculations'!$D$12*'Primary Calculations'!$D$5*Fuel!AN34 -> 1326033.791 | AO11: ='Primary Calculations'!$D$12*'Primary Calculations'!$D$5*Fuel!AO34 -> 1326033.791 | AP11: ='Primary Calculations'!$D$12*'Primary Calculations'!$D$5*Fuel!AP34 -> 1326033.791 | AQ11: ='Primary Calculations'!$D$12*'Primary Calculations'!$D$5*Fuel!AQ34 -> 1326033.791 | AR11: ='Primary Calculations'!$D$12*'Primary Calculations'!$D$5*Fuel!AR34 -> 1326033.791 | AS11: ='Primary Calculations'!$D$12*'Primary Calculations'!$D$5*Fuel!AS34 -> 1326033.791 | AT11: ='Primary Calculations'!$D$12*'Primary Calculations'!$D$5*Fuel!AT34 -> 1326033.791 | AU11: ='Primary Calculations'!$D$12*'Primary Calculations'!$D$5*Fuel!AU34 -> 1326033.791 | AV11: ='Primary Calculations'!$D$12*'Primary Calculations'!$D$5*Fuel!AV34 -> 1326033.791
B12: MGO discounted (low) | C12: =C11/(1+'Primary Calculations'!$D$14)^Fuel!C3 -> 4080936.225 | D12: =D11/(1+'Primary Calculations'!$D$14)^Fuel!D3 -> 4384212.683 | E12: =E11/(1+'Primary Calculations'!$D$14)^Fuel!E3 -> 3871258.484 | F12: =F11/(1+'Primary Calculations'!$D$14)^Fuel!F3 -> 3631448.522 | G12: =G11/(1+'Primary Calculations'!$D$14)^Fuel!G3 -> 3437799.916 | H12: =H11/(1+'Primary Calculations'!$D$14)^Fuel!H3 -> 3266011.556 | I12: =I11/(1+'Primary Calculations'!$D$14)^Fuel!I3 -> 3117807.192 | J12: =J11/(1+'Primary Calculations'!$D$14)^Fuel!J3 -> 2968635.674 | K12: =K11/(1+'Primary Calculations'!$D$14)^Fuel!K3 -> 2819672.806 | L12: =L11/(1+'Primary Calculations'!$D$14)^Fuel!L3 -> 2693476.834 | M12: =M11/(1+'Primary Calculations'!$D$14)^Fuel!M3 -> 2568308 | N12: =N11/(1+'Primary Calculations'!$D$14)^Fuel!N3 -> 2442495.981 | O12: =O11/(1+'Primary Calculations'!$D$14)^Fuel!O3 -> 2335410.415 | P12: =P11/(1+'Primary Calculations'!$D$14)^Fuel!P3 -> 2239074.773 | Q12: =Q11/(1+'Primary Calculations'!$D$14)^Fuel!Q3 -> 2132881.233 | R12: =R11/(1+'Primary Calculations'!$D$14)^Fuel!R3 -> 2035617.531 | S12: =S11/(1+'Primary Calculations'!$D$14)^Fuel!S3 -> 1948117.777 | T12: =T11/(1+'Primary Calculations'!$D$14)^Fuel!T3 -> 1866441.755 | U12: =U11/(1+'Primary Calculations'!$D$14)^Fuel!U3 -> 1778215.412 | V12: =V11/(1+'Primary Calculations'!$D$14)^Fuel!V3 -> 1697378.687 | W12: =W11/(1+'Primary Calculations'!$D$14)^Fuel!W3 -> 1615765.705 | X12: =X11/(1+'Primary Calculations'!$D$14)^Fuel!X3 -> 1541991.796 | Y12: =Y11/(1+'Primary Calculations'!$D$14)^Fuel!Y3 -> 1472294.04 | Z12: =Z11/(1+'Primary Calculations'!$D$14)^Fuel!Z3 -> 1407459.996 | AA12: =AA11/(1+'Primary Calculations'!$D$14)^Fuel!AA3 -> 1339401.052 | AB12: =AB11/(1+'Primary Calculations'!$D$14)^Fuel!AB3 -> 1287163.017 | AC12: =AC11/(1+'Primary Calculations'!$D$14)^Fuel!AC3 -> 228337.0425 | AD12: =AD11/(1+'Primary Calculations'!$D$14)^Fuel!AD3 -> 213399.1051 | AE12: =AE11/(1+'Primary Calculations'!$D$14)^Fuel!AE3 -> 199438.416 | AF12: =AF11/(1+'Primary Calculations'!$D$14)^Fuel!AF3 -> 186391.043 | AG12: =AG11/(1+'Primary Calculations'!$D$14)^Fuel!AG3 -> 174197.2364 | AH12: =AH11/(1+'Primary Calculations'!$D$14)^Fuel!AH3 -> 162801.1555 | AI12: =AI11/(1+'Primary Calculations'!$D$14)^Fuel!AI3 -> 152150.6127 | AJ12: =AJ11/(1+'Primary Calculations'!$D$14)^Fuel!AJ3 -> 142196.8343 | AK12: =AK11/(1+'Primary Calculations'!$D$14)^Fuel!AK3 -> 132894.2376 | AL12: =AL11/(1+'Primary Calculations'!$D$14)^Fuel!AL3 -> 124200.2221 | AM12: =AM11/(1+'Primary Calculations'!$D$14)^Fuel!AM3 -> 116074.9739 | AN12: =AN11/(1+'Primary Calculations'!$D$14)^Fuel!AN3 -> 108481.284 | AO12: =AO11/(1+'Primary Calculations'!$D$14)^Fuel!AO3 -> 101384.3776 | AP12: =AP11/(1+'Primary Calculations'!$D$14)^Fuel!AP3 -> 94751.75476 | AQ12: =AQ11/(1+'Primary Calculations'!$D$14)^Fuel!AQ3 -> 88553.04183 | AR12: =AR11/(1+'Primary Calculations'!$D$14)^Fuel!AR3 -> 82759.85218 | AS12: =AS11/(1+'Primary Calculations'!$D$14)^Fuel!AS3 -> 77345.65624 | AT12: =AT11/(1+'Primary Calculations'!$D$14)^Fuel!AT3 -> 72285.66004 | AU12: =AU11/(1+'Primary Calculations'!$D$14)^Fuel!AU3 -> 67556.69162 | AV12: =AV11/(1+'Primary Calculations'!$D$14)^Fuel!AV3 -> 63137.09498
B13: MGO (ECA enabled) (low) | C13: ='Primary Calculations'!$D$11*'Primary Calculations'!$D$12*'Primary Calculations'!$D$5*Fuel!C34+(1-'Primary Calculations'!$D$11)*'Primary Calculations'!$D$12*'Primary Calculations'!$E$4*Fuel!C40 -> 3662440.146 | D13: ='Primary Calculations'!$D$11*'Primary Calculations'!$D$12*'Primary Calculations'!$D$5*Fuel!D34+(1-'Primary Calculations'!$D$11)*'Primary Calculations'!$D$12*'Primary Calculations'!$E$4*Fuel!D40 -> 4282714.725 | E13: ='Primary Calculations'!$D$11*'Primary Calculations'!$D$12*'Primary Calculations'!$D$5*Fuel!E34+(1-'Primary Calculations'!$D$11)*'Primary Calculations'!$D$12*'Primary Calculations'!$E$4*Fuel!E40 -> 4019524.057 | F13: ='Primary Calculations'!$D$11*'Primary Calculations'!$D$12*'Primary Calculations'!$D$5*Fuel!F34+(1-'Primary Calculations'!$D$11)*'Primary Calculations'!$D$12*'Primary Calculations'!$E$4*Fuel!F40 -> 4036273.633 | G13: ='Primary Calculations'!$D$11*'Primary Calculations'!$D$12*'Primary Calculations'!$D$5*Fuel!G34+(1-'Primary Calculations'!$D$11)*'Primary Calculations'!$D$12*'Primary Calculations'!$E$4*Fuel!G40 -> 4094800.763 | H13: ='Primary Calculations'!$D$11*'Primary Calculations'!$D$12*'Primary Calculations'!$D$5*Fuel!H34+(1-'Primary Calculations'!$D$11)*'Primary Calculations'!$D$12*'Primary Calculations'!$E$4*Fuel!H40 -> 4413564.178 | I13: ='Primary Calculations'!$D$11*'Primary Calculations'!$D$12*'Primary Calculations'!$D$5*Fuel!I34+(1-'Primary Calculations'!$D$11)*'Primary Calculations'!$D$12*'Primary Calculations'!$E$4*Fuel!I40 -> 4513428.524 | J13: ='Primary Calculations'!$D$11*'Primary Calculations'!$D$12*'Primary Calculations'!$D$5*Fuel!J34+(1-'Primary Calculations'!$D$11)*'Primary Calculations'!$D$12*'Primary Calculations'!$E$4*Fuel!J40 -> 4602877.795 | K13: ='Primary Calculations'!$D$11*'Primary Calculations'!$D$12*'Primary Calculations'!$D$5*Fuel!K34+(1-'Primary Calculations'!$D$11)*'Primary Calculations'!$D$12*'Primary Calculations'!$E$4*Fuel!K40 -> 4681907.731 | L13: ='Primary Calculations'!$D$11*'Primary Calculations'!$D$12*'Primary Calculations'!$D$5*Fuel!L34+(1-'Primary Calculations'!$D$11)*'Primary Calculations'!$D$12*'Primary Calculations'!$E$4*Fuel!L40 -> 4790805.952 | M13: ='Primary Calculations'!$D$11*'Primary Calculations'!$D$12*'Primary Calculations'!$D$5*Fuel!M34+(1-'Primary Calculations'!$D$11)*'Primary Calculations'!$D$12*'Primary Calculations'!$E$4*Fuel!M40 -> 4892871.701 | N13: ='Primary Calculations'!$D$11*'Primary Calculations'!$D$12*'Primary Calculations'!$D$5*Fuel!N34+(1-'Primary Calculations'!$D$11)*'Primary Calculations'!$D$12*'Primary Calculations'!$E$4*Fuel!N40 -> 4983184.612 | O13: ='Primary Calculations'!$D$11*'Primary Calculations'!$D$12*'Primary Calculations'!$D$5*Fuel!O34+(1-'Primary Calculations'!$D$11)*'Primary Calculations'!$D$12*'Primary Calculations'!$E$4*Fuel!O40 -> 5103849.298 | P13: ='Primary Calculations'!$D$11*'Primary Calculations'!$D$12*'Primary Calculations'!$D$5*Fuel!P34+(1-'Primary Calculations'!$D$11)*'Primary Calculations'!$D$12*'Primary Calculations'!$E$4*Fuel!P40 -> 5242133.163 | Q13: ='Primary Calculations'!$D$11*'Primary Calculations'!$D$12*'Primary Calculations'!$D$5*Fuel!Q34+(1-'Primary Calculations'!$D$11)*'Primary Calculations'!$D$12*'Primary Calculations'!$E$4*Fuel!Q40 -> 5347737.227 | R13: ='Primary Calculations'!$D$11*'Primary Calculations'!$D$12*'Primary Calculations'!$D$5*Fuel!R34+(1-'Primary Calculations'!$D$11)*'Primary Calculations'!$D$12*'Primary Calculations'!$E$4*Fuel!R40 -> 5466294.199 | S13: ='Primary Calculations'!$D$11*'Primary Calculations'!$D$12*'Primary Calculations'!$D$5*Fuel!S34+(1-'Primary Calculations'!$D$11)*'Primary Calculations'!$D$12*'Primary Calculations'!$E$4*Fuel!S40 -> 5603356.418 | T13: ='Primary Calculations'!$D$11*'Primary Calculations'!$D$12*'Primary Calculations'!$D$5*Fuel!T34+(1-'Primary Calculations'!$D$11)*'Primary Calculations'!$D$12*'Primary Calculations'!$E$4*Fuel!T40 -> 5750332.335 | U13: ='Primary Calculations'!$D$11*'Primary Calculations'!$D$12*'Primary Calculations'!$D$5*Fuel!U34+(1-'Primary Calculations'!$D$11)*'Primary Calculations'!$D$12*'Primary Calculations'!$E$4*Fuel!U40 -> 5866731.34 | V13: ='Primary Calculations'!$D$11*'Primary Calculations'!$D$12*'Primary Calculations'!$D$5*Fuel!V34+(1-'Primary Calculations'!$D$11)*'Primary Calculations'!$D$12*'Primary Calculations'!$E$4*Fuel!V40 -> 5997225.972 | W13: ='Primary Calculations'!$D$11*'Primary Calculations'!$D$12*'Primary Calculations'!$D$5*Fuel!W34+(1-'Primary Calculations'!$D$11)*'Primary Calculations'!$D$12*'Primary Calculations'!$E$4*Fuel!W40 -> 6112998.397 | X13: ='Primary Calculations'!$D$11*'Primary Calculations'!$D$12*'Primary Calculations'!$D$5*Fuel!X34+(1-'Primary Calculations'!$D$11)*'Primary Calculations'!$D$12*'Primary Calculations'!$E$4*Fuel!X40 -> 6247397.298 | Y13: ='Primary Calculations'!$D$11*'Primary Calculations'!$D$12*'Primary Calculations'!$D$5*Fuel!Y34+(1-'Primary Calculations'!$D$11)*'Primary Calculations'!$D$12*'Primary Calculations'!$E$4*Fuel!Y40 -> 6387825.501 | Z13: ='Primary Calculations'!$D$11*'Primary Calculations'!$D$12*'Primary Calculations'!$D$5*Fuel!Z34+(1-'Primary Calculations'!$D$11)*'Primary Calculations'!$D$12*'Primary Calculations'!$E$4*Fuel!Z40 -> 6539548.887 | AA13: ='Primary Calculations'!$D$11*'Primary Calculations'!$D$12*'Primary Calculations'!$D$5*Fuel!AA34+(1-'Primary Calculations'!$D$11)*'Primary Calculations'!$D$12*'Primary Calculations'!$E$4*Fuel!AA40 -> 6663393.599 | AB13: ='Primary Calculations'!$D$11*'Primary Calculations'!$D$12*'Primary Calculations'!$D$5*Fuel!AB34+(1-'Primary Calculations'!$D$11)*'Primary Calculations'!$D$12*'Primary Calculations'!$E$4*Fuel!AB40 -> 6858630.621 | AC13: ='Primary Calculations'!$D$11*'Primary Calculations'!$D$12*'Primary Calculations'!$D$5*Fuel!AC34+(1-'Primary Calculations'!$D$11)*'Primary Calculations'!$D$12*'Primary Calculations'!$E$4*Fuel!AC40 -> 1104956.129 | AD13: ='Primary Calculations'!$D$11*'Primary Calculations'!$D$12*'Primary Calculations'!$D$5*Fuel!AD34+(1-'Primary Calculations'!$D$11)*'Primary Calculations'!$D$12*'Primary Calculations'!$E$4*Fuel!AD40 -> 1104956.129 | AE13: ='Primary Calculations'!$D$11*'Primary Calculations'!$D$12*'Primary Calculations'!$D$5*Fuel!AE34+(1-'Primary Calculations'!$D$11)*'Primary Calculations'!$D$12*'Primary Calculations'!$E$4*Fuel!AE40 -> 1104956.129 | AF13: ='Primary Calculations'!$D$11*'Primary Calculations'!$D$12*'Primary Calculations'!$D$5*Fuel!AF34+(1-'Primary Calculations'!$D$11)*'Primary Calculations'!$D$12*'Primary Calculations'!$E$4*Fuel!AF40 -> 1104956.129 | AG13: ='Primary Calculations'!$D$11*'Primary Calculations'!$D$12*'Primary Calculations'!$D$5*Fuel!AG34+(1-'Primary Calculations'!$D$11)*'Primary Calculations'!$D$12*'Primary Calculations'!$E$4*Fuel!AG40 -> 1104956.129 | AH13: ='Primary Calculations'!$D$11*'Primary Calculations'!$D$12*'Primary Calculations'!$D$5*Fuel!AH34+(1-'Primary Calculations'!$D$11)*'Primary Calculations'!$D$12*'Primary Calculations'!$E$4*Fuel!AH40 -> 1104956.129 | AI13: ='Primary Calculations'!$D$11*'Primary Calculations'!$D$12*'Primary Calculations'!$D$5*Fuel!AI34+(1-'Primary Calculations'!$D$11)*'Primary Calculations'!$D$12*'Primary Calculations'!$E$4*Fuel!AI40 -> 1104956.129 | AJ13: ='Primary Calculations'!$D$11*'Primary Calculations'!$D$12*'Primary Calculations'!$D$5*Fuel!AJ34+(1-'Primary Calculations'!$D$11)*'Primary Calculations'!$D$12*'Primary Calculations'!$E$4*Fuel!AJ40 -> 1104956.129 | AK13: ='Primary Calculations'!$D$11*'Primary Calculations'!$D$12*'Primary Calculations'!$D$5*Fuel!AK34+(1-'Primary Calculations'!$D$11)*'Primary Calculations'!$D$12*'Primary Calculations'!$E$4*Fuel!AK40 -> 1104956.129 | AL13: ='Primary Calculations'!$D$11*'Primary Calculations'!$D$12*'Primary Calculations'!$D$5*Fuel!AL34+(1-'Primary Calculations'!$D$11)*'Primary Calculations'!$D$12*'Primary Calculations'!$E$4*Fuel!AL40 -> 1104956.129 | AM13: ='Primary Calculations'!$D$11*'Primary Calculations'!$D$12*'Primary Calculations'!$D$5*Fuel!AM34+(1-'Primary Calculations'!$D$11)*'Primary Calculations'!$D$12*'Primary Calculations'!$E$4*Fuel!AM40 -> 1104956.129 | AN13: ='Primary Calculations'!$D$11*'Primary Calculations'!$D$12*'Primary Calculations'!$D$5*Fuel!AN34+(1-'Primary Calculations'!$D$11)*'Primary Calculations'!$D$12*'Primary Calculations'!$E$4*Fuel!AN40 -> 1104956.129 | AO13: ='Primary Calculations'!$D$11*'Primary Calculations'!$D$12*'Primary Calculations'!$D$5*Fuel!AO34+(1-'Primary Calculations'!$D$11)*'Primary Calculations'!$D$12*'Primary Calculations'!$E$4*Fuel!AO40 -> 1104956.129 | AP13: ='Primary Calculations'!$D$11*'Primary Calculations'!$D$12*'Primary Calculations'!$D$5*Fuel!AP34+(1-'Primary Calculations'!$D$11)*'Primary Calculations'!$D$12*'Primary Calculations'!$E$4*Fuel!AP40 -> 1104956.129 | AQ13: ='Primary Calculations'!$D$11*'Primary Calculations'!$D$12*'Primary Calculations'!$D$5*Fuel!AQ34+(1-'Primary Calculations'!$D$11)*'Primary Calculations'!$D$12*'Primary Calculations'!$E$4*Fuel!AQ40 -> 1104956.129 | AR13: ='Primary Calculations'!$D$11*'Primary Calculations'!$D$12*'Primary Calculations'!$D$5*Fuel!AR34+(1-'Primary Calculations'!$D$11)*'Primary Calculations'!$D$12*'Primary Calculations'!$E$4*Fuel!AR40 -> 1104956.129 | AS13: ='Primary Calculations'!$D$11*'Primary Calculations'!$D$12*'Primary Calculations'!$D$5*Fuel!AS34+(1-'Primary Calculations'!$D$11)*'Primary Calculations'!$D$12*'Primary Calculations'!$E$4*Fuel!AS40 -> 1104956.129 | AT13: ='Primary Calculations'!$D$11*'Primary Calculations'!$D$12*'Primary Calculations'!$D$5*Fuel!AT34+(1-'Primary Calculations'!$D$11)*'Primary Calculations'!$D$12*'Primary Calculations'!$E$4*Fuel!AT40 -> 1104956.129 | AU13: ='Primary Calculations'!$D$11*'Primary Calculations'!$D$12*'Primary Calculations'!$D$5*Fuel!AU34+(1-'Primary Calculations'!$D$11)*'Primary Calculations'!$D$12*'Primary Calculations'!$E$4*Fuel!AU40 -> 1104956.129 | AV13: ='Primary Calculations'!$D$11*'Primary Calculations'!$D$12*'Primary Calculations'!$D$5*Fuel!AV34+(1-'Primary Calculations'!$D$11)*'Primary Calculations'!$D$12*'Primary Calculations'!$E$4*Fuel!AV40 -> 1104956.129
B14: MGO discounted (ECA enabled) (low) | C14: =C13/(1+'Primary Calculations'!$D$14)^Fuel!C3 -> 3662440.146 | D14: =D13/(1+'Primary Calculations'!$D$14)^Fuel!D3 -> 4002537.126 | E14: =E13/(1+'Primary Calculations'!$D$14)^Fuel!E3 -> 3510807.981 | F14: =F13/(1+'Primary Calculations'!$D$14)^Fuel!F3 -> 3294801.597 | G14: =G13/(1+'Primary Calculations'!$D$14)^Fuel!G3 -> 3123903.896 | H14: =H13/(1+'Primary Calculations'!$D$14)^Fuel!H3 -> 3146810.261 | I14: =I13/(1+'Primary Calculations'!$D$14)^Fuel!I3 -> 3007488 | J14: =J13/(1+'Primary Calculations'!$D$14)^Fuel!J3 -> 2866440.958 | K14: =K13/(1+'Primary Calculations'!$D$14)^Fuel!K3 -> 2724912.926 | L14: =L13/(1+'Primary Calculations'!$D$14)^Fuel!L3 -> 2605881.011 | M14: =M13/(1+'Primary Calculations'!$D$14)^Fuel!M3 -> 2487287.866 | N14: =N13/(1+'Primary Calculations'!$D$14)^Fuel!N3 -> 2367475.112 | O14: =O13/(1+'Primary Calculations'!$D$14)^Fuel!O3 -> 2266170.127 | P14: =P13/(1+'Primary Calculations'!$D$14)^Fuel!P3 -> 2175298.894 | Q14: =Q13/(1+'Primary Calculations'!$D$14)^Fuel!Q3 -> 2073944.697 | R14: =R13/(1+'Primary Calculations'!$D$14)^Fuel!R3 -> 1981236.574 | S14: =S13/(1+'Primary Calculations'!$D$14)^Fuel!S3 -> 1898050.682 | T14: =T13/(1+'Primary Calculations'!$D$14)^Fuel!T3 -> 1820407.954 | U14: =U13/(1+'Primary Calculations'!$D$14)^Fuel!U3 -> 1735754.11 | V14: =V13/(1+'Primary Calculations'!$D$14)^Fuel!V3 -> 1658282.956 | W14: =W13/(1+'Primary Calculations'!$D$14)^Fuel!W3 -> 1579714.95 | X14: =X13/(1+'Primary Calculations'!$D$14)^Fuel!X3 -> 1508828.206 | Y14: =Y13/(1+'Primary Calculations'!$D$14)^Fuel!Y3 -> 1441816.313 | Z14: =Z13/(1+'Primary Calculations'!$D$14)^Fuel!Z3 -> 1379497.456 | AA14: =AA13/(1+'Primary Calculations'!$D$14)^Fuel!AA3 -> 1313665.525 | AB14: =AB13/(1+'Primary Calculations'!$D$14)^Fuel!AB3 -> 1263697.051 | AC14: =AC13/(1+'Primary Calculations'!$D$14)^Fuel!AC3 -> 190268.4654 | AD14: =AD13/(1+'Primary Calculations'!$D$14)^Fuel!AD3 -> 177820.9957 | AE14: =AE13/(1+'Primary Calculations'!$D$14)^Fuel!AE3 -> 166187.8465 | AF14: =AF13/(1+'Primary Calculations'!$D$14)^Fuel!AF3 -> 155315.7444 | AG14: =AG13/(1+'Primary Calculations'!$D$14)^Fuel!AG3 -> 145154.9013 | AH14: =AH13/(1+'Primary Calculations'!$D$14)^Fuel!AH3 -> 135658.7862 | AI14: =AI13/(1+'Primary Calculations'!$D$14)^Fuel!AI3 -> 126783.9124 | AJ14: =AJ13/(1+'Primary Calculations'!$D$14)^Fuel!AJ3 -> 118489.6377 | AK14: =AK13/(1+'Primary Calculations'!$D$14)^Fuel!AK3 -> 110737.9792 | AL14: =AL13/(1+'Primary Calculations'!$D$14)^Fuel!AL3 -> 103493.4385 | AM14: =AM13/(1+'Primary Calculations'!$D$14)^Fuel!AM3 -> 96722.83971 | AN14: =AN13/(1+'Primary Calculations'!$D$14)^Fuel!AN3 -> 90395.1773 | AO14: =AO13/(1+'Primary Calculations'!$D$14)^Fuel!AO3 -> 84481.47411 | AP14: =AP13/(1+'Primary Calculations'!$D$14)^Fuel!AP3 -> 78954.6487 | AQ14: =AQ13/(1+'Primary Calculations'!$D$14)^Fuel!AQ3 -> 73789.39131 | AR14: =AR13/(1+'Primary Calculations'!$D$14)^Fuel!AR3 -> 68962.04795 | AS14: =AS13/(1+'Primary Calculations'!$D$14)^Fuel!AS3 -> 64450.51211 | AT14: =AT13/(1+'Primary Calculations'!$D$14)^Fuel!AT3 -> 60234.12346 | AU14: =AU13/(1+'Primary Calculations'!$D$14)^Fuel!AU3 -> 56293.57333 | AV14: =AV13/(1+'Primary Calculations'!$D$14)^Fuel!AV3 -> 52610.8162
B15: MGO (high) | C15: ='Primary Calculations'!$D$12*'Primary Calculations'!$D$5*Fuel!C36 -> 4743953.121 | D15: ='Primary Calculations'!$D$12*'Primary Calculations'!$D$5*Fuel!D36 -> 5354124.467 | E15: ='Primary Calculations'!$D$12*'Primary Calculations'!$D$5*Fuel!E36 -> 5095220.734 | F15: ='Primary Calculations'!$D$12*'Primary Calculations'!$D$5*Fuel!F36 -> 5111697.488 | G15: ='Primary Calculations'!$D$12*'Primary Calculations'!$D$5*Fuel!G36 -> 5169271.308 | H15: ='Primary Calculations'!$D$12*'Primary Calculations'!$D$5*Fuel!H36 -> 5243767.057 | I15: ='Primary Calculations'!$D$12*'Primary Calculations'!$D$5*Fuel!I36 -> 5342004.78 | J15: ='Primary Calculations'!$D$12*'Primary Calculations'!$D$5*Fuel!J36 -> 5429997.072 | K15: ='Primary Calculations'!$D$12*'Primary Calculations'!$D$5*Fuel!K36 -> 5507739.743 | L15: ='Primary Calculations'!$D$12*'Primary Calculations'!$D$5*Fuel!L36 -> 5614864.194 | M15: ='Primary Calculations'!$D$12*'Primary Calculations'!$D$5*Fuel!M36 -> 5715267.463 | N15: ='Primary Calculations'!$D$12*'Primary Calculations'!$D$5*Fuel!N36 -> 5804109.329 | O15: ='Primary Calculations'!$D$12*'Primary Calculations'!$D$5*Fuel!O36 -> 5922808.589 | P15: ='Primary Calculations'!$D$12*'Primary Calculations'!$D$5*Fuel!P36 -> 6058840.042 | Q15: ='Primary Calculations'!$D$12*'Primary Calculations'!$D$5*Fuel!Q36 -> 6162723.993 | R15: ='Primary Calculations'!$D$12*'Primary Calculations'!$D$5*Fuel!R36 -> 6279349.87 | S15: ='Primary Calculations'!$D$12*'Primary Calculations'!$D$5*Fuel!S36 -> 6414179.575 | T15: ='Primary Calculations'!$D$12*'Primary Calculations'!$D$5*Fuel!T36 -> 6558761.5 | U15: ='Primary Calculations'!$D$12*'Primary Calculations'!$D$5*Fuel!U36 -> 6673264.561 | V15: ='Primary Calculations'!$D$12*'Primary Calculations'!$D$5*Fuel!V36 -> 6801633.654 | W15: ='Primary Calculations'!$D$12*'Primary Calculations'!$D$5*Fuel!W36 -> 6915520.341 | X15: ='Primary Calculations'!$D$12*'Primary Calculations'!$D$5*Fuel!X36 -> 7047730.109 | Y15: ='Primary Calculations'!$D$12*'Primary Calculations'!$D$5*Fuel!Y36 -> 7185870.972 | Z15: ='Primary Calculations'!$D$12*'Primary Calculations'!$D$5*Fuel!Z36 -> 7335123.038 | AA15: ='Primary Calculations'!$D$12*'Primary Calculations'!$D$5*Fuel!AA36 -> 7456950.527 | AB15: ='Primary Calculations'!$D$12*'Primary Calculations'!$D$5*Fuel!AB36 -> 7649007.465 | AC15: ='Primary Calculations'!$D$12*'Primary Calculations'!$D$5*Fuel!AC36 -> 1989050.687 | AD15: ='Primary Calculations'!$D$12*'Primary Calculations'!$D$5*Fuel!AD36 -> 1989050.687 | AE15: ='Primary Calculations'!$D$12*'Primary Calculations'!$D$5*Fuel!AE36 -> 1989050.687 | AF15: ='Primary Calculations'!$D$12*'Primary Calculations'!$D$5*Fuel!AF36 -> 1989050.687 | AG15: ='Primary Calculations'!$D$12*'Primary Calculations'!$D$5*Fuel!AG36 -> 1989050.687 | AH15: ='Primary Calculations'!$D$12*'Primary Calculations'!$D$5*Fuel!AH36 -> 1989050.687 | AI15: ='Primary Calculations'!$D$12*'Primary Calculations'!$D$5*Fuel!AI36 -> 1989050.687 | AJ15: ='Primary Calculations'!$D$12*'Primary Calculations'!$D$5*Fuel!AJ36 -> 1989050.687 | AK15: ='Primary Calculations'!$D$12*'Primary Calculations'!$D$5*Fuel!AK36 -> 1989050.687 | AL15: ='Primary Calculations'!$D$12*'Primary Calculations'!$D$5*Fuel!AL36 -> 1989050.687 | AM15: ='Primary Calculations'!$D$12*'Primary Calculations'!$D$5*Fuel!AM36 -> 1989050.687 | AN15: ='Primary Calculations'!$D$12*'Primary Calculations'!$D$5*Fuel!AN36 -> 1989050.687 | AO15: ='Primary Calculations'!$D$12*'Primary Calculations'!$D$5*Fuel!AO36 -> 1989050.687 | AP15: ='Primary Calculations'!$D$12*'Primary Calculations'!$D$5*Fuel!AP36 -> 1989050.687 | AQ15: ='Primary Calculations'!$D$12*'Primary Calculations'!$D$5*Fuel!AQ36 -> 1989050.687 | AR15: ='Primary Calculations'!$D$12*'Primary Calculations'!$D$5*Fuel!AR36 -> 1989050.687 | AS15: ='Primary Calculations'!$D$12*'Primary Calculations'!$D$5*Fuel!AS36 -> 1989050.687 | AT15: ='Primary Calculations'!$D$12*'Primary Calculations'!$D$5*Fuel!AT36 -> 1989050.687 | AU15: ='Primary Calculations'!$D$12*'Primary Calculations'!$D$5*Fuel!AU36 -> 1989050.687 | AV15: ='Primary Calculations'!$D$12*'Primary Calculations'!$D$5*Fuel!AV36 -> 1989050.687
B16: Alternate Fuel (discounted) (high) | C16: =C15/(1+'Primary Calculations'!$D$14)^C3 -> 4743953.121 | D16: =D15/(1+'Primary Calculations'!$D$14)^D3 -> 5003854.642 | E16: =E15/(1+'Primary Calculations'!$D$14)^E3 -> 4450363.118 | F16: =F15/(1+'Primary Calculations'!$D$14)^F3 -> 4172667.806 | G16: =G15/(1+'Primary Calculations'!$D$14)^G3 -> 3943612.331 | H16: =H15/(1+'Primary Calculations'!$D$14)^H3 -> 3738733.44 | I16: =I15/(1+'Primary Calculations'!$D$14)^I3 -> 3559603.344 | J16: =J15/(1+'Primary Calculations'!$D$14)^J3 -> 3381529.275 | K16: =K15/(1+'Primary Calculations'!$D$14)^K3 -> 3205554.676 | L16: =L15/(1+'Primary Calculations'!$D$14)^L3 -> 3054114.095 | M16: =M15/(1+'Primary Calculations'!$D$14)^M3 -> 2905352.169 | N16: =N15/(1+'Primary Calculations'!$D$14)^N3 -> 2757490.532 | O16: =O15/(1+'Primary Calculations'!$D$14)^O3 -> 2629797.846 | P16: =P15/(1+'Primary Calculations'!$D$14)^P3 -> 2514203.213 | Q16: =Q15/(1+'Primary Calculations'!$D$14)^Q3 -> 2390010.616 | R16: =R15/(1+'Primary Calculations'!$D$14)^R3 -> 2275925.366 | S16: =S15/(1+'Primary Calculations'!$D$14)^S3 -> 2172704.538 | T16: =T15/(1+'Primary Calculations'!$D$14)^T3 -> 2076335.924 | U16: =U15/(1+'Primary Calculations'!$D$14)^U3 -> 1974378.188 | V16: =V15/(1+'Primary Calculations'!$D$14)^V3 -> 1880708.383 | W16: =W15/(1+'Primary Calculations'!$D$14)^W3 -> 1787101.87 | X16: =X15/(1+'Primary Calculations'!$D$14)^X3 -> 1702119.053 | Y16: =Y15/(1+'Primary Calculations'!$D$14)^Y3 -> 1621945.682 | Z16: =Z15/(1+'Primary Calculations'!$D$14)^Z3 -> 1547321.344 | AA16: =AA15/(1+'Primary Calculations'!$D$14)^AA3 -> 1470112.592 | AB16: =AB15/(1+'Primary Calculations'!$D$14)^AB3 -> 1409323.334 | AC16: =AC15/(1+'Primary Calculations'!$D$14)^AC3 -> 342505.5637 | AD16: =AD15/(1+'Primary Calculations'!$D$14)^AD3 -> 320098.6577 | AE16: =AE15/(1+'Primary Calculations'!$D$14)^AE3 -> 299157.624 | AF16: =AF15/(1+'Primary Calculations'!$D$14)^AF3 -> 279586.5645 | AG16: =AG15/(1+'Primary Calculations'!$D$14)^AG3 -> 261295.8546 | AH16: =AH15/(1+'Primary Calculations'!$D$14)^AH3 -> 244201.7333 | AI16: =AI15/(1+'Primary Calculations'!$D$14)^AI3 -> 228225.919 | AJ16: =AJ15/(1+'Primary Calculations'!$D$14)^AJ3 -> 213295.2514 | AK16: =AK15/(1+'Primary Calculations'!$D$14)^AK3 -> 199341.3564 | AL16: =AL15/(1+'Primary Calculations'!$D$14)^AL3 -> 186300.3331 | AM16: =AM15/(1+'Primary Calculations'!$D$14)^AM3 -> 174112.4609 | AN16: =AN15/(1+'Primary Calculations'!$D$14)^AN3 -> 162721.926 | AO16: =AO15/(1+'Primary Calculations'!$D$14)^AO3 -> 152076.5664 | AP16: =AP15/(1+'Primary Calculations'!$D$14)^AP3 -> 142127.6321 | AQ16: =AQ15/(1+'Primary Calculations'!$D$14)^AQ3 -> 132829.5627 | AR16: =AR15/(1+'Primary Calculations'!$D$14)^AR3 -> 124139.7783 | AS16: =AS15/(1+'Primary Calculations'!$D$14)^AS3 -> 116018.4844 | AT16: =AT15/(1+'Primary Calculations'!$D$14)^AT3 -> 108428.4901 | AU16: =AU15/(1+'Primary Calculations'!$D$14)^AU3 -> 101335.0374 | AV16: =AV15/(1+'Primary Calculations'!$D$14)^AV3 -> 94705.64246
B17: Alternate Fuel (ECA enabled) (high) | C17: ='Primary Calculations'!$D$11*'Primary Calculations'!$D$12*'Primary Calculations'!$D$5*Fuel!C36+(1-'Primary Calculations'!$D$11)*'Primary Calculations'!$D$12*'Primary Calculations'!$E$4*Fuel!C40 -> 4093401.128 | D17: ='Primary Calculations'!$D$11*'Primary Calculations'!$D$12*'Primary Calculations'!$D$5*Fuel!D36+(1-'Primary Calculations'!$D$11)*'Primary Calculations'!$D$12*'Primary Calculations'!$E$4*Fuel!D40 -> 4713675.707 | E17: ='Primary Calculations'!$D$11*'Primary Calculations'!$D$12*'Primary Calculations'!$D$5*Fuel!E36+(1-'Primary Calculations'!$D$11)*'Primary Calculations'!$D$12*'Primary Calculations'!$E$4*Fuel!E40 -> 4450485.039 | F17: ='Primary Calculations'!$D$11*'Primary Calculations'!$D$12*'Primary Calculations'!$D$5*Fuel!F36+(1-'Primary Calculations'!$D$11)*'Primary Calculations'!$D$12*'Primary Calculations'!$E$4*Fuel!F40 -> 4467234.615 | G17: ='Primary Calculations'!$D$11*'Primary Calculations'!$D$12*'Primary Calculations'!$D$5*Fuel!G36+(1-'Primary Calculations'!$D$11)*'Primary Calculations'!$D$12*'Primary Calculations'!$E$4*Fuel!G40 -> 4525761.745 | H17: ='Primary Calculations'!$D$11*'Primary Calculations'!$D$12*'Primary Calculations'!$D$5*Fuel!H36+(1-'Primary Calculations'!$D$11)*'Primary Calculations'!$D$12*'Primary Calculations'!$E$4*Fuel!H40 -> 4844525.16 | I17: ='Primary Calculations'!$D$11*'Primary Calculations'!$D$12*'Primary Calculations'!$D$5*Fuel!I36+(1-'Primary Calculations'!$D$11)*'Primary Calculations'!$D$12*'Primary Calculations'!$E$4*Fuel!I40 -> 4944389.506 | J17: ='Primary Calculations'!$D$11*'Primary Calculations'!$D$12*'Primary Calculations'!$D$5*Fuel!J36+(1-'Primary Calculations'!$D$11)*'Primary Calculations'!$D$12*'Primary Calculations'!$E$4*Fuel!J40 -> 5033838.777 | K17: ='Primary Calculations'!$D$11*'Primary Calculations'!$D$12*'Primary Calculations'!$D$5*Fuel!K36+(1-'Primary Calculations'!$D$11)*'Primary Calculations'!$D$12*'Primary Calculations'!$E$4*Fuel!K40 -> 5112868.714 | L17: ='Primary Calculations'!$D$11*'Primary Calculations'!$D$12*'Primary Calculations'!$D$5*Fuel!L36+(1-'Primary Calculations'!$D$11)*'Primary Calculations'!$D$12*'Primary Calculations'!$E$4*Fuel!L40 -> 5221766.934 | M17: ='Primary Calculations'!$D$11*'Primary Calculations'!$D$12*'Primary Calculations'!$D$5*Fuel!M36+(1-'Primary Calculations'!$D$11)*'Primary Calculations'!$D$12*'Primary Calculations'!$E$4*Fuel!M40 -> 5323832.683 | N17: ='Primary Calculations'!$D$11*'Primary Calculations'!$D$12*'Primary Calculations'!$D$5*Fuel!N36+(1-'Primary Calculations'!$D$11)*'Primary Calculations'!$D$12*'Primary Calculations'!$E$4*Fuel!N40 -> 5414145.595 | O17: ='Primary Calculations'!$D$11*'Primary Calculations'!$D$12*'Primary Calculations'!$D$5*Fuel!O36+(1-'Primary Calculations'!$D$11)*'Primary Calculations'!$D$12*'Primary Calculations'!$E$4*Fuel!O40 -> 5534810.281 | P17: ='Primary Calculations'!$D$11*'Primary Calculations'!$D$12*'Primary Calculations'!$D$5*Fuel!P36+(1-'Primary Calculations'!$D$11)*'Primary Calculations'!$D$12*'Primary Calculations'!$E$4*Fuel!P40 -> 5673094.145 | Q17: ='Primary Calculations'!$D$11*'Primary Calculations'!$D$12*'Primary Calculations'!$D$5*Fuel!Q36+(1-'Primary Calculations'!$D$11)*'Primary Calculations'!$D$12*'Primary Calculations'!$E$4*Fuel!Q40 -> 5778698.21 | R17: ='Primary Calculations'!$D$11*'Primary Calculations'!$D$12*'Primary Calculations'!$D$5*Fuel!R36+(1-'Primary Calculations'!$D$11)*'Primary Calculations'!$D$12*'Primary Calculations'!$E$4*Fuel!R40 -> 5897255.181 | S17: ='Primary Calculations'!$D$11*'Primary Calculations'!$D$12*'Primary Calculations'!$D$5*Fuel!S36+(1-'Primary Calculations'!$D$11)*'Primary Calculations'!$D$12*'Primary Calculations'!$E$4*Fuel!S40 -> 6034317.4 | T17: ='Primary Calculations'!$D$11*'Primary Calculations'!$D$12*'Primary Calculations'!$D$5*Fuel!T36+(1-'Primary Calculations'!$D$11)*'Primary Calculations'!$D$12*'Primary Calculations'!$E$4*Fuel!T40 -> 6181293.317 | U17: ='Primary Calculations'!$D$11*'Primary Calculations'!$D$12*'Primary Calculations'!$D$5*Fuel!U36+(1-'Primary Calculations'!$D$11)*'Primary Calculations'!$D$12*'Primary Calculations'!$E$4*Fuel!U40 -> 6297692.322 | V17: ='Primary Calculations'!$D$11*'Primary Calculations'!$D$12*'Primary Calculations'!$D$5*Fuel!V36+(1-'Primary Calculations'!$D$11)*'Primary Calculations'!$D$12*'Primary Calculations'!$E$4*Fuel!V40 -> 6428186.954 | W17: ='Primary Calculations'!$D$11*'Primary Calculations'!$D$12*'Primary Calculations'!$D$5*Fuel!W36+(1-'Primary Calculations'!$D$11)*'Primary Calculations'!$D$12*'Primary Calculations'!$E$4*Fuel!W40 -> 6543959.379 | X17: ='Primary Calculations'!$D$11*'Primary Calculations'!$D$12*'Primary Calculations'!$D$5*Fuel!X36+(1-'Primary Calculations'!$D$11)*'Primary Calculations'!$D$12*'Primary Calculations'!$E$4*Fuel!X40 -> 6678358.28 | Y17: ='Primary Calculations'!$D$11*'Primary Calculations'!$D$12*'Primary Calculations'!$D$5*Fuel!Y36+(1-'Primary Calculations'!$D$11)*'Primary Calculations'!$D$12*'Primary Calculations'!$E$4*Fuel!Y40 -> 6818786.484 | Z17: ='Primary Calculations'!$D$11*'Primary Calculations'!$D$12*'Primary Calculations'!$D$5*Fuel!Z36+(1-'Primary Calculations'!$D$11)*'Primary Calculations'!$D$12*'Primary Calculations'!$E$4*Fuel!Z40 -> 6970509.869 | AA17: ='Primary Calculations'!$D$11*'Primary Calculations'!$D$12*'Primary Calculations'!$D$5*Fuel!AA36+(1-'Primary Calculations'!$D$11)*'Primary Calculations'!$D$12*'Primary Calculations'!$E$4*Fuel!AA40 -> 7094354.581 | AB17: ='Primary Calculations'!$D$11*'Primary Calculations'!$D$12*'Primary Calculations'!$D$5*Fuel!AB36+(1-'Primary Calculations'!$D$11)*'Primary Calculations'!$D$12*'Primary Calculations'!$E$4*Fuel!AB40 -> 7289591.603 | AC17: ='Primary Calculations'!$D$11*'Primary Calculations'!$D$12*'Primary Calculations'!$D$5*Fuel!AC36+(1-'Primary Calculations'!$D$11)*'Primary Calculations'!$D$12*'Primary Calculations'!$E$4*Fuel!AC40 -> 1535917.111 | AD17: ='Primary Calculations'!$D$11*'Primary Calculations'!$D$12*'Primary Calculations'!$D$5*Fuel!AD36+(1-'Primary Calculations'!$D$11)*'Primary Calculations'!$D$12*'Primary Calculations'!$E$4*Fuel!AD40 -> 1535917.111 | AE17: ='Primary Calculations'!$D$11*'Primary Calculations'!$D$12*'Primary Calculations'!$D$5*Fuel!AE36+(1-'Primary Calculations'!$D$11)*'Primary Calculations'!$D$12*'Primary Calculations'!$E$4*Fuel!AE40 -> 1535917.111 | AF17: ='Primary Calculations'!$D$11*'Primary Calculations'!$D$12*'Primary Calculations'!$D$5*Fuel!AF36+(1-'Primary Calculations'!$D$11)*'Primary Calculations'!$D$12*'Primary Calculations'!$E$4*Fuel!AF40 -> 1535917.111 | AG17: ='Primary Calculations'!$D$11*'Primary Calculations'!$D$12*'Primary Calculations'!$D$5*Fuel!AG36+(1-'Primary Calculations'!$D$11)*'Primary Calculations'!$D$12*'Primary Calculations'!$E$4*Fuel!AG40 -> 1535917.111 | AH17: ='Primary Calculations'!$D$11*'Primary Calculations'!$D$12*'Primary Calculations'!$D$5*Fuel!AH36+(1-'Primary Calculations'!$D$11)*'Primary Calculations'!$D$12*'Primary Calculations'!$E$4*Fuel!AH40 -> 1535917.111 | AI17: ='Primary Calculations'!$D$11*'Primary Calculations'!$D$12*'Primary Calculations'!$D$5*Fuel!AI36+(1-'Primary Calculations'!$D$11)*'Primary Calculations'!$D$12*'Primary Calculations'!$E$4*Fuel!AI40 -> 1535917.111 | AJ17: ='Primary Calculations'!$D$11*'Primary Calculations'!$D$12*'Primary Calculations'!$D$5*Fuel!AJ36+(1-'Primary Calculations'!$D$11)*'Primary Calculations'!$D$12*'Primary Calculations'!$E$4*Fuel!AJ40 -> 1535917.111 | AK17: ='Primary Calculations'!$D$11*'Primary Calculations'!$D$12*'Primary Calculations'!$D$5*Fuel!AK36+(1-'Primary Calculations'!$D$11)*'Primary Calculations'!$D$12*'Primary Calculations'!$E$4*Fuel!AK40 -> 1535917.111 | AL17: ='Primary Calculations'!$D$11*'Primary Calculations'!$D$12*'Primary Calculations'!$D$5*Fuel!AL36+(1-'Primary Calculations'!$D$11)*'Primary Calculations'!$D$12*'Primary Calculations'!$E$4*Fuel!AL40 -> 1535917.111 | AM17: ='Primary Calculations'!$D$11*'Primary Calculations'!$D$12*'Primary Calculations'!$D$5*Fuel!AM36+(1-'Primary Calculations'!$D$11)*'Primary Calculations'!$D$12*'Primary Calculations'!$E$4*Fuel!AM40 -> 1535917.111 | AN17: ='Primary Calculations'!$D$11*'Primary Calculations'!$D$12*'Primary Calculations'!$D$5*Fuel!AN36+(1-'Primary Calculations'!$D$11)*'Primary Calculations'!$D$12*'Primary Calculations'!$E$4*Fuel!AN40 -> 1535917.111 | AO17: ='Primary Calculations'!$D$11*'Primary Calculations'!$D$12*'Primary Calculations'!$D$5*Fuel!AO36+(1-'Primary Calculations'!$D$11)*'Primary Calculations'!$D$12*'Primary Calculations'!$E$4*Fuel!AO40 -> 1535917.111 | AP17: ='Primary Calculations'!$D$11*'Primary Calculations'!$D$12*'Primary Calculations'!$D$5*Fuel!AP36+(1-'Primary Calculations'!$D$11)*'Primary Calculations'!$D$12*'Primary Calculations'!$E$4*Fuel!AP40 -> 1535917.111 | AQ17: ='Primary Calculations'!$D$11*'Primary Calculations'!$D$12*'Primary Calculations'!$D$5*Fuel!AQ36+(1-'Primary Calculations'!$D$11)*'Primary Calculations'!$D$12*'Primary Calculations'!$E$4*Fuel!AQ40 -> 1535917.111 | AR17: ='Primary Calculations'!$D$11*'Primary Calculations'!$D$12*'Primary Calculations'!$D$5*Fuel!AR36+(1-'Primary Calculations'!$D$11)*'Primary Calculations'!$D$12*'Primary Calculations'!$E$4*Fuel!AR40 -> 1535917.111 | AS17: ='Primary Calculations'!$D$11*'Primary Calculations'!$D$12*'Primary Calculations'!$D$5*Fuel!AS36+(1-'Primary Calculations'!$D$11)*'Primary Calculations'!$D$12*'Primary Calculations'!$E$4*Fuel!AS40 -> 1535917.111 | AT17: ='Primary Calculations'!$D$11*'Primary Calculations'!$D$12*'Primary Calculations'!$D$5*Fuel!AT36+(1-'Primary Calculations'!$D$11)*'Primary Calculations'!$D$12*'Primary Calculations'!$E$4*Fuel!AT40 -> 1535917.111 | AU17: ='Primary Calculations'!$D$11*'Primary Calculations'!$D$12*'Primary Calculations'!$D$5*Fuel!AU36+(1-'Primary Calculations'!$D$11)*'Primary Calculations'!$D$12*'Primary Calculations'!$E$4*Fuel!AU40 -> 1535917.111 | AV17: ='Primary Calculations'!$D$11*'Primary Calculations'!$D$12*'Primary Calculations'!$D$5*Fuel!AV36+(1-'Primary Calculations'!$D$11)*'Primary Calculations'!$D$12*'Primary Calculations'!$E$4*Fuel!AV40 -> 1535917.111
B18: Alternate Fuel discounted (ECA enabled) (high) | C18: =C17/(1+'Primary Calculations'!$D$14)^Fuel!C3 -> 4093401.128 | D18: =D17/(1+'Primary Calculations'!$D$14)^Fuel!D3 -> 4405304.399 | E18: =E17/(1+'Primary Calculations'!$D$14)^Fuel!E3 -> 3887225.993 | F18: =F17/(1+'Primary Calculations'!$D$14)^Fuel!F3 -> 3646594.132 | G18: =G17/(1+'Primary Calculations'!$D$14)^Fuel!G3 -> 3452681.966 | H18: =H17/(1+'Primary Calculations'!$D$14)^Fuel!H3 -> 3454079.486 | I18: =I17/(1+'Primary Calculations'!$D$14)^Fuel!I3 -> 3294655.499 | J18: =J17/(1+'Primary Calculations'!$D$14)^Fuel!J3 -> 3134821.799 | K18: =K17/(1+'Primary Calculations'!$D$14)^Fuel!K3 -> 2975736.142 | L18: =L17/(1+'Primary Calculations'!$D$14)^Fuel!L3 -> 2840295.231 | M18: =M17/(1+'Primary Calculations'!$D$14)^Fuel!M3 -> 2706366.576 | N18: =N17/(1+'Primary Calculations'!$D$14)^Fuel!N3 -> 2572221.571 | O18: =O17/(1+'Primary Calculations'!$D$14)^Fuel!O3 -> 2457521.957 | P18: =P17/(1+'Primary Calculations'!$D$14)^Fuel!P3 -> 2354132.38 | Q18: =Q17/(1+'Primary Calculations'!$D$14)^Fuel!Q3 -> 2241078.796 | R18: =R17/(1+'Primary Calculations'!$D$14)^Fuel!R3 -> 2137436.667 | S18: =S17/(1+'Primary Calculations'!$D$14)^Fuel!S3 -> 2044032.077 | T18: =T17/(1+'Primary Calculations'!$D$14)^Fuel!T3 -> 1956839.164 | U18: =U17/(1+'Primary Calculations'!$D$14)^Fuel!U3 -> 1863259.914 | V18: =V17/(1+'Primary Calculations'!$D$14)^Fuel!V3 -> 1777447.259 | W18: =W17/(1+'Primary Calculations'!$D$14)^Fuel!W3 -> 1691083.457 | X18: =X17/(1+'Primary Calculations'!$D$14)^Fuel!X3 -> 1612910.923 | Y18: =Y17/(1+'Primary Calculations'!$D$14)^Fuel!Y3 -> 1539089.88 | Z18: =Z17/(1+'Primary Calculations'!$D$14)^Fuel!Z3 -> 1470407.332 | AA18: =AA17/(1+'Primary Calculations'!$D$14)^Fuel!AA3 -> 1398628.026 | AB18: =AB17/(1+'Primary Calculations'!$D$14)^Fuel!AB3 -> 1343101.257 | AC18: =AC17/(1+'Primary Calculations'!$D$14)^Fuel!AC3 -> 264478.0042 | AD18: =AD17/(1+'Primary Calculations'!$D$14)^Fuel!AD3 -> 247175.7049 | AE18: =AE17/(1+'Primary Calculations'!$D$14)^Fuel!AE3 -> 231005.3317 | AF18: =AF17/(1+'Primary Calculations'!$D$14)^Fuel!AF3 -> 215892.8333 | AG18: =AG17/(1+'Primary Calculations'!$D$14)^Fuel!AG3 -> 201769.0031 | AH18: =AH17/(1+'Primary Calculations'!$D$14)^Fuel!AH3 -> 188569.1618 | AI18: =AI17/(1+'Primary Calculations'!$D$14)^Fuel!AI3 -> 176232.8615 | AJ18: =AJ17/(1+'Primary Calculations'!$D$14)^Fuel!AJ3 -> 164703.6089 | AK18: =AK17/(1+'Primary Calculations'!$D$14)^Fuel!AK3 -> 153928.6064 | AL18: =AL17/(1+'Primary Calculations'!$D$14)^Fuel!AL3 -> 143858.5107 | AM18: =AM17/(1+'Primary Calculations'!$D$14)^Fuel!AM3 -> 134447.2062 | AN18: =AN17/(1+'Primary Calculations'!$D$14)^Fuel!AN3 -> 125651.5946 | AO18: =AO17/(1+'Primary Calculations'!$D$14)^Fuel!AO3 -> 117431.3968 | AP18: =AP17/(1+'Primary Calculations'!$D$14)^Fuel!AP3 -> 109748.969 | AQ18: =AQ17/(1+'Primary Calculations'!$D$14)^Fuel!AQ3 -> 102569.1299 | AR18: =AR17/(1+'Primary Calculations'!$D$14)^Fuel!AR3 -> 95858.99991 | AS18: =AS17/(1+'Primary Calculations'!$D$14)^Fuel!AS3 -> 89587.85039 | AT18: =AT17/(1+'Primary Calculations'!$D$14)^Fuel!AT3 -> 83726.96298 | AU18: =AU17/(1+'Primary Calculations'!$D$14)^Fuel!AU3 -> 78249.49811 | AV18: =AV17/(1+'Primary Calculations'!$D$14)^Fuel!AV3 -> 73130.37206
B19: LNG | C19: ='Primary Calculations'!$D$11*'Primary Calculations'!$D$12*'Primary Calculations'!$D$6*Fuel!C42+(1-'Primary Calculations'!$D$11)*'Primary Calculations'!$D$12*'Primary Calculations'!$E$6*Fuel!C42 -> 2599993.072 | D19: ='Primary Calculations'!$D$11*'Primary Calculations'!$D$12*'Primary Calculations'!$D$6*Fuel!D42+(1-'Primary Calculations'!$D$11)*'Primary Calculations'!$D$12*'Primary Calculations'!$E$6*Fuel!D42 -> 2603565.969 | E19: ='Primary Calculations'!$D$11*'Primary Calculations'!$D$12*'Primary Calculations'!$D$6*Fuel!E42+(1-'Primary Calculations'!$D$11)*'Primary Calculations'!$D$12*'Primary Calculations'!$E$6*Fuel!E42 -> 2678339.129 | F19: ='Primary Calculations'!$D$11*'Primary Calculations'!$D$12*'Primary Calculations'!$D$6*Fuel!F42+(1-'Primary Calculations'!$D$11)*'Primary Calculations'!$D$12*'Primary Calculations'!$E$6*Fuel!F42 -> 2964797.444 | G19: ='Primary Calculations'!$D$11*'Primary Calculations'!$D$12*'Primary Calculations'!$D$6*Fuel!G42+(1-'Primary Calculations'!$D$11)*'Primary Calculations'!$D$12*'Primary Calculations'!$E$6*Fuel!G42 -> 3204442.011 | H19: ='Primary Calculations'!$D$11*'Primary Calculations'!$D$12*'Primary Calculations'!$D$6*Fuel!H42+(1-'Primary Calculations'!$D$11)*'Primary Calculations'!$D$12*'Primary Calculations'!$E$6*Fuel!H42 -> 3436088.218 | I19: ='Primary Calculations'!$D$11*'Primary Calculations'!$D$12*'Primary Calculations'!$D$6*Fuel!I42+(1-'Primary Calculations'!$D$11)*'Primary Calculations'!$D$12*'Primary Calculations'!$E$6*Fuel!I42 -> 3533085.852 | J19: ='Primary Calculations'!$D$11*'Primary Calculations'!$D$12*'Primary Calculations'!$D$6*Fuel!J42+(1-'Primary Calculations'!$D$11)*'Primary Calculations'!$D$12*'Primary Calculations'!$E$6*Fuel!J42 -> 3583181.032 | K19: ='Primary Calculations'!$D$11*'Primary Calculations'!$D$12*'Primary Calculations'!$D$6*Fuel!K42+(1-'Primary Calculations'!$D$11)*'Primary Calculations'!$D$12*'Primary Calculations'!$E$6*Fuel!K42 -> 3694123.876 | L19: ='Primary Calculations'!$D$11*'Primary Calculations'!$D$12*'Primary Calculations'!$D$6*Fuel!L42+(1-'Primary Calculations'!$D$11)*'Primary Calculations'!$D$12*'Primary Calculations'!$E$6*Fuel!L42 -> 3765500.144 | M19: ='Primary Calculations'!$D$11*'Primary Calculations'!$D$12*'Primary Calculations'!$D$6*Fuel!M42+(1-'Primary Calculations'!$D$11)*'Primary Calculations'!$D$12*'Primary Calculations'!$E$6*Fuel!M42 -> 3841836.93 | N19: ='Primary Calculations'!$D$11*'Primary Calculations'!$D$12*'Primary Calculations'!$D$6*Fuel!N42+(1-'Primary Calculations'!$D$11)*'Primary Calculations'!$D$12*'Primary Calculations'!$E$6*Fuel!N42 -> 3989190.231 | O19: ='Primary Calculations'!$D$11*'Primary Calculations'!$D$12*'Primary Calculations'!$D$6*Fuel!O42+(1-'Primary Calculations'!$D$11)*'Primary Calculations'!$D$12*'Primary Calculations'!$E$6*Fuel!O42 -> 3988302.463 | P19: ='Primary Calculations'!$D$11*'Primary Calculations'!$D$12*'Primary Calculations'!$D$6*Fuel!P42+(1-'Primary Calculations'!$D$11)*'Primary Calculations'!$D$12*'Primary Calculations'!$E$6*Fuel!P42 -> 3990181.49 | Q19: ='Primary Calculations'!$D$11*'Primary Calculations'!$D$12*'Primary Calculations'!$D$6*Fuel!Q42+(1-'Primary Calculations'!$D$11)*'Primary Calculations'!$D$12*'Primary Calculations'!$E$6*Fuel!Q42 -> 4020326.178 | R19: ='Primary Calculations'!$D$11*'Primary Calculations'!$D$12*'Primary Calculations'!$D$6*Fuel!R42+(1-'Primary Calculations'!$D$11)*'Primary Calculations'!$D$12*'Primary Calculations'!$E$6*Fuel!R42 -> 4005783.961 | S19: ='Primary Calculations'!$D$11*'Primary Calculations'!$D$12*'Primary Calculations'!$D$6*Fuel!S42+(1-'Primary Calculations'!$D$11)*'Primary Calculations'!$D$12*'Primary Calculations'!$E$6*Fuel!S42 -> 4162533.804 | T19: ='Primary Calculations'!$D$11*'Primary Calculations'!$D$12*'Primary Calculations'!$D$6*Fuel!T42+(1-'Primary Calculations'!$D$11)*'Primary Calculations'!$D$12*'Primary Calculations'!$E$6*Fuel!T42 -> 4289967.59 | U19: ='Primary Calculations'!$D$11*'Primary Calculations'!$D$12*'Primary Calculations'!$D$6*Fuel!U42+(1-'Primary Calculations'!$D$11)*'Primary Calculations'!$D$12*'Primary Calculations'!$E$6*Fuel!U42 -> 4415539.245 | V19: ='Primary Calculations'!$D$11*'Primary Calculations'!$D$12*'Primary Calculations'!$D$6*Fuel!V42+(1-'Primary Calculations'!$D$11)*'Primary Calculations'!$D$12*'Primary Calculations'!$E$6*Fuel!V42 -> 4542245.779 | W19: ='Primary Calculations'!$D$11*'Primary Calculations'!$D$12*'Primary Calculations'!$D$6*Fuel!W42+(1-'Primary Calculations'!$D$11)*'Primary Calculations'!$D$12*'Primary Calculations'!$E$6*Fuel!W42 -> 4646385.686 | X19: ='Primary Calculations'!$D$11*'Primary Calculations'!$D$12*'Primary Calculations'!$D$6*Fuel!X42+(1-'Primary Calculations'!$D$11)*'Primary Calculations'!$D$12*'Primary Calculations'!$E$6*Fuel!X42 -> 4756639.295 | Y19: ='Primary Calculations'!$D$11*'Primary Calculations'!$D$12*'Primary Calculations'!$D$6*Fuel!Y42+(1-'Primary Calculations'!$D$11)*'Primary Calculations'!$D$12*'Primary Calculations'!$E$6*Fuel!Y42 -> 4816294.35 | Z19: ='Primary Calculations'!$D$11*'Primary Calculations'!$D$12*'Primary Calculations'!$D$6*Fuel!Z42+(1-'Primary Calculations'!$D$11)*'Primary Calculations'!$D$12*'Primary Calculations'!$E$6*Fuel!Z42 -> 4941576.653 | AA19: ='Primary Calculations'!$D$11*'Primary Calculations'!$D$12*'Primary Calculations'!$D$6*Fuel!AA42+(1-'Primary Calculations'!$D$11)*'Primary Calculations'!$D$12*'Primary Calculations'!$E$6*Fuel!AA42 -> 5193665.462 | AB19: ='Primary Calculations'!$D$11*'Primary Calculations'!$D$12*'Primary Calculations'!$D$6*Fuel!AB42+(1-'Primary Calculations'!$D$11)*'Primary Calculations'!$D$12*'Primary Calculations'!$E$6*Fuel!AB42 -> 5527169.146 | AC19: ='Primary Calculations'!$D$11*'Primary Calculations'!$D$12*'Primary Calculations'!$D$6*Fuel!AC42+(1-'Primary Calculations'!$D$11)*'Primary Calculations'!$D$12*'Primary Calculations'!$E$6*Fuel!AC42 -> 0 | AD19: ='Primary Calculations'!$D$11*'Primary Calculations'!$D$12*'Primary Calculations'!$D$6*Fuel!AD42+(1-'Primary Calculations'!$D$11)*'Primary Calculations'!$D$12*'Primary Calculations'!$E$6*Fuel!AD42 -> 0 | AE19: ='Primary Calculations'!$D$11*'Primary Calculations'!$D$12*'Primary Calculations'!$D$6*Fuel!AE42+(1-'Primary Calculations'!$D$11)*'Primary Calculations'!$D$12*'Primary Calculations'!$E$6*Fuel!AE42 -> 0 | AF19: ='Primary Calculations'!$D$11*'Primary Calculations'!$D$12*'Primary Calculations'!$D$6*Fuel!AF42+(1-'Primary Calculations'!$D$11)*'Primary Calculations'!$D$12*'Primary Calculations'!$E$6*Fuel!AF42 -> 0 | AG19: ='Primary Calculations'!$D$11*'Primary Calculations'!$D$12*'Primary Calculations'!$D$6*Fuel!AG42+(1-'Primary Calculations'!$D$11)*'Primary Calculations'!$D$12*'Primary Calculations'!$E$6*Fuel!AG42 -> 0 | AH19: ='Primary Calculations'!$D$11*'Primary Calculations'!$D$12*'Primary Calculations'!$D$6*Fuel!AH42+(1-'Primary Calculations'!$D$11)*'Primary Calculations'!$D$12*'Primary Calculations'!$E$6*Fuel!AH42 -> 0 | AI19: ='Primary Calculations'!$D$11*'Primary Calculations'!$D$12*'Primary Calculations'!$D$6*Fuel!AI42+(1-'Primary Calculations'!$D$11)*'Primary Calculations'!$D$12*'Primary Calculations'!$E$6*Fuel!AI42 -> 0 | AJ19: ='Primary Calculations'!$D$11*'Primary Calculations'!$D$12*'Primary Calculations'!$D$6*Fuel!AJ42+(1-'Primary Calculations'!$D$11)*'Primary Calculations'!$D$12*'Primary Calculations'!$E$6*Fuel!AJ42 -> 0 | AK19: ='Primary Calculations'!$D$11*'Primary Calculations'!$D$12*'Primary Calculations'!$D$6*Fuel!AK42+(1-'Primary Calculations'!$D$11)*'Primary Calculations'!$D$12*'Primary Calculations'!$E$6*Fuel!AK42 -> 0 | AL19: ='Primary Calculations'!$D$11*'Primary Calculations'!$D$12*'Primary Calculations'!$D$6*Fuel!AL42+(1-'Primary Calculations'!$D$11)*'Primary Calculations'!$D$12*'Primary Calculations'!$E$6*Fuel!AL42 -> 0 | AM19: ='Primary Calculations'!$D$11*'Primary Calculations'!$D$12*'Primary Calculations'!$D$6*Fuel!AM42+(1-'Primary Calculations'!$D$11)*'Primary Calculations'!$D$12*'Primary Calculations'!$E$6*Fuel!AM42 -> 0 | AN19: ='Primary Calculations'!$D$11*'Primary Calculations'!$D$12*'Primary Calculations'!$D$6*Fuel!AN42+(1-'Primary Calculations'!$D$11)*'Primary Calculations'!$D$12*'Primary Calculations'!$E$6*Fuel!AN42 -> 0 | AO19: ='Primary Calculations'!$D$11*'Primary Calculations'!$D$12*'Primary Calculations'!$D$6*Fuel!AO42+(1-'Primary Calculations'!$D$11)*'Primary Calculations'!$D$12*'Primary Calculations'!$E$6*Fuel!AO42 -> 0 | AP19: ='Primary Calculations'!$D$11*'Primary Calculations'!$D$12*'Primary Calculations'!$D$6*Fuel!AP42+(1-'Primary Calculations'!$D$11)*'Primary Calculations'!$D$12*'Primary Calculations'!$E$6*Fuel!AP42 -> 0 | AQ19: ='Primary Calculations'!$D$11*'Primary Calculations'!$D$12*'Primary Calculations'!$D$6*Fuel!AQ42+(1-'Primary Calculations'!$D$11)*'Primary Calculations'!$D$12*'Primary Calculations'!$E$6*Fuel!AQ42 -> 0 | AR19: ='Primary Calculations'!$D$11*'Primary Calculations'!$D$12*'Primary Calculations'!$D$6*Fuel!AR42+(1-'Primary Calculations'!$D$11)*'Primary Calculations'!$D$12*'Primary Calculations'!$E$6*Fuel!AR42 -> 0 | AS19: ='Primary Calculations'!$D$11*'Primary Calculations'!$D$12*'Primary Calculations'!$D$6*Fuel!AS42+(1-'Primary Calculations'!$D$11)*'Primary Calculations'!$D$12*'Primary Calculations'!$E$6*Fuel!AS42 -> 0 | AT19: ='Primary Calculations'!$D$11*'Primary Calculations'!$D$12*'Primary Calculations'!$D$6*Fuel!AT42+(1-'Primary Calculations'!$D$11)*'Primary Calculations'!$D$12*'Primary Calculations'!$E$6*Fuel!AT42 -> 0 | AU19: ='Primary Calculations'!$D$11*'Primary Calculations'!$D$12*'Primary Calculations'!$D$6*Fuel!AU42+(1-'Primary Calculations'!$D$11)*'Primary Calculations'!$D$12*'Primary Calculations'!$E$6*Fuel!AU42 -> 0 | AV19: ='Primary Calculations'!$D$11*'Primary Calculations'!$D$12*'Primary Calculations'!$D$6*Fuel!AV42+(1-'Primary Calculations'!$D$11)*'Primary Calculations'!$D$12*'Primary Calculations'!$E$6*Fuel!AV42 -> 0
B20: LNG discounted | C20: =C19/(1+'Primary Calculations'!$D$14)^Fuel!C3 -> 2599993.072 | D20: =D19/(1+'Primary Calculations'!$D$14)^D3 -> 2433239.223 | E20: =E19/(1+'Primary Calculations'!$D$14)^E3 -> 2339365.123 | F20: =F19/(1+'Primary Calculations'!$D$14)^F3 -> 2420157.859 | G20: =G19/(1+'Primary Calculations'!$D$14)^G3 -> 2444653.468 | H20: =H19/(1+'Primary Calculations'!$D$14)^H3 -> 2449883.411 | I20: =I19/(1+'Primary Calculations'!$D$14)^I3 -> 2354244.284 | J20: =J19/(1+'Primary Calculations'!$D$14)^J3 -> 2231425.063 | K20: =K19/(1+'Primary Calculations'!$D$14)^K3 -> 2150013.729 | L20: =L19/(1+'Primary Calculations'!$D$14)^L3 -> 2048182.586 | M20: =M19/(1+'Primary Calculations'!$D$14)^M3 -> 1952995.084 | N20: =N19/(1+'Primary Calculations'!$D$14)^N3 -> 1895235.542 | O20: =O19/(1+'Primary Calculations'!$D$14)^O3 -> 1770853.991 | P20: =P19/(1+'Primary Calculations'!$D$14)^P3 -> 1655783.459 | Q20: =Q19/(1+'Primary Calculations'!$D$14)^Q3 -> 1559151.806 | R20: =R19/(1+'Primary Calculations'!$D$14)^R3 -> 1451880.452 | S20: =S19/(1+'Primary Calculations'!$D$14)^S3 -> 1409994.214 | T20: =T19/(1+'Primary Calculations'!$D$14)^T3 -> 1358093.875 | U20: =U19/(1+'Primary Calculations'!$D$14)^U3 -> 1306398.734 | V20: =V19/(1+'Primary Calculations'!$D$14)^V3 -> 1255968.808 | W20: =W19/(1+'Primary Calculations'!$D$14)^W3 -> 1200714.356 | X20: =X19/(1+'Primary Calculations'!$D$14)^X3 -> 1148790.639 | Y20: =Y19/(1+'Primary Calculations'!$D$14)^Y3 -> 1087101.042 | Z20: =Z19/(1+'Primary Calculations'!$D$14)^Z3 -> 1042410.194 | AA20: =AA19/(1+'Primary Calculations'!$D$14)^AA3 -> 1023913.591 | AB20: =AB19/(1+'Primary Calculations'!$D$14)^AB3 -> 1018376.369 | AC20: =AC19/(1+'Primary Calculations'!$D$14)^AC3 -> 0 | AD20: =AD19/(1+'Primary Calculations'!$D$14)^AD3 -> 0 | AE20: =AE19/(1+'Primary Calculations'!$D$14)^AE3 -> 0 | AF20: =AF19/(1+'Primary Calculations'!$D$14)^AF3 -> 0 | AG20: =AG19/(1+'Primary Calculations'!$D$14)^AG3 -> 0 | AH20: =AH19/(1+'Primary Calculations'!$D$14)^AH3 -> 0 | AI20: =AI19/(1+'Primary Calculations'!$D$14)^AI3 -> 0 | AJ20: =AJ19/(1+'Primary Calculations'!$D$14)^AJ3 -> 0 | AK20: =AK19/(1+'Primary Calculations'!$D$14)^AK3 -> 0 | AL20: =AL19/(1+'Primary Calculations'!$D$14)^AL3 -> 0 | AM20: =AM19/(1+'Primary Calculations'!$D$14)^AM3 -> 0 | AN20: =AN19/(1+'Primary Calculations'!$D$14)^AN3 -> 0 | AO20: =AO19/(1+'Primary Calculations'!$D$14)^AO3 -> 0 | AP20: =AP19/(1+'Primary Calculations'!$D$14)^AP3 -> 0 | AQ20: =AQ19/(1+'Primary Calculations'!$D$14)^AQ3 -> 0 | AR20: =AR19/(1+'Primary Calculations'!$D$14)^AR3 -> 0 | AS20: =AS19/(1+'Primary Calculations'!$D$14)^AS3 -> 0 | AT20: =AT19/(1+'Primary Calculations'!$D$14)^AT3 -> 0 | AU20: =AU19/(1+'Primary Calculations'!$D$14)^AU3 -> 0 | AV20: =AV19/(1+'Primary Calculations'!$D$14)^AV3 -> 0
B21: LNG (HFO) | C21: ='Primary Calculations'!$D$11*'Primary Calculations'!$D$12*'Primary Calculations'!$D$6*Fuel!C42+(1-'Primary Calculations'!$D$11)*'Primary Calculations'!$D$12*'Primary Calculations'!$E$6*Fuel!C42 -> 2599993.072 | D21: ='Primary Calculations'!$D$11*'Primary Calculations'!$D$12*'Primary Calculations'!$D$6*Fuel!D42+(1-'Primary Calculations'!$D$11)*'Primary Calculations'!$D$12*'Primary Calculations'!$E$6*Fuel!D42 -> 2603565.969 | E21: ='Primary Calculations'!$D$11*'Primary Calculations'!$D$12*'Primary Calculations'!$D$6*Fuel!E42+(1-'Primary Calculations'!$D$11)*'Primary Calculations'!$D$12*'Primary Calculations'!$E$6*Fuel!E42 -> 2678339.129 | F21: ='Primary Calculations'!$D$11*'Primary Calculations'!$D$12*'Primary Calculations'!$D$6*Fuel!F42+(1-'Primary Calculations'!$D$11)*'Primary Calculations'!$D$12*'Primary Calculations'!$E$6*Fuel!F42 -> 2964797.444 | G21: ='Primary Calculations'!$D$11*'Primary Calculations'!$D$12*'Primary Calculations'!$D$6*Fuel!G42+(1-'Primary Calculations'!$D$11)*'Primary Calculations'!$D$12*'Primary Calculations'!$E$6*Fuel!G42 -> 3204442.011 | H21: ='Primary Calculations'!$D$11*'Primary Calculations'!$D$12*'Primary Calculations'!$D$6*Fuel!H42+(1-'Primary Calculations'!$D$11)*'Primary Calculations'!$D$12*'Primary Calculations'!$E$6*Fuel!H42 -> 3436088.218 | I21: ='Primary Calculations'!$D$11*'Primary Calculations'!$D$12*'Primary Calculations'!$D$6*Fuel!I42+(1-'Primary Calculations'!$D$11)*'Primary Calculations'!$D$12*'Primary Calculations'!$E$6*Fuel!I42 -> 3533085.852 | J21: ='Primary Calculations'!$D$11*'Primary Calculations'!$D$12*'Primary Calculations'!$D$6*Fuel!J42+(1-'Primary Calculations'!$D$11)*'Primary Calculations'!$D$12*'Primary Calculations'!$E$6*Fuel!J42 -> 3583181.032 | K21: ='Primary Calculations'!$D$11*'Primary Calculations'!$D$12*'Primary Calculations'!$D$6*Fuel!K42+(1-'Primary Calculations'!$D$11)*'Primary Calculations'!$D$12*'Primary Calculations'!$E$6*Fuel!K42 -> 3694123.876 | L21: ='Primary Calculations'!$D$11*'Primary Calculations'!$D$12*'Primary Calculations'!$D$6*Fuel!L42+(1-'Primary Calculations'!$D$11)*'Primary Calculations'!$D$12*'Primary Calculations'!$E$6*Fuel!L42 -> 3765500.144 | M21: ='Primary Calculations'!$D$11*'Primary Calculations'!$D$12*'Primary Calculations'!$D$6*Fuel!M42+(1-'Primary Calculations'!$D$11)*'Primary Calculations'!$D$12*'Primary Calculations'!$E$6*Fuel!M42 -> 3841836.93 | N21: ='Primary Calculations'!$D$11*'Primary Calculations'!$D$12*'Primary Calculations'!$D$6*Fuel!N42+(1-'Primary Calculations'!$D$11)*'Primary Calculations'!$D$12*'Primary Calculations'!$E$6*Fuel!N42 -> 3989190.231 | O21: ='Primary Calculations'!$D$11*'Primary Calculations'!$D$12*'Primary Calculations'!$D$6*Fuel!O42+(1-'Primary Calculations'!$D$11)*'Primary Calculations'!$D$12*'Primary Calculations'!$E$6*Fuel!O42 -> 3988302.463 | P21: ='Primary Calculations'!$D$11*'Primary Calculations'!$D$12*'Primary Calculations'!$D$6*Fuel!P42+(1-'Primary Calculations'!$D$11)*'Primary Calculations'!$D$12*'Primary Calculations'!$E$6*Fuel!P42 -> 3990181.49 | Q21: ='Primary Calculations'!$D$11*'Primary Calculations'!$D$12*'Primary Calculations'!$D$6*Fuel!Q42+(1-'Primary Calculations'!$D$11)*'Primary Calculations'!$D$12*'Primary Calculations'!$E$6*Fuel!Q42 -> 4020326.178 | R21: ='Primary Calculations'!$D$11*'Primary Calculations'!$D$12*'Primary Calculations'!$D$6*Fuel!R42+(1-'Primary Calculations'!$D$11)*'Primary Calculations'!$D$12*'Primary Calculations'!$E$6*Fuel!R42 -> 4005783.961 | S21: ='Primary Calculations'!$D$11*'Primary Calculations'!$D$12*'Primary Calculations'!$D$6*Fuel!S42+(1-'Primary Calculations'!$D$11)*'Primary Calculations'!$D$12*'Primary Calculations'!$E$6*Fuel!S42 -> 4162533.804 | T21: ='Primary Calculations'!$D$11*'Primary Calculations'!$D$12*'Primary Calculations'!$D$6*Fuel!T42+(1-'Primary Calculations'!$D$11)*'Primary Calculations'!$D$12*'Primary Calculations'!$E$6*Fuel!T42 -> 4289967.59 | U21: ='Primary Calculations'!$D$11*'Primary Calculations'!$D$12*'Primary Calculations'!$D$6*Fuel!U42+(1-'Primary Calculations'!$D$11)*'Primary Calculations'!$D$12*'Primary Calculations'!$E$6*Fuel!U42 -> 4415539.245 | V21: ='Primary Calculations'!$D$11*'Primary Calculations'!$D$12*'Primary Calculations'!$D$6*Fuel!V42+(1-'Primary Calculations'!$D$11)*'Primary Calculations'!$D$12*'Primary Calculations'!$E$6*Fuel!V42 -> 4542245.779 | W21: ='Primary Calculations'!$D$11*'Primary Calculations'!$D$12*'Primary Calculations'!$D$6*Fuel!W42+(1-'Primary Calculations'!$D$11)*'Primary Calculations'!$D$12*'Primary Calculations'!$E$6*Fuel!W42 -> 4646385.686 | X21: ='Primary Calculations'!$D$11*'Primary Calculations'!$D$12*'Primary Calculations'!$D$6*Fuel!X42+(1-'Primary Calculations'!$D$11)*'Primary Calculations'!$D$12*'Primary Calculations'!$E$6*Fuel!X42 -> 4756639.295 | Y21: ='Primary Calculations'!$D$11*'Primary Calculations'!$D$12*'Primary Calculations'!$D$6*Fuel!Y42+(1-'Primary Calculations'!$D$11)*'Primary Calculations'!$D$12*'Primary Calculations'!$E$6*Fuel!Y42 -> 4816294.35 | Z21: ='Primary Calculations'!$D$11*'Primary Calculations'!$D$12*'Primary Calculations'!$D$6*Fuel!Z42+(1-'Primary Calculations'!$D$11)*'Primary Calculations'!$D$12*'Primary Calculations'!$E$6*Fuel!Z42 -> 4941576.653 | AA21: ='Primary Calculations'!$D$11*'Primary Calculations'!$D$12*'Primary Calculations'!$D$6*Fuel!AA42+(1-'Primary Calculations'!$D$11)*'Primary Calculations'!$D$12*'Primary Calculations'!$E$6*Fuel!AA42 -> 5193665.462 | AB21: ='Primary Calculations'!$D$11*'Primary Calculations'!$D$12*'Primary Calculations'!$D$6*Fuel!AB42+(1-'Primary Calculations'!$D$11)*'Primary Calculations'!$D$12*'Primary Calculations'!$E$6*Fuel!AB42 -> 5527169.146 | AC21: ='Primary Calculations'!$D$11*'Primary Calculations'!$D$12*'Primary Calculations'!$D$6*Fuel!AC42+(1-'Primary Calculations'!$D$11)*'Primary Calculations'!$D$12*'Primary Calculations'!$E$6*Fuel!AC42 -> 0 | AD21: ='Primary Calculations'!$D$11*'Primary Calculations'!$D$12*'Primary Calculations'!$D$6*Fuel!AD42+(1-'Primary Calculations'!$D$11)*'Primary Calculations'!$D$12*'Primary Calculations'!$E$6*Fuel!AD42 -> 0 | AE21: ='Primary Calculations'!$D$11*'Primary Calculations'!$D$12*'Primary Calculations'!$D$6*Fuel!AE42+(1-'Primary Calculations'!$D$11)*'Primary Calculations'!$D$12*'Primary Calculations'!$E$6*Fuel!AE42 -> 0 | AF21: ='Primary Calculations'!$D$11*'Primary Calculations'!$D$12*'Primary Calculations'!$D$6*Fuel!AF42+(1-'Primary Calculations'!$D$11)*'Primary Calculations'!$D$12*'Primary Calculations'!$E$6*Fuel!AF42 -> 0 | AG21: ='Primary Calculations'!$D$11*'Primary Calculations'!$D$12*'Primary Calculations'!$D$6*Fuel!AG42+(1-'Primary Calculations'!$D$11)*'Primary Calculations'!$D$12*'Primary Calculations'!$E$6*Fuel!AG42 -> 0 | AH21: ='Primary Calculations'!$D$11*'Primary Calculations'!$D$12*'Primary Calculations'!$D$6*Fuel!AH42+(1-'Primary Calculations'!$D$11)*'Primary Calculations'!$D$12*'Primary Calculations'!$E$6*Fuel!AH42 -> 0 | AI21: ='Primary Calculations'!$D$11*'Primary Calculations'!$D$12*'Primary Calculations'!$D$6*Fuel!AI42+(1-'Primary Calculations'!$D$11)*'Primary Calculations'!$D$12*'Primary Calculations'!$E$6*Fuel!AI42 -> 0 | AJ21: ='Primary Calculations'!$D$11*'Primary Calculations'!$D$12*'Primary Calculations'!$D$6*Fuel!AJ42+(1-'Primary Calculations'!$D$11)*'Primary Calculations'!$D$12*'Primary Calculations'!$E$6*Fuel!AJ42 -> 0 | AK21: ='Primary Calculations'!$D$11*'Primary Calculations'!$D$12*'Primary Calculations'!$D$6*Fuel!AK42+(1-'Primary Calculations'!$D$11)*'Primary Calculations'!$D$12*'Primary Calculations'!$E$6*Fuel!AK42 -> 0 | AL21: ='Primary Calculations'!$D$11*'Primary Calculations'!$D$12*'Primary Calculations'!$D$6*Fuel!AL42+(1-'Primary Calculations'!$D$11)*'Primary Calculations'!$D$12*'Primary Calculations'!$E$6*Fuel!AL42 -> 0 | AM21: ='Primary Calculations'!$D$11*'Primary Calculations'!$D$12*'Primary Calculations'!$D$6*Fuel!AM42+(1-'Primary Calculations'!$D$11)*'Primary Calculations'!$D$12*'Primary Calculations'!$E$6*Fuel!AM42 -> 0 | AN21: ='Primary Calculations'!$D$11*'Primary Calculations'!$D$12*'Primary Calculations'!$D$6*Fuel!AN42+(1-'Primary Calculations'!$D$11)*'Primary Calculations'!$D$12*'Primary Calculations'!$E$6*Fuel!AN42 -> 0 | AO21: ='Primary Calculations'!$D$11*'Primary Calculations'!$D$12*'Primary Calculations'!$D$6*Fuel!AO42+(1-'Primary Calculations'!$D$11)*'Primary Calculations'!$D$12*'Primary Calculations'!$E$6*Fuel!AO42 -> 0 | AP21: ='Primary Calculations'!$D$11*'Primary Calculations'!$D$12*'Primary Calculations'!$D$6*Fuel!AP42+(1-'Primary Calculations'!$D$11)*'Primary Calculations'!$D$12*'Primary Calculations'!$E$6*Fuel!AP42 -> 0 | AQ21: ='Primary Calculations'!$D$11*'Primary Calculations'!$D$12*'Primary Calculations'!$D$6*Fuel!AQ42+(1-'Primary Calculations'!$D$11)*'Primary Calculations'!$D$12*'Primary Calculations'!$E$6*Fuel!AQ42 -> 0 | AR21: ='Primary Calculations'!$D$11*'Primary Calculations'!$D$12*'Primary Calculations'!$D$6*Fuel!AR42+(1-'Primary Calculations'!$D$11)*'Primary Calculations'!$D$12*'Primary Calculations'!$E$6*Fuel!AR42 -> 0 | AS21: ='Primary Calculations'!$D$11*'Primary Calculations'!$D$12*'Primary Calculations'!$D$6*Fuel!AS42+(1-'Primary Calculations'!$D$11)*'Primary Calculations'!$D$12*'Primary Calculations'!$E$6*Fuel!AS42 -> 0 | AT21: ='Primary Calculations'!$D$11*'Primary Calculations'!$D$12*'Primary Calculations'!$D$6*Fuel!AT42+(1-'Primary Calculations'!$D$11)*'Primary Calculations'!$D$12*'Primary Calculations'!$E$6*Fuel!AT42 -> 0 | AU21: ='Primary Calculations'!$D$11*'Primary Calculations'!$D$12*'Primary Calculations'!$D$6*Fuel!AU42+(1-'Primary Calculations'!$D$11)*'Primary Calculations'!$D$12*'Primary Calculations'!$E$6*Fuel!AU42 -> 0 | AV21: ='Primary Calculations'!$D$11*'Primary Calculations'!$D$12*'Primary Calculations'!$D$6*Fuel!AV42+(1-'Primary Calculations'!$D$11)*'Primary Calculations'!$D$12*'Primary Calculations'!$E$6*Fuel!AV42 -> 0
B22: LNG discounted (HFO) | C22: =C21/(1+'Primary Calculations'!$D$14)^C3 -> 2599993.072 | D22: =D21/(1+'Primary Calculations'!$D$14)^D3 -> 2433239.223 | E22: =E21/(1+'Primary Calculations'!$D$14)^E3 -> 2339365.123 | F22: =F21/(1+'Primary Calculations'!$D$14)^F3 -> 2420157.859 | G22: =G21/(1+'Primary Calculations'!$D$14)^G3 -> 2444653.468 | H22: =H21/(1+'Primary Calculations'!$D$14)^H3 -> 2449883.411 | I22: =I21/(1+'Primary Calculations'!$D$14)^I3 -> 2354244.284 | J22: =J21/(1+'Primary Calculations'!$D$14)^J3 -> 2231425.063 | K22: =K21/(1+'Primary Calculations'!$D$14)^K3 -> 2150013.729 | L22: =L21/(1+'Primary Calculations'!$D$14)^L3 -> 2048182.586 | M22: =M21/(1+'Primary Calculations'!$D$14)^M3 -> 1952995.084 | N22: =N21/(1+'Primary Calculations'!$D$14)^N3 -> 1895235.542 | O22: =O21/(1+'Primary Calculations'!$D$14)^O3 -> 1770853.991 | P22: =P21/(1+'Primary Calculations'!$D$14)^P3 -> 1655783.459 | Q22: =Q21/(1+'Primary Calculations'!$D$14)^Q3 -> 1559151.806 | R22: =R21/(1+'Primary Calculations'!$D$14)^R3 -> 1451880.452 | S22: =S21/(1+'Primary Calculations'!$D$14)^S3 -> 1409994.214 | T22: =T21/(1+'Primary Calculations'!$D$14)^T3 -> 1358093.875 | U22: =U21/(1+'Primary Calculations'!$D$14)^U3 -> 1306398.734 | V22: =V21/(1+'Primary Calculations'!$D$14)^V3 -> 1255968.808 | W22: =W21/(1+'Primary Calculations'!$D$14)^W3 -> 1200714.356 | X22: =X21/(1+'Primary Calculations'!$D$14)^X3 -> 1148790.639 | Y22: =Y21/(1+'Primary Calculations'!$D$14)^Y3 -> 1087101.042 | Z22: =Z21/(1+'Primary Calculations'!$D$14)^Z3 -> 1042410.194 | AA22: =AA21/(1+'Primary Calculations'!$D$14)^AA3 -> 1023913.591 | AB22: =AB21/(1+'Primary Calculations'!$D$14)^AB3 -> 1018376.369 | AC22: =AC21/(1+'Primary Calculations'!$D$14)^AC3 -> 0 | AD22: =AD21/(1+'Primary Calculations'!$D$14)^AD3 -> 0 | AE22: =AE21/(1+'Primary Calculations'!$D$14)^AE3 -> 0 | AF22: =AF21/(1+'Primary Calculations'!$D$14)^AF3 -> 0 | AG22: =AG21/(1+'Primary Calculations'!$D$14)^AG3 -> 0 | AH22: =AH21/(1+'Primary Calculations'!$D$14)^AH3 -> 0 | AI22: =AI21/(1+'Primary Calculations'!$D$14)^AI3 -> 0 | AJ22: =AJ21/(1+'Primary Calculations'!$D$14)^AJ3 -> 0 | AK22: =AK21/(1+'Primary Calculations'!$D$14)^AK3 -> 0 | AL22: =AL21/(1+'Primary Calculations'!$D$14)^AL3 -> 0 | AM22: =AM21/(1+'Primary Calculations'!$D$14)^AM3 -> 0 | AN22: =AN21/(1+'Primary Calculations'!$D$14)^AN3 -> 0 | AO22: =AO21/(1+'Primary Calculations'!$D$14)^AO3 -> 0 | AP22: =AP21/(1+'Primary Calculations'!$D$14)^AP3 -> 0 | AQ22: =AQ21/(1+'Primary Calculations'!$D$14)^AQ3 -> 0 | AR22: =AR21/(1+'Primary Calculations'!$D$14)^AR3 -> 0 | AS22: =AS21/(1+'Primary Calculations'!$D$14)^AS3 -> 0 | AT22: =AT21/(1+'Primary Calculations'!$D$14)^AT3 -> 0 | AU22: =AU21/(1+'Primary Calculations'!$D$14)^AU3 -> 0 | AV22: =AV21/(1+'Primary Calculations'!$D$14)^AV3 -> 0
B24: Cheating Spread | C24: =MIN(C9+'Primary Calculations'!$L$7+'Primary Calculations'!$L$8,C13)-C5 -> 777207.0054 | D24: =MIN(D9+'Primary Calculations'!$L$7+'Primary Calculations'!$L$8,D13)-D5 -> 758443.858 | E24: =MIN(E9+'Primary Calculations'!$L$7+'Primary Calculations'!$L$8,E13)-E5 -> 766405.3084 | F24: =MIN(F9+'Primary Calculations'!$L$7+'Primary Calculations'!$L$8,F13)-F5 -> 765898.638 | G24: =MIN(G9+'Primary Calculations'!$L$7+'Primary Calculations'!$L$8,G13)-G5 -> 764128.2073 | H24: =MIN(H9+'Primary Calculations'!$L$7+'Primary Calculations'!$L$8,H13)-H5 -> 1004871.582 | I24: =MIN(I9+'Primary Calculations'!$L$7+'Primary Calculations'!$L$8,I13)-I5 -> 1001850.711 | J24: =MIN(J9+'Primary Calculations'!$L$7+'Primary Calculations'!$L$8,J13)-J5 -> 999144.8931 | K24: =MIN(K9+'Primary Calculations'!$L$7+'Primary Calculations'!$L$8,K13)-K5 -> 996754.2577 | L24: =MIN(L9+'Primary Calculations'!$L$7+'Primary Calculations'!$L$8,L13)-L5 -> 993460.1143 | M24: =MIN(M9+'Primary Calculations'!$L$7+'Primary Calculations'!$L$8,M13)-M5 -> 990372.6515 | N24: =MIN(N9+'Primary Calculations'!$L$7+'Primary Calculations'!$L$8,N13)-N5 -> 987640.709 | O24: =MIN(O9+'Primary Calculations'!$L$7+'Primary Calculations'!$L$8,O13)-O5 -> 983990.6331 | P24: =MIN(P9+'Primary Calculations'!$L$7+'Primary Calculations'!$L$8,P13)-P5 -> 979807.5816 | Q24: =MIN(Q9+'Primary Calculations'!$L$7+'Primary Calculations'!$L$8,Q13)-Q5 -> 976613.0856 | R24: =MIN(R9+'Primary Calculations'!$L$7+'Primary Calculations'!$L$8,R13)-R5 -> 973026.7676 | S24: =MIN(S9+'Primary Calculations'!$L$7+'Primary Calculations'!$L$8,S13)-S5 -> 968880.6705 | T24: =MIN(T9+'Primary Calculations'!$L$7+'Primary Calculations'!$L$8,T13)-T5 -> 964434.6866 | U24: =MIN(U9+'Primary Calculations'!$L$7+'Primary Calculations'!$L$8,U13)-U5 -> 960913.6464 | V24: =MIN(V9+'Primary Calculations'!$L$7+'Primary Calculations'!$L$8,V13)-V5 -> 956966.2172 | W24: =MIN(W9+'Primary Calculations'!$L$7+'Primary Calculations'!$L$8,W13)-W5 -> 953464.1309 | X24: =MIN(X9+'Primary Calculations'!$L$7+'Primary Calculations'!$L$8,X13)-X5 -> 949398.5985 | Y24: =MIN(Y9+'Primary Calculations'!$L$7+'Primary Calculations'!$L$8,Y13)-Y5 -> 945150.6813 | Z24: =MIN(Z9+'Primary Calculations'!$L$7+'Primary Calculations'!$L$8,Z13)-Z5 -> 940561.0876 | AA24: =MIN(AA9+'Primary Calculations'!$L$7+'Primary Calculations'!$L$8,AA13)-AA5 -> 936814.8167 | AB24: =MIN(AB9+'Primary Calculations'!$L$7+'Primary Calculations'!$L$8,AB13)-AB5 -> 930908.9468 | AC24: =MIN(AC9+'Primary Calculations'!$L$7+'Primary Calculations'!$L$8,AC13)-AC5 -> 1104956.129 | AD24: =MIN(AD9+'Primary Calculations'!$L$7+'Primary Calculations'!$L$8,AD13)-AD5 -> 1104956.129 | AE24: =MIN(AE9+'Primary Calculations'!$L$7+'Primary Calculations'!$L$8,AE13)-AE5 -> 1104956.129 | AF24: =MIN(AF9+'Primary Calculations'!$L$7+'Primary Calculations'!$L$8,AF13)-AF5 -> 1104956.129 | AG24: =MIN(AG9+'Primary Calculations'!$L$7+'Primary Calculations'!$L$8,AG13)-AG5 -> 1104956.129 | AH24: =MIN(AH9+'Primary Calculations'!$L$7+'Primary Calculations'!$L$8,AH13)-AH5 -> 1104956.129 | AI24: =MIN(AI9+'Primary Calculations'!$L$7+'Primary Calculations'!$L$8,AI13)-AI5 -> 1104956.129 | AJ24: =MIN(AJ9+'Primary Calculations'!$L$7+'Primary Calculations'!$L$8,AJ13)-AJ5 -> 1104956.129 | AK24: =MIN(AK9+'Primary Calculations'!$L$7+'Primary Calculations'!$L$8,AK13)-AK5 -> 1104956.129 | AL24: =MIN(AL9+'Primary Calculations'!$L$7+'Primary Calculations'!$L$8,AL13)-AL5 -> 1104956.129 | AM24: =MIN(AM9+'Primary Calculations'!$L$7+'Primary Calculations'!$L$8,AM13)-AM5 -> 1104956.129 | AN24: =MIN(AN9+'Primary Calculations'!$L$7+'Primary Calculations'!$L$8,AN13)-AN5 -> 1104956.129 | AO24: =MIN(AO9+'Primary Calculations'!$L$7+'Primary Calculations'!$L$8,AO13)-AO5 -> 1104956.129 | AP24: =MIN(AP9+'Primary Calculations'!$L$7+'Primary Calculations'!$L$8,AP13)-AP5 -> 1104956.129 | AQ24: =MIN(AQ9+'Primary Calculations'!$L$7+'Primary Calculations'!$L$8,AQ13)-AQ5 -> 1104956.129 | AR24: =MIN(AR9+'Primary Calculations'!$L$7+'Primary Calculations'!$L$8,AR13)-AR5 -> 1104956.129 | AS24: =MIN(AS9+'Primary Calculations'!$L$7+'Primary Calculations'!$L$8,AS13)-AS5 -> 1104956.129 | AT24: =MIN(AT9+'Primary Calculations'!$L$7+'Primary Calculations'!$L$8,AT13)-AT5 -> 1104956.129 | AU24: =MIN(AU9+'Primary Calculations'!$L$7+'Primary Calculations'!$L$8,AU13)-AU5 -> 1104956.129 | AV24: =MIN(AV9+'Primary Calculations'!$L$7+'Primary Calculations'!$L$8,AV13)-AV5 -> 1104956.129
B25: Optimal Fine Size | C25: =C24/('Primary Calculations'!$L$3*'Primary Calculations'!$L$4) -> 64767.25045 | D25: =D24/('Primary Calculations'!$L$3*'Primary Calculations'!$L$4) -> 63203.65483 | E25: =E24/('Primary Calculations'!$L$3*'Primary Calculations'!$L$4) -> 63867.10903 | F25: =F24/('Primary Calculations'!$L$3*'Primary Calculations'!$L$4) -> 63824.8865 | G25: =G24/('Primary Calculations'!$L$3*'Primary Calculations'!$L$4) -> 63677.35061 | H25: =H24/('Primary Calculations'!$L$3*'Primary Calculations'!$L$4) -> 83739.29846 | I25: =I24/('Primary Calculations'!$L$3*'Primary Calculations'!$L$4) -> 83487.55922 | J25: =J24/('Primary Calculations'!$L$3*'Primary Calculations'!$L$4) -> 83262.07442 | K25: =K24/('Primary Calculations'!$L$3*'Primary Calculations'!$L$4) -> 83062.85481 | L25: =L24/('Primary Calculations'!$L$3*'Primary Calculations'!$L$4) -> 82788.34286 | M25: =M24/('Primary Calculations'!$L$3*'Primary Calculations'!$L$4) -> 82531.05429 | N25: =N24/('Primary Calculations'!$L$3*'Primary Calculations'!$L$4) -> 82303.39242 | O25: =O24/('Primary Calculations'!$L$3*'Primary Calculations'!$L$4) -> 81999.21943 | P25: =P24/('Primary Calculations'!$L$3*'Primary Calculations'!$L$4) -> 81650.6318 | Q25: =Q24/('Primary Calculations'!$L$3*'Primary Calculations'!$L$4) -> 81384.4238 | R25: =R24/('Primary Calculations'!$L$3*'Primary Calculations'!$L$4) -> 81085.56396 | S25: =S24/('Primary Calculations'!$L$3*'Primary Calculations'!$L$4) -> 80740.05587 | T25: =T24/('Primary Calculations'!$L$3*'Primary Calculations'!$L$4) -> 80369.55721 | U25: =U24/('Primary Calculations'!$L$3*'Primary Calculations'!$L$4) -> 80076.1372 | V25: =V24/('Primary Calculations'!$L$3*'Primary Calculations'!$L$4) -> 79747.18476 | W25: =W24/('Primary Calculations'!$L$3*'Primary Calculations'!$L$4) -> 79455.34424 | X25: =X24/('Primary Calculations'!$L$3*'Primary Calculations'!$L$4) -> 79116.54988 | Y25: =Y24/('Primary Calculations'!$L$3*'Primary Calculations'!$L$4) -> 78762.55677 | Z25: =Z24/('Primary Calculations'!$L$3*'Primary Calculations'!$L$4) -> 78380.09064 | AA25: =AA24/('Primary Calculations'!$L$3*'Primary Calculations'!$L$4) -> 78067.9014 | AB25: =AB24/('Primary Calculations'!$L$3*'Primary Calculations'!$L$4) -> 77575.74556 | AC25: =AC24/('Primary Calculations'!$L$3*'Primary Calculations'!$L$4) -> 92079.67743 | AD25: =AD24/('Primary Calculations'!$L$3*'Primary Calculations'!$L$4) -> 92079.67743 | AE25: =AE24/('Primary Calculations'!$L$3*'Primary Calculations'!$L$4) -> 92079.67743 | AF25: =AF24/('Primary Calculations'!$L$3*'Primary Calculations'!$L$4) -> 92079.67743 | AG25: =AG24/('Primary Calculations'!$L$3*'Primary Calculations'!$L$4) -> 92079.67743 | AH25: =AH24/('Primary Calculations'!$L$3*'Primary Calculations'!$L$4) -> 92079.67743 | AI25: =AI24/('Primary Calculations'!$L$3*'Primary Calculations'!$L$4) -> 92079.67743 | AJ25: =AJ24/('Primary Calculations'!$L$3*'Primary Calculations'!$L$4) -> 92079.67743 | AK25: =AK24/('Primary Calculations'!$L$3*'Primary Calculations'!$L$4) -> 92079.67743 | AL25: =AL24/('Primary Calculations'!$L$3*'Primary Calculations'!$L$4) -> 92079.67743 | AM25: =AM24/('Primary Calculations'!$L$3*'Primary Calculations'!$L$4) -> 92079.67743 | AN25: =AN24/('Primary Calculations'!$L$3*'Primary Calculations'!$L$4) -> 92079.67743 | AO25: =AO24/('Primary Calculations'!$L$3*'Primary Calculations'!$L$4) -> 92079.67743 | AP25: =AP24/('Primary Calculations'!$L$3*'Primary Calculations'!$L$4) -> 92079.67743 | AQ25: =AQ24/('Primary Calculations'!$L$3*'Primary Calculations'!$L$4) -> 92079.67743 | AR25: =AR24/('Primary Calculations'!$L$3*'Primary Calculations'!$L$4) -> 92079.67743 | AS25: =AS24/('Primary Calculations'!$L$3*'Primary Calculations'!$L$4) -> 92079.67743 | AT25: =AT24/('Primary Calculations'!$L$3*'Primary Calculations'!$L$4) -> 92079.67743 | AU25: =AU24/('Primary Calculations'!$L$3*'Primary Calculations'!$L$4) -> 92079.67743 | AV25: =AV24/('Primary Calculations'!$L$3*'Primary Calculations'!$L$4) -> 92079.67743
B26: Discounted optimal Fine Size | C26: =C25/(1+'Primary Calculations'!$D$14)^Fuel!C3 -> 64767.25045 | D26: =D25/(1+'Primary Calculations'!$D$14)^Fuel!D3 -> 59068.83629 | E26: =E25/(1+'Primary Calculations'!$D$14)^Fuel!E3 -> 55784.00649 | F26: =F25/(1+'Primary Calculations'!$D$14)^Fuel!F3 -> 52100.11934 | G26: =G25/(1+'Primary Calculations'!$D$14)^Fuel!G3 -> 48579.14589 | H26: =H25/(1+'Primary Calculations'!$D$14)^Fuel!H3 -> 59704.96248 | I26: =I25/(1+'Primary Calculations'!$D$14)^Fuel!I3 -> 55631.28587 | J26: =J25/(1+'Primary Calculations'!$D$14)^Fuel!J3 -> 51851.43535 | K26: =K25/(1+'Primary Calculations'!$D$14)^Fuel!K3 -> 48343.33775 | L26: =L25/(1+'Primary Calculations'!$D$14)^Fuel!L3 -> 45031.37318 | M26: =M25/(1+'Primary Calculations'!$D$14)^Fuel!M3 -> 41954.60303 | N26: =N25/(1+'Primary Calculations'!$D$14)^Fuel!N3 -> 39101.74886 | O26: =O25/(1+'Primary Calculations'!$D$14)^Fuel!O3 -> 36408.63407 | P26: =P25/(1+'Primary Calculations'!$D$14)^Fuel!P3 -> 33882.10934 | Q26: =Q25/(1+'Primary Calculations'!$D$14)^Fuel!Q3 -> 31562.2827 | R26: =R25/(1+'Primary Calculations'!$D$14)^Fuel!R3 -> 29389.13991 | S26: =S25/(1+'Primary Calculations'!$D$14)^Fuel!S3 -> 27349.45035 | T26: =T25/(1+'Primary Calculations'!$D$14)^Fuel!T3 -> 25442.94359 | U26: =U25/(1+'Primary Calculations'!$D$14)^Fuel!U3 -> 23691.63956 | V26: =V25/(1+'Primary Calculations'!$D$14)^Fuel!V3 -> 22050.76112 | W26: =W25/(1+'Primary Calculations'!$D$14)^Fuel!W3 -> 20532.77083 | X26: =X25/(1+'Primary Calculations'!$D$14)^Fuel!X3 -> 19107.68217 | Y26: =Y25/(1+'Primary Calculations'!$D$14)^Fuel!Y3 -> 17777.74599 | Z26: =Z25/(1+'Primary Calculations'!$D$14)^Fuel!Z3 -> 16534.03584 | AA26: =AA25/(1+'Primary Calculations'!$D$14)^Fuel!AA3 -> 15390.82289 | AB26: =AB25/(1+'Primary Calculations'!$D$14)^Fuel!AB3 -> 14293.26732 | AC26: =AC25/(1+'Primary Calculations'!$D$14)^Fuel!AC3 -> 15855.70545 | AD26: =AD25/(1+'Primary Calculations'!$D$14)^Fuel!AD3 -> 14818.41631 | AE26: =AE25/(1+'Primary Calculations'!$D$14)^Fuel!AE3 -> 13848.98721 | AF26: =AF25/(1+'Primary Calculations'!$D$14)^Fuel!AF3 -> 12942.9787 | AG26: =AG25/(1+'Primary Calculations'!$D$14)^Fuel!AG3 -> 12096.24177 | AH26: =AH25/(1+'Primary Calculations'!$D$14)^Fuel!AH3 -> 11304.89885 | AI26: =AI25/(1+'Primary Calculations'!$D$14)^Fuel!AI3 -> 10565.32603 | AJ26: =AJ25/(1+'Primary Calculations'!$D$14)^Fuel!AJ3 -> 9874.136477 | AK26: =AK25/(1+'Primary Calculations'!$D$14)^Fuel!AK3 -> 9228.164932 | AL26: =AL25/(1+'Primary Calculations'!$D$14)^Fuel!AL3 -> 8624.453208 | AM26: =AM25/(1+'Primary Calculations'!$D$14)^Fuel!AM3 -> 8060.236643 | AN26: =AN25/(1+'Primary Calculations'!$D$14)^Fuel!AN3 -> 7532.931442 | AO26: =AO25/(1+'Primary Calculations'!$D$14)^Fuel!AO3 -> 7040.122843 | AP26: =AP25/(1+'Primary Calculations'!$D$14)^Fuel!AP3 -> 6579.554059 | AQ26: =AQ25/(1+'Primary Calculations'!$D$14)^Fuel!AQ3 -> 6149.115943 | AR26: =AR25/(1+'Primary Calculations'!$D$14)^Fuel!AR3 -> 5746.83733 | AS26: =AS25/(1+'Primary Calculations'!$D$14)^Fuel!AS3 -> 5370.876009 | AT26: =AT25/(1+'Primary Calculations'!$D$14)^Fuel!AT3 -> 5019.510289 | AU26: =AU25/(1+'Primary Calculations'!$D$14)^Fuel!AU3 -> 4691.131111 | AV26: =AV25/(1+'Primary Calculations'!$D$14)^Fuel!AV3 -> 4384.234683
B27: HFO + Optimal Fine Size (discounted) | C27: =C6+('Primary Calculations'!$L$3*'Primary Calculations'!$L$4*Fuel!C26) -> 3662440.146 | D27: =D6+('Primary Calculations'!$L$3*'Primary Calculations'!$L$4*Fuel!D26) -> 4002537.126 | E27: =E6+('Primary Calculations'!$L$3*'Primary Calculations'!$L$4*Fuel!E26) -> 3510807.981 | F27: =F6+('Primary Calculations'!$L$3*'Primary Calculations'!$L$4*Fuel!F26) -> 3294801.597 | G27: =G6+('Primary Calculations'!$L$3*'Primary Calculations'!$L$4*Fuel!G26) -> 3123903.896 | H27: =H6+('Primary Calculations'!$L$3*'Primary Calculations'!$L$4*Fuel!H26) -> 3146810.261 | I27: =I6+('Primary Calculations'!$L$3*'Primary Calculations'!$L$4*Fuel!I26) -> 3007488 | J27: =J6+('Primary Calculations'!$L$3*'Primary Calculations'!$L$4*Fuel!J26) -> 2866440.958 | K27: =K6+('Primary Calculations'!$L$3*'Primary Calculations'!$L$4*Fuel!K26) -> 2724912.926 | L27: =L6+('Primary Calculations'!$L$3*'Primary Calculations'!$L$4*Fuel!L26) -> 2605881.011 | M27: =M6+('Primary Calculations'!$L$3*'Primary Calculations'!$L$4*Fuel!M26) -> 2487287.866 | N27: =N6+('Primary Calculations'!$L$3*'Primary Calculations'!$L$4*Fuel!N26) -> 2367475.112 | O27: =O6+('Primary Calculations'!$L$3*'Primary Calculations'!$L$4*Fuel!O26) -> 2266170.127 | P27: =P6+('Primary Calculations'!$L$3*'Primary Calculations'!$L$4*Fuel!P26) -> 2175298.894 | Q27: =Q6+('Primary Calculations'!$L$3*'Primary Calculations'!$L$4*Fuel!Q26) -> 2073944.697 | R27: =R6+('Primary Calculations'!$L$3*'Primary Calculations'!$L$4*Fuel!R26) -> 1981236.574 | S27: =S6+('Primary Calculations'!$L$3*'Primary Calculations'!$L$4*Fuel!S26) -> 1898050.682 | T27: =T6+('Primary Calculations'!$L$3*'Primary Calculations'!$L$4*Fuel!T26) -> 1820407.954 | U27: =U6+('Primary Calculations'!$L$3*'Primary Calculations'!$L$4*Fuel!U26) -> 1735754.11 | V27: =V6+('Primary Calculations'!$L$3*'Primary Calculations'!$L$4*Fuel!V26) -> 1658282.956 | W27: =W6+('Primary Calculations'!$L$3*'Primary Calculations'!$L$4*Fuel!W26) -> 1579714.95 | X27: =X6+('Primary Calculations'!$L$3*'Primary Calculations'!$L$4*Fuel!X26) -> 1508828.206 | Y27: =Y6+('Primary Calculations'!$L$3*'Primary Calculations'!$L$4*Fuel!Y26) -> 1441816.313 | Z27: =Z6+('Primary Calculations'!$L$3*'Primary Calculations'!$L$4*Fuel!Z26) -> 1379497.456 | AA27: =AA6+('Primary Calculations'!$L$3*'Primary Calculations'!$L$4*Fuel!AA26) -> 1313665.525 | AB27: =AB6+('Primary Calculations'!$L$3*'Primary Calculations'!$L$4*Fuel!AB26) -> 1263697.051 | AC27: =AC6+('Primary Calculations'!$L$3*'Primary Calculations'!$L$4*Fuel!AC26) -> 190268.4654 | AD27: =AD6+('Primary Calculations'!$L$3*'Primary Calculations'!$L$4*Fuel!AD26) -> 177820.9957 | AE27: =AE6+('Primary Calculations'!$L$3*'Primary Calculations'!$L$4*Fuel!AE26) -> 166187.8465 | AF27: =AF6+('Primary Calculations'!$L$3*'Primary Calculations'!$L$4*Fuel!AF26) -> 155315.7444 | AG27: =AG6+('Primary Calculations'!$L$3*'Primary Calculations'!$L$4*Fuel!AG26) -> 145154.9013 | AH27: =AH6+('Primary Calculations'!$L$3*'Primary Calculations'!$L$4*Fuel!AH26) -> 135658.7862 | AI27: =AI6+('Primary Calculations'!$L$3*'Primary Calculations'!$L$4*Fuel!AI26) -> 126783.9124 | AJ27: =AJ6+('Primary Calculations'!$L$3*'Primary Calculations'!$L$4*Fuel!AJ26) -> 118489.6377 | AK27: =AK6+('Primary Calculations'!$L$3*'Primary Calculations'!$L$4*Fuel!AK26) -> 110737.9792 | AL27: =AL6+('Primary Calculations'!$L$3*'Primary Calculations'!$L$4*Fuel!AL26) -> 103493.4385 | AM27: =AM6+('Primary Calculations'!$L$3*'Primary Calculations'!$L$4*Fuel!AM26) -> 96722.83971 | AN27: =AN6+('Primary Calculations'!$L$3*'Primary Calculations'!$L$4*Fuel!AN26) -> 90395.1773 | AO27: =AO6+('Primary Calculations'!$L$3*'Primary Calculations'!$L$4*Fuel!AO26) -> 84481.47411 | AP27: =AP6+('Primary Calculations'!$L$3*'Primary Calculations'!$L$4*Fuel!AP26) -> 78954.6487 | AQ27: =AQ6+('Primary Calculations'!$L$3*'Primary Calculations'!$L$4*Fuel!AQ26) -> 73789.39131 | AR27: =AR6+('Primary Calculations'!$L$3*'Primary Calculations'!$L$4*Fuel!AR26) -> 68962.04795 | AS27: =AS6+('Primary Calculations'!$L$3*'Primary Calculations'!$L$4*Fuel!AS26) -> 64450.51211 | AT27: =AT6+('Primary Calculations'!$L$3*'Primary Calculations'!$L$4*Fuel!AT26) -> 60234.12346 | AU27: =AU6+('Primary Calculations'!$L$3*'Primary Calculations'!$L$4*Fuel!AU26) -> 56293.57333 | AV27: =AV6+('Primary Calculations'!$L$3*'Primary Calculations'!$L$4*Fuel!AV26) -> 52610.8162
B28: HFO + Actual Fine Size | C28: ='Primary Calculations'!$D$11*'Primary Calculations'!$D$12*'Primary Calculations'!$D$4*Fuel!C38+(1-'Primary Calculations'!$D$11)*'Primary Calculations'!$D$12*'Primary Calculations'!$E$4*Fuel!C38+'Primary Calculations'!$L$3*'Primary Calculations'!$L$4*'Primary Calculations'!$L$5 -> 4085233.14 | D28: ='Primary Calculations'!$D$11*'Primary Calculations'!$D$12*'Primary Calculations'!$D$4*Fuel!D38+(1-'Primary Calculations'!$D$11)*'Primary Calculations'!$D$12*'Primary Calculations'!$E$4*Fuel!D38+'Primary Calculations'!$L$3*'Primary Calculations'!$L$4*'Primary Calculations'!$L$5 -> 4724270.867 | E28: ='Primary Calculations'!$D$11*'Primary Calculations'!$D$12*'Primary Calculations'!$D$4*Fuel!E38+(1-'Primary Calculations'!$D$11)*'Primary Calculations'!$D$12*'Primary Calculations'!$E$4*Fuel!E38+'Primary Calculations'!$L$3*'Primary Calculations'!$L$4*'Primary Calculations'!$L$5 -> 4453118.749 | F28: ='Primary Calculations'!$D$11*'Primary Calculations'!$D$12*'Primary Calculations'!$D$4*Fuel!F38+(1-'Primary Calculations'!$D$11)*'Primary Calculations'!$D$12*'Primary Calculations'!$E$4*Fuel!F38+'Primary Calculations'!$L$3*'Primary Calculations'!$L$4*'Primary Calculations'!$L$5 -> 4470374.995 | G28: ='Primary Calculations'!$D$11*'Primary Calculations'!$D$12*'Primary Calculations'!$D$4*Fuel!G38+(1-'Primary Calculations'!$D$11)*'Primary Calculations'!$D$12*'Primary Calculations'!$E$4*Fuel!G38+'Primary Calculations'!$L$3*'Primary Calculations'!$L$4*'Primary Calculations'!$L$5 -> 4530672.555 | H28: ='Primary Calculations'!$D$11*'Primary Calculations'!$D$12*'Primary Calculations'!$D$4*Fuel!H38+(1-'Primary Calculations'!$D$11)*'Primary Calculations'!$D$12*'Primary Calculations'!$E$4*Fuel!H38+'Primary Calculations'!$L$3*'Primary Calculations'!$L$4*'Primary Calculations'!$L$5 -> 4608692.597 | I28: ='Primary Calculations'!$D$11*'Primary Calculations'!$D$12*'Primary Calculations'!$D$4*Fuel!I38+(1-'Primary Calculations'!$D$11)*'Primary Calculations'!$D$12*'Primary Calculations'!$E$4*Fuel!I38+'Primary Calculations'!$L$3*'Primary Calculations'!$L$4*'Primary Calculations'!$L$5 -> 4711577.813 | J28: ='Primary Calculations'!$D$11*'Primary Calculations'!$D$12*'Primary Calculations'!$D$4*Fuel!J38+(1-'Primary Calculations'!$D$11)*'Primary Calculations'!$D$12*'Primary Calculations'!$E$4*Fuel!J38+'Primary Calculations'!$L$3*'Primary Calculations'!$L$4*'Primary Calculations'!$L$5 -> 4803732.901 | K28: ='Primary Calculations'!$D$11*'Primary Calculations'!$D$12*'Primary Calculations'!$D$4*Fuel!K38+(1-'Primary Calculations'!$D$11)*'Primary Calculations'!$D$12*'Primary Calculations'!$E$4*Fuel!K38+'Primary Calculations'!$L$3*'Primary Calculations'!$L$4*'Primary Calculations'!$L$5 -> 4885153.474 | L28: ='Primary Calculations'!$D$11*'Primary Calculations'!$D$12*'Primary Calculations'!$D$4*Fuel!L38+(1-'Primary Calculations'!$D$11)*'Primary Calculations'!$D$12*'Primary Calculations'!$E$4*Fuel!L38+'Primary Calculations'!$L$3*'Primary Calculations'!$L$4*'Primary Calculations'!$L$5 -> 4997345.837 | M28: ='Primary Calculations'!$D$11*'Primary Calculations'!$D$12*'Primary Calculations'!$D$4*Fuel!M38+(1-'Primary Calculations'!$D$11)*'Primary Calculations'!$D$12*'Primary Calculations'!$E$4*Fuel!M38+'Primary Calculations'!$L$3*'Primary Calculations'!$L$4*'Primary Calculations'!$L$5 -> 5102499.05 | N28: ='Primary Calculations'!$D$11*'Primary Calculations'!$D$12*'Primary Calculations'!$D$4*Fuel!N38+(1-'Primary Calculations'!$D$11)*'Primary Calculations'!$D$12*'Primary Calculations'!$E$4*Fuel!N38+'Primary Calculations'!$L$3*'Primary Calculations'!$L$4*'Primary Calculations'!$L$5 -> 5195543.903 | O28: ='Primary Calculations'!$D$11*'Primary Calculations'!$D$12*'Primary Calculations'!$D$4*Fuel!O38+(1-'Primary Calculations'!$D$11)*'Primary Calculations'!$D$12*'Primary Calculations'!$E$4*Fuel!O38+'Primary Calculations'!$L$3*'Primary Calculations'!$L$4*'Primary Calculations'!$L$5 -> 5319858.665 | P28: ='Primary Calculations'!$D$11*'Primary Calculations'!$D$12*'Primary Calculations'!$D$4*Fuel!P38+(1-'Primary Calculations'!$D$11)*'Primary Calculations'!$D$12*'Primary Calculations'!$E$4*Fuel!P38+'Primary Calculations'!$L$3*'Primary Calculations'!$L$4*'Primary Calculations'!$L$5 -> 5462325.581 | Q28: ='Primary Calculations'!$D$11*'Primary Calculations'!$D$12*'Primary Calculations'!$D$4*Fuel!Q38+(1-'Primary Calculations'!$D$11)*'Primary Calculations'!$D$12*'Primary Calculations'!$E$4*Fuel!Q38+'Primary Calculations'!$L$3*'Primary Calculations'!$L$4*'Primary Calculations'!$L$5 -> 5571124.142 | R28: ='Primary Calculations'!$D$11*'Primary Calculations'!$D$12*'Primary Calculations'!$D$4*Fuel!R38+(1-'Primary Calculations'!$D$11)*'Primary Calculations'!$D$12*'Primary Calculations'!$E$4*Fuel!R38+'Primary Calculations'!$L$3*'Primary Calculations'!$L$4*'Primary Calculations'!$L$5 -> 5693267.431 | S28: ='Primary Calculations'!$D$11*'Primary Calculations'!$D$12*'Primary Calculations'!$D$4*Fuel!S38+(1-'Primary Calculations'!$D$11)*'Primary Calculations'!$D$12*'Primary Calculations'!$E$4*Fuel!S38+'Primary Calculations'!$L$3*'Primary Calculations'!$L$4*'Primary Calculations'!$L$5 -> 5834475.747 | T28: ='Primary Calculations'!$D$11*'Primary Calculations'!$D$12*'Primary Calculations'!$D$4*Fuel!T38+(1-'Primary Calculations'!$D$11)*'Primary Calculations'!$D$12*'Primary Calculations'!$E$4*Fuel!T38+'Primary Calculations'!$L$3*'Primary Calculations'!$L$4*'Primary Calculations'!$L$5 -> 5985897.648 | U28: ='Primary Calculations'!$D$11*'Primary Calculations'!$D$12*'Primary Calculations'!$D$4*Fuel!U38+(1-'Primary Calculations'!$D$11)*'Primary Calculations'!$D$12*'Primary Calculations'!$E$4*Fuel!U38+'Primary Calculations'!$L$3*'Primary Calculations'!$L$4*'Primary Calculations'!$L$5 -> 6105817.693 | V28: ='Primary Calculations'!$D$11*'Primary Calculations'!$D$12*'Primary Calculations'!$D$4*Fuel!V38+(1-'Primary Calculations'!$D$11)*'Primary Calculations'!$D$12*'Primary Calculations'!$E$4*Fuel!V38+'Primary Calculations'!$L$3*'Primary Calculations'!$L$4*'Primary Calculations'!$L$5 -> 6240259.754 | W28: ='Primary Calculations'!$D$11*'Primary Calculations'!$D$12*'Primary Calculations'!$D$4*Fuel!W38+(1-'Primary Calculations'!$D$11)*'Primary Calculations'!$D$12*'Primary Calculations'!$E$4*Fuel!W38+'Primary Calculations'!$L$3*'Primary Calculations'!$L$4*'Primary Calculations'!$L$5 -> 6359534.266 | X28: ='Primary Calculations'!$D$11*'Primary Calculations'!$D$12*'Primary Calculations'!$D$4*Fuel!X38+(1-'Primary Calculations'!$D$11)*'Primary Calculations'!$D$12*'Primary Calculations'!$E$4*Fuel!X38+'Primary Calculations'!$L$3*'Primary Calculations'!$L$4*'Primary Calculations'!$L$5 -> 6497998.7 | Y28: ='Primary Calculations'!$D$11*'Primary Calculations'!$D$12*'Primary Calculations'!$D$4*Fuel!Y38+(1-'Primary Calculations'!$D$11)*'Primary Calculations'!$D$12*'Primary Calculations'!$E$4*Fuel!Y38+'Primary Calculations'!$L$3*'Primary Calculations'!$L$4*'Primary Calculations'!$L$5 -> 6642674.82 | Z28: ='Primary Calculations'!$D$11*'Primary Calculations'!$D$12*'Primary Calculations'!$D$4*Fuel!Z38+(1-'Primary Calculations'!$D$11)*'Primary Calculations'!$D$12*'Primary Calculations'!$E$4*Fuel!Z38+'Primary Calculations'!$L$3*'Primary Calculations'!$L$4*'Primary Calculations'!$L$5 -> 6798987.799 | AA28: ='Primary Calculations'!$D$11*'Primary Calculations'!$D$12*'Primary Calculations'!$D$4*Fuel!AA38+(1-'Primary Calculations'!$D$11)*'Primary Calculations'!$D$12*'Primary Calculations'!$E$4*Fuel!AA38+'Primary Calculations'!$L$3*'Primary Calculations'!$L$4*'Primary Calculations'!$L$5 -> 6926578.782 | AB28: ='Primary Calculations'!$D$11*'Primary Calculations'!$D$12*'Primary Calculations'!$D$4*Fuel!AB38+(1-'Primary Calculations'!$D$11)*'Primary Calculations'!$D$12*'Primary Calculations'!$E$4*Fuel!AB38+'Primary Calculations'!$L$3*'Primary Calculations'!$L$4*'Primary Calculations'!$L$5 -> 7127721.674 | AC28: ='Primary Calculations'!$D$11*'Primary Calculations'!$D$12*'Primary Calculations'!$D$4*Fuel!AC38+(1-'Primary Calculations'!$D$11)*'Primary Calculations'!$D$12*'Primary Calculations'!$E$4*Fuel!AC38+'Primary Calculations'!$L$3*'Primary Calculations'!$L$4*'Primary Calculations'!$L$5 -> 1200000 | AD28: ='Primary Calculations'!$D$11*'Primary Calculations'!$D$12*'Primary Calculations'!$D$4*Fuel!AD38+(1-'Primary Calculations'!$D$11)*'Primary Calculations'!$D$12*'Primary Calculations'!$E$4*Fuel!AD38+'Primary Calculations'!$L$3*'Primary Calculations'!$L$4*'Primary Calculations'!$L$5 -> 1200000 | AE28: ='Primary Calculations'!$D$11*'Primary Calculations'!$D$12*'Primary Calculations'!$D$4*Fuel!AE38+(1-'Primary Calculations'!$D$11)*'Primary Calculations'!$D$12*'Primary Calculations'!$E$4*Fuel!AE38+'Primary Calculations'!$L$3*'Primary Calculations'!$L$4*'Primary Calculations'!$L$5 -> 1200000 | AF28: ='Primary Calculations'!$D$11*'Primary Calculations'!$D$12*'Primary Calculations'!$D$4*Fuel!AF38+(1-'Primary Calculations'!$D$11)*'Primary Calculations'!$D$12*'Primary Calculations'!$E$4*Fuel!AF38+'Primary Calculations'!$L$3*'Primary Calculations'!$L$4*'Primary Calculations'!$L$5 -> 1200000 | AG28: ='Primary Calculations'!$D$11*'Primary Calculations'!$D$12*'Primary Calculations'!$D$4*Fuel!AG38+(1-'Primary Calculations'!$D$11)*'Primary Calculations'!$D$12*'Primary Calculations'!$E$4*Fuel!AG38+'Primary Calculations'!$L$3*'Primary Calculations'!$L$4*'Primary Calculations'!$L$5 -> 1200000 | AH28: ='Primary Calculations'!$D$11*'Primary Calculations'!$D$12*'Primary Calculations'!$D$4*Fuel!AH38+(1-'Primary Calculations'!$D$11)*'Primary Calculations'!$D$12*'Primary Calculations'!$E$4*Fuel!AH38+'Primary Calculations'!$L$3*'Primary Calculations'!$L$4*'Primary Calculations'!$L$5 -> 1200000 | AI28: ='Primary Calculations'!$D$11*'Primary Calculations'!$D$12*'Primary Calculations'!$D$4*Fuel!AI38+(1-'Primary Calculations'!$D$11)*'Primary Calculations'!$D$12*'Primary Calculations'!$E$4*Fuel!AI38+'Primary Calculations'!$L$3*'Primary Calculations'!$L$4*'Primary Calculations'!$L$5 -> 1200000 | AJ28: ='Primary Calculations'!$D$11*'Primary Calculations'!$D$12*'Primary Calculations'!$D$4*Fuel!AJ38+(1-'Primary Calculations'!$D$11)*'Primary Calculations'!$D$12*'Primary Calculations'!$E$4*Fuel!AJ38+'Primary Calculations'!$L$3*'Primary Calculations'!$L$4*'Primary Calculations'!$L$5 -> 1200000 | AK28: ='Primary Calculations'!$D$11*'Primary Calculations'!$D$12*'Primary Calculations'!$D$4*Fuel!AK38+(1-'Primary Calculations'!$D$11)*'Primary Calculations'!$D$12*'Primary Calculations'!$E$4*Fuel!AK38+'Primary Calculations'!$L$3*'Primary Calculations'!$L$4*'Primary Calculations'!$L$5 -> 1200000 | AL28: ='Primary Calculations'!$D$11*'Primary Calculations'!$D$12*'Primary Calculations'!$D$4*Fuel!AL38+(1-'Primary Calculations'!$D$11)*'Primary Calculations'!$D$12*'Primary Calculations'!$E$4*Fuel!AL38+'Primary Calculations'!$L$3*'Primary Calculations'!$L$4*'Primary Calculations'!$L$5 -> 1200000 | AM28: ='Primary Calculations'!$D$11*'Primary Calculations'!$D$12*'Primary Calculations'!$D$4*Fuel!AM38+(1-'Primary Calculations'!$D$11)*'Primary Calculations'!$D$12*'Primary Calculations'!$E$4*Fuel!AM38+'Primary Calculations'!$L$3*'Primary Calculations'!$L$4*'Primary Calculations'!$L$5 -> 1200000 | AN28: ='Primary Calculations'!$D$11*'Primary Calculations'!$D$12*'Primary Calculations'!$D$4*Fuel!AN38+(1-'Primary Calculations'!$D$11)*'Primary Calculations'!$D$12*'Primary Calculations'!$E$4*Fuel!AN38+'Primary Calculations'!$L$3*'Primary Calculations'!$L$4*'Primary Calculations'!$L$5 -> 1200000 | AO28: ='Primary Calculations'!$D$11*'Primary Calculations'!$D$12*'Primary Calculations'!$D$4*Fuel!AO38+(1-'Primary Calculations'!$D$11)*'Primary Calculations'!$D$12*'Primary Calculations'!$E$4*Fuel!AO38+'Primary Calculations'!$L$3*'Primary Calculations'!$L$4*'Primary Calculations'!$L$5 -> 1200000 | AP28: ='Primary Calculations'!$D$11*'Primary Calculations'!$D$12*'Primary Calculations'!$D$4*Fuel!AP38+(1-'Primary Calculations'!$D$11)*'Primary Calculations'!$D$12*'Primary Calculations'!$E$4*Fuel!AP38+'Primary Calculations'!$L$3*'Primary Calculations'!$L$4*'Primary Calculations'!$L$5 -> 1200000 | AQ28: ='Primary Calculations'!$D$11*'Primary Calculations'!$D$12*'Primary Calculations'!$D$4*Fuel!AQ38+(1-'Primary Calculations'!$D$11)*'Primary Calculations'!$D$12*'Primary Calculations'!$E$4*Fuel!AQ38+'Primary Calculations'!$L$3*'Primary Calculations'!$L$4*'Primary Calculations'!$L$5 -> 1200000 | AR28: ='Primary Calculations'!$D$11*'Primary Calculations'!$D$12*'Primary Calculations'!$D$4*Fuel!AR38+(1-'Primary Calculations'!$D$11)*'Primary Calculations'!$D$12*'Primary Calculations'!$E$4*Fuel!AR38+'Primary Calculations'!$L$3*'Primary Calculations'!$L$4*'Primary Calculations'!$L$5 -> 1200000 | AS28: ='Primary Calculations'!$D$11*'Primary Calculations'!$D$12*'Primary Calculations'!$D$4*Fuel!AS38+(1-'Primary Calculations'!$D$11)*'Primary Calculations'!$D$12*'Primary Calculations'!$E$4*Fuel!AS38+'Primary Calculations'!$L$3*'Primary Calculations'!$L$4*'Primary Calculations'!$L$5 -> 1200000 | AT28: ='Primary Calculations'!$D$11*'Primary Calculations'!$D$12*'Primary Calculations'!$D$4*Fuel!AT38+(1-'Primary Calculations'!$D$11)*'Primary Calculations'!$D$12*'Primary Calculations'!$E$4*Fuel!AT38+'Primary Calculations'!$L$3*'Primary Calculations'!$L$4*'Primary Calculations'!$L$5 -> 1200000 | AU28: ='Primary Calculations'!$D$11*'Primary Calculations'!$D$12*'Primary Calculations'!$D$4*Fuel!AU38+(1-'Primary Calculations'!$D$11)*'Primary Calculations'!$D$12*'Primary Calculations'!$E$4*Fuel!AU38+'Primary Calculations'!$L$3*'Primary Calculations'!$L$4*'Primary Calculations'!$L$5 -> 1200000 | AV28: ='Primary Calculations'!$D$11*'Primary Calculations'!$D$12*'Primary Calculations'!$D$4*Fuel!AV38+(1-'Primary Calculations'!$D$11)*'Primary Calculations'!$D$12*'Primary Calculations'!$E$4*Fuel!AV38+'Primary Calculations'!$L$3*'Primary Calculations'!$L$4*'Primary Calculations'!$L$5 -> 1200000
B29: HFO + Actual Fine Size (discounted) | C29: =((C28)/((1+'Primary Calculations'!$D$14)^Fuel!C3)) -> 4085233.14 | D29: =((D28)/((1+'Primary Calculations'!$D$14)^Fuel!D3)) -> 4415206.417 | E29: =((E28)/((1+'Primary Calculations'!$D$14)^Fuel!E3)) -> 3889526.377 | F29: =((F28)/((1+'Primary Calculations'!$D$14)^Fuel!F3)) -> 3649157.617 | G29: =((G28)/((1+'Primary Calculations'!$D$14)^Fuel!G3)) -> 3456428.4 | H29: =((H28)/((1+'Primary Calculations'!$D$14)^Fuel!H3)) -> 3285934.127 | I29: =((I28)/((1+'Primary Calculations'!$D$14)^Fuel!I3)) -> 3139523.238 | J29: =((J28)/((1+'Primary Calculations'!$D$14)^Fuel!J3)) -> 2991523.424 | K29: =((K28)/((1+'Primary Calculations'!$D$14)^Fuel!K3)) -> 2843203.799 | L29: =((L28)/((1+'Primary Calculations'!$D$14)^Fuel!L3)) -> 2718225.024 | M29: =((M28)/((1+'Primary Calculations'!$D$14)^Fuel!M3)) -> 2593851.78 | N29: =((N28)/((1+'Primary Calculations'!$D$14)^Fuel!N3)) -> 2468365.482 | O29: =((O28)/((1+'Primary Calculations'!$D$14)^Fuel!O3)) -> 2362080.869 | P29: =((P28)/((1+'Primary Calculations'!$D$14)^Fuel!P3)) -> 2266670.919 | Q29: =((Q28)/((1+'Primary Calculations'!$D$14)^Fuel!Q3)) -> 2160577.994 | R29: =((R28)/((1+'Primary Calculations'!$D$14)^Fuel!R3)) -> 2063502.119 | S29: =((S28)/((1+'Primary Calculations'!$D$14)^Fuel!S3)) -> 1976338.796 | T29: =((T28)/((1+'Primary Calculations'!$D$14)^Fuel!T3)) -> 1894981.899 | U29: =((U28)/((1+'Primary Calculations'!$D$14)^Fuel!U3)) -> 1806491.135 | V29: =((V28)/((1+'Primary Calculations'!$D$14)^Fuel!V3)) -> 1725483.822 | W29: =((W28)/((1+'Primary Calculations'!$D$14)^Fuel!W3)) -> 1643424.503 | X29: =((X28)/((1+'Primary Calculations'!$D$14)^Fuel!X3)) -> 1569351.724 | Y29: =((Y28)/((1+'Primary Calculations'!$D$14)^Fuel!Y3)) -> 1499339.159 | Z29: =((Z28)/((1+'Primary Calculations'!$D$14)^Fuel!Z3)) -> 1434225.286 | AA29: =((AA28)/((1+'Primary Calculations'!$D$14)^Fuel!AA3)) -> 1365551.595 | AB29: =((AB28)/((1+'Primary Calculations'!$D$14)^Fuel!AB3)) -> 1313276.856 | AC29: =((AC28)/((1+'Primary Calculations'!$D$14)^Fuel!AC3)) -> 206634.5916 | AD29: =((AD28)/((1+'Primary Calculations'!$D$14)^Fuel!AD3)) -> 193116.4408 | AE29: =((AE28)/((1+'Primary Calculations'!$D$14)^Fuel!AE3)) -> 180482.6549 | AF29: =((AF28)/((1+'Primary Calculations'!$D$14)^Fuel!AF3)) -> 168675.3784 | AG29: =((AG28)/((1+'Primary Calculations'!$D$14)^Fuel!AG3)) -> 157640.5406 | AH29: =((AH28)/((1+'Primary Calculations'!$D$14)^Fuel!AH3)) -> 147327.608 | AI29: =((AI28)/((1+'Primary Calculations'!$D$14)^Fuel!AI3)) -> 137689.3533 | AJ29: =((AJ28)/((1+'Primary Calculations'!$D$14)^Fuel!AJ3)) -> 128681.6386 | AK29: =((AK28)/((1+'Primary Calculations'!$D$14)^Fuel!AK3)) -> 120263.2136 | AL29: =((AL28)/((1+'Primary Calculations'!$D$14)^Fuel!AL3)) -> 112395.5268 | AM29: =((AM28)/((1+'Primary Calculations'!$D$14)^Fuel!AM3)) -> 105042.5484 | AN29: =((AN28)/((1+'Primary Calculations'!$D$14)^Fuel!AN3)) -> 98170.60596 | AO29: =((AO28)/((1+'Primary Calculations'!$D$14)^Fuel!AO3)) -> 91748.22987 | AP29: =((AP28)/((1+'Primary Calculations'!$D$14)^Fuel!AP3)) -> 85746.00922 | AQ29: =((AQ28)/((1+'Primary Calculations'!$D$14)^Fuel!AQ3)) -> 80136.45722 | AR29: =((AR28)/((1+'Primary Calculations'!$D$14)^Fuel!AR3)) -> 74893.88525 | AS29: =((AS28)/((1+'Primary Calculations'!$D$14)^Fuel!AS3)) -> 69994.28528 | AT29: =((AT28)/((1+'Primary Calculations'!$D$14)^Fuel!AT3)) -> 65415.21989 | AU29: =((AU28)/((1+'Primary Calculations'!$D$14)^Fuel!AU3)) -> 61135.71952 | AV29: =((AV28)/((1+'Primary Calculations'!$D$14)^Fuel!AV3)) -> 57136.18647
B32: Year | C32: 2015 | D32: 2016 | E32: 2017 | F32: 2018 | G32: 2019 | H32: 2020 | I32: 2021 | J32: 2022 | K32: 2023 | L32: 2024 | M32: 2025 | N32: 2026 | O32: 2027 | P32: 2028 | Q32: 2029 | R32: 2030 | S32: 2031 | T32: 2032 | U32: 2033 | V32: 2034 | W32: 2035 | X32: 2036 | Y32: 2037 | Z32: 2038 | AA32: 2039 | AB32: 2040 | AC32: 2041 | AD32: 2042 | AE32: 2043 | AF32: 2044 | AG32: 2045 | AH32: 2046 | AI32: 2047 | AJ32: 2048 | AK32: 2049 | AL32: 2050 | AM32: 2051 | AN32: 2052 | AO32: 2053 | AP32: 2054 | AQ32: 2055 | AR32: 2056 | AS32: 2057 | AT32: 2058 | AU32: 2059 | AV32: 2060
B33: EIA Reference Case
B34: MGO (low) | C34: =C38+$C$48 -> 615.5101404 | D34: =D38+$C$48 -> 707.5396723 | E34: 668.4903307 | F34: 670.9754488 | G34: 679.6590618 | H34: 690.8949366 | I34: 705.7117117 | J34: 718.9832124 | K34: 730.7088068 | L34: 746.8659291 | M34: 762.0093244 | N34: 775.4089626 | O34: 793.3118639 | P34: 813.8289055 | Q34: 829.4972771 | R34: 847.0874589 | S34: 867.4232461 | T34: 889.229919 | U34: 906.4999254 | V34: 925.8612862 | W34: 943.0383276 | X34: 962.9789609 | Y34: 983.8141559 | Z34: 1006.325206 | AA34: 1024.699925 | AB34: 1053.667051 | AC34: =AC38+$C$48 -> 200 | AD34: 200 | AE34: 200 | AF34: 200 | AG34: 200 | AH34: 200 | AI34: 200 | AJ34: 200 | AK34: 200 | AL34: 200 | AM34: 200 | AN34: 200 | AO34: 200 | AP34: 200 | AQ34: 200 | AR34: 200 | AS34: 200 | AT34: 200 | AU34: 200 | AV34: 200
B36: MGO (high) | C36: =C38+$C$49 -> 715.5101404 | D36: =D38+$C$49 -> 807.5396723 | E36: 768.4903307 | F36: 770.9754488 | G36: 779.6590618 | H36: 790.8949366 | I36: 805.7117117 | J36: 818.9832124 | K36: 830.7088068 | L36: 846.8659291 | M36: 862.0093244 | N36: 875.4089626 | O36: 893.3118639 | P36: 913.8289055 | Q36: 929.4972771 | R36: 947.0874589 | S36: 967.4232461 | T36: 989.229919 | U36: 1006.499925 | V36: 1025.861286 | W36: 1043.038328 | X36: 1062.978961 | Y36: 1083.814156 | Z36: 1106.325206 | AA36: 1124.699925 | AB36: 1153.667051 | AC36: =AC38+$C$49 -> 300 | AD36: 300 | AE36: 300 | AF36: 300 | AG36: 300 | AH36: 300 | AI36: 300 | AJ36: 300 | AK36: 300 | AL36: 300 | AM36: 300 | AN36: 300 | AO36: 300 | AP36: 300 | AQ36: 300 | AR36: 300 | AS36: 300 | AT36: 300 | AU36: 300 | AV36: 300
B38: 3.5 % HFO | C38: =$C$52*IF($A$1=2,C61,IF($A$1=3,C62,C60)) -> 415.5101404 | D38: 507.5396723 | E38: 468.4903307 | F38: 470.9754488 | G38: 479.6590618 | H38: 490.8949366 | I38: 505.7117117 | J38: 518.9832124 | K38: 530.7088068 | L38: 546.8659291 | M38: 562.0093244 | N38: 575.4089626 | O38: 593.3118639 | P38: 613.8289055 | Q38: 629.4972771 | R38: 647.0874589 | S38: 667.4232461 | T38: 689.229919 | U38: 706.4999254 | V38: 725.8612862 | W38: 743.0383276 | X38: 762.9789609 | Y38: 783.8141559 | Z38: 806.3252061 | AA38: 824.6999248 | AB38: 853.6670505
B40: Residual Fuel Oil 0.5 % after 2020 (pr. ton in 2013 USD) | C40: =C38 -> 415.5101404 | D40: =D38 -> 507.5396723 | E40: =E38 -> 468.4903307 | F40: =F38 -> 470.9754488 | G40: =G38 -> 479.6590618 | H40: =IF('Advanced Settings'!$G$9=1,Fuel!H38,Fuel!H38+Fuel!$C$51) -> 590.8949366 | I40: =IF('Advanced Settings'!$G$9=1,Fuel!I38,Fuel!I38+Fuel!$C$51) -> 605.7117117 | J40: =IF('Advanced Settings'!$G$9=1,Fuel!J38,Fuel!J38+Fuel!$C$51) -> 618.9832124 | K40: =IF('Advanced Settings'!$G$9=1,Fuel!K38,Fuel!K38+Fuel!$C$51) -> 630.7088068 | L40: =IF('Advanced Settings'!$G$9=1,Fuel!L38,Fuel!L38+Fuel!$C$51) -> 646.8659291 | M40: =M38+$C$51 -> 662.0093244 | N40: =N38+$C$51 -> 675.4089626 | O40: 693.3118639 | P40: 713.8289055 | Q40: 729.4972771 | R40: 747.0874589 | S40: 767.4232461 | T40: 789.229919 | U40: 806.4999254 | V40: 825.8612862 | W40: 843.0383276 | X40: 862.9789609 | Y40: 883.8141559 | Z40: 906.3252061 | AA40: 924.6999248 | AB40: 953.6670505 | AC40: =AC38+$C$51 -> 100 | AD40: 100 | AE40: 100 | AF40: 100 | AG40: 100 | AH40: 100 | AI40: 100 | AJ40: 100 | AK40: 100 | AL40: 100 | AM40: 100 | AN40: 100 | AO40: 100 | AP40: 100 | AQ40: 100 | AR40: 100 | AS40: 100 | AT40: 100 | AU40: 100 | AV40: 100
B41: 0.5 % HFO | C41: =C38+$C$51 -> 515.5101404 | D41: =D38+$C$51 -> 607.5396723 | E41: 568.4903307 | F41: 570.9754488 | G41: 579.6590618 | H41: 590.8949366 | I41: 605.7117117 | J41: 618.9832124 | K41: 630.7088068 | L41: 646.8659291 | M41: 662.0093244 | N41: 675.4089626 | O41: 693.3118639 | P41: 713.8289055 | Q41: 729.4972771 | R41: 747.0874589 | S41: 767.4232461 | T41: 789.229919 | U41: 806.4999254 | V41: 825.8612862 | W41: 843.0383276 | X41: 862.9789609 | Y41: 883.8141559 | Z41: 906.3252061 | AA41: 924.6999248 | AB41: 953.6670505
B42: LNG | C42: =$C$54*IF($A$1=2,C65,IF($A$1=3,C66,C64)) -> 419.5895535 | D42: 420.1661512 | E42: 432.2331206 | F42: 478.4620578 | G42: 517.1361443 | H42: 554.5194472 | I42: 570.173025 | J42: 578.2574366 | K42: 596.1615067 | L42: 607.6802822 | M42: 619.9995912 | N42: 643.7796183 | O42: 643.6363494 | P42: 643.9395887 | Q42: 648.8043694 | R42: 646.4575314 | S42: 671.7539822 | T42: 692.3193775 | U42: 712.5842602 | V42: 733.0322909 | W42: 749.8384961 | X42: 767.6313367 | Y42: 777.2585308 | Z42: 797.4767177 | AA42: 838.1590686 | AB42: 891.9802358 | AC42: =AC38+$C$50 -> 0 | AD42: 0 | AE42: 0 | AF42: 0 | AG42: 0 | AH42: 0 | AI42: 0 | AJ42: 0 | AK42: 0 | AL42: 0 | AM42: 0 | AN42: 0 | AO42: 0 | AP42: 0 | AQ42: 0 | AR42: 0 | AS42: 0 | AT42: 0 | AU42: 0 | AV42: 0
B45: lng converion = 51,7 mmbtu pr ton
B47: MMBTU to ton LNG conversion factor | C47: 51.7
B48: MGO (low) - HFO price spread | C48: =Results!C27 -> 200
B49: MGO (high) - HFO Price spread | C49: =Results!C28 -> 300
B51: HFO 0.5 % - HFO 3.5 % spread | C51: =Results!C29 -> 100
B52: HFO Start Value 2014 | C52: ='Advanced Settings'!G12 -> 730.36
B53: LSHFO Start Value 2014 | C53: x
B54: LNG Start Value 2014 | C54: ='Advanced Settings'!G13 -> 496.32
B57: Original EIA price INDEX
B58: Year | C58: 2015 | D58: 2016 | E58: 2017 | F58: 2018 | G58: 2019 | H58: 2020 | I58: 2021 | J58: 2022 | K58: 2023 | L58: 2024 | M58: 2025 | N58: 2026 | O58: 2027 | P58: 2028 | Q58: 2029 | R58: 2030 | S58: 2031 | T58: 2032 | U58: 2033 | V58: 2034 | W58: 2035 | X58: 2036 | Y58: 2037 | Z58: 2038 | AA58: 2039 | AB58: 2040 | AC58: 2041 | AD58: 2042 | AE58: 2043 | AF58: 2044 | AG58: 2045 | AH58: 2046 | AI58: 2047 | AJ58: 2048 | AK58: 2049 | AL58: 2050 | AM58: 2051 | AN58: 2052 | AO58: 2053 | AP58: 2054 | AQ58: 2055 | AR58: 2056 | AS58: 2057 | AT58: 2058 | AU58: 2059 | AV58: 2060
B60: Residual Fuel Oil Reference | C60: 0.568911414 | D60: 0.6949171262 | E60: 0.6414512442 | F60: 0.6448538376 | G60: 0.6567433345 | H60: 0.6721273571 | I60: 0.6924143049 | J60: 0.7105854817 | K60: 0.7266400224 | L60: 0.7487621572 | M60: 0.7694963092 | N60: 0.7878429304 | O60: 0.8123553644 | P60: 0.8404470474 | Q60: 0.8618999906 | R60: 0.8859842528 | S60: 0.9138277645 | T60: 0.943685195 | U60: 0.967331077 | V60: 0.9938404159 | W60: 1.017359011 | X60: 1.044661483 | Y60: 1.073188778 | Z60: 1.104010633 | AA60: 1.129169074 | AB60: 1.168830509
B61: Residual Fuel Oil High | C61: 0.9724694851 | D61: 1.07729759 | E61: 1.127456848 | F61: 1.158741883 | G61: 1.187224596 | H61: 1.211258912 | I61: 1.246251406 | J61: 1.279493205 | K61: 1.309864222 | L61: 1.352721432 | M61: 1.393119883 | N61: 1.435207606 | O61: 1.473618611 | P61: 1.513100218 | Q61: 1.555913365 | R61: 1.591622054 | S61: 1.626664147 | T61: 1.6709019 | U61: 1.718835576 | V61: 1.762345597 | W61: 1.801309177 | X61: 1.847478374 | Y61: 1.898781135 | Z61: 1.944337488 | AA61: 1.990125114 | AB61: 2.039257948
B62: Residual Fuel Oil Low | C62: 0.4540866159 | D62: 0.4559718062 | E62: 0.4691173276 | F62: 0.4767361794 | G62: 0.4883181008 | H62: 0.5045228822 | I62: 0.5180280588 | J62: 0.533079187 | K62: 0.5448612949 | L62: 0.5561371403 | M62: 0.5695910446 | N62: 0.5763502653 | O62: 0.5902459525 | P62: 0.5993671546 | Q62: 0.6041705344 | R62: 0.6039171148 | S62: 0.6077384216 | T62: 0.6116246116 | U62: 0.616542186 | V62: 0.6194181004 | W62: 0.6206306388 | X62: 0.626063242 | Y62: 0.6346661278 | Z62: 0.6394535895 | AA62: 0.6439770774 | AB62: 0.6514324811
B64: LNG Reference | C64: 0.8454012602 | D64: 0.8465630061 | E64: 0.8708758878 | F64: 0.9640192976 | G64: 1.041940974 | H64: 1.117261942 | I64: 1.148801227 | J64: 1.165089935 | K64: 1.201163577 | L64: 1.224371942 | M64: 1.249193245 | N64: 1.297105936 | O64: 1.296817274 | P64: 1.297428249 | Q64: 1.307229951 | R64: 1.302501474 | S64: 1.3534695 | T64: 1.394905258 | U64: 1.435735534 | V64: 1.476934822 | W64: 1.510796454 | X64: 1.546645988 | Y64: 1.566043139 | Z64: 1.606779331 | AA64: 1.688747317 | AB64: 1.797187774
B65: LNG High | C65: 0.7878913558 | D65: 0.7760671654 | E65: 0.8403922078 | F65: 0.9124621829 | G65: 0.9773494099 | H65: 1.068327565 | I65: 1.170117282 | J65: 1.253525303 | K65: 1.396219801 | L65: 1.482156378 | M65: 1.55329046 | N65: 1.635987695 | O65: 1.669669389 | P65: 1.687170137 | Q65: 1.759391032 | R65: 1.830050098 | S65: 1.9240717 | T65: 1.973432896 | U65: 1.973268529 | V65: 2.01179498 | W65: 2.041438682 | X65: 2.092707133 | Y65: 2.156336921 | Z65: 2.269832597 | AA65: 2.399941811 | AB65: 2.464589327
B66: LNG Low | C66: 0.8204143393 | D66: 0.8756829528 | E66: 0.9320945541 | F66: 0.9630360359 | G66: 0.9792060913 | H66: 0.9794328222 | I66: 0.9890982507 | J66: 0.9973987411 | K66: 1.060354579 | L66: 1.103487854 | M66: 1.140624143 | N66: 1.191406626 | O66: 1.255696443 | P66: 1.270244325 | Q66: 1.239698712 | R66: 1.249766838 | S66: 1.266338453 | T66: 1.304356397 | U66: 1.334573752 | V66: 1.368012915 | W66: 1.392278129 | X66: 1.424056876 | Y66: 1.452276449 | Z66: 1.491473575 | AA66: 1.606109715 | AB66: 1.628260594

Sheet Bulk (hidden)
A1: Ship data | B1: Units | C1: Deafult values
A2: Bulker type: Small (< 10000 DWT) - Handysize (10000 - 25000 DWT) - Handymax (25000 - 55000 DWT) - Panamax (55000 - 85000 DWT) - Capesize (85000 - 200000 DWT) - VLBC ( >200000 DWT) | B2: - | C2: =IF(C3<10000,"Small bulk carrier",IF(C3<25000,"Handysize bulk carrier",IF(C3<55000,"Handymax bulk carrier",IF(C3<85000,"Panamax bulk carrier",IF(C3<200000,"Capsize bulk carrier","VLBC"))))) -> Handymax bulk carrier
A3: Maximum deadweight | B3: tons | C3: =IF('Primary Calculations'!A1=2,Results!C11,50000) -> 50000
A4: Elongation in percent | B4: % | C4: 0
A5: Length between pp | B5: m | C5: =(1+C4/100)*IF(C3<10000,5.582*C3^0.329,IF(C3<25000,5.463*C3^0.3285,IF(C3<55000,25.66*C3^0.1813,IF(C3<60000,107+7/5000*C3,IF(C3<69000,31+24/9000*C3,IF(C3<85000,180.5+0.0005*C3,IF(C3<200000,5.705*C3^0.322,IF(C3<250000,230+C3*0.00032,250.625+C3*0.0002375)))))))) -> 182.4651438
A6: Length in waterline incl. bulbous bow | B6: m | C6: =C5*1.02 -> 186.1144467
A7: Breadth mld. | B7: m | C7: =IF(C3<10000,11+0.001*C3-0.00000001675*C3^2,IF(C3<25000,14.86+0.00045*C3,IF(C3<55000,MIN(18.93+0.000272*C3,32.2),IF(C3<85000,32.23,IF(C3<110000,27.8+C3*0.00012,IF(C3<200000,32.75+C3*0.000075,IF(C3<250000,20+C3*0.00015,57.5))))))) -> 32.2
A8: Depth | B8: m | C8: =IF(C3<10000,5.22+0.000485*C3,IF(C3<25000,7.84+0.000232*C3,IF(C3<55000,9.32+0.000158*C3,IF(C3<85000,13.47+0.0000777*C3,IF(C3<200000,1.126*C3^0.2545,MIN(24+(C3-200000)*6/70000,30)))))) -> 17.22
A9: Design draught | B9: m | C9: =C10-(C3-C13)/C5/C7/1.025/(C29-0.04*(1-C18/C19)) -> 10.97500244
A10: Maximum draught | B10: m | C10: =IF(C3<10000,0.529*C3^0.285,IF(C3<25000,6.2+0.000141*C3,IF(C3<55000,6.84+0.000101*C3,IF(C3<85000,8.43+0.0000735*C3,IF(C3<200000,0.179*C3^0.3814,IF(C3<230000,14.95+C3*0.000015,7.82+C3*0.000046)))))) -> 11.89
A11: Design deadweight/Maximum deadweight | B11: % | C11: 90
A12: Maximum draugth - design draught | B12: m | C12: =C10-C9 -> 0.9149975557
A13: Design deadweight | B13: tons | C13: =C11/100*C3 -> 45000
A14: Lightweight coefficient (excl. CSR allowance) | B14: t/m3 | C14: =IF(C3<10000,0.831*C3^(-0.2),IF(C3<25000,0.153-0.00000158*C3,IF(C3<55000,0.151-0.00000127*C3,IF(C3<85000,0.079,IF(C3<200000,0.0817-0.0000000486*C3,0.065))))) -> 0.0875
A15: Lightweight (default incl. CSR allowance) | B15: tons | C15: =IF(C5>90,C5*C7*C8*C14*1.05,C5*C7*C8*C14) -> 9295.361509
A16: Structural enhancement (change of lightweight) | B16: pct. | C16: 0
A17: New lightweight | C17: =C15*(1+C16/100) -> 9295.361509
A18: Displacement at design draught | B18: tons | C18: =C17+C13 -> 54295.36151
A19: Displacement at maximum draught | B19: tons | C19: =C3+C17 -> 59295.36151
A20: Design Dw/Design displacement | B20: % | C20: =C13/C18*100 -> 82.88000807
A21: Scantling Dw/Maximum displacement | B21: % | C21: =C3/C19*100 -> 84.3236279
A22: Block coefficient at design draught | B22: - | C22: =C18/C5/C7/C9/1.025 -> 0.821482758
A23: Block coefficient at maximum draught | B23: - | C23: =C19/1.025/C5/C7/C10 -> 0.8280931948
A24: Lpp/Displ.1/3 at design draught | B24: - | C24: =C5/(C18/1.025)^(1/3) -> 4.858478583
A25: Lpp/Displ.1/3 at maximum draught | B25: - | C25: =C5/(C19/1.025)^(1/3) -> 4.717888019
A26: Midship section coefficient at maximum draught | B26: - | C26: 0.995
A27: Prismatic coefficient at design draught | B27: - | C27: =C22/C26 -> 0.8256108121
A28: Prismatic coefficient at maximum draught | B28: - | C28: =C23/C26 -> 0.8322544671
A29: Waterplane area coefficient at maximum draught | B29: - | C29: =(0.81*C23+0.24) -> 0.9107554878
A30: Wetted surface at design draught | B30: m2 | C30: =C31-2*(C10-C9)*(C6+C7) -> 8579.658612
A31: Wetted surface at maximum draught | B31: m2 | C31: =0.99*(C19/1.025/C10+1.9*C6*C10) -> 8979.172983
A32: Service speed at design draught | B32: knots | C32: =MIN(15,0.613*LN(C3)+7.74) -> 14.37252409
A33: Froude number at service speed | B33: - | C33: =C32*0.5144/(9.81*C6)^0.5 -> 0.1730252393
A34: Max. draught trial speed at 75 % MCR (EEDI ref. speed) | B34: knots | C34: ='BPT1'!R22 -> 14.1086771
A35: Froude number at EEDI reference speed | B35: - | C35: =C34*0.5144/(9.81*C5)^0.5 -> 0.1715389682
A36: Service allowance on resistance | B36: pct. | C36: 15
A37: Beaufort No. | B37: - | C37: 0
A38: Calculated wind speed acc. to Beaufort No. | B38: m/s | C38: =MAX(0,-0.2+0.98*C37+0.21626*C37^2-0.00466*C37^3) -> 0
A39: Wind speed to be used for separate wind resistance | B39: m/s | C39: 0
A40: Wind resistance fraction of trial resistance | B40: pct. | C40: ='BPS1'!K32 -> 0
A41: Transmission efficiency | B41: pct. | C41: 98
A42: General improved propeller efficiency | B42: pct. | C42: 0
A43: Main engine power (MCR) | B43: kW | C43: ='BPS1'!K38/C56*100 -> 9053.945694
A44: Auxiliary power at sea at design draught | B44: kW | C44: =IF(C43<10000,0.05*C43,250+0.025*C43) -> 452.6972847
A45: Propeller type (1 = conventional - 2 = ducted) | B45: (-) | C45: 1
A46: Propeller diameter | B46: m | C46: =0.395*C10+1.3 -> 5.99655
A47: Propeller loading (MCR) | B47: kW/m2 | C47: =C43/C46^2/0.7854 -> 320.5856435
A48: Speed dependency exponent n (Power = constant Vn) | B48: - | C48: ='BPT1'!L21/'BPT1'!L35*('BPT1'!M35-'BPT1'!K35)/('BPT1'!M21-'BPT1'!K21) -> 3.994935543
A49: IMO Energy Efficiency Design Index (CO2 emissions) | B49: g/dwt/nm | C49: =(C43*0.75*'Emission factors'!B15*'Emission factors'!B23+C44*'Emission factors'!C15*'Emission factors'!C23)/C3/C34 -> 5.936391558
A50: IMO Energy Efficiency Design Index (MEPC 62) | B50: g/dwt/nm | C50: =961.79*C3^-0.477 -> 5.516600891
A51: EEDI - January 2015 (>15000 DWT) | B51: g/dwt/nm | C51: =0.9*C50 -> 4.964940802
A52: EEDI - January 2020 (>15000 DWT) | B52: g/dwt/nm | C52: =0.8*C50 -> 4.413280713
A53: EEDI - January 2025 (>15000 DWT) | B53: g/dwt/nm | C53: =0.7*C50 -> 3.861620624
A54: ENGINE TYPE & TECHNOLOGY
A55: Main engine type (slow speed = 1, medium speed = 2) | B55: (-) | C55: ='Advanced Settings'!G23 -> 1
A56: Main engine service rating (for non derated engine only) | B56: pct. MCR | C56: ='Advanced Settings'!G27 -> 90
A57: Fuel type (HFO = 1, MD/GO = 2, LNG = 3 (only 4 stroke), Dual fuel = 4) | B57: - | C57: 2
A58: SFOC at 75 % MCR for main engine mode (If default press 1) | B58: g/kW/hour | C58: 1
A59: If normal tuning press 1 - if low load tuning press 2 | B59: - | C59: ='Advanced Settings'!G28 -> 1
A60: Sulphur content in heavy fuel (HFO) | B60: pct. | C60: 1
A61: Sulphur content in diesel oil or gas oil (DO/GO) | B61: pct. | C61: 1
A62: Derated 2 stroke main engine? (NO = 0, YES = 1) | B62: - | C62: 0
A63: Fuel optimised main engine? (NO = 0, YES = 1) | B63: - | C63: 0
A64: TIER 1, 2 or 3 engine? (1 - 3) | B64: - | C64: 2
A65: Specify NOx reduction technology: EGR (Exhaust Gas Recirculation) =1, SCR (Selective Catalyic Reduction) = 2 or other technology = 3 | B65: - | C65: 3
A66: Use of scrubbers if oil is used (NO = 0, YES=1) | B66: - | C66: 0
A67: ACTUAL CONDITION
A68: Capacity utilization (100 % ~ design condition) | B68: % | C68: ='Advanced Settings'!G20 -> 100
A69: Actual deadweight | B69: tons | C69: =IF(C13<10000,C13/10+C13*0.9*C68/100,C13/20+C13*0.95*C68/100) -> 45000
A70: Actual displacement | B70: tons | C70: =C69+C15*(1+C16/100) -> 54295.36151
A71: Actual draught | B71: m | C71: =C10-(C19-C70)/C5/C7/1.025/(C29-0.04*(1-C70/C19)) -> 10.97500244
A72: Block coefficient at actual draught | B72: - | C72: =C70/C5/C7/C71/1.025 -> 0.821482758
A73: Service speed at actual draught | B73: knots | C73: =Results!C12 -> 15
A74: Wind speed to be used for separate wind resistance | B74: m/s | C74: 0
A75: Speed dependency exponent n (Power = constant Vn) | B75: - | C75: =BPAS1!K21/BPAS1!K36*(BPAS1!L36-BPAS1!J36)/(BPAS1!L21-BPAS1!J21) -> 4.12757945
A76: Necessary mian engine power at actual deadweight | B76: kW | C76: =BPAS1!K36 -> 9691.56972
A77: Engine rating in actual condition | B77: % MCR | C77: =C76/C43*100 -> 107.0424989
A78: SFOC at CSR | B78: g/kW/hour | C78: ='Emission factors'!B15*IF(C59=1,100+0.0028*C77^2-0.41*C77+15,100+0.0000000020194*C77^6-0.0000007555*C77^5+0.00011181*C77^4-0.00832*C77^3+0.33*C77^2-6.851*C77+62.9)*10 -> 190.5103996
A79: Oil consumption per hour (auxiliary engines) | B79: t/hour | C79: =C44*'Emission factors'!C15/1000 -> 0.08859285861
A80: Oil consumption per hour (main engine) | B80: t/hour | C80: =C76*C78/1000000 -> 1.84634482
A81: Oil consumption per hour (main and auxiliary engines) | B81: t/hour | C81: =C79+C80 -> 1.934937678

Sheet BPAS1 (hidden)
A1: Speed and power calculation - Version 2013.05.08
A2: Main data | J2: Input
A3: Water density | B3: (t/m^3) | C3: 1.025 | G3: Wake fraction (1 = calc.) | J3: 1 | K3: =IF(J3=1,IF(C17=1,0.7*C71-0.45+0.08*C13,IF(C16=1,C72,G71)),J3) -> 0.3290368733
A4: Length on water line | B4: (m) | C4: =Bulk!C6 -> 186.1144467 | G4: Thrust deduction (1 = calc.) | J4: 1 | K4: =IF(J4=1,IF(C17=1,E71-0.26+0.04*C13,IF(C16=1,E72,G72)),J4) -> 0.2119807709
A5: Breadth on water line | B5: (m) | C5: =Bulk!C7 -> 32.2 | G5: Hull efficiency (calculated) | K5: =(1-K4)/(1-K3) -> 1.174459814
A6: Mean draught | B6: (m) | C6: =Bulk!C71 -> 10.97500244 | G6: Transm. efficiency (input) | K6: =Bulk!C41/100 -> 0.98
A7: Displacement | B7: (tons) | C7: =Bulk!C70 -> 54295.36151 | G7: Relative rot. efficiency (input) | K7: 1
A8: Wetted surface, given as input | B8: (m^2) | C8: =Bulk!C31+2*(C4+C5)*(C6-Bulk!C10) -> 8579.658612 | G8: Transition zone: | L8: Design speed (knots) | N8: =Bulk!C73 -> 15
A9: Wetted surface, calculated | B9: (m^2) | C9: =IF(C8=0,(0.99+(C16-1)*0.05)*(C7/C3/C6+1.9*C4*C6),C8) -> 8579.658612 | G9: Lower Froude number | J9: 0.32 | K9: =IF(J9>0.32,"Too high"," ") -> 
A10: Midship section coefficient | B10: (-) | C10: =1-Bulk!C10/Bulk!C71*(1-Bulk!C26) -> 0.9945831447 | G10: Upper Froude number | J10: 1 | K10: =IF(J10<0.9,"Too low"," ") -> 
A11: Block coefficient | B11: (-) | C11: =C7/C3/C4/C5/C6 -> 0.805375253 | G11: Service allowance (pct.) | K11: =Bulk!C36 -> 15
A12: Prismatic coefficient | B12: (-) | C12: =C11/C10 -> 0.8097616145 | G12: Water temperature (degrees Celcius) | K12: 15
A13: Length-displacement ratio | B13: (-) | C13: =C4/(C7/C3)^(1/3) -> 4.955648154 | D13: =IF(OR(C13<4,C13>9)," Warning: Length-displ. ratio out of range !","") ->  | G13: Bulbous bow (0 = No, 1 = Yes) | K13: 1
A14: Form fore (V : -3, N: 0, U: +3) | B14: (-) | C14: 0 | G14: 1 = conv. - 2 = ducted | K14: =Bulk!C45 -> 1
A15: Form aft (V: -3, N: 0, U: +3) | B15: (-) | C15: 0 | G15: Improved propeller efficiency (pct.) | K15: =Bulk!C42 -> 0
A16: Normal hull (1) or twin skeg (2) | B16: (-) | C16: 1 | D16: =IF(OR(C4/C5<3.5,C4/C5>10)," Warning: L/B out of range !","") ->  | M16: Cx | N16: 0.8
A17: Number of propellers (1 or 2) | B17: (-) | C17: 1 | D17: =IF(C5/C6>6.5," Warning: B/T out of range !","") ->  | G17: Beaufort number | I17: =Bulk!C37 -> 0 | J17: =MAX(0,-0.2+0.98*I17+0.21626*I17^2-0.00466*I17^3) -> 0 | L17: Wind speed (m/s) | N17: =Bulk!C74 -> 0
A18: Propeller diameter | B18: (m) | C18: =Bulk!C46 -> 5.99655 | D18: =C18/C6 -> 0.5463825662 | E18: of draught
A19: Number of blades, N | B19: (-) | C19: 4
A20: Resistance and power data
A21: Speed (input) | B21: (knots) | C21: =(C22*(9.81*C4)^0.5)/0.5144 -> 9.967926629 | D21: =E21-0.5 -> 12 | E21: =F21-0.5 -> 12.5 | F21: =G21-0.5 -> 13 | G21: =H21-0.5 -> 13.5 | H21: =I21-0.5 -> 14 | I21: =K21-0.5 -> 14.5 | J21: =K21-0.01 -> 14.99 | K21: =N8 -> 15 | L21: =Results!C13 -> 15 | M21: =L21+0.5 -> 15.5 | N21: =N22*SQRT(9.81*C4)/0.5144 -> 26.58113768
A22: Froude Number | B22: (-) | C22: 0.12 | D22: =D21*0.5144/SQRT(9.81*$C4) -> 0.1444633426 | E22: 0.1504826486 | F22: 0.1565019545 | G22: 0.1625212605 | H22: 0.1685405664 | I22: 0.1745598724 | J22: 0.1804587922 | K22: 0.1805791783 | L22: 0.1805791783 | M22: 0.1865984842 | N22: =J9 -> 0.32
A23: Cf x 1000 | B23: (-) | C23: =75/(LOG10(C21*0.5144*$C4*1000000/((43.4233-31.38*$C3)*($K12+20)^(1.72*$C3-2.202)+4.7478-5.779*$C3))-2)^2 -> 1.573131237 | D23: 1.537048131 | E23: 1.529275676 | F23: 1.521863503 | G23: 1.51478186 | H23: 1.508004452 | I23: 1.501507924 | J23: 1.495393753 | K23: 1.495271448 | L23: 1.495271448 | M23: 1.489276375 | N23: 1.395621919
A24: Cr x 1000 | B24: (-) | C24: =IF(C22>0.12,C46,$C46+(C22-0.12)*2.5) -> 0.7421833059 | D24: 0.8496013176 | E24: 0.9025296496 | F24: 0.9641699305 | G24: 1.033275216 | H24: 1.108897056 | I24: 1.190645678 | J24: 1.277075431 | K24: 1.278911634 | L24: 1.278911634 | M24: 1.375048906 | N24: =N62+N63+N115 -> 21.44039
A25: Cr-correction x 1000 (input) | B25: (-) | C25: =IF($C17=1,0,0.3) -> 0 | D25: 0 | E25: 0 | F25: 0 | G25: 0 | H25: 0 | I25: 0 | J25: 0 | K25: 0 | L25: 0 | M25: 0 | N25: 0
A26: Bulbous bow corr. x 1000 (input) | B26: (-) | C26: =$K13*MAX(-0.4,-0.1-1.6*C22) -> -0.292 | D26: -0.3311413482 | E26: -0.3407722377 | F26: -0.3504031272 | G26: -0.3600340167 | H26: -0.3696649063 | I26: -0.3792957958 | J26: -0.3887340675 | K26: -0.3889266853 | L26: -0.3889266853 | M26: -0.3985575748 | N26: -0.4
A27: Air & steering corr. x 1000 (input) | B27: (-) | C27: =IF(Bulk!$C3<55000,0.07,IF(Bulk!$C3<170000,0.05,0.04)) -> 0.07 | D27: =IF(Bulk!$C3<55000,0.07,IF(Bulk!$C3<170000,0.05,0.04)) -> 0.07 | E27: =IF(Bulk!$C3<55000,0.07,IF(Bulk!$C3<170000,0.05,0.04)) -> 0.07 | F27: =IF(Bulk!$C3<55000,0.07,IF(Bulk!$C3<170000,0.05,0.04)) -> 0.07 | G27: =IF(Bulk!$C3<55000,0.07,IF(Bulk!$C3<170000,0.05,0.04)) -> 0.07 | H27: =IF(Bulk!$C3<55000,0.07,IF(Bulk!$C3<170000,0.05,0.04)) -> 0.07 | I27: =IF(Bulk!$C3<55000,0.07,IF(Bulk!$C3<170000,0.05,0.04)) -> 0.07 | J27: =IF(Bulk!$C3<55000,0.07,IF(Bulk!$C3<170000,0.05,0.04)) -> 0.07 | K27: =IF(Bulk!$C3<55000,0.07,IF(Bulk!$C3<170000,0.05,0.04)) -> 0.07 | L27: =IF(Bulk!$C3<55000,0.07,IF(Bulk!$C3<170000,0.05,0.04)) -> 0.07 | M27: =IF(Bulk!$C3<55000,0.07,IF(Bulk!$C3<170000,0.05,0.04)) -> 0.07 | N27: =IF(Bulk!$C3<55000,0.07,IF(Bulk!$C3<170000,0.05,0.04)) -> 0.07
A28: Ca x 1000 | B28: (-) | C28: =MAX(0.5*LOG10($C7)-0.1*(LOG10($C7))^2,'BPS1'!$K19) -> 0.1255835545 | D28: =MAX(0.5*LOG10($C7)-0.1*(LOG10($C7))^2,'BPS1'!$K19) -> 0.1255835545 | E28: =MAX(0.5*LOG10($C7)-0.1*(LOG10($C7))^2,'BPS1'!$K19) -> 0.1255835545 | F28: =MAX(0.5*LOG10($C7)-0.1*(LOG10($C7))^2,'BPS1'!$K19) -> 0.1255835545 | G28: =MAX(0.5*LOG10($C7)-0.1*(LOG10($C7))^2,'BPS1'!$K19) -> 0.1255835545 | H28: =MAX(0.5*LOG10($C7)-0.1*(LOG10($C7))^2,'BPS1'!$K19) -> 0.1255835545 | I28: =MAX(0.5*LOG10($C7)-0.1*(LOG10($C7))^2,'BPS1'!$K19) -> 0.1255835545 | J28: =MAX(0.5*LOG10($C7)-0.1*(LOG10($C7))^2,'BPS1'!$K19) -> 0.1255835545 | K28: =MAX(0.5*LOG10($C7)-0.1*(LOG10($C7))^2,'BPS1'!$K19) -> 0.1255835545 | L28: =MAX(0.5*LOG10($C7)-0.1*(LOG10($C7))^2,'BPS1'!$K19) -> 0.1255835545 | M28: =MAX(0.5*LOG10($C7)-0.1*(LOG10($C7))^2,'BPS1'!$K19) -> 0.1255835545 | N28: =MAX(0.5*LOG10($C7)-0.1*(LOG10($C7))^2,'BPS1'!$K19) -> 0.1255835545
A29: Ct x 1000 | B29: (-) | C29: =C23+C24+C25+C26+C27+C28 -> 2.218898098 | D29: 2.251091654 | E29: 2.286616643 | F29: 2.33121386 | G29: 2.383606614 | H29: 2.442820156 | I29: 2.50844136 | J29: 2.579318671 | K29: 2.580839951 | L29: 2.580839951 | M29: 2.661351261 | N29: 22.63159548
A30: Service allowance (input) | B30: (%) | C30: =$K11 -> 15 | D30: 15 | E30: 15 | F30: 15 | G30: 15 | H30: 15 | I30: 15 | J30: 15 | K30: 15 | L30: 15 | M30: 15 | N30: 15
A31: Added resistance (input) | B31: (kN) | C31: 0 | D31: 0 | E31: 0 | F31: 0 | G31: 0 | H31: 0 | I31: 0 | J31: 0 | K31: 0 | L31: 0 | M31: 0 | N31: 0
A32: Wind resistance in head wind | B32: (kN) | C32: =0.00062*$C5*((0.88-0.002*$C4)*$C5+(Bulk!$C8-$C6))*$N16*((C21*0.5144+$N17)^2-(C21*0.5144)^2) -> 0 | D32: =0.00062*$C5*((0.88-0.002*$C4)*$C5+(Bulk!$C8-$C6))*$N16*((D21*0.5144+$N17)^2-(D21*0.5144)^2) -> 0 | E32: =0.00062*$C5*((0.88-0.002*$C4)*$C5+(Bulk!$C8-$C6))*$N16*((E21*0.5144+$N17)^2-(E21*0.5144)^2) -> 0 | F32: =0.00062*$C5*((0.88-0.002*$C4)*$C5+(Bulk!$C8-$C6))*$N16*((F21*0.5144+$N17)^2-(F21*0.5144)^2) -> 0 | G32: =0.00062*$C5*((0.88-0.002*$C4)*$C5+(Bulk!$C8-$C6))*$N16*((G21*0.5144+$N17)^2-(G21*0.5144)^2) -> 0 | H32: =0.00062*$C5*((0.88-0.002*$C4)*$C5+(Bulk!$C8-$C6))*$N16*((H21*0.5144+$N17)^2-(H21*0.5144)^2) -> 0 | I32: =0.00062*$C5*((0.88-0.002*$C4)*$C5+(Bulk!$C8-$C6))*$N16*((I21*0.5144+$N17)^2-(I21*0.5144)^2) -> 0 | J32: =0.00062*$C5*((0.88-0.002*$C4)*$C5+(Bulk!$C8-$C6))*$N16*((J21*0.5144+$N17)^2-(J21*0.5144)^2) -> 0 | K32: =0.00062*$C5*((0.88-0.002*$C4)*$C5+(Bulk!$C8-$C6))*$N16*((K21*0.5144+$N17)^2-(K21*0.5144)^2) -> 0 | L32: =0.00062*$C5*((0.88-0.002*$C4)*$C5+(Bulk!$C8-$C6))*$N16*((L21*0.5144+$N17)^2-(L21*0.5144)^2) -> 0 | M32: =0.00062*$C5*((0.88-0.002*$C4)*$C5+(Bulk!$C8-$C6))*$N16*((M21*0.5144+$N17)^2-(M21*0.5144)^2) -> 0
A33: Total resistance | B33: (kN) | C33: =$C9*$C3*C29*C21^2*0.0001323*(1+C30/100)+C31+C32 -> 294.9840815 | D33: 433.7177812 | E33: 478.0407769 | F33: 527.1332105 | G33: 581.2375671 | H33: 640.6179797 | I33: 705.6535241 | J33: 775.4607573 | K33: 776.9537164 | L33: 776.9537164 | M33: 855.4943641 | N33: =$C9*$C3*N29*N21^2*0.0001323*(1+N30/100)+N31 -> 21395.07725
A34: Effective power | B34: (kW) | C34: =C33*C21*0.5144 -> 1512.531308 | D34: 2677.25312 | E34: 3073.802195 | F34: 3525.045205 | G34: 4036.346161 | H34: 4613.474443 | I34: 5263.328506 | J34: 5979.466233 | K34: 5994.974876 | L34: 5994.974876 | M34: 6821.027664 | N34: 292542.1062
A35: Total propulsion efficiency | B35: (-) | C35: =$K5*$K6*$K7*C39 -> 0.6442948493 | D35: 0.6418856766 | E35: 0.639256394 | F35: 0.635998037 | G35: 0.6322288068 | H35: 0.6280428613 | I35: 0.6234925241 | J35: 0.6186784621 | K35: 0.6185762523 | L35: 0.6185762523 | M35: 0.61323206 | N35: 0.2568415968
A36: Propulsion power | B36: (kW) | C36: =C34/C35 -> 2347.576284 | D36: 4170.918931 | E36: 4808.402738 | F36: 5542.541015 | G36: 6384.31232 | H36: 7345.795529 | I36: 8441.686632 | J36: 9664.901237 | K36: 9691.56972 | L36: 9691.56972 | M36: 11123.07739 | N36: 1138998.16
A37: Thrust loading coefficent, Cth | B37: (-) | C37: =2.54648*C33/(1-$K4)/$C17/$C3/(C40*$C18)^2/$K7 -> 2.185075051 | D37: 2.216777876 | E37: 2.251761351 | F37: 2.295678765 | G37: 2.347272887 | H37: 2.405583827 | I37: 2.470204755 | J37: 2.540001671 | K37: 2.541499762 | L37: 2.541499762 | M37: 2.620783824 | N37: 22.28661816
A38: Necessary blade area ratio | B38: (-) | C38: =(1.3+0.3*$C19)*C33/(1-$K4)/$C17/(99.6+$C3*9.81*0.65*$C18)/$C18^2+C73 -> 0.3875130611 | D38: 0.4757021612 | E38: 0.5038770395 | F38: 0.535083715 | G38: 0.5694763285 | H38: 0.6072227821 | I38: 0.6485640435 | J38: 0.6929385328 | K38: 0.6938875648 | L38: 0.6938875648 | M38: 0.7438136394 | N38: 13.8002472
A39: Approximate propeller efficiency | B39: (-) | C39: =(1+$K15/100)*IF($K14=1,MAX(0.65,0.81-0.014*C37),IF(C37<7,-0.000205*C37^4+0.00518*C37^3-0.0462*C37^2+0.177*C37+0.59,0.85))/(1+SQRT(1+C37))*2 -> 0.5597839244 | D39: 0.5576907583 | E39: 0.5554063536 | F39: 0.552575389 | G39: 0.5493005616 | H39: 0.5456636786 | I39: 0.5417102004 | J39: 0.5375275897 | K39: 0.5374387866 | L39: 0.5374387866 | M39: 0.5327955818 | N39: =IF($K14=1,MAX(0.65,0.81-0.014*N37),IF(N37<7,-0.000205*N37^4+0.00518*N37^3-0.0462*N37^2+0.177*N37+0.59,0.85))/(1+SQRT(1+N37))*2 -> 0.223152175
A40: Va | B40: (m/s) | C40: =C21*0.5144*(1-$K3) -> 3.44036441 | D40: 4.141721188 | E40: 4.314292904 | F40: 4.486864621 | G40: 4.659436337 | H40: 4.832008053 | I40: 5.004579769 | J40: 5.173700051 | K40: 5.177151485 | L40: 5.177151485 | M40: 5.349723201 | N40: 9.174305094
A41: Vbehind | B41: (m/s) | C41: =C40*SQRT(1+C37) -> 6.139942181 | D41: 7.42833355 | E41: 7.779809435 | F41: 8.145456016 | G41: 8.524696816 | H41: 8.917095888 | I41: 9.322774213 | J41: 9.734260854 | K41: 9.742815564 | L41: 9.742815564 | M41: 10.17964447 | N41: 44.27171944
A42: Vincrease | B42: (m/s) | C42: =C41-C40 -> 2.69957777 | D42: 3.286612361 | E42: 3.465516531 | F42: 3.658591395 | G42: 3.865260479 | H42: 4.085087835 | I42: 4.318194444 | J42: 4.560560803 | K42: 4.565664079 | L42: 4.565664079 | M42: 4.829921264 | N42: 35.09741435
A43: Vbehind/Va | B43: (-) | C43: =C41/C40 -> 1.784677856 | D43: 1.79353781 | E43: 1.803264082 | F43: 1.815400442 | G43: 1.82955538 | H43: 1.845422398 | I43: 1.862848559 | J43: 1.881489216 | K43: 1.881887287 | L43: 1.881887287 | M43: 1.902835732 | N43: 4.825621013
A44: Disc. flow speed | B44: (m/s) | C44: =C40+0.5*C42 -> 4.790153295 | D44: 5.785027369 | E44: 6.04705117 | F44: 6.316160318 | G44: 6.592066576 | H44: 6.87455197 | I44: 7.163676991 | J44: 7.453980453 | K44: 7.459983525 | L44: 7.459983525 | M44: 7.764683834 | N44: 26.72301227
A45: Water flow pr. propeller | B45: (m^3/s) | C45: =0.785*$C18^2*C44 -> 135.2141017 | D45: 163.2969199 | E45: 170.6931994 | F45: 178.2894807 | G45: 186.0776275 | H45: 194.0514868 | I45: 202.2127664 | J45: 210.4073103 | K45: 210.5767621 | L45: 210.5767621 | M45: 219.1776932 | N45: 754.3241052
A46: Cr summation | B46: (-) | C46: =C62+C63+C115 -> 0.7421833059 | D46: 0.8496013176 | E46: 0.9025296496 | F46: 0.9641699305 | G46: 1.033275216 | H46: 1.108897056 | I46: 1.190645678 | J46: 1.277075431 | K46: 1.278911634 | L46: 1.278911634 | M46: 1.375048906 | N46: 21.44039
B47: A0= | C47: =1.35-0.23*$C13+0.012*$C13^2 -> 0.5049023081 | D47: 0.5049023081 | E47: 0.5049023081 | F47: 0.5049023081 | G47: 0.5049023081 | H47: 0.5049023081 | I47: 0.5049023081 | J47: 0.5049023081 | K47: 0.5049023081 | L47: 0.5049023081 | M47: 0.5049023081 | N47: 0.5049023081
B48: A1= | C48: =0.0011*$C13^9.1 -> 2327.056408 | D48: 2327.056408 | E48: 2327.056408 | F48: 2327.056408 | G48: 2327.056408 | H48: 2327.056408 | I48: 2327.056408 | J48: 2327.056408 | K48: 2327.056408 | L48: 2327.056408 | M48: 2327.056408 | N48: 2327.056408
B49: N1= | C49: =2*$C13-3.7 -> 6.211296309 | D49: 6.211296309 | E49: 6.211296309 | F49: 6.211296309 | G49: 6.211296309 | H49: 6.211296309 | I49: 6.211296309 | J49: 6.211296309 | K49: 6.211296309 | L49: 6.211296309 | M49: 6.211296309 | N49: 6.211296309
B50: B1= | C50: =7-0.09*$C13^2 -> 4.789739623 | D50: 4.789739623 | E50: 4.789739623 | F50: 4.789739623 | G50: 4.789739623 | H50: 4.789739623 | I50: 4.789739623 | J50: 4.789739623 | K50: 4.789739623 | L50: 4.789739623 | M50: 4.789739623 | N50: 4.789739623
B51: B2= | C51: =(5*$C12-2.5)^2 -> 2.398806445 | D51: 2.398806445 | E51: 2.398806445 | F51: 2.398806445 | G51: 2.398806445 | H51: 2.398806445 | I51: 2.398806445 | J51: 2.398806445 | K51: 2.398806445 | L51: 2.398806445 | M51: 2.398806445 | N51: 2.398806445
B52: B3= | C52: =(600*(C22-0.315)^2+1)^1.5 -> 116.218664 | D52: 79.24689035 | E52: 71.5796954 | F52: 64.43836843 | G52: 57.80370438 | H52: 51.65650235 | I52: 45.97756635 | J52: 40.84802675 | K52: 40.74770641 | L52: 40.74770641 | M52: 35.94773981 | N52: 1.022584165
B53: G= | C53: =C50*C51/C52 -> 0.09886241917 | D53: 0.1449856042 | E53: 0.1605156073 | F53: 0.178304612 | G53: 0.1987702761 | H53: 0.2224242401 | I53: 0.2498970518 | J53: 0.2812781716 | K53: 0.2819706749 | L53: 0.2819706749 | M53: 0.3196211595 | N53: 11.23590475
C54: =C22-(0.04+0.59*$C12)-0.015*($C13-5) -> -0.3970940749 | D54: -0.3726307322 | E54: -0.3666114263 | F54: -0.3605921203 | G54: -0.3545728144 | H54: -0.3485535084 | I54: -0.3425342025 | J54: -0.3366352827 | K54: -0.3365148966 | L54: -0.3365148966 | M54: -0.3304955906 | N54: -0.1970940749
B55: H= | C55: =EXP(80*C54) -> 1.597860128e-14 | D55: 1.131051388e-13 | E55: 1.830688466e-13 | F55: 2.963101675e-13 | G55: 4.795994346e-13 | H55: 7.762663685e-13 | I55: 1.256443255e-12 | J55: 2.014152481e-12 | K55: 2.033644272e-12 | L55: 2.033644272e-12 | M55: 3.291600323e-12 | N55: 1.419876169e-07
C56: =20*$C12-16 -> 0.1952322894 | D56: 0.1952322894 | E56: 0.1952322894 | F56: 0.1952322894 | G56: 0.1952322894 | H56: 0.1952322894 | I56: 0.1952322894 | J56: 0.1952322894 | K56: 0.1952322894 | L56: 0.1952322894 | M56: 0.1952322894 | N56: 0.1952322894
B57: K= | C57: =180*C22^3.7*EXP(C56) -> 0.08570998547 | D57: 0.1702801998 | E57: 0.1980434982 | F57: 0.228972826 | G57: 0.2632864351 | H57: 0.3012085343 | I57: 0.3429692226 | J57: 0.3878462372 | K57: 0.3888044252 | L57: 0.3888044252 | M57: 0.4389558325 | N57: 3.229354566
C58: =C47+1.5*C22^1.8+C48*C22^(C49) -> 0.5423496243 | D58: 0.5650518529 | E58: 0.5726225734 | F58: 0.5812472391 | G58: 0.5910935598 | H58: 0.6023514341 | I58: 0.6152348731 | J58: 0.6296690585 | K58: 0.6299840122 | L58: 0.6299840122 | M58: 0.6468672131 | N58: 2.661839219
C59: =0.98+2.5/($C13-2)^4 -> 1.012758882 | D59: 1.012758882 | E59: 1.012758882 | F59: 1.012758882 | G59: 1.012758882 | H59: 1.012758882 | I59: 1.012758882 | J59: 1.012758882 | K59: 1.012758882 | L59: 1.012758882 | M59: 1.012758882 | N59: 1.012758882
C60: =($C13-5)^4*(C22-0.1)^4 -> 6.191085112e-13 | D60: 1.512360155e-11 | E60: 2.513132118e-11 | F60: 3.943671e-11 | G60: 5.912316736e-11 | H60: 8.539600384e-11 | I60: 1.195824412e-10 | J60: 1.621589139e-10 | K60: 1.631316126e-10 | L60: 1.631316126e-10 | M60: 2.176145622e-10 | N60: 9.064367712e-09
B61: E= | C61: =C58*C59+C60 -> 0.5492693992 | D61: 0.572261283 | E61: 0.5799285973 | F61: 0.5886633042 | G61: 0.598635253 | H61: 0.6100367652 | I61: 0.6230845825 | J61: 0.637702932 | K61: 0.6380219042 | L61: 0.6380219042 | M61: 0.6551205159 | N61: 2.695801321
B62: B/T-corr | C62: =0.16*($C5/$C6-2.5) -> 0.06943041937 | D62: 0.06943041937 | E62: 0.06943041937 | F62: 0.06943041937 | G62: 0.06943041937 | H62: 0.06943041937 | I62: 0.06943041937 | J62: 0.06943041937 | K62: 0.06943041937 | L62: 0.06943041937 | M62: 0.06943041937 | N62: 0.06943041937
B63: Formcorr. | C63: =($C15-$C14)/3*0.1 -> 0 | D63: 0 | E63: 0 | F63: 0 | G63: 0 | H63: 0 | I63: 0 | J63: 0 | K63: 0 | L63: 0 | M63: 0 | N63: 0
B64: a= | C64: =0.1*C5/C4+0.149 -> 0.1663011825 | D64: d= | E64: =0.625*C5/C4+0.08 -> 0.1881323903
B65: b= | C65: =0.05*C5/C4+0.449 -> 0.4576505912 | D65: e= | E65: =0.165-0.25*C5/C4 -> 0.1217470439
B66: c= | C66: =585-5027*C5/C4+11700*(C5/C4)^2 -> 65.48672778 | D66: f= | E66: =825-8060*C5/C4+20300*(C5/C4)^2 -> 38.16645025
B67: w1= | C67: =C64+C65/(C66*(0.98-C11)^3+1) -> 0.5056245997 | D67: t1= | E67: =E64+E65/(E66*(0.98-C11)^3+1) -> 0.2893154624
B68: w2= | C68: =0.025*C15/(100*(C11-0.7)^2+1) -> 0 | D68: t2= | E68: =-0.01*C15 -> 0
B69: w3= | C69: =0.00756/(C18/C4+0.002)-0.18 -> 0.04092543025 | D69: t3= | E69: =2*(C18/C4-0.04) -> -0.01556061761
B70: w3= | C70: =MIN(0.1,C69) -> 0.04092543025
B71: w(1)= | C71: =C67+C68+C70 -> 0.54655003 | D71: t(1)= | E71: =E67+E68+E69 -> 0.2737548448 | F71: w(twsk)= | G71: =0.7*C11-0.2 -> 0.3637626771
B72: w(2)= | C72: =1.133*C11^2-0.797*C11+0.215 -> 0.3080129181 | D72: t(2)= | E72: =0.0665+0.62833*C72 -> 0.2600337569 | F72: t(twsk.)= | G72: =0.2*C11+0.06 -> 0.2210750506
A73: Cavitation area calculation | B73: K | C73: =IF(C22>$J9,0,IF($C17=1,0.2,0.1)) -> 0.2 | D73: 0.2 | E73: 0.2 | F73: 0.2 | G73: 0.2 | H73: 0.2 | I73: 0.2 | J73: 0.2 | K73: 0.2 | L73: 0.2 | M73: 0.2 | N73: 0.2
B74: Fn | C74: =C22 -> 0.12 | D74: 0.1444633426 | E74: 0.1504826486 | F74: 0.1565019545 | G74: 0.1625212605 | H74: 0.1685405664 | I74: 0.1745598724 | J74: 0.1804587922 | K74: 0.1805791783 | L74: 0.1805791783 | M74: 0.1865984842 | N74: 0.32
B75: Fn2 | C75: =C22^2 -> 0.0144 | D75: 0.02086965737 | E75: 0.02264502752 | F75: 0.02449286177 | G75: 0.0264131601 | H75: 0.02840592253 | I75: 0.03047114904 | J75: 0.03256537567 | K75: 0.03260883963 | L75: 0.03260883963 | M75: 0.03481899432 | N75: 0.1024
B76: Fn3 | C76: =C22^3 -> 0.001728 | D76: 0.003014900463 | E76: 0.003407683719 | F76: 0.003833180739 | G76: 0.004292700073 | H76: 0.004787550272 | I76: 0.005319039886 | J76: 0.005876708361 | K76: 0.005888477466 | L76: 0.005888477466 | M76: 0.006497171563 | N76: 0.032768
B77: Fn4 | C77: =C22^4 -> 0.00020736 | D77: 0.0004355425986 | E77: 0.0005127972716 | F77: 0.0005999002777 | G77: 0.0006976550267 | H77: 0.0008068964345 | I77: 0.0009284909236 | J77: 0.001060503693 | K77: 0.001063336422 | L77: 0.001063336422 | M77: 0.001212362366 | N77: 0.01048576
B78: Fn5 | C78: =C22^5 -> 2.48832e-05 | D78: 6.291993965e-05 | E78: 7.716709161e-05 | F78: 9.388556598e-05 | G78: 0.0001133837743 | H78: 0.0001359947821 | I78: 0.0001620772571 | J78: 0.0001913772155 | K78: 0.0001920164174 | L78: 0.0001920164174 | M78: 0.0002262249798 | N78: 0.0033554432
B79: Fn6 | C79: =C22^6 -> 2.985984e-06 | D79: 9.089624801e-06 | E79: 1.161230833e-05 | F79: 1.469327458e-05 | G79: 1.842727392e-05 | H79: 2.292063761e-05 | I79: 2.829218531e-05 | J79: 3.453570116e-05 | K79: 3.467416687e-05 | L79: 3.467416687e-05 | M79: 4.221323832e-05 | N79: 0.001073741824
A80: Cr for L/volume1/3 = 4,5 and Cp = 0,70 | B80: A0 | C80: =81963.95967*C78 - 69372.12684*C77 + 23700.28578*C76 - 4016.65661*C75 + 339.10948*C74 - 10.91 -> 0.5518976236 | D80: 0.6492953632 | E80: 0.6769542282 | F80: 0.7082348384 | G80: 0.7436946054 | H80: 0.7837260204 | I80: 0.828634375 | J80: 0.8776610006 | K80: 0.8787154815 | L80: 0.8787154815 | M80: 0.9343333936 | N80: 10.51629956
A81: Cr for L/volume1/3 = 4,5 and Cp = 0,75 | B81: A1 | C81: =211855.99746*C78 - 178462.85551*C77 + 59866.35075*C76 - 9901.7271*C75 + 808.21686*C74 - 25.47 -> 0.6458044934 | D81: 0.7349365819 | E81: 0.7663655564 | F81: 0.804731379 | G81: 0.8503322365 | H81: 0.9030667074 | I81: 0.9626346493 | J81: 1.027353117 | K81: 1.028738087 | L81: 1.028738087 | M81: 1.101282102 | N81: 20.4752158
A82: Cr for L/volume1/3 = 4,5 and Cp = 0,80 | B82: A2 | C82: =189330.79305*C78 - 133987.07846*C77 + 36767.07838*C76 - 4746.53331*C75 + 281.6148*C74 - 5.18 -> 0.7248031768 | D82: 0.8491748565 | E82: 0.9052363189 | F82: 0.9684821347 | G82: 1.037769164 | H82: 1.11240059 | I82: 1.192305445 | J82: 1.27643169 | K82: 1.27821814 | L82: 1.27821814 | M82: 1.371857997 | N82: 34.00772367
A83: Cr for L/volume1/3 = 4,5 and Cp = 0,85 | B83: A3 | C83: =-183277.76453*C78 + 217604.57034*C77 - 91711.5592*C76 + 18157.61937*C75 - 1715.03079*C74 + 63.08 -> 0.8303962657 | D83: 1.007226053 | E83: 1.097445501 | F83: 1.193313855 | G83: 1.293122557 | H83: 1.39750043 | I83: 1.509239896 | J83: 1.63048665 | K83: 1.633123178 | L83: 1.633123178 | M83: 1.775748521 | N83: 35.17716961
A84: Cr for L/volume1/3 = 5 and Cp = 0,70 | B84: B0 | C84: =108656.82305*C78 - 92884.66951*C77 + 31771.52118*C76 - 5373.60627*C75 + 450.34486*C74 - 14.5 -> 0.5058059008 | D84: 0.5824264726 | E84: 0.6046467971 | F84: 0.6306065531 | G84: 0.6607669534 | H84: 0.6953415828 | I84: 0.7343994297 | J84: 0.7770519713 | K84: 0.7779679176 | L84: 0.7779679176 | M84: 0.8261359369 | N84: 11.06772505
A85: Cr for L/volume1/3 = 5 and Cp = 0,75 | B85: B1 | C85: =236068.11145*C78 - 206198.08468*C77 + 71647.62804*C76 - 12274.26804*C75 + 1036.91016*C74 - 34.06 -> 0.5437558687 | D85: 0.6315479543 | E85: 0.6571795491 | F85: 0.689924061 | G85: 0.7306806164 | H85: 0.7796718238 | I85: 0.8366676208 | J85: 0.8998475552 | K85: 0.901209121 | L85: 0.901209121 | M85: 0.9728324599 | N85: 18.58519041
A86: Cr for L/volume1/3 = 5 and Cp = 0,80 | B86: B2 | C86: =153905.69184*C78 - 114943.493048*C77 + 33802.921153*C76 - 4780.049092*C75 + 322.837994*C74 - 7.67 -> 0.6442835003 | D86: 0.74366082 | E86: 0.7905822158 | F86: 0.845291262 | G86: 0.9071403613 | H86: 0.9756548609 | I86: 1.050678991 | J86: 1.130813323 | K86: 1.132521801 | L86: 1.132521801 | M86: 1.2221031 | N86: 24.96717686
A87: Cr for L/volume1/3 = 5 and Cp = 0,85 | B87: B3 | C87: =-9980220.15991*C79 + 10826099.46985*C78 - 4792166.95182*C77 + 1110018.19846*C76 - 141933.11234*C75 + 9505.46225*C74 - 260.06 -> 0.7535807277 | D87: 0.8980283897 | E87: 0.9739206691 | F87: 1.065773623 | G87: 1.16929316 | H87: 1.280528334 | I87: 1.397079706 | J87: 1.516461906 | K87: 1.51896592 | L87: 1.51896592 | M87: 1.6491485 | N87: -18.51694299
A88: Cr for L/volume1/3 = 5,5 and Cp = 0,70 | B88: C0 | C88: =12205.28697*C78 - 8294.72385*C77 + 2539.32664*C76 - 405.17899*C75 + 34.1222*C74 - 0.78 -> 0.4517556371 | D88: 0.5045277786 | E88: 0.5210664382 | F88: 0.5397890989 | G88: 0.5611187876 | H88: 0.5855181039 | I88: 0.613500794 | J88: 0.6449556314 | K88: 0.6456433236 | L88: 0.6456433236 | M88: 0.6825964515 | N88: 5.835094374
A89: Cr for L/volume1/3 = 5,5 and Cp = 0,75 | B89: C1 | C89: =78193.22061*C78 - 62747.6239*C77 + 20041.29771*C76 - 3113.11297*C75 + 235.21739*C74 - 6.47 -> 0.4929727301 | D89: 0.5538566753 | E89: 0.5811439478 | F89: 0.6137497601 | G89: 0.6516028037 | H89: 0.6945825995 | I89: 0.7425936426 | J89: 0.7945285025 | K89: 0.7956395477 | L89: 0.7956395477 | M89: 0.853897194 | N89: 11.14642563
A90: Cr for L/volume1/3 = 5,5 and Cp = 0,80 | B90: C2 | C90: =112229.10217*C78 - 90275.82325*C77 + 29064.78003*C76 - 4576.65461*C75 + 352.54132*C74 - 10.15 -> 0.5480963938 | D90: 0.6359843641 | E90: 0.6736572191 | F90: 0.7187932309 | G90: 0.7715094094 | H90: 0.8318454024 | I90: 0.8998699143 | J90: 0.9741890508 | K90: 0.9757871251 | L90: 0.9757871251 | M90: 1.060043109 | N90: 16.37626368
A91: Cr for L/volume1/3 = 5,5 and Cp = 0,85 | B91: C3 | C91: =-6333849.33191*C79 + 7003086.05505*C78 - 3170231.50477*C77 + 753388.16765*C76 - 99065.81153*C75 + 6833.52117*C74 - 192.64 -> 0.6568213996 | D91: 0.7646725115 | E91: 0.8180349485 | F91: 0.888155075 | G91: 0.9735825955 | H91: 1.072287275 | I91: 1.182551367 | J91: 1.301115182 | K91: 1.303645129 | L91: 1.303645129 | M91: 1.436285433 | N91: -7.977004328
A92: Cr for L/volume1/3 = 6 and Cp = 0,70 | B92: D0 | C92: =53881.87664*C78 - 47719.69516*C77 + 17198.62503*C76 - 3090.1397*C75 + 275.82793*C74 - 9.37 -> 0.3961614963 | D92: 0.4452949642 | E92: 0.4558716365 | F92: 0.4683559428 | G92: 0.4835324786 | H92: 0.5020107718 | I92: 0.524276375 | J92: 0.5501689724 | K92: 0.5507419577 | L92: 0.5507419577 | M92: 0.5817983989 | N92: 6.449483157
A93: Cr for L/volume1/3 = 6 and Cp = 0,75 | B93: D1 | C93: =-13296.8167*C78 + 17338.63401*C77 - 7542.52455*C76 + 1552.59022*C75 - 152.78609*C74 + 6.19 -> 0.4439577446 | D93: 0.495154703 | E93: 0.5193822071 | F93: 0.5472683027 | G93: 0.5787723505 | H93: 0.6140721679 | I93: 0.6535514203 | J93: 0.6968510742 | K93: 0.6977870124 | L93: 0.6977870124 | M93: 0.7475364803 | N93: 6.322287053
A94: Cr for L/volume1/3 = 6 and Cp = 0,80 | B94: D2 | C94: =57255.69581*C78 - 44678.74747*C77 + 14023.41918*C76 - 2111.06396*C75 + 151.68701*C74 - 3.73 -> 0.4657083736 | D94: 0.548271103 | E94: 0.5856544898 | F94: 0.6303064681 | G94: 0.6823403681 | H94: 0.7418734388 | I94: 0.8090811403 | J94: 0.8826673827 | K94: 0.8842514349 | L94: 0.8842514349 | M94: 0.9678390783 | N94: 11.78390548
A95: Cr for L/volume1/3 = 6 and Cp = 0,85 | B95: D3 | C95: =143089.62452*C78 - 117343.50532*C77 + 38649.35375*C76 - 6217.22547*C75 + 488.33352*C74 - 14.52 -> 0.5662373937 | D95: 0.6939771092 | E95: 0.7496339135 | F95: 0.8171136334 | G95: 0.8968464803 | H95: 0.9890933357 | I95: 1.094081433 | J95: 1.209647636 | K95: 1.212140041 | L95: 1.212140041 | M95: 1.343836142 | N95: 21.25813519
A96: Cr for L/volume1/3 = 6,5 and Cp = 0,70 | B96: E0 | C96: =30265.1424899999*C78 - 26816.90085*C77 + 9821.16503*C76 - 1803.67859*C75 + 165.46921*C74 - 5.71 -> 0.3366477092 | D96: 0.3862942597 | E96: 0.3971572743 | F96: 0.4092987884 | G96: 0.423359453 | H96: 0.4398811747 | I96: 0.4593358133 | J96: 0.4816618623 | K96: 0.4821538806 | L96: 0.4821538806 | M96: 0.5087532383 | N96: 4.720775595
A97: Cr for L/volume1/3 = 6,5 and Cp = 0,75 | B97: E1 | C97: =54477.25649*C78 - 47053.5012*C77 + 16421.96104*C76 - 2825.53995*C75 + 239.64014*C74 - 7.66 -> 0.384744657 | D97: 0.4356444696 | E97: 0.4530467152 | F97: 0.4741552477 | G97: 0.4994572074 | H97: 0.5293003345 | I97: 0.5639446263 | J97: 0.6027698883 | K97: 0.6036139939 | L97: 0.6036139939 | M97: 0.6485479193 | N97: 7.20799238
A98: Cr for L/volume1/3 = 6,5 and Cp = 0,80 | B98: E2 | C98: =76208.6211*C78 - 64528.35091*C77 + 21766.90698*C76 - 3544.03862*C75 + 277.89526*C74 - 8.01 -> 0.4322058493 | D98: 0.4880606024 | E98: 0.5191325466 | F98: 0.5583057921 | G98: 0.6057243506 | H98: 0.6613780307 | I98: 0.7251747014 | J98: 0.7954974222 | K98: 0.797012555 | L98: 0.797012555 | M98: 0.8768523704 | N98: 10.34983505
A99: Cr for L/volume1/3 = 6,5 and Cp = 0,85 | B99: E3 | C99: =73827.1017*C78 - 60714.3115*C77 + 20349.36168*C76 - 3304.30929*C75 + 259.49856*C74 - 7.45 -> 0.5188053114 | D99: 0.6310544024 | E99: 0.6809337192 | F99: 0.7415892911 | G99: 0.8136399484 | H99: 0.8976117706 | I99: 0.9940080915 | J99: 1.101060863 | K99: 1.103379504 | L99: 1.103379504 | M99: 1.226393866 | N99: 15.12309885
A100: Cr for L/volume1/3 = 7,0 and Cp = 0,70 | B100: F0 | C100: =40733.9049*C78 - 36751.17452*C77 + 13395.20097*C76 - 2415.4317*C75 + 215.01129*C74 - 7.26 -> 0.2989119501 | D100: 0.3334880788 | E100: 0.3419742739 | F100: 0.3523646551 | G100: 0.3652240751 | H100: 0.3809637466 | I100: 0.3998798675 | J100: 0.4217115125 | K100: 0.4221922451 | L100: 0.4221922451 | M100: 0.4480829223 | N100: 4.453660576
A101: Cr for L/volume1/3 = 7,0 and Cp = 0,75 | B101: F1 | C101: =58644.91546*C78 - 51277.08978*C77+ 18140.63323*C76 - 3175.6924*C75 + 274.28544*C74 - 9.02 -> 0.337752285 | D101: 0.3773603433 | E101: 0.3898040139 | F101: 0.4055090509 | G101: 0.4251036461 | H101: 0.4490462709 | I101: 0.4776812855 | J101: 0.5105717151 | K101: 0.5112945474 | L101: 0.5112945474 | M101: 0.5501690208 | N101: 7.093134584
A102: Cr for L/volume1/3 = 7,0 and Cp = 0,80 | B102: F2 | C102: =29372.07272*C78 - 22669.98997*C77 + 6956.69784*C76 - 960.8162*C75 + 55.83313*C74 - 0.51 -> 0.4054182272 | D102: 0.4520299431 | E102: 0.4818823773 | F102: 0.519016159 | G102: 0.5633798751 | H102: 0.6149320031 | I102: 0.6736687637 | J102: 0.7382604693 | K102: 0.7396519713 | L102: 0.7396519713 | M102: 0.8130368862 | N102: 7.770345192
A103: Cr for L/volume1/3 = 7,0 and Cp = 0,85 | B103: F3 | C103: =4564.57887*C78 - 4085.11767*C77 + 2049.36962*C76 - 391.39311*C75 + 30.6636*C74 - 0.38 -> 0.4713732482 | D103: 0.5681317295 | E103: 0.6122335633 | F103: 0.6660649921 | G103: 0.7304334652 | H103: 0.8061302601 | I103: 0.8939348105 | J103: 0.9924741565 | K103: 0.9946190349 | L103: 0.9946190349 | M103: 1.108951665 | N103: 8.988062915
B104: G0 | C104: =($C12-0.75)*($C12-0.8)/0.005 -> 0.1166739681 | D104: 0.1166739681 | E104: 0.1166739681 | F104: 0.1166739681 | G104: 0.1166739681 | H104: 0.1166739681 | I104: 0.1166739681 | J104: 0.1166739681 | K104: 0.1166739681 | L104: 0.1166739681 | M104: 0.1166739681 | N104: 0.1166739681
B105: G1 | C105: =($C12-0.7)*($C12-0.8)/0.0025 -> 0.4285802256 | D105: 0.4285802256 | E105: 0.4285802256 | F105: 0.4285802256 | G105: 0.4285802256 | H105: 0.4285802256 | I105: 0.4285802256 | J105: 0.4285802256 | K105: 0.4285802256 | L105: 0.4285802256 | M105: 0.4285802256 | N105: 0.4285802256
B106: G2 | C106: =($C12-0.7)*($C12-0.75)/0.005 -> 1.311906258 | D106: 1.311906258 | E106: 1.311906258 | F106: 1.311906258 | G106: 1.311906258 | H106: 1.311906258 | I106: 1.311906258 | J106: 1.311906258 | K106: 1.311906258 | L106: 1.311906258 | M106: 1.311906258 | N106: 1.311906258
B107: G3 | C107: =($C12-0.8)*($C12-0.85)/0.005 -> -0.07855832129 | D107: -0.07855832129 | E107: -0.07855832129 | F107: -0.07855832129 | G107: -0.07855832129 | H107: -0.07855832129 | I107: -0.07855832129 | J107: -0.07855832129 | K107: -0.07855832129 | L107: -0.07855832129 | M107: -0.07855832129 | N107: -0.07855832129
B108: G4 | C108: =($C12-0.75)*($C12-0.85)/0.0025 -> -0.9618843532 | D108: -0.9618843532 | E108: -0.9618843532 | F108: -0.9618843532 | G108: -0.9618843532 | H108: -0.9618843532 | I108: -0.9618843532 | J108: -0.9618843532 | K108: -0.9618843532 | L108: -0.9618843532 | M108: -0.9618843532 | N108: -0.9618843532
A109: Cr for L/volume1/3 = 4,5 | B109: H1 | C109: =IF($C12<0.775,C104*C80-C105*C81+C106*C82,C107*C81-C108*C82+C104*C83) -> 0.7433291454 | D109: 0.8765896838 | E109: 0.9385715808 | F109: 1.007578128 | G109: 1.082286988 | H109: 1.162109238 | I109: 1.247325997 | J109: 1.337307882 | K109: 1.339225053 | L109: 1.339225053 | M109: 1.440237495 | N109: 35.20725867
A110: Cr for L/volume1/3 = 5,0 | B110: H2 | C110: =IF($C12<0.775,C104*C84-C105*C85+C106*C86,C107*C85-C108*C86+C104*C87) -> 0.6649329235 | D110: 0.7704788954 | E110: 0.8224529302 | F110: 0.8832212005 | G110: 0.9515891499 | H110: 1.026621757 | I110: 1.10790731 | J110: 1.193952756 | K110: 1.195781305 | L110: 1.195781305 | M110: 1.291510464 | N110: 20.39507019
A111: Cr for L/volume1/3 = 5,5 | B111: H3 | C111: =IF($C12<0.775,C104*C88-C105*C89+C106*C90,C107*C89-C108*C90+C104*C91) -> 0.5651121942 | D111: 0.6574507343 | E111: 0.697770029 | F111: 0.746805388 | G111: 0.8045057516 | H111: 0.8706818452 | I111: 0.945206841 | J111: 1.026446651 | K111: 1.028191711 | L111: 1.028191711 | M111: 1.120135271 | N111: 13.94571856
A112: Cr for L/volume1/3 = 6,0 | B112: H4 | C112: =IF($C12<0.775,C104*C92-C105*C93+C106*C94,C107*C93-C108*C94+C104*C95) -> 0.4791461862 | D112: 0.5694439361 | E112: 0.6099928591 | F112: 0.6586253403 | G112: 0.715503777 | H112: 0.7807574185 | I112: 0.8545514092 | J112: 0.9354148836 | K112: 0.9371558316 | L112: 0.9371558316 | M112: 1.02901475 | N112: 13.31835703
A113: Cr for L/volume1/3 = 6,5 | B113: H5 | C113: =IF($C12<0.775,C104*C96-C105*C97+C106*C98,C107*C97-C108*C98+C104*C99) -> 0.4460382238 | D113: 0.5088619799 | E113: 0.5432021234 | F113: 0.5863009307 | G113: 0.6383308568 | H113: 0.6993161607 | I113: 0.7692065238 | J113: 0.8462890729 | K113: 0.8479506689 | L113: 0.8479506689 | M113: 0.9355699781 | N113: 11.15356856
A114: Cr for L/volume1/3 = 7,0 | B114: H6 | C114: =IF($C12<0.775,C104*C100-C105*C101+C106*C102,C107*C101-C108*C102+C104*C103) -> 0.4184291841 | D114: 0.4714419176 | E114: 0.504324489 | F114: 0.5450898578 | G114: 0.5937334288 | H114: 0.6502715671 | I114: 0.7147645247 | J114: 0.7858074352 | K114: 0.7873393663 | L114: 0.7873393663 | M114: 0.8682128959 | N114: 7.965621679
A115: Korrekt beregnet CR | B115: Cr | C115: =IF($C13>5.25,IF($C13<5.75,C110*($C13-5.5)*($C13-6)/0.5-C111*($C13-5)*($C13-6)/0.25+C112*($C13-5)*($C13-5.5)/0.5,IF($C13<6.25,C111*($C13-6)*($C13-6.5)/0.5-C112*($C13-5.5)*($C13-6.5)/0.25+C113*($C13-5.5)*($C13-6)/0.5,C112*($C13-6.5)*($C13-7)/0.5-C113*($C13-6)*($C13-7)/0.25+C114*($C13-6)*($C13-6.5)/0.5)),C109*($C13-5)*($C13-5.5)/0.5-C110*($C13-4.5)*($C13-5.5)/0.25+C111*($C13-4.5)*($C13-5)/0.5) -> 0.6727528866 | D115: 0.7801708982 | E115: 0.8330992303 | F115: 0.8947395111 | G115: 0.9638447969 | H115: 1.039466637 | I115: 1.121215258 | J115: 1.207645012 | K115: 1.209481214 | L115: 1.209481214 | M115: 1.305618487 | N115: 21.37095958
B116: Fn | C116: =C22 -> 0.12 | D116: 0.1444633426 | E116: 0.1504826486 | F116: 0.1565019545 | G116: 0.1625212605 | H116: 0.1685405664 | I116: 0.1745598724 | J116: 0.1804587922 | K116: 0.1805791783 | L116: 0.1805791783 | M116: 0.1865984842 | N116: 0.32
B117: Cr Guldh. | C117: =C53+C55+C57+C61 -> 0.7338418039 | D117: 0.887527087 | E117: 0.9384877028 | F117: 0.9959407422 | G117: 1.060691964 | H117: 1.13366954 | I117: 1.215950857 | J117: 1.306827341 | K117: 1.308797004 | L117: 1.308797004 | M117: 1.413697508 | N117: 17.16106078
B118: Cr diff. | C118: =C117-C115 -> 0.06108891729 | D118: 0.1073561888 | E118: 0.1053884725 | F118: 0.1012012311 | G118: 0.09684716729 | H118: 0.09420290303 | I118: 0.09473559869 | J118: 0.09918232915 | K118: 0.09931579009 | L118: 0.09931579009 | M118: 0.1080790213 | N118: -4.209898804

Sheet BPT1 (hidden)
A1: Speed and power calculation - Version 2013.05.08
A2: Main data | J2: Input
A3: Water density | B3: (t/m^3) | C3: 1.025 | G3: Wake fraction (1 = calc.) | J3: 1 | K3: =IF(J3=1,IF(C17=1,0.7*C70-0.45+0.08*C13,IF(C16=1,C71,G70)),J3) -> 0.3243396028
A4: Length on water line | B4: (m) | C4: =Bulk!C6 -> 186.1144467 | G4: Thrust deduction (1 = calc.) | J4: 1 | K4: =IF(J4=1,IF(C17=1,E70-0.26+0.04*C13,IF(C16=1,E71,G71)),J4) -> 0.2081115903
A5: Breadth on water line | B5: (m) | C5: =Bulk!C7 -> 32.2 | G5: Hull efficiency (calculated) | K5: =(1-K4)/(1-K3) -> 1.172021348
A6: Mean draught | B6: (m) | C6: =Bulk!C10 -> 11.89 | G6: Transm. efficiency (input) | K6: =Bulk!C41/100 -> 0.98
A7: Displacement | B7: (tons) | C7: =Bulk!C19 -> 59295.36151 | G7: Relative rot. efficiency (input) | K7: 1
A8: Wetted surface, given as input | B8: (m^2) | C8: =Bulk!C31 -> 8979.172983 | G8: Transition zone: | M8: Design speed (knots) | N8: =Bulk!C32 -> 14.37252409
A9: Wetted surface, calculated | B9: (m^2) | C9: =IF(C8=0,(0.99+(C16-1)*0.05)*(C7/C3/C6+1.9*C4*C6),C8) -> 8979.172983 | G9: Lower Froude number | J9: 0.32 | K9: =IF(J9>0.32,"Too high"," ") -> 
A10: Midship section coefficient | B10: (-) | C10: =Bulk!C26 -> 0.995 | G10: Upper Froude number | J10: 1 | K10: =IF(J10<0.9,"Too low"," ") -> 
A11: Block coefficient | B11: (-) | C11: =C7/C3/C4/C5/C6 -> 0.8118560733 | G11: Service allowance (pct.) | K11: 0
A12: Prismatic coefficient | B12: (-) | C12: =C11/C10 -> 0.8159357521 | G12: Water temperature (degrees Celcius) | K12: 15
A13: Length-displacement ratio | B13: (-) | C13: =C4/(C7/C3)^(1/3) -> 4.81224578 | D13: =IF(OR(C13<4,C13>9)," Warning: Length-displ. ratio out of range !","") ->  | G13: Bulbous bow (0 = No, 1 = Yes) | K13: 1
A14: Form fore (V : -3, N: 0, U: +3) | B14: (-) | C14: 0 | G14: 1 = conv. - 2 = ducted | K14: =Bulk!C45 -> 1
A15: Form aft (V: -3, N: 0, U: +3) | B15: (-) | C15: 0 | G15: Improved propeller efficiency (pct.) | K15: =Bulk!C42 -> 0
A16: Normal hull (1) or twin skeg (2) | B16: (-) | C16: 1 | D16: =IF(OR(C4/C5<3.5,C4/C5>10)," Warning: L/B out of range !","") -> 
A17: Number of propellers (1 or 2) | B17: (-) | C17: 1 | D17: =IF(C5/C6>6.5," Warning: B/T out of range !","") -> 
A18: Propeller diameter | B18: (m) | C18: =Bulk!C46 -> 5.99655 | D18: =C18/C6 -> 0.5043355761 | E18: of draught
A19: Number of blades, N | B19: (-) | C19: 4
A20: Resistance and power data
A21: Speed (input) | B21: (knots) | C21: =(C22*(9.81*C4)^0.5)/0.5144 -> 9.967926629 | D21: =E21-0.5 -> 11.37252409 | E21: =F21-0.5 -> 11.87252409 | F21: =G21-0.5 -> 12.37252409 | G21: =H21-0.5 -> 12.87252409 | H21: =I21-MAX(1,Bulk!C39/10) -> 13.37252409 | I21: =J21-MAX(1,Bulk!C39/10) -> 14.37252409 | J21: =N8+MAX(1,Bulk!C39/5) -> 15.37252409 | K21: =L21-0.05 -> 14.0586771 | L21: =R22 -> 14.1086771 | M21: =L21+0.05 -> 14.1586771 | N21: =N22*SQRT(9.81*C4)/0.5144 -> 26.58113768
A22: Froude Number | B22: (-) | C22: 0.12 | D22: =D21*0.5144/SQRT(9.81*$C4) -> 0.1369094037 | E22: 0.1429287096 | F22: 0.1489480156 | G22: 0.1549673215 | H22: 0.1609866274 | I22: 0.1730252393 | J22: 0.1850638512 | K22: 0.1692469573 | L22: 0.1698488879 | M22: 0.1704508185 | N22: =J9 -> 0.32 | P22: 75 % MCR | Q22: =Bulk!C43*0.75 -> 6790.45927 | R22: =R23*R24*Q25-R23*R25*Q24+R24*R25*Q23 -> 14.1086771
A23: Cf x 1000 | B23: (-) | C23: =75/(LOG10(C21*0.5144*$C4*1000000/((43.4233-31.38*$C3)*($K12+20)^(1.72*$C3-2.202)+4.7478-5.779*$C3))-2)^2 -> 1.573131237 | D23: 1.54736434 | E23: 1.539091334 | F23: 1.531221792 | G23: 1.52372074 | H23: 1.516557453 | I23: 1.503138739 | J23: 1.490782859 | K23: 1.507227933 | L23: 1.506569269 | M23: 1.505913364 | N23: 1.395621919 | P23: =H35-I35 -> -1810.323468 | Q23: =H21/P23/P24 -> 1.772334655e-06 | R23: =Q22-H35 -> 1295.533918
A24: Cr x 1000 | B24: (-) | C24: =IF(C22>0.12,C45,$C45+(C22-0.12)*2.5) -> 0.7433316193 | D24: 0.8033240303 | E24: 0.8491760691 | F24: 0.9062196988 | G24: 0.972614272 | H24: 1.046579567 | I24: 1.212596803 | J24: 1.404076741 | K24: 1.158067615 | L24: 1.166605071 | M24: 1.17519855 | N24: =N61+N62+N114 -> 22.0645933 | P24: =H35-J35 -> -4167.844219 | Q24: =I21/P23/P25 -> 3.367606504e-06 | R24: =Q22-I35 -> -514.7895494
A25: Cr-correction x 1000 (input) | B25: (-) | C25: =IF($C17=1,0,0.3) -> 0 | D25: 0 | E25: 0 | F25: 0 | G25: 0 | H25: 0 | I25: 0 | J25: 0 | K25: 0 | L25: 0 | M25: 0 | N25: 0 | P25: =I35-J35 -> -2357.520752 | Q25: =J21/P24/P25 -> 1.564509411e-06 | R25: =Q22-J35 -> -2872.310301
A26: Bulbous bow corr. x 1000 (input) | B26: (-) | C26: =$K13*MAX(-0.4,-0.1-1.6*C22) -> -0.292 | D26: -0.3190550459 | E26: -0.3286859354 | F26: -0.3383168249 | G26: -0.3479477144 | H26: -0.3575786039 | I26: -0.3768403829 | J26: -0.3961021619 | K26: -0.3707951316 | L26: -0.3717582206 | M26: -0.3727213095 | N26: -0.4
A27: Air & steering corr. x 1000 (input) | B27: (-) | C27: =IF(Bulk!$C3<55000,0.07,IF(Bulk!$C3<170000,0.05,0.04)) -> 0.07 | D27: =IF(Bulk!$C3<55000,0.07,IF(Bulk!$C3<170000,0.05,0.04)) -> 0.07 | E27: =IF(Bulk!$C3<55000,0.07,IF(Bulk!$C3<170000,0.05,0.04)) -> 0.07 | F27: =IF(Bulk!$C3<55000,0.07,IF(Bulk!$C3<170000,0.05,0.04)) -> 0.07 | G27: =IF(Bulk!$C3<55000,0.07,IF(Bulk!$C3<170000,0.05,0.04)) -> 0.07 | H27: =IF(Bulk!$C3<55000,0.07,IF(Bulk!$C3<170000,0.05,0.04)) -> 0.07 | I27: =IF(Bulk!$C3<55000,0.07,IF(Bulk!$C3<170000,0.05,0.04)) -> 0.07 | J27: =IF(Bulk!$C3<55000,0.07,IF(Bulk!$C3<170000,0.05,0.04)) -> 0.07 | K27: =IF(Bulk!$C3<55000,0.07,IF(Bulk!$C3<170000,0.05,0.04)) -> 0.07 | L27: =IF(Bulk!$C3<55000,0.07,IF(Bulk!$C3<170000,0.05,0.04)) -> 0.07 | M27: =IF(Bulk!$C3<55000,0.07,IF(Bulk!$C3<170000,0.05,0.04)) -> 0.07 | N27: =IF(Bulk!$C3<55000,0.07,IF(Bulk!$C3<170000,0.05,0.04)) -> 0.07
A28: Ca x 1000 | B28: (-) | C28: =MAX(0.5*LOG10($C7)-0.1*(LOG10($C7))^2,'BPS1'!$K19) -> 0.1083376801 | D28: =MAX(0.5*LOG10($C7)-0.1*(LOG10($C7))^2,'BPS1'!$K19) -> 0.1083376801 | E28: =MAX(0.5*LOG10($C7)-0.1*(LOG10($C7))^2,'BPS1'!$K19) -> 0.1083376801 | F28: =MAX(0.5*LOG10($C7)-0.1*(LOG10($C7))^2,'BPS1'!$K19) -> 0.1083376801 | G28: =MAX(0.5*LOG10($C7)-0.1*(LOG10($C7))^2,'BPS1'!$K19) -> 0.1083376801 | H28: =MAX(0.5*LOG10($C7)-0.1*(LOG10($C7))^2,'BPS1'!$K19) -> 0.1083376801 | I28: =MAX(0.5*LOG10($C7)-0.1*(LOG10($C7))^2,'BPS1'!$K19) -> 0.1083376801 | J28: =MAX(0.5*LOG10($C7)-0.1*(LOG10($C7))^2,'BPS1'!$K19) -> 0.1083376801 | K28: =MAX(0.5*LOG10($C7)-0.1*(LOG10($C7))^2,'BPS1'!$K19) -> 0.1083376801 | L28: =MAX(0.5*LOG10($C7)-0.1*(LOG10($C7))^2,'BPS1'!$K19) -> 0.1083376801 | M28: =MAX(0.5*LOG10($C7)-0.1*(LOG10($C7))^2,'BPS1'!$K19) -> 0.1083376801 | N28: =MAX(0.5*LOG10($C7)-0.1*(LOG10($C7))^2,'BPS1'!$K19) -> 0.1083376801
A29: Ct x 1000 | B29: (-) | C29: =C23+C24+C25+C26+C27+C28 -> 2.202800537 | D29: 2.209971004 | E29: 2.237919147 | F29: 2.277462346 | G29: 2.326724977 | H29: 2.383896096 | I29: 2.51723284 | J29: 2.677095117 | K29: 2.472838096 | L29: 2.4797538 | M29: 2.486728285 | N29: 23.2385529
A30: Service allowance (input) | B30: (%) | C30: =$K11 -> 0 | D30: 0 | E30: 0 | F30: 0 | G30: 0 | H30: 0 | I30: 0 | J30: 0 | K30: 0 | L30: 0 | M30: 0 | N30: 0
A31: Added resistance (input) | B31: (kN) | C31: 0 | D31: 0 | E31: 0 | F31: 0 | G31: 0 | H31: 0 | I31: 0 | J31: 0 | K31: 0 | L31: 0 | M31: 0 | N31: 0
A32: Total resistance | B32: (kN) | C32: =$C9*$C3*C29*C21^2*0.0001323*(1+C30/100)+C31 -> 266.5047087 | D32: 348.0329432 | E32: 384.1055291 | F32: 424.5099454 | G32: 469.4534405 | H32: 519.0798232 | I32: 633.1542511 | J32: 770.3253932 | K32: 595.1201334 | L32: 601.0369894 | M32: 607.0070526 | N32: 19992.92137
A33: Effective power | B33: (kW) | C33: =C32*C21*0.5144 -> 1366.503282 | D33: 2036.001903 | E33: 2345.819424 | F33: 2701.7623 | G33: 3108.545291 | H33: 3570.659987 | I33: 4681.052719 | J33: 6091.445409 | K33: 4303.779962 | L33: 4362.028055 | M33: 4420.968031 | N33: 273369.9559
A34: Total propulsion efficiency | B34: (-) | C34: =$K5*$K6*$K7*C38 -> 0.6626764802 | D34: 0.6621531097 | E34: 0.6601244703 | F34: 0.6572844382 | G34: 0.6537948013 | H34: 0.6498104629 | I34: 0.6407793676 | J34: 0.630403671 | K34: 0.6437467717 | L34: 0.6432819688 | M34: 0.642814173 | N34: 0.2652129278
A35: Propulsion power | B35: (kW) | C35: =C33/C34 -> 2062.097152 | D35: 3074.82042 | E35: 3553.601676 | F35: 4110.491809 | G35: 4754.619163 | H35: 5494.925352 | I35: 7305.24882 | J35: 9662.769571 | K35: 6685.516963 | L35: 6780.895885 | M35: 6877.521088 | N35: 1030756.525 | P35: =Q22/L35*100 -> 100.1410343
A36: Thrust loading coefficent, Cth | B36: (-) | C36: =2.54648*C32/(1-$K4)/$C17/$C3/(C39*$C18)^2/$K7 -> 1.937250905 | D36: 1.943556966 | E36: 1.968135935 | F36: 2.002912165 | G36: 2.04623614 | H36: 2.096515228 | I36: 2.213778105 | J36: 2.354368838 | K36: 2.174735188 | L36: 2.180817198 | M36: 2.186950902 | N36: 20.43712396
A37: Necessary blade area ratio | B37: (-) | C37: =(1.3+0.3*$C19)*C32/(1-$K4)/$C17/(99.6+$C3*9.81*0.65*$C18)/$C18^2+C72 -> 0.3685817891 | D37: 0.4201537695 | E37: 0.442972057 | F37: 0.4685305127 | G37: 0.4969602348 | H37: 0.5283521919 | I37: 0.6005117843 | J37: 0.6872815703 | K37: 0.5764526987 | L37: 0.5801955 | M37: 0.5839719583 | N37: 12.84684016
A38: Approximate propeller efficiency | B38: (-) | C38: =(1+$K15/100)*IF($K14=1,MAX(0.65,0.81-0.014*C36),IF(C36<7,-0.000205*C36^4+0.00518*C36^3-0.0462*C36^2+0.177*C36+0.59,0.85))/(1+SQRT(1+C36))*2 -> 0.5769523661 | D38: 0.576496699 | E38: 0.5747304852 | F38: 0.5722578409 | G38: 0.5692196249 | H38: 0.5657507023 | I38: 0.5578878733 | J38: 0.5488543813 | K38: 0.5604714127 | L38: 0.560066737 | M38: 0.5596594555 | N38: =IF($K14=1,MAX(0.65,0.81-0.014*N36),IF(N36<7,-0.000205*N36^4+0.00518*N36^3-0.0462*N36^2+0.177*N36+0.59,0.85))/(1+SQRT(1+N36))*2 -> 0.2309048695
A39: Va | B39: (m/s) | C39: =C21*0.5144*(1-$K3) -> 3.464449672 | D39: 3.952631155 | E39: 4.126411009 | F39: 4.300190863 | G39: 4.473970717 | H39: 4.647750571 | I39: 4.99531028 | J39: 5.342869988 | K39: 4.886229713 | L39: 4.903607698 | M39: 4.920985684 | N39: 9.238532458
A40: Vbehind | B40: (m/s) | C40: =C39*SQRT(1+C36) -> 5.937515821 | D40: 6.781449187 | E40: 7.109095968 | F40: 7.45176322 | G40: 7.808631357 | H40: 8.178608566 | I40: 8.955099447 | J40: 9.785432234 | K40: 8.706179823 | L40: 8.745508648 | M40: 8.784959991 | N40: 42.77462872
A41: Vincrease | B41: (m/s) | C41: =C40-C39 -> 2.473066149 | D41: 2.828818033 | E41: 2.982684959 | F41: 3.151572357 | G41: 3.334660639 | H41: 3.530857994 | I41: 3.959789167 | J41: 4.442562246 | K41: 3.819950111 | L41: 3.84190095 | M41: 3.863974308 | N41: 33.53609627
A42: Vbehind/Va | B42: (-) | C42: =C40/C39 -> 1.71384098 | D42: 1.715679739 | E42: 1.722827889 | F42: 1.732891273 | G42: 1.745346997 | H42: 1.759691799 | I42: 1.792701343 | J42: 1.831493608 | K42: 1.781778659 | L42: 1.783484566 | M42: 1.785203322 | N42: 4.630024186
A43: Disc. flow speed | B43: (m/s) | C43: =C39+0.5*C41 -> 4.700982746 | D43: 5.367040171 | E43: 5.617753488 | F43: 5.875977042 | G43: 6.141301037 | H43: 6.413179569 | I43: 6.975204863 | J43: 7.564151111 | K43: 6.796204768 | L43: 6.824558173 | M43: 6.852972837 | N43: 26.00658059
A44: Water flow pr. propeller | B44: (m^3/s) | C44: =0.785*$C18^2*C43 -> 132.6970391 | D44: 151.4981819 | E44: 158.5751947 | F44: 165.8642027 | G44: 173.3536385 | H44: 181.0280926 | I44: 196.8926674 | J44: 213.5171537 | K44: 191.8399404 | L44: 192.6402864 | M44: 193.4423617 | N44: 734.1010226
A45: Cr summation | B45: (-) | C45: =C61+C62+C114 -> 0.7433316193 | D45: 0.8033240303 | E45: 0.8491760691 | F45: 0.9062196988 | G45: 0.972614272 | H45: 1.046579567 | I45: 1.212596803 | J45: 1.404076741 | K45: 1.158067615 | L45: 1.166605071 | M45: 1.17519855 | N45: 22.0645933
B46: A0= | C46: =1.35-0.23*$C13+0.012*$C13^2 -> 0.521075984 | D46: 0.521075984 | E46: 0.521075984 | F46: 0.521075984 | G46: 0.521075984 | H46: 0.521075984 | I46: 0.521075984 | J46: 0.521075984 | K46: 0.521075984 | L46: 0.521075984 | M46: 0.521075984 | N46: 0.521075984
B47: A1= | C47: =0.0011*$C13^9.1 -> 1781.384496 | D47: 1781.384496 | E47: 1781.384496 | F47: 1781.384496 | G47: 1781.384496 | H47: 1781.384496 | I47: 1781.384496 | J47: 1781.384496 | K47: 1781.384496 | L47: 1781.384496 | M47: 1781.384496 | N47: 1781.384496
B48: N1= | C48: =2*$C13-3.7 -> 5.92449156 | D48: 5.92449156 | E48: 5.92449156 | F48: 5.92449156 | G48: 5.92449156 | H48: 5.92449156 | I48: 5.92449156 | J48: 5.92449156 | K48: 5.92449156 | L48: 5.92449156 | M48: 5.92449156 | N48: 5.92449156
B49: B1= | C49: =7-0.09*$C13^2 -> 4.91580615 | D49: 4.91580615 | E49: 4.91580615 | F49: 4.91580615 | G49: 4.91580615 | H49: 4.91580615 | I49: 4.91580615 | J49: 4.91580615 | K49: 4.91580615 | L49: 4.91580615 | M49: 4.91580615 | N49: 4.91580615
B50: B2= | C50: =(5*$C12-2.5)^2 -> 2.495384986 | D50: 2.495384986 | E50: 2.495384986 | F50: 2.495384986 | G50: 2.495384986 | H50: 2.495384986 | I50: 2.495384986 | J50: 2.495384986 | K50: 2.495384986 | L50: 2.495384986 | M50: 2.495384986 | N50: 2.495384986
B51: B3= | C51: =(600*(C22-0.315)^2+1)^1.5 -> 116.218664 | D51: 89.64240466 | E51: 81.28809169 | F51: 73.48375296 | G51: 66.21017915 | H51: 59.44816426 | I51: 47.38200782 | J51: 37.13173007 | K51: 50.96617355 | L51: 50.38299548 | M51: 49.80445835 | N51: 1.022584165
B52: G= | C52: =C49*C50/C51 -> 0.1055495601 | D52: 0.1368418095 | E52: 0.1509056075 | F52: 0.1669325309 | G52: 0.1852710417 | H52: 0.2063449564 | I52: 0.2588921286 | J52: 0.3303597446 | K52: 0.2406856942 | L52: 0.2434716067 | M52: 0.2462998147 | N52: 11.99591122
C53: =C22-(0.04+0.59*$C12)-0.015*($C13-5) -> -0.3985857804 | D53: -0.3816763768 | E53: -0.3756570708 | F53: -0.3696377649 | G53: -0.3636184589 | H53: -0.357599153 | I53: -0.3455605411 | J53: -0.3335219292 | K53: -0.3493388232 | L53: -0.3487368926 | M53: -0.348134962 | N53: -0.1985857804
B54: H= | C54: =EXP(80*C53) -> 1.418115485e-14 | D54: 5.485351419e-14 | E54: 8.878437961e-14 | F54: 1.437039391e-13 | G54: 2.325952178e-13 | H54: 3.764721808e-13 | I54: 9.862729152e-13 | J54: 2.583814456e-12 | K54: 7.289976743e-13 | L54: 7.649611049e-13 | M54: 8.02698709e-13 | N54: 1.260153093e-07
C55: =20*$C12-16 -> 0.3187150419 | D55: 0.3187150419 | E55: 0.3187150419 | F55: 0.3187150419 | G55: 0.3187150419 | H55: 0.3187150419 | I55: 0.3187150419 | J55: 0.3187150419 | K55: 0.3187150419 | L55: 0.3187150419 | M55: 0.3187150419 | N55: 0.3187150419
B56: K= | C56: =180*C22^3.7*EXP(C55) -> 0.09697489085 | D56: 0.1579398862 | E56: 0.1851956317 | F56: 0.2157332859 | G56: 0.2497912134 | H56: 0.2876146196 | I56: 0.3755724144 | J56: 0.4817021593 | K56: 0.3461114022 | L56: 0.3506878399 | M56: 0.3553082777 | N56: 3.653790219
C57: =C46+1.5*C22^1.8+C47*C22^(C48) -> 0.5603265867 | D57: 0.5765557785 | E57: 0.5838836325 | F57: 0.5922387183 | G57: 0.601780165 | H57: 0.6126872154 | I57: 0.6394252349 | J57: 0.6743506895 | K57: 0.6302495247 | L57: 0.631660174 | M57: 0.6330898557 | N57: 2.79858962
C58: =0.98+2.5/($C13-2)^4 -> 1.019969334 | D58: 1.019969334 | E58: 1.019969334 | F58: 1.019969334 | G58: 1.019969334 | H58: 1.019969334 | I58: 1.019969334 | J58: 1.019969334 | K58: 1.019969334 | L58: 1.019969334 | M58: 1.019969334 | N58: 1.019969334
C59: =($C13-5)^4*(C22-0.1)^4 -> 1.988285806e-10 | D59: 2.306252975e-09 | E59: 4.220366496e-09 | F59: 7.133442865e-09 | G59: 1.1344285e-08 | H59: 1.719084798e-08 | I59: 3.533871761e-08 | J59: 6.506373562e-08 | K59: 2.857337955e-08 | L59: 2.957990754e-08 | M59: 3.061279625e-08 | N59: 2.911049249e-06
B60: E= | C60: =C57*C58+C59 -> 0.5715159358 | D60: 0.5880692158 | E60: 0.5955434041 | F60: 0.6040653383 | G60: 0.6137973256 | H60: 0.6249221884 | I60: 0.6521941665 | J60: 0.6878170889 | K60: 0.6428352166 | L60: 0.6442740367 | M60: 0.6457322692 | N60: 2.854478502
B61: B/T-corr | C61: =0.16*($C5/$C6-2.5) -> 0.03330529857 | D61: 0.03330529857 | E61: 0.03330529857 | F61: 0.03330529857 | G61: 0.03330529857 | H61: 0.03330529857 | I61: 0.03330529857 | J61: 0.03330529857 | K61: 0.03330529857 | L61: 0.03330529857 | M61: 0.03330529857 | N61: 0.03330529857
B62: Formcorr. | C62: =($C15-$C14)/3*0.1 -> 0 | D62: 0 | E62: 0 | F62: 0 | G62: 0 | H62: 0 | I62: 0 | J62: 0 | K62: 0 | L62: 0 | M62: 0 | N62: 0
B63: a= | C63: =0.1*C5/C4+0.149 -> 0.1663011825 | D63: d= | E63: =0.625*C5/C4+0.08 -> 0.1881323903
B64: b= | C64: =0.05*C5/C4+0.449 -> 0.4576505912 | D64: e= | E64: =0.165-0.25*C5/C4 -> 0.1217470439
B65: c= | C65: =585-5027*C5/C4+11700*(C5/C4)^2 -> 65.48672778 | D65: f= | E65: =825-8060*C5/C4+20300*(C5/C4)^2 -> 38.16645025
B66: w1= | C66: =C63+C64/(C65*(0.98-C11)^3+1) -> 0.5153030561 | D66: t1= | E66: =E63+E64/(E65*(0.98-C11)^3+1) -> 0.2911823767
B67: w2= | C67: =0.025*C15/(100*(C11-0.7)^2+1) -> 0 | D67: t2= | E67: =-0.01*C15 -> 0
B68: w3= | C68: =0.00756/(C18/C4+0.002)-0.18 -> 0.04092543025 | D68: t3= | E68: =2*(C18/C4-0.04) -> -0.01556061761
B69: w3= | C69: =MIN(0.1,C68) -> 0.04092543025
B70: w(1)= | C70: =C66+C67+C69 -> 0.5562284863 | D70: t(1)= | E70: =E66+E67+E68 -> 0.2756217591 | F70: w(twsk)= | G70: =0.7*C11-0.2 -> 0.3682992513
B71: w(2)= | C71: =1.133*C11^2-0.797*C11+0.215 -> 0.3147226611 | D71: t(2)= | E71: =0.0665+0.62833*C71 -> 0.2642496897 | F71: t(twsk.)= | G71: =0.2*C11+0.06 -> 0.2223712147
A72: Cavitation area calculation | B72: K | C72: =IF(C22>$J9,0,IF($C17=1,0.2,0.1)) -> 0.2 | D72: 0.2 | E72: 0.2 | F72: 0.2 | G72: 0.2 | H72: 0.2 | I72: 0.2 | J72: 0.2 | K72: 0.2 | L72: 0.2 | M72: 0.2 | N72: 0.2
B73: Fn | C73: =C22 -> 0.12 | D73: 0.1369094037 | E73: 0.1429287096 | F73: 0.1489480156 | G73: 0.1549673215 | H73: 0.1609866274 | I73: 0.1730252393 | J73: 0.1850638512 | K73: 0.1692469573 | L73: 0.1698488879 | M73: 0.1704508185 | N73: 0.32
B74: Fn2 | C74: =C22^2 -> 0.0144 | D74: 0.01874418481 | E74: 0.02042861603 | F74: 0.02218551134 | G74: 0.02401487073 | H74: 0.02591669422 | I74: 0.02993773344 | J74: 0.03424862903 | K74: 0.02864453254 | L74: 0.02884864471 | M74: 0.02905348151 | N74: 0.1024
B75: Fn3 | C75: =C22^3 -> 0.001728 | D75: 0.002566255165 | E75: 0.002919835729 | F75: 0.003304487888 | G75: 0.003721520194 | H75: 0.004172241196 | I75: 0.005179983494 | J75: 0.006338183186 | K75: 0.004847999975 | L75: 0.00489991022 | M75: 0.004952189703 | N75: 0.032768
B76: Fn4 | C76: =C22^4 -> 0.00020736 | D76: 0.0003513444643 | E76: 0.000417328353 | F76: 0.0004921969133 | G76: 0.0005767140163 | H76: 0.000671675039 | I76: 0.0008962678838 | J76: 0.00117296859 | K76: 0.0008205092447 | L76: 0.0008322443015 | M76: 0.000844104788 | N76: 0.01048576
B77: Fn5 | C77: =C22^5 -> 2.48832e-05 | D77: 4.810236109e-05 | E77: 5.964820297e-05 | F77: 7.33117535e-05 | G77: 8.937182638e-05 | H77: 0.0001081306993 | I77: 0.0001550769651 | J77: 0.0002170740847 | K77: 0.0001388686931 | L77: 0.000141355769 | M77: 0.000143878352 | N77: 0.0033554432
B78: Fn6 | C78: =C22^6 -> 2.985984e-06 | D78: 6.585665572e-06 | E78: 8.525440682e-06 | F78: 1.09196402e-05 | G78: 1.384971255e-05 | H78: 1.74075966e-05 | I78: 2.6832229e-05 | J78: 4.017256611e-05 | K78: 2.350310376e-05 | L78: 2.400912016e-05 | M78: 2.452418285e-05 | N78: 0.001073741824
A79: Cr for L/volume1/3 = 4,5 and Cp = 0,70 | B79: A0 | C79: =81963.95967*C77 - 69372.12684*C76 + 23700.28578*C75 - 4016.65661*C74 + 339.10948*C73 - 10.91 -> 0.5518976236 | D79: 0.6184508944 | E79: 0.6427334423 | F79: 0.6695855453 | G79: 0.6998815514 | H79: 0.7342333524 | I79: 0.8167059503 | J79: 0.9196027368 | K79: 0.7887381292 | L79: 0.7930624033 | M79: 0.7974360649 | N79: 10.51629956
A80: Cr for L/volume1/3 = 4,5 and Cp = 0,75 | B80: A1 | C80: =211855.99746*C77 - 178462.85551*C76 + 59866.35075*C75 - 9901.7271*C74 + 808.21686*C73 - 25.47 -> 0.6458044934 | D80: 0.7038547516 | E80: 0.7279417529 | F80: 0.7577175762 | G80: 0.7942661404 | H80: 0.8380196507 | I80: 0.9468170913 | J80: 1.082167016 | K80: 0.9097098827 | L80: 0.9154445126 | M80: 0.9212467205 | N80: 20.4752158
A81: Cr for L/volume1/3 = 4,5 and Cp = 0,80 | B81: A2 | C81: =189330.79305*C77 - 133987.07846*C76 + 36767.07838*C75 - 4746.53331*C74 + 281.6148*C73 - 5.18 -> 0.7248031768 | D81: 0.7911614113 | E81: 0.8361973905 | F81: 0.8902082122 | G81: 0.9517446458 | H81: 1.019578482 | I81: 1.171407804 | J81: 1.347113028 | K81: 1.12149848 | L81: 1.129307976 | M81: 1.13717036 | N81: 34.00772367
A82: Cr for L/volume1/3 = 4,5 and Cp = 0,85 | B82: A3 | C82: =-183277.76453*C77 + 217604.57034*C76 - 91711.5592*C75 + 18157.61937*C74 - 1715.03079*C73 + 63.08 -> 0.8303962657 | D82: 0.9087360014 | E82: 0.9855767599 | F82: 1.073784613 | G82: 1.168471797 | H82: 1.267306028 | I82: 1.47982118 | J82: 1.73717745 | K82: 1.410157411 | L82: 1.421025693 | M82: 1.431974744 | N82: 35.17716961
A83: Cr for L/volume1/3 = 5 and Cp = 0,70 | B83: B0 | C83: =108656.82305*C77 - 92884.66951*C76 + 31771.52118*C75 - 5373.60627*C74 + 450.34486*C73 - 14.5 -> 0.5058059008 | D83: 0.5585428054 | E83: 0.5772713116 | F83: 0.5986519022 | G83: 0.6236023334 | H83: 0.652663434 | I83: 0.7240145087 | J83: 0.8134084019 | K83: 0.6996924843 | L83: 0.7034487639 | M83: 0.7072499508 | N83: 11.06772505
A84: Cr for L/volume1/3 = 5 and Cp = 0,75 | B84: B1 | C84: =236068.11145*C77 - 206198.08468*C76 + 71647.62804*C75 - 12274.26804*C74 + 1036.91016*C73 - 34.06 -> 0.5437558687 | D84: 0.6065765327 | E84: 0.6259580771 | F84: 0.6500233112 | G84: 0.6808370852 | H84: 0.7195068149 | I84: 0.8213997124 | J84: 0.9539188151 | K84: 0.7859535886 | L84: 0.7913931094 | M84: 0.7969119448 | N84: 18.58519041
A85: Cr for L/volume1/3 = 5 and Cp = 0,80 | B85: B2 | C85: =153905.69184*C77 - 114943.493048*C76 + 33802.921153*C75 - 4780.049092*C74 + 322.837994*C73 - 7.67 -> 0.6442835003 | D85: 0.6968218184 | E85: 0.7330266043 | F85: 0.7778524082 | G85: 0.8306410872 | H85: 0.890724298 | I85: 1.030925567 | J85: 1.1984511 | K85: 0.9841209366 | L85: 0.9914054684 | M85: 0.9987549128 | N85: 24.96717686
A86: Cr for L/volume1/3 = 5 and Cp = 0,85 | B86: B3 | C86: =-9980220.15991*C78 + 10826099.46985*C77 - 4792166.95182*C76 + 1110018.19846*C75 - 141933.11234*C74 + 9505.46225*C73 - 260.06 -> 0.7535807277 | D86: 0.8298375608 | E86: 0.8816572221 | F86: 0.9528987806 | G86: 1.041071952 | H86: 1.142029565 | I86: 1.366906909 | J86: 1.614887849 | K86: 1.293955039 | L86: 1.305450303 | M86: 1.31699433 | N86: -18.51694299
A87: Cr for L/volume1/3 = 5,5 and Cp = 0,70 | B87: C0 | C87: =12205.28697*C77 - 8294.72385*C76 + 2539.32664*C75 - 405.17899*C74 + 34.1222*C73 - 0.78 -> 0.4517556371 | D87: 0.4862581019 | E87: 0.5006126463 | F87: 0.516658539 | G87: 0.5347855204 | H87: 0.5554083796 | I87: 0.6059955727 | J87: 0.6726791973 | K87: 0.5886058975 | L87: 0.5912766203 | M87: 0.5939843188 | N87: 5.835094374
A88: Cr for L/volume1/3 = 5,5 and Cp = 0,75 | B88: C1 | C88: =78193.22061*C77 - 62747.6239*C76 + 20041.29771*C75 - 3113.11297*C74 + 235.21739*C73 - 6.47 -> 0.4929727301 | D88: 0.5270397329 | E88: 0.5477481641 | F88: 0.5736812252 | G88: 0.6049342244 | H88: 0.641460251 | I88: 0.7298775172 | J88: 0.8385308658 | K88: 0.6999574386 | L88: 0.704591971 | M88: 0.7092766188 | N88: 11.14642563
A89: Cr for L/volume1/3 = 5,5 and Cp = 0,80 | B89: C2 | C89: =112229.10217*C77 - 90275.82325*C76 + 29064.78003*C75 - 4576.65461*C74 + 352.54132*C73 - 10.15 -> 0.5480963938 | D89: 0.5987779647 | E89: 0.6275430268 | F89: 0.6633515706 | G89: 0.7065682668 | H89: 0.7573468734 | I89: 0.8817887993 | J89: 1.037733075 | K89: 0.8394278686 | L89: 0.8459726265 | M89: 0.8525944306 | N89: 16.37626368
A90: Cr for L/volume1/3 = 5,5 and Cp = 0,85 | B90: C3 | C90: =-6333849.33191*C78 + 7003086.05505*C77 - 3170231.50477*C76 + 753388.16765*C75 - 99065.81153*C74 + 6833.52117*C73 - 192.64 -> 0.6568213996 | D90: 0.720775785 | E90: 0.7537760073 | F90: 0.8028091483 | G90: 0.8687484226 | H90: 0.9504602407 | I90: 1.153404052 | J90: 1.401269303 | K90: 1.084653766 | L90: 1.095314644 | M90: 1.106087562 | N90: -7.977004328
A91: Cr for L/volume1/3 = 6 and Cp = 0,70 | B91: D0 | C91: =53881.87664*C77 - 47719.69516*C76 + 17198.62503*C75 - 3090.1397*C74 + 275.82793*C73 - 9.37 -> 0.3961614963 | D91: 0.4331428447 | E91: 0.442787869 | F91: 0.4530297537 | G91: 0.4649450879 | H91: 0.4793712747 | I91: 0.5182164412 | J91: 0.5734222635 | K91: 0.5044191595 | L91: 0.5065131465 | M91: 0.5086459989 | N91: 6.449483157
A92: Cr for L/volume1/3 = 6 and Cp = 0,75 | B92: D1 | C92: =-13296.8167*C77 + 17338.63401*C76 - 7542.52455*C75 + 1552.59022*C74 - 152.78609*C73 + 6.19 -> 0.4439577446 | D92: 0.4703677678 | E92: 0.4895904562 | F92: 0.5128511923 | G92: 0.5398173446 | H92: 0.5703905613 | I92: 0.643060526 | J92: 0.7342807377 | K92: 0.6184793443 | L92: 0.6222806396 | M92: 0.6261246661 | N92: 6.322287053
A93: Cr for L/volume1/3 = 6 and Cp = 0,80 | B93: D2 | C93: =57255.69581*C77 - 44678.74747*C76 + 14023.41918*C75 - 2111.06396*C74 + 151.68701*C73 - 3.73 -> 0.4657083736 | D93: 0.5113805256 | E93: 0.5398851767 | F93: 0.575438394 | G93: 0.6182254078 | H93: 0.6683672343 | I93: 0.7912040688 | J93: 0.9456958239 | K93: 0.749358743 | L93: 0.7558207064 | M93: 0.7623598249 | N93: 11.78390548
A94: Cr for L/volume1/3 = 6 and Cp = 0,85 | B94: D3 | C94: =143089.62452*C77 - 117343.50532*C76 + 38649.35375*C75 - 6217.22547*C74 + 488.33352*C73 - 14.52 -> 0.5662373937 | D94: 0.639689237 | E94: 0.6815990917 | F94: 0.7343440832 | G94: 0.7987589033 | H94: 0.87533864 | I94: 1.066089287 | J94: 1.308920561 | K94: 1.000749344 | L94: 1.010820356 | M94: 1.021019253 | N94: 21.25813519
A95: Cr for L/volume1/3 = 6,5 and Cp = 0,70 | B95: E0 | C95: =30265.1424899999*C77 - 26816.90085*C76 + 9821.16503*C75 - 1803.67859*C74 + 165.46921*C73 - 5.71 -> 0.3366477092 | D95: 0.3732766662 | E95: 0.3836401561 | F95: 0.3942943856 | G95: 0.4060445318 | H95: 0.4195610119 | I95: 0.4540730344 | J95: 0.5015891325 | K95: 0.4420037899 | L95: 0.4438449619 | M95: 0.4457164531 | N95: 4.720775595
A96: Cr for L/volume1/3 = 6,5 and Cp = 0,75 | B96: E1 | C96: =54477.25649*C77 - 47053.5012*C76 + 16421.96104*C75 - 2825.53995*C74 + 239.64014*C73 - 7.66 -> 0.384744657 | D96: 0.4179854719 | E96: 0.4317241345 | F96: 0.4482812032 | G96: 0.4683918493 | H96: 0.4925870172 | I96: 0.5546435029 | J96: 0.6365766405 | K96: 0.533112882 | L96: 0.5364141198 | M96: 0.5397638893 | N96: 7.20799238
A97: Cr for L/volume1/3 = 6,5 and Cp = 0,80 | B97: E2 | C97: =76208.6211*C77 - 64528.35091*C76 + 21766.90698*C75 - 3544.03862*C74 + 277.89526*C73 - 8.01 -> 0.4322058493 | D97: 0.4599326425 | E97: 0.4813963458 | F97: 0.5104515 | G97: 0.5475378813 | H97: 0.5928503762 | I97: 0.7081423821 | J97: 0.8557348139 | K97: 0.6684452576 | L97: 0.6745557556 | M97: 0.6807474406 | N97: 10.34983505
A98: Cr for L/volume1/3 = 6,5 and Cp = 0,85 | B98: E3 | C98: =73827.1017*C77 - 60714.3115*C76 + 20349.36168*C75 - 3304.30929*C74 + 259.49856*C73 - 7.45 -> 0.5188053114 | D98: 0.5824842621 | E98: 0.6199722065 | F98: 0.6672210983 | G98: 0.7250652175 | H98: 0.7941582407 | I98: 0.9682227157 | J98: 1.193692051 | K98: 0.9082708831 | L98: 0.9174893432 | M98: 0.926833129 | N98: 15.12309885
A99: Cr for L/volume1/3 = 7,0 and Cp = 0,70 | B99: F0 | C99: =40733.9049*C77 - 36751.17452*C76 + 13395.20097*C75 - 2415.4317*C74 + 215.01129*C73 - 7.26 -> 0.2989119501 | D99: 0.3243482615 | E99: 0.3315429611 | F99: 0.3396562975 | G99: 0.3495005864 | H99: 0.3616860306 | I99: 0.3947423826 | J99: 0.4411324733 | K99: 0.3830143361 | L99: 0.384796572 | M99: 0.3866111578 | N99: 4.453660576
A100: Cr for L/volume1/3 = 7,0 and Cp = 0,75 | B100: F1 | C100: =58644.91546*C77 - 51277.08978*C76+ 18140.63323*C75 - 3175.6924*C74 + 274.28544*C73 - 9.02 -> 0.337752285 | D100: 0.3650217534 | E100: 0.3746127726 | F100: 0.386351297 | G100: 0.4011571913 | H100: 0.4197108137 | I100: 0.4699187961 | J100: 0.5397411138 | K100: 0.4521578548 | L100: 0.4548607106 | M100: 0.4576111805 | N100: 7.093134584
A101: Cr for L/volume1/3 = 7,0 and Cp = 0,80 | B101: F2 | C101: =29372.07272*C77 - 22669.98997*C76 + 6956.69784*C75 - 960.8162*C74 + 55.83313*C73 - 0.51 -> 0.4054182272 | D101: 0.4249164386 | E101: 0.4455886834 | F101: 0.4735780356 | G101: 0.5088600767 | H101: 0.5513853271 | I101: 0.658009341 | J101: 0.7936113749 | K101: 0.6214524191 | L101: 0.6270866566 | M101: 0.6327927503 | N101: 7.770345192
A102: Cr for L/volume1/3 = 7,0 and Cp = 0,85 | B102: F3 | C102: =4564.57887*C77 - 4085.11767*C76 + 2049.36962*C75 - 391.39311*C74 + 30.6636*C73 - 0.38 -> 0.4713732482 | D102: 0.525279316 | E102: 0.558345354 | F102: 0.6000981506 | G102: 0.6513715739 | H102: 0.7129778887 | I102: 0.8703562035 | J102: 1.078463614 | K102: 0.8157924776 | L102: 0.8241583866 | M102: 0.8326470612 | N102: 8.988062915
B103: G0 | C103: =($C12-0.75)*($C12-0.8)/0.005 -> 0.2101471599 | D103: 0.2101471599 | E103: 0.2101471599 | F103: 0.2101471599 | G103: 0.2101471599 | H103: 0.2101471599 | I103: 0.2101471599 | J103: 0.2101471599 | K103: 0.2101471599 | L103: 0.2101471599 | M103: 0.2101471599 | N103: 0.2101471599
B104: G1 | C104: =($C12-0.7)*($C12-0.8)/0.0025 -> 0.7390093616 | D104: 0.7390093616 | E104: 0.7390093616 | F104: 0.7390093616 | G104: 0.7390093616 | H104: 0.7390093616 | I104: 0.7390093616 | J104: 0.7390093616 | K104: 0.7390093616 | L104: 0.7390093616 | M104: 0.7390093616 | N104: 0.7390093616
B105: G2 | C105: =($C12-0.7)*($C12-0.75)/0.005 -> 1.528862202 | D105: 1.528862202 | E105: 1.528862202 | F105: 1.528862202 | G105: 1.528862202 | H105: 1.528862202 | I105: 1.528862202 | J105: 1.528862202 | K105: 1.528862202 | L105: 1.528862202 | M105: 1.528862202 | N105: 1.528862202
B106: G3 | C106: =($C12-0.8)*($C12-0.85)/0.005 -> -0.108567882 | D106: -0.108567882 | E106: -0.108567882 | F106: -0.108567882 | G106: -0.108567882 | H106: -0.108567882 | I106: -0.108567882 | J106: -0.108567882 | K106: -0.108567882 | L106: -0.108567882 | M106: -0.108567882 | N106: -0.108567882
B107: G4 | C107: =($C12-0.75)*($C12-0.85)/0.0025 -> -0.8984207221 | D107: -0.8984207221 | E107: -0.8984207221 | F107: -0.8984207221 | G107: -0.8984207221 | H107: -0.8984207221 | I107: -0.8984207221 | J107: -0.8984207221 | K107: -0.8984207221 | L107: -0.8984207221 | M107: -0.8984207221 | N107: -0.8984207221
A108: Cr for L/volume1/3 = 4,5 | B108: H1 | C108: =IF($C12<0.775,C103*C79-C104*C80+C105*C81,C106*C80-C107*C81+C103*C82) -> 0.7555699843 | D108: 0.8253480766 | E108: 0.879342126 | F108: 0.9431704992 | G108: 1.014386349 | H108: 1.09134918 | I108: 1.260603337 | J108: 1.457848586 | K108: 1.205152774 | L108: 1.213830329 | M108: 1.222565036 | N108: 35.72267513
A109: Cr for L/volume1/3 = 5,0 | B109: H2 | C109: =IF($C12<0.775,C103*C83-C104*C84+C105*C85,C106*C84-C107*C85+C103*C86) -> 0.6781660743 | D109: 0.7345724384 | E109: 0.7758851097 | F109: 0.8285160405 | G109: 0.891126439 | H109: 0.9621241056 | I109: 1.12427887 | J109: 1.312512453 | K109: 1.070746302 | L109: 1.079116017 | M109: 1.087545686 | N109: 16.52199133
A110: Cr for L/volume1/3 = 5,5 | B110: H3 | C110: =IF($C12<0.775,C103*C87-C104*C88+C105*C89,C106*C88-C107*C89+C103*C90) -> 0.5769293044 | D110: 0.632203928 | E110: 0.6627336884 | F110: 0.702393504 | G110: 0.7516841587 | H110: 0.8105106642 | I110: 0.9553606594 | J110: 1.135756143 | K110: 0.9061034036 | L110: 0.9137205416 | M110: 0.9214250034 | N110: 11.82628601
